Workbook

Sheet Intro
A1: This workbook explains population pyramids with hypothetical and real-world data.
A2: It accompanies "Let’s Put Demography Back into Economics: Population Pyramids in Excel," published in The Journal of Economic Education:
B3: https://www.tandfonline.com/doi/full/10.1080/00220485.2017.1397577
A5: Software Requirements:
B6: You need Microsoft Excel, Windows version 2007 or greater to get full functionality from this file.
C7: The file can be opened with Mac Excel, but it uses Visual Basic code that may not be fully supported on a Mac.
B9: You must be sure to enable macros or the buttons and scroll bars in this macro-enabled workbook will not work.
B10: If you did not do so, please close the workbook and open it again, enabling macros.
B11: Search "enable macros" in Excel's Help for more information on how to do this.
A13: Key Ideas:
B14: A population pyramid is an eye-catching, thought-provoking way to develop demographic literacy.
B15: Simulation enables evolution of the pyramid and provides comparison of scenarios and policies.
A17: Contents:
B18: Fake: a hypothetical population is displayed and analyzed to highlight the properties of the pyramid.
B19: PopPyr: directly download US Census Bureau population data by age and sex.
B20: LFPR: incorporates labor force participation into the pyramid.
B21: Mig: pyramids of total, native, immigrant populations
B22: Lessons: offers takeway ideas and a final example of a pyramid of college-educated people in the United States.
B24: This workbook also contains hidden sheets and Visual Basic code modules.
A26: Thanks to Frank Howland for early conversations and discussion, especially on Cuba, and for solving for the long run rate of growth;
A27: Andrew Pinney for help on understanding estimates of Afghanistan’s population; Peter Johnson for alerting me to the API call;
A28: and Guangjun Qu, Guglielmo Volpe, Jonathan Lhost and two anonymous JEE referees for comments and suggestions.
A30: All questions, comments, and suggestions welcome.
A31: Humberto Barreto | O31: 37
A32: hbarreto@depauw.edu
A33: 2017-08-07
A34: Updated (IDB changed API)
A35: 2019-07-31

Sheet Fake
A1: In columns C and D we start with a population of 15-44 year old men and women. Their ASFR and ASDR values produce a new cohort in cells L16:M16 and at the bottom of the chart.
G3: Begin Year Pop | H3: =-SUM(C16:C101)+SUM(D16:D101) -> 600000
G4: ="During Year "&A16&":" -> During Year 1:
G5: Births | H5: =SUMPRODUCT(D31:D60,E31:E60) -> 30000
G6: Deaths | H6: =-SUMPRODUCT(C16:C101,F16:F101)+SUMPRODUCT(D16:D101,F16:F101) -> 690
G7: End Year Pop | H7: =H3+H5-H6 -> 629310
G8: %DPop | H8: =(H7-H3)/H3 -> 0.04885
G9: LR %DPop | H9: =longrungrowthrate(E31:E60,F16:F101) -> 0.01293993012
G10: GFR | H10: =1000*H5/SUM(D31:D60) -> 100
A15: Year | B15: Age | C15: Male | D15: Female | E15: ASFR | F15: ASDR | J15: Year | K15: Age | L15: Male | M15: Female | N15: ASFR | O15: ASDR
A16: 1 | B16: 0 | C16: 0 | D16: 0 | F16: 0.006 | J16: =A16+1 -> 2 | K16: 0 | L16: =-0.5*SUMPRODUCT(D16:D101,E16:E101) -> -15000 | M16: =0.5*SUMPRODUCT(D16:D101,E16:E101) -> 15000 | O16: =F16 -> 0.006
B17: 1 | C17: 0 | D17: 0 | F17: 0.0003 | G17: Simplifications for this analysis: | K17: 1 | L17: =(1-$F16)*C16 -> 0 | M17: =(1-$F16)*D16 -> 0 | O17: 0.0003
B18: 2 | C18: 0 | D18: 0 | F18: 0.0002 | H18: 50/50 M/F births | K18: 2 | L18: =(1-$F17)*C17 -> 0 | M18: 0 | O18: 0.0002
B19: 3 | C19: 0 | D19: 0 | F19: 0.0002 | H19: Trivers-Willard Hypothesis | K19: 3 | L19: 0 | M19: 0 | O19: 0.0002
B20: 4 | C20: 0 | D20: 0 | F20: 0.0001 | H20: No Migration | K20: 4 | L20: =(1-$F19)*C19 -> 0 | M20: 0 | O20: =F20 -> 0.0001
B21: 5 | C21: 0 | D21: 0 | F21: 0.0001 | H21: Constant ASFRs and ASDRs | K21: 5 | L21: 0 | M21: 0 | O21: =F21 -> 0.0001
B22: 6 | C22: 0 | D22: 0 | F22: 0.0001 | K22: 6 | L22: 0 | M22: 0 | O22: =F22 -> 0.0001
B23: 7 | C23: 0 | D23: 0 | F23: 0.0001 | K23: 7 | L23: 0 | M23: 0 | O23: =F23 -> 0.0001
B24: 8 | C24: 0 | D24: 0 | F24: 0.0001 | K24: 8 | L24: 0 | M24: 0 | O24: 0.0001
B25: 9 | C25: 0 | D25: 0 | F25: 0.0001 | K25: 9 | L25: 0 | M25: 0 | O25: 0.0001
B26: 10 | C26: 0 | D26: 0 | F26: 0.0001 | K26: 10 | L26: 0 | M26: 0 | O26: 0.0001
B27: 11 | C27: 0 | D27: 0 | F27: 0.0001 | K27: 11 | L27: 0 | M27: 0 | O27: 0.0001
B28: 12 | C28: 0 | D28: 0 | F28: 0.0001 | K28: 12 | L28: 0 | M28: 0 | O28: 0.0001
B29: 13 | C29: 0 | D29: 0 | F29: 0.0001 | K29: 13 | L29: 0 | M29: 0 | O29: 0.0001
B30: 14 | C30: 0 | D30: 0 | F30: 0.0001 | K30: 14 | L30: 0 | M30: 0 | O30: 0.0001
B31: 15 | C31: -10000 | D31: 10000 | E31: 0.1 | F31: 0.0002 | K31: 15 | L31: 0 | M31: 0 | N31: =E31 -> 0.1 | O31: 0.0002
B32: 16 | C32: -10000 | D32: 10000 | E32: 0.1 | F32: 0.0004 | K32: 16 | L32: -9998 | M32: 9998 | N32: 0.1 | O32: 0.0004
B33: 17 | C33: -10000 | D33: 10000 | E33: 0.1 | F33: 0.0005 | K33: 17 | L33: -9996 | M33: 9996 | N33: 0.1 | O33: 0.0005
B34: 18 | C34: -10000 | D34: 10000 | E34: 0.1 | F34: 0.0006 | K34: 18 | L34: =(1-$F33)*C33 -> -9995 | M34: 9995 | N34: 0.1 | O34: 0.0006
B35: 19 | C35: -10000 | D35: 10000 | E35: 0.1 | F35: 0.0008 | K35: 19 | L35: -9994 | M35: 9994 | N35: 0.1 | O35: 0.0008
B36: 20 | C36: -10000 | D36: 10000 | E36: 0.1 | F36: 0.0009 | K36: 20 | L36: -9992 | M36: 9992 | N36: 0.1 | O36: 0.0009
B37: 21 | C37: -10000 | D37: 10000 | E37: 0.1 | F37: 0.0009 | K37: 21 | L37: -9991 | M37: 9991 | N37: 0.1 | O37: 0.0009
B38: 22 | C38: -10000 | D38: 10000 | E38: 0.1 | F38: 0.0009 | K38: 22 | L38: -9991 | M38: 9991 | N38: 0.1 | O38: 0.0009
B39: 23 | C39: -10000 | D39: 10000 | E39: 0.1 | F39: 0.0009 | K39: 23 | L39: -9991 | M39: 9991 | N39: 0.1 | O39: 0.0009
B40: 24 | C40: -10000 | D40: 10000 | E40: 0.1 | F40: 0.0009 | K40: 24 | L40: -9991 | M40: 9991 | N40: 0.1 | O40: 0.0009
B41: 25 | C41: -10000 | D41: 10000 | E41: 0.1 | F41: 0.001 | K41: 25 | L41: -9991 | M41: 9991 | N41: 0.1 | O41: 0.001
B42: 26 | C42: -10000 | D42: 10000 | E42: 0.1 | F42: 0.001 | K42: 26 | L42: -9990 | M42: 9990 | N42: 0.1 | O42: 0.001
B43: 27 | C43: -10000 | D43: 10000 | E43: 0.1 | F43: 0.001 | K43: 27 | L43: -9990 | M43: 9990 | N43: 0.1 | O43: 0.001
B44: 28 | C44: -10000 | D44: 10000 | E44: 0.1 | F44: 0.001 | K44: 28 | L44: -9990 | M44: 9990 | N44: 0.1 | O44: 0.001
B45: 29 | C45: -10000 | D45: 10000 | E45: 0.1 | F45: 0.001 | K45: 29 | L45: -9990 | M45: 9990 | N45: 0.1 | O45: 0.001
B46: 30 | C46: -10000 | D46: 10000 | E46: 0.1 | F46: 0.0011 | K46: 30 | L46: -9990 | M46: 9990 | N46: 0.1 | O46: 0.0011
B47: 31 | C47: -10000 | D47: 10000 | E47: 0.1 | F47: 0.0011 | K47: 31 | L47: -9989 | M47: 9989 | N47: 0.1 | O47: 0.0011
B48: 32 | C48: -10000 | D48: 10000 | E48: 0.1 | F48: 0.0011 | K48: 32 | L48: -9989 | M48: 9989 | N48: 0.1 | O48: 0.0011
B49: 33 | C49: -10000 | D49: 10000 | E49: 0.1 | F49: 0.0011 | K49: 33 | L49: -9989 | M49: 9989 | N49: 0.1 | O49: 0.0011
B50: 34 | C50: -10000 | D50: 10000 | E50: 0.1 | F50: 0.0011 | K50: 34 | L50: =(1-$F49)*C49 -> -9989 | M50: 9989 | N50: 0.1 | O50: 0.0011
B51: 35 | C51: -10000 | D51: 10000 | E51: 0.1 | F51: 0.0014 | K51: 35 | L51: -9989 | M51: 9989 | N51: 0.1 | O51: 0.0014
B52: 36 | C52: -10000 | D52: 10000 | E52: 0.1 | F52: 0.0014 | K52: 36 | L52: -9986 | M52: 9986 | N52: 0.1 | O52: 0.0014
B53: 37 | C53: -10000 | D53: 10000 | E53: 0.1 | F53: 0.0014 | K53: 37 | L53: -9986 | M53: 9986 | N53: 0.1 | O53: 0.0014
B54: 38 | C54: -10000 | D54: 10000 | E54: 0.1 | F54: 0.0014 | K54: 38 | L54: -9986 | M54: 9986 | N54: 0.1 | O54: 0.0014
B55: 39 | C55: -10000 | D55: 10000 | E55: 0.1 | F55: 0.0014 | K55: 39 | L55: -9986 | M55: 9986 | N55: 0.1 | O55: 0.0014
B56: 40 | C56: -10000 | D56: 10000 | E56: 0.1 | F56: 0.0016 | K56: 40 | L56: -9986 | M56: 9986 | N56: 0.1 | O56: 0.0016
B57: 41 | C57: -10000 | D57: 10000 | E57: 0.1 | F57: 0.0018 | K57: 41 | L57: -9984 | M57: 9984 | N57: 0.1 | O57: 0.0018
B58: 42 | C58: -10000 | D58: 10000 | E58: 0.1 | F58: 0.002 | K58: 42 | L58: -9982 | M58: 9982 | N58: 0.1 | O58: 0.002
B59: 43 | C59: -10000 | D59: 10000 | E59: 0.1 | F59: 0.0022 | K59: 43 | L59: -9980 | M59: 9980 | N59: 0.1 | O59: 0.0022
B60: 44 | C60: -10000 | D60: 10000 | E60: 0.1 | F60: 0.0024 | K60: 44 | L60: -9978 | M60: 9978 | N60: 0.1 | O60: 0.0024
B61: 45 | C61: 0 | D61: 0 | F61: 0.0026 | K61: 45 | L61: -9976 | M61: 9976 | O61: 0.0026
B62: 46 | C62: 0 | D62: 0 | F62: 0.0028 | K62: 46 | L62: 0 | M62: 0 | O62: 0.0028
B63: 47 | C63: 0 | D63: 0 | F63: 0.003 | K63: 47 | L63: 0 | M63: 0 | O63: 0.003
B64: 48 | C64: 0 | D64: 0 | F64: 0.0032 | K64: 48 | L64: 0 | M64: 0 | O64: 0.0032
B65: 49 | C65: 0 | D65: 0 | F65: 0.0034 | K65: 49 | L65: 0 | M65: 0 | O65: 0.0034
B66: 50 | C66: 0 | D66: 0 | F66: 0.004 | K66: 50 | L66: =(1-$F65)*C65 -> 0 | M66: 0 | O66: 0.004
B67: 51 | C67: 0 | D67: 0 | F67: 0.0045 | K67: 51 | L67: 0 | M67: 0 | O67: 0.0045
B68: 52 | C68: 0 | D68: 0 | F68: 0.005 | K68: 52 | L68: 0 | M68: 0 | O68: 0.005
B69: 53 | C69: 0 | D69: 0 | F69: 0.0055 | K69: 53 | L69: 0 | M69: 0 | O69: 0.0055
B70: 54 | C70: 0 | D70: 0 | F70: 0.006 | K70: 54 | L70: 0 | M70: 0 | O70: 0.006
B71: 55 | C71: 0 | D71: 0 | F71: 0.0063 | K71: 55 | L71: 0 | M71: 0 | O71: 0.0063
B72: 56 | C72: 0 | D72: 0 | F72: 0.0066 | K72: 56 | L72: 0 | M72: 0 | O72: 0.0066
B73: 57 | C73: 0 | D73: 0 | F73: 0.007 | K73: 57 | L73: 0 | M73: 0 | O73: 0.007
B74: 58 | C74: 0 | D74: 0 | F74: 0.0073 | K74: 58 | L74: 0 | M74: 0 | O74: 0.0073
B75: 59 | C75: 0 | D75: 0 | F75: 0.0076 | K75: 59 | L75: 0 | M75: 0 | O75: 0.0076
B76: 60 | C76: 0 | D76: 0 | F76: 0.008 | K76: 60 | L76: 0 | M76: 0 | O76: 0.008
B77: 61 | C77: 0 | D77: 0 | F77: 0.009 | K77: 61 | L77: 0 | M77: 0 | O77: 0.009
B78: 62 | C78: 0 | D78: 0 | F78: 0.01 | K78: 62 | L78: 0 | M78: 0 | O78: 0.01
B79: 63 | C79: 0 | D79: 0 | F79: 0.011 | K79: 63 | L79: 0 | M79: 0 | O79: 0.011
B80: 64 | C80: 0 | D80: 0 | F80: 0.012 | K80: 64 | L80: 0 | M80: 0 | O80: 0.012
B81: 65 | C81: 0 | D81: 0 | F81: 0.013 | K81: 65 | L81: 0 | M81: 0 | O81: 0.013
B82: 66 | C82: 0 | D82: 0 | F82: 0.014 | K82: 66 | L82: =(1-$F81)*C81 -> 0 | M82: 0 | O82: 0.014
B83: 67 | C83: 0 | D83: 0 | F83: 0.015 | K83: 67 | L83: 0 | M83: 0 | O83: 0.015
B84: 68 | C84: 0 | D84: 0 | F84: 0.016 | K84: 68 | L84: 0 | M84: 0 | O84: =F84 -> 0.016
B85: 69 | C85: 0 | D85: 0 | F85: 0.017 | K85: 69 | L85: 0 | M85: 0 | O85: 0.017
B86: 70 | C86: 0 | D86: 0 | F86: 0.019 | K86: 70 | L86: 0 | M86: 0 | O86: 0.019
B87: 71 | C87: 0 | D87: 0 | F87: 0.021 | K87: 71 | L87: 0 | M87: 0 | O87: 0.021
B88: 72 | C88: 0 | D88: 0 | F88: 0.023 | K88: 72 | L88: 0 | M88: 0 | O88: 0.023
B89: 73 | C89: 0 | D89: 0 | F89: 0.025 | K89: 73 | L89: 0 | M89: 0 | O89: 0.025
B90: 74 | C90: 0 | D90: 0 | F90: 0.027 | K90: 74 | L90: 0 | M90: 0 | O90: 0.027
B91: 75 | C91: 0 | D91: 0 | F91: 0.03 | K91: 75 | L91: 0 | M91: 0 | O91: 0.03
B92: 76 | C92: 0 | D92: 0 | F92: 0.033 | K92: 76 | L92: 0 | M92: 0 | O92: 0.033
B93: 77 | C93: 0 | D93: 0 | F93: 0.037 | K93: 77 | L93: 0 | M93: 0 | O93: 0.037
B94: 78 | C94: 0 | D94: 0 | F94: 0.041 | K94: 78 | L94: 0 | M94: 0 | O94: 0.041
B95: 79 | C95: 0 | D95: 0 | F95: 0.044 | K95: 79 | L95: 0 | M95: 0 | O95: 0.044
B96: 80 | C96: 0 | D96: 0 | F96: 0.049 | K96: 80 | L96: 0 | M96: 0 | O96: 0.049
B97: 81 | C97: 0 | D97: 0 | F97: 0.054 | K97: 81 | L97: 0 | M97: 0 | O97: 0.054
B98: 82 | C98: 0 | D98: 0 | F98: 0.06 | K98: 82 | L98: =(1-$F97)*C97 -> 0 | M98: 0 | O98: 0.06
B99: 83 | C99: 0 | D99: 0 | F99: 0.066 | K99: 83 | L99: 0 | M99: 0 | O99: 0.066
B100: 84 | C100: 0 | D100: 0 | F100: 0.071 | K100: 84 | L100: 0 | M100: 0 | O100: 0.071
B101: 85 | C101: 0 | D101: 0 | F101: 1 | K101: 85 | L101: 0 | M101: 0 | O101: 1

Sheet FakeData (hidden)
A1: In columns C and D we start with the population of Afghan men and women in 2014. The ASFR values are from Egypt and we mixed in American ASDR values. They produce a new cohort in cells L16:M16 and at the bottom of the chart. | AA1: In columns C and D we start with a population of 15-44 year old men and women. Their ASFR and ASDR values produce a new cohort in cells L16:M16 and at the bottom of the chart.
A2: Data for Fake sheet; loads from Example 2 and Reset buttons -> scroll right
G3: Begin Year Pop | H3: =-SUM(C16:C101)+SUM(D16:D101) -> 31820118
G4: ="During Year "&A16&":" -> During Year 1:
G5: Births | H5: =SUMPRODUCT(D31:D60,E31:E60) -> 870564.18
G6: Deaths | H6: =-SUMPRODUCT(C16:C101,F16:F101)+SUMPRODUCT(D16:D101,F16:F101) -> 73472.8141
G7: End Year Pop | H7: =H3+H5-H6 -> 32617209.37
G8: %DPop | H8: =(H7-H3)/H3 -> 0.0250499186
G9: GFR | H9: =1000*H5/SUM(D31:D60) -> 123.403902 | I9: per thousand
A11: In columns C and D we have Afghanistan's population by age and sex. | AB11: In columns AC and AD we have fake population by age and sex.
P13: So, we started with Afghanistan in 2014, but
P14: used Egyptian ASFR and US ASDR (see Doc sheet).
A15: Year | B15: Age | C15: Male | D15: Female | E15: ASFR | F15: ASDR | J15: Year | K15: Age | L15: Male | M15: Female | N15: ASFR | O15: ASDR | P15: We can see that in the following year, there | AA15: Year | AB15: Age | AC15: Male | AD15: Female | AE15: ASFR | AF15: ASDR | AJ15: Year | AK15: Age | AL15: Male | AM15: Female | AN15: ASFR | AO15: ASDR
A16: 1 | B16: 0 | C16: -573665 | D16: 553974 | F16: 0.006 | J16: 2 | K16: 0 | L16: =-0.5*SUMPRODUCT(D16:D101,E16:E101) -> -435282.09 | M16: =0.5*SUMPRODUCT(D16:D101,E16:E101) -> 435282.09 | O16: 0.006 | P16: would be a collapse in the number of births, as | AA16: 1 | AB16: 0 | AC16: 0 | AD16: 0 | AF16: 0.006 | AJ16: =AA16+1 -> 2 | AK16: 0 | AL16: =-0.5*SUMPRODUCT(AD16:AD101,AE16:AE101) -> -15000 | AM16: =0.5*SUMPRODUCT(AD16:AD101,AE16:AE101) -> 15000 | AN16: 0 | AO16: 0.006
B17: 1 | C17: -528794 | D17: 512717 | F17: 0.0003 | K17: 1 | L17: =(1-$F16)*C16 -> -570223.01 | M17: =(1-$F16)*D16 -> 550650.156 | O17: 0.0003 | P17: shown by cells L16:M16 and the much shorter | AB17: 1 | AC17: 0 | AD17: 0 | AF17: 0.0003 | AK17: 1 | AL17: =(1-$F16)*AC16 -> 0 | AM17: =(1-$F16)*AD16 -> 0 | AN17: 0 | AO17: 0.0003
B18: 2 | C18: -505300 | D18: 489828 | F18: 0.0002 | K18: 2 | L18: =(1-$F17)*C17 -> -528635.3618 | M18: 512563.1849 | O18: 0.0002 | P18: lowest slice in the pop pyramid. | AB18: 2 | AC18: 0 | AD18: 0 | AF18: 0.0002 | AK18: 2 | AL18: =(1-$F17)*AC17 -> 0 | AM18: 0 | AN18: 0 | AO18: 0.0002
B19: 3 | C19: -487940 | D19: 472910 | F19: 0.0002 | K19: 3 | L19: -505198.94 | M19: 489730.0344 | O19: 0.0002 | P19: These ASFR and ASDR values could not have | AB19: 3 | AC19: 0 | AD19: 0 | AF19: 0.0002 | AK19: 3 | AL19: 0 | AM19: 0 | AN19: 0 | AO19: 0.0002
B20: 4 | C20: -472797 | D20: 458193 | F20: 0.0001 | K20: 4 | L20: -487842.412 | M20: 472815.418 | O20: 0.0001 | P20: created the Afghani pop pyramid. | AB20: 4 | AC20: 0 | AD20: 0 | AF20: 0.0001 | AK20: 4 | AL20: 0 | AM20: 0 | AN20: 0 | AO20: 0.0001
B21: 5 | C21: -457972 | D21: 443846 | F21: 0.0001 | K21: 5 | L21: -472749.7203 | M21: 458147.1807 | O21: 0.0001 | AB21: 5 | AC21: 0 | AD21: 0 | AF21: 0.0001 | AK21: 5 | AL21: 0 | AM21: 0 | AN21: 0 | AO21: 0.0001
B22: 6 | C22: -451848 | D22: 437906 | F22: 0.0001 | K22: 6 | L22: -457926.2028 | M22: 443801.6154 | O22: 0.0001 | AB22: 6 | AC22: 0 | AD22: 0 | AF22: 0.0001 | AK22: 6 | AL22: 0 | AM22: 0 | AN22: 0 | AO22: 0.0001
B23: 7 | C23: -433935 | D23: 420566 | F23: 0.0001 | K23: 7 | L23: -451802.8152 | M23: 437862.2094 | O23: 0.0001 | AB23: 7 | AC23: 0 | AD23: 0 | AF23: 0.0001 | AK23: 7 | AL23: 0 | AM23: 0 | AN23: 0 | AO23: 0.0001
B24: 8 | C24: -426676 | D24: 413566 | F24: 0.0001 | K24: 8 | L24: -433891.6065 | M24: 420523.9434 | O24: 0.0001 | AB24: 8 | AC24: 0 | AD24: 0 | AF24: 0.0001 | AK24: 8 | AL24: 0 | AM24: 0 | AN24: 0 | AO24: 0.0001
B25: 9 | C25: -419553 | D25: 406630 | F25: 0.0001 | K25: 9 | L25: -426633.3324 | M25: 413524.6434 | O25: 0.0001 | AB25: 9 | AC25: 0 | AD25: 0 | AF25: 0.0001 | AK25: 9 | AL25: 0 | AM25: 0 | AN25: 0 | AO25: 0.0001
B26: 10 | C26: -408192 | D26: 395273 | F26: 0.0001 | K26: 10 | L26: -419511.0447 | M26: 406589.337 | O26: 0.0001 | AB26: 10 | AC26: 0 | AD26: 0 | AF26: 0.0001 | AK26: 10 | AL26: 0 | AM26: 0 | AN26: 0 | AO26: 0.0001
B27: 11 | C27: -374200 | D27: 362478 | F27: 0.0001 | K27: 11 | L27: -408151.1808 | M27: 395233.4727 | O27: 0.0001 | AB27: 11 | AC27: 0 | AD27: 0 | AF27: 0.0001 | AK27: 11 | AL27: 0 | AM27: 0 | AN27: 0 | AO27: 0.0001
B28: 12 | C28: -385513 | D28: 373369 | F28: 0.0001 | K28: 12 | L28: -374162.58 | M28: 362441.7522 | O28: 0.0001 | AB28: 12 | AC28: 0 | AD28: 0 | AF28: 0.0001 | AK28: 12 | AL28: 0 | AM28: 0 | AN28: 0 | AO28: 0.0001
B29: 13 | C29: -431172 | D29: 416804 | F29: 0.0001 | K29: 13 | L29: -385474.4487 | M29: 373331.6631 | O29: 0.0001 | AB29: 13 | AC29: 0 | AD29: 0 | AF29: 0.0001 | AK29: 13 | AL29: 0 | AM29: 0 | AN29: 0 | AO29: 0.0001
B30: 14 | C30: -436275 | D30: 421328 | F30: 0.0001 | K30: 14 | L30: -431128.8828 | M30: 416762.3196 | O30: 0.0001 | AB30: 14 | AC30: 0 | AD30: 0 | AF30: 0.0001 | AK30: 14 | AL30: 0 | AM30: 0 | AN30: 0 | AO30: 0.0001
B31: 15 | C31: -427619 | D31: 412705 | E31: 0.01 | F31: 0.0002 | K31: 15 | L31: -436231.3725 | M31: 421285.8672 | N31: 0.01 | O31: 0.0002 | AB31: 15 | AC31: -10000 | AD31: 10000 | AE31: 0.1 | AF31: 0.0002 | AK31: 15 | AL31: 0 | AM31: 0 | AN31: 0.01 | AO31: 0.0002
B32: 16 | C32: -411837 | D32: 397178 | E32: 0.04 | F32: 0.0004 | K32: 16 | L32: -427533.4762 | M32: 412622.459 | N32: 0.04 | O32: 0.0004 | AB32: 16 | AC32: -10000 | AD32: 10000 | AE32: 0.1 | AF32: 0.0004 | AK32: 16 | AL32: -9998 | AM32: 9998 | AN32: 0.04 | AO32: 0.0004
B33: 17 | C33: -396476 | D33: 382184 | E33: 0.06 | F33: 0.0005 | K33: 17 | L33: -411672.2652 | M33: 397019.1288 | N33: 0.06 | O33: 0.0005 | AB33: 17 | AC33: -10000 | AD33: 10000 | AE33: 0.1 | AF33: 0.0005 | AK33: 17 | AL33: -9996 | AM33: 9996 | AN33: 0.06 | AO33: 0.0005
B34: 18 | C34: -383014 | D34: 368890 | E34: 0.09 | F34: 0.0006 | K34: 18 | L34: =(1-$F33)*C33 -> -396277.762 | M34: 381992.908 | N34: 0.09 | O34: 0.0006 | AB34: 18 | AC34: -10000 | AD34: 10000 | AE34: 0.1 | AF34: 0.0006 | AK34: 18 | AL34: =(1-$F33)*AC33 -> -9995 | AM34: 9995 | AN34: 0.09 | AO34: 0.0006
B35: 19 | C35: -368394 | D35: 354472 | E35: 0.12 | F35: 0.0008 | K35: 19 | L35: -382784.1916 | M35: 368668.666 | N35: 0.12 | O35: 0.0008 | AB35: 19 | AC35: -10000 | AD35: 10000 | AE35: 0.1 | AF35: 0.0008 | AK35: 19 | AL35: -9994 | AM35: 9994 | AN35: 0.12 | AO35: 0.0008
B36: 20 | C36: -352355 | D36: 338797 | E36: 0.16 | F36: 0.0009 | K36: 20 | L36: -368099.2848 | M36: 354188.4224 | N36: 0.16 | O36: 0.0009 | AB36: 20 | AC36: -10000 | AD36: 10000 | AE36: 0.1 | AF36: 0.0009 | AK36: 20 | AL36: -9992 | AM36: 9992 | AN36: 0.16 | AO36: 0.0009
B37: 21 | C37: -332119 | D37: 319118 | E37: 0.18 | F37: 0.0009 | K37: 21 | L37: -352037.8805 | M37: 338492.0827 | N37: 0.18 | O37: 0.0009 | AB37: 21 | AC37: -10000 | AD37: 10000 | AE37: 0.1 | AF37: 0.0009 | AK37: 21 | AL37: -9991 | AM37: 9991 | AN37: 0.18 | AO37: 0.0009
B38: 22 | C38: -322133 | D38: 309335 | E38: 0.2 | F38: 0.0009 | K38: 22 | L38: -331820.0929 | M38: 318830.7938 | N38: 0.2 | O38: 0.0009 | AB38: 22 | AC38: -10000 | AD38: 10000 | AE38: 0.1 | AF38: 0.0009 | AK38: 22 | AL38: -9991 | AM38: 9991 | AN38: 0.2 | AO38: 0.0009
B39: 23 | C39: -309630 | D39: 297238 | E39: 0.22 | F39: 0.0009 | K39: 23 | L39: -321843.0803 | M39: 309056.5985 | N39: 0.22 | O39: 0.0009 | AB39: 23 | AC39: -10000 | AD39: 10000 | AE39: 0.1 | AF39: 0.0009 | AK39: 23 | AL39: -9991 | AM39: 9991 | AN39: 0.22 | AO39: 0.0009
B40: 24 | C40: -296687 | D40: 284864 | E40: 0.24 | F40: 0.0009 | K40: 24 | L40: -309351.333 | M40: 296970.4858 | N40: 0.24 | O40: 0.0009 | AB40: 24 | AC40: -10000 | AD40: 10000 | AE40: 0.1 | AF40: 0.0009 | AK40: 24 | AL40: -9991 | AM40: 9991 | AN40: 0.24 | AO40: 0.0009
B41: 25 | C41: -283083 | D41: 271889 | E41: 0.22 | F41: 0.001 | K41: 25 | L41: -296419.9817 | M41: 284607.6224 | N41: 0.22 | O41: 0.001 | AB41: 25 | AC41: -10000 | AD41: 10000 | AE41: 0.1 | AF41: 0.001 | AK41: 25 | AL41: -9991 | AM41: 9991 | AN41: 0.22 | AO41: 0.001
B42: 26 | C42: -265302 | D42: 254813 | E42: 0.2 | F42: 0.001 | K42: 26 | L42: -282799.917 | M42: 271617.111 | N42: 0.2 | O42: 0.001 | AB42: 26 | AC42: -10000 | AD42: 10000 | AE42: 0.1 | AF42: 0.001 | AK42: 26 | AL42: -9990 | AM42: 9990 | AN42: 0.2 | AO42: 0.001
B43: 27 | C43: -246113 | D43: 236578 | E43: 0.2 | F43: 0.001 | K43: 27 | L43: -265036.698 | M43: 254558.187 | N43: 0.2 | O43: 0.001 | AB43: 27 | AC43: -10000 | AD43: 10000 | AE43: 0.1 | AF43: 0.001 | AK43: 27 | AL43: -9990 | AM43: 9990 | AN43: 0.2 | AO43: 0.001
B44: 28 | C44: -232551 | D44: 223443 | E44: 0.2 | F44: 0.001 | K44: 28 | L44: -245866.887 | M44: 236341.422 | N44: 0.2 | O44: 0.001 | AB44: 28 | AC44: -10000 | AD44: 10000 | AE44: 0.1 | AF44: 0.001 | AK44: 28 | AL44: -9990 | AM44: 9990 | AN44: 0.2 | AO44: 0.001
B45: 29 | C45: -220315 | D45: 211532 | E45: 0.18 | F45: 0.001 | K45: 29 | L45: -232318.449 | M45: 223219.557 | N45: 0.18 | O45: 0.001 | AB45: 29 | AC45: -10000 | AD45: 10000 | AE45: 0.1 | AF45: 0.001 | AK45: 29 | AL45: -9990 | AM45: 9990 | AN45: 0.18 | AO45: 0.001
B46: 30 | C46: -209278 | D46: 200736 | E46: 0.17 | F46: 0.0011 | K46: 30 | L46: -220094.685 | M46: 211320.468 | N46: 0.17 | O46: 0.0011 | AB46: 30 | AC46: -10000 | AD46: 10000 | AE46: 0.1 | AF46: 0.0011 | AK46: 30 | AL46: -9990 | AM46: 9990 | AN46: 0.17 | AO46: 0.0011
B47: 31 | C47: -193718 | D47: 185576 | E47: 0.16 | F47: 0.0011 | K47: 31 | L47: -209047.7942 | M47: 200515.1904 | N47: 0.16 | O47: 0.0011 | AB47: 31 | AC47: -10000 | AD47: 10000 | AE47: 0.1 | AF47: 0.0011 | AK47: 31 | AL47: -9989 | AM47: 9989 | AN47: 0.16 | AO47: 0.0011
B48: 32 | C48: -189937 | D48: 181359 | E48: 0.15 | F48: 0.0011 | K48: 32 | L48: -193504.9102 | M48: 185371.8664 | N48: 0.15 | O48: 0.0011 | AB48: 32 | AC48: -10000 | AD48: 10000 | AE48: 0.1 | AF48: 0.0011 | AK48: 32 | AL48: -9989 | AM48: 9989 | AN48: 0.15 | AO48: 0.0011
B49: 33 | C49: -183001 | D49: 174667 | E49: 0.13 | F49: 0.0011 | K49: 33 | L49: -189728.0693 | M49: 181159.5051 | N49: 0.13 | O49: 0.0011 | AB49: 33 | AC49: -10000 | AD49: 10000 | AE49: 0.1 | AF49: 0.0011 | AK49: 33 | AL49: -9989 | AM49: 9989 | AN49: 0.13 | AO49: 0.0011
B50: 34 | C50: -184144 | D50: 176156 | E50: 0.1 | F50: 0.0011 | K50: 34 | L50: =(1-$F49)*C49 -> -182799.6989 | M50: 174474.8663 | N50: 0.1 | O50: 0.0011 | AB50: 34 | AC50: -10000 | AD50: 10000 | AE50: 0.1 | AF50: 0.0011 | AK50: 34 | AL50: =(1-$F49)*AC49 -> -9989 | AM50: 9989 | AN50: 0.1 | AO50: 0.0011
B51: 35 | C51: -169615 | D51: 155848 | E51: 0.09 | F51: 0.0014 | K51: 35 | L51: -183941.4416 | M51: 175962.2284 | N51: 0.09 | O51: 0.0014 | AB51: 35 | AC51: -10000 | AD51: 10000 | AE51: 0.1 | AF51: 0.0014 | AK51: 35 | AL51: -9989 | AM51: 9989 | AN51: 0.09 | AO51: 0.0014
B52: 36 | C52: -174507 | D52: 162604 | E52: 0.08 | F52: 0.0014 | K52: 36 | L52: -169377.539 | M52: 155629.8128 | N52: 0.08 | O52: 0.0014 | AB52: 36 | AC52: -10000 | AD52: 10000 | AE52: 0.1 | AF52: 0.0014 | AK52: 36 | AL52: -9986 | AM52: 9986 | AN52: 0.08 | AO52: 0.0014
B53: 37 | C53: -169301 | D53: 160240 | E53: 0.07 | F53: 0.0014 | K53: 37 | L53: -174262.6902 | M53: 162376.3544 | N53: 0.07 | O53: 0.0014 | AB53: 37 | AC53: -10000 | AD53: 10000 | AE53: 0.1 | AF53: 0.0014 | AK53: 37 | AL53: -9986 | AM53: 9986 | AN53: 0.07 | AO53: 0.0014
B54: 38 | C54: -167905 | D54: 160349 | E54: 0.06 | F54: 0.0014 | K54: 38 | L54: -169063.9786 | M54: 160015.664 | N54: 0.06 | O54: 0.0014 | AB54: 38 | AC54: -10000 | AD54: 10000 | AE54: 0.1 | AF54: 0.0014 | AK54: 38 | AL54: -9986 | AM54: 9986 | AN54: 0.06 | AO54: 0.0014
B55: 39 | C55: -164232 | D55: 157844 | E55: 0.05 | F55: 0.0014 | K55: 39 | L55: -167669.933 | M55: 160124.5114 | N55: 0.05 | O55: 0.0014 | AB55: 39 | AC55: -10000 | AD55: 10000 | AE55: 0.1 | AF55: 0.0014 | AK55: 39 | AL55: -9986 | AM55: 9986 | AN55: 0.05 | AO55: 0.0014
B56: 40 | C56: -154589 | D56: 149306 | E56: 0.04 | F56: 0.0016 | K56: 40 | L56: -164002.0752 | M56: 157623.0184 | N56: 0.04 | O56: 0.0016 | AB56: 40 | AC56: -10000 | AD56: 10000 | AE56: 0.1 | AF56: 0.0016 | AG56: =SUM(AE31:AE60) -> 3 | AK56: 40 | AL56: -9986 | AM56: 9986 | AN56: 0.04 | AO56: 0.0016
B57: 41 | C57: -144377 | D57: 139861 | E57: 0.03 | F57: 0.0018 | K57: 41 | L57: -154341.6576 | M57: 149067.1104 | N57: 0.03 | O57: 0.0018 | AB57: 41 | AC57: -10000 | AD57: 10000 | AE57: 0.1 | AF57: 0.0018 | AK57: 41 | AL57: -9984 | AM57: 9984 | AN57: 0.03 | AO57: 0.0018
B58: 42 | C58: -135604 | D58: 131331 | E58: 0.02 | F58: 0.002 | K58: 42 | L58: -144117.1214 | M58: 139609.2502 | N58: 0.02 | O58: 0.002 | AB58: 42 | AC58: -10000 | AD58: 10000 | AE58: 0.1 | AF58: 0.002 | AK58: 42 | AL58: -9982 | AM58: 9982 | AN58: 0.02 | AO58: 0.002
B59: 43 | C59: -132761 | D59: 128911 | E59: 0.02 | F59: 0.0022 | K59: 43 | L59: -135332.792 | M59: 131068.338 | N59: 0.02 | O59: 0.0022 | AB59: 43 | AC59: -10000 | AD59: 10000 | AE59: 0.1 | AF59: 0.0022 | AK59: 43 | AL59: -9980 | AM59: 9980 | AN59: 0.02 | AO59: 0.0022
B60: 44 | C60: -130334 | D60: 126768 | E60: 0.01 | F60: 0.0024 | K60: 44 | L60: -132468.9258 | M60: 128627.3958 | N60: 0.01 | O60: 0.0024 | AB60: 44 | AC60: -10000 | AD60: 10000 | AE60: 0.1 | AF60: 0.0024 | AK60: 44 | AL60: -9978 | AM60: 9978 | AN60: 0.01 | AO60: 0.0024
B61: 45 | C61: -124391 | D61: 120587 | F61: 0.0026 | K61: 45 | L61: -130021.1984 | M61: 126463.7568 | O61: 0.0026 | AB61: 45 | AC61: 0 | AD61: 0 | AF61: 0.0026 | AK61: 45 | AL61: -9976 | AM61: 9976 | AN61: 0 | AO61: 0.0026
B62: 46 | C62: -117752 | D62: 113791 | F62: 0.0028 | K62: 46 | L62: -124067.5834 | M62: 120273.4738 | O62: 0.0028 | AB62: 46 | AC62: 0 | AD62: 0 | AF62: 0.0028 | AK62: 46 | AL62: 0 | AM62: 0 | AN62: 0 | AO62: 0.0028
B63: 47 | C63: -111308 | D63: 107482 | F63: 0.003 | K63: 47 | L63: -117422.2944 | M63: 113472.3852 | O63: 0.003 | AB63: 47 | AC63: 0 | AD63: 0 | AF63: 0.003 | AK63: 47 | AL63: 0 | AM63: 0 | AN63: 0 | AO63: 0.003
B64: 48 | C64: -109041 | D64: 105679 | F64: 0.0032 | K64: 48 | L64: -110974.076 | M64: 107159.554 | O64: 0.0032 | AB64: 48 | AC64: 0 | AD64: 0 | AF64: 0.0032 | AK64: 48 | AL64: 0 | AM64: 0 | AN64: 0 | AO64: 0.0032
B65: 49 | C65: -106511 | D65: 103804 | F65: 0.0034 | K65: 49 | L65: -108692.0688 | M65: 105340.8272 | O65: 0.0034 | AB65: 49 | AC65: 0 | AD65: 0 | AF65: 0.0034 | AK65: 49 | AL65: 0 | AM65: 0 | AN65: 0 | AO65: 0.0034
B66: 50 | C66: -100365 | D66: 98285 | F66: 0.004 | K66: 50 | L66: =(1-$F65)*C65 -> -106148.8626 | M66: 103451.0664 | O66: 0.004 | AB66: 50 | AC66: 0 | AD66: 0 | AF66: 0.004 | AK66: 50 | AL66: =(1-$F65)*AC65 -> 0 | AM66: 0 | AN66: 0 | AO66: 0.004
B67: 51 | C67: -93826 | D67: 92284 | F67: 0.0045 | K67: 51 | L67: -99963.54 | M67: 97891.86 | O67: 0.0045 | AB67: 51 | AC67: 0 | AD67: 0 | AF67: 0.0045 | AK67: 51 | AL67: 0 | AM67: 0 | AN67: 0 | AO67: 0.0045
B68: 52 | C68: -87944 | D68: 86701 | F68: 0.005 | K68: 52 | L68: -93403.783 | M68: 91868.722 | O68: 0.005 | AB68: 52 | AC68: 0 | AD68: 0 | AF68: 0.005 | AK68: 52 | AL68: 0 | AM68: 0 | AN68: 0 | AO68: 0.005
B69: 53 | C69: -85842 | D69: 85122 | F69: 0.0055 | K69: 53 | L69: -87504.28 | M69: 86267.495 | O69: 0.0055 | AB69: 53 | AC69: 0 | AD69: 0 | AF69: 0.0055 | AK69: 53 | AL69: 0 | AM69: 0 | AN69: 0 | AO69: 0.0055
B70: 54 | C70: -83676 | D70: 83417 | F70: 0.006 | K70: 54 | L70: -85369.869 | M70: 84653.829 | O70: 0.006 | AB70: 54 | AC70: 0 | AD70: 0 | AF70: 0.006 | AK70: 54 | AL70: 0 | AM70: 0 | AN70: 0 | AO70: 0.006
B71: 55 | C71: -78566 | D71: 78561 | F71: 0.0063 | K71: 55 | L71: -83173.944 | M71: 82916.498 | O71: 0.0063 | AB71: 55 | AC71: 0 | AD71: 0 | AF71: 0.0063 | AK71: 55 | AL71: 0 | AM71: 0 | AN71: 0 | AO71: 0.0063
B72: 56 | C72: -72913 | D72: 73230 | F72: 0.0066 | K72: 56 | L72: -78071.0342 | M72: 78066.0657 | O72: 0.0066 | AB72: 56 | AC72: 0 | AD72: 0 | AF72: 0.0066 | AK72: 56 | AL72: 0 | AM72: 0 | AN72: 0 | AO72: 0.0066
B73: 57 | C73: -67608 | D73: 68389 | F73: 0.007 | K73: 57 | L73: -72431.7742 | M73: 72746.682 | O73: 0.007 | AB73: 57 | AC73: 0 | AD73: 0 | AF73: 0.007 | AK73: 57 | AL73: 0 | AM73: 0 | AN73: 0 | AO73: 0.007
B74: 58 | C74: -65589 | D74: 66872 | F74: 0.0073 | K74: 58 | L74: -67134.744 | M74: 67910.277 | O74: 0.0073 | AB74: 58 | AC74: 0 | AD74: 0 | AF74: 0.0073 | AK74: 58 | AL74: 0 | AM74: 0 | AN74: 0 | AO74: 0.0073
B75: 59 | C75: -63538 | D75: 65336 | F75: 0.0076 | K75: 59 | L75: -65110.2003 | M75: 66383.8344 | O75: 0.0076 | AB75: 59 | AC75: 0 | AD75: 0 | AF75: 0.0076 | AK75: 59 | AL75: 0 | AM75: 0 | AN75: 0 | AO75: 0.0076
B76: 60 | C76: -58900 | D76: 61243 | F76: 0.008 | K76: 60 | L76: -63055.1112 | M76: 64839.4464 | O76: 0.008 | AB76: 60 | AC76: 0 | AD76: 0 | AF76: 0.008 | AK76: 60 | AL76: 0 | AM76: 0 | AN76: 0 | AO76: 0.008
B77: 61 | C77: -53906 | D77: 56700 | F77: 0.009 | K77: 61 | L77: -58428.8 | M77: 60753.056 | O77: 0.009 | AB77: 61 | AC77: 0 | AD77: 0 | AF77: 0.009 | AK77: 61 | AL77: 0 | AM77: 0 | AN77: 0 | AO77: 0.009
B78: 62 | C78: -49387 | D78: 52489 | F78: 0.01 | K78: 62 | L78: -53420.846 | M78: 56189.7 | O78: 0.01 | AB78: 62 | AC78: 0 | AD78: 0 | AF78: 0.01 | AK78: 62 | AL78: 0 | AM78: 0 | AN78: 0 | AO78: 0.01
B79: 63 | C79: -47386 | D79: 50773 | F79: 0.011 | K79: 63 | L79: -48893.13 | M79: 51964.11 | O79: 0.011 | AB79: 63 | AC79: 0 | AD79: 0 | AF79: 0.011 | AK79: 63 | AL79: 0 | AM79: 0 | AN79: 0 | AO79: 0.011
B80: 64 | C80: -45404 | D80: 48946 | F80: 0.012 | K80: 64 | L80: -46864.754 | M80: 50214.497 | O80: 0.012 | AB80: 64 | AC80: 0 | AD80: 0 | AF80: 0.012 | AK80: 64 | AL80: 0 | AM80: 0 | AN80: 0 | AO80: 0.012
B81: 65 | C81: -41611 | D81: 45167 | F81: 0.013 | K81: 65 | L81: -44859.152 | M81: 48358.648 | O81: 0.013 | AB81: 65 | AC81: 0 | AD81: 0 | AF81: 0.013 | AK81: 65 | AL81: 0 | AM81: 0 | AN81: 0 | AO81: 0.013
B82: 66 | C82: -37534 | D82: 41129 | F82: 0.014 | K82: 66 | L82: =(1-$F81)*C81 -> -41070.057 | M82: 44579.829 | O82: 0.014 | AB82: 66 | AC82: 0 | AD82: 0 | AF82: 0.014 | AK82: 66 | AL82: =(1-$F81)*AC81 -> 0 | AM82: 0 | AN82: 0 | AO82: 0.014
B83: 67 | C83: -33895 | D83: 37441 | F83: 0.015 | K83: 67 | L83: -37008.524 | M83: 40553.194 | O83: 0.015 | AB83: 67 | AC83: 0 | AD83: 0 | AF83: 0.015 | AK83: 67 | AL83: 0 | AM83: 0 | AN83: 0 | AO83: 0.015
B84: 68 | C84: -32067 | D84: 35745 | F84: 0.016 | K84: 68 | L84: -33386.575 | M84: 36879.385 | O84: 0.016 | AB84: 68 | AC84: 0 | AD84: 0 | AF84: 0.016 | AK84: 68 | AL84: 0 | AM84: 0 | AN84: 0 | AO84: 0.016
B85: 69 | C85: -30223 | D85: 33992 | F85: 0.017 | K85: 69 | L85: -31553.928 | M85: 35173.08 | O85: 0.017 | AB85: 69 | AC85: 0 | AD85: 0 | AF85: 0.017 | AK85: 69 | AL85: 0 | AM85: 0 | AN85: 0 | AO85: 0.017
B86: 70 | C86: -27133 | D86: 30793 | F86: 0.019 | K86: 70 | L86: -29709.209 | M86: 33414.136 | O86: 0.019 | AB86: 70 | AC86: 0 | AD86: 0 | AF86: 0.019 | AK86: 70 | AL86: 0 | AM86: 0 | AN86: 0 | AO86: 0.019
B87: 71 | C87: -23882 | D87: 27373 | F87: 0.021 | K87: 71 | L87: -26617.473 | M87: 30207.933 | O87: 0.021 | AB87: 71 | AC87: 0 | AD87: 0 | AF87: 0.021 | AK87: 71 | AL87: 0 | AM87: 0 | AN87: 0 | AO87: 0.021
B88: 72 | C88: -20997 | D88: 24382 | F88: 0.023 | K88: 72 | L88: -23380.478 | M88: 26798.167 | O88: 0.023 | AB88: 72 | AC88: 0 | AD88: 0 | AF88: 0.023 | AK88: 72 | AL88: 0 | AM88: 0 | AN88: 0 | AO88: 0.023
B89: 73 | C89: -19353 | D89: 22611 | F89: 0.025 | K89: 73 | L89: -20514.069 | M89: 23821.214 | O89: 0.025 | AB89: 73 | AC89: 0 | AD89: 0 | AF89: 0.025 | AK89: 73 | AL89: 0 | AM89: 0 | AN89: 0 | AO89: 0.025
B90: 74 | C90: -17763 | D90: 20821 | F90: 0.027 | K90: 74 | L90: -18869.175 | M90: 22045.725 | O90: 0.027 | AB90: 74 | AC90: 0 | AD90: 0 | AF90: 0.027 | AK90: 74 | AL90: 0 | AM90: 0 | AN90: 0 | AO90: 0.027
B91: 75 | C91: -15431 | D91: 18220 | F91: 0.03 | K91: 75 | L91: -17283.399 | M91: 20258.833 | O91: 0.03 | AB91: 75 | AC91: 0 | AD91: 0 | AF91: 0.03 | AK91: 75 | AL91: 0 | AM91: 0 | AN91: 0 | AO91: 0.03
B92: 76 | C92: -13041 | D92: 15546 | F92: 0.033 | K92: 76 | L92: -14968.07 | M92: 17673.4 | O92: 0.033 | AB92: 76 | AC92: 0 | AD92: 0 | AF92: 0.033 | AK92: 76 | AL92: 0 | AM92: 0 | AN92: 0 | AO92: 0.033
B93: 77 | C93: -11016 | D93: 13161 | F93: 0.037 | K93: 77 | L93: -12610.647 | M93: 15032.982 | O93: 0.037 | AB93: 77 | AC93: 0 | AD93: 0 | AF93: 0.037 | AK93: 77 | AL93: 0 | AM93: 0 | AN93: 0 | AO93: 0.037
B94: 78 | C94: -9703 | D94: 11772 | F94: 0.041 | K94: 78 | L94: -10608.408 | M94: 12674.043 | O94: 0.041 | AB94: 78 | AC94: 0 | AD94: 0 | AF94: 0.041 | AK94: 78 | AL94: 0 | AM94: 0 | AN94: 0 | AO94: 0.041
B95: 79 | C95: -8464 | D95: 10484 | F95: 0.044 | K95: 79 | L95: -9305.177 | M95: 11289.348 | O95: 0.044 | AB95: 79 | AC95: 0 | AD95: 0 | AF95: 0.044 | AK95: 79 | AL95: 0 | AM95: 0 | AN95: 0 | AO95: 0.044
B96: 80 | C96: -6914 | D96: 8719 | F96: 0.049 | K96: 80 | L96: -8091.584 | M96: 10022.704 | O96: 0.049 | AB96: 80 | AC96: 0 | AD96: 0 | AF96: 0.049 | AK96: 80 | AL96: 0 | AM96: 0 | AN96: 0 | AO96: 0.049
B97: 81 | C97: -5411 | D97: 7005 | F97: 0.054 | K97: 81 | L97: -6575.214 | M97: 8291.769 | O97: 0.054 | AB97: 81 | AC97: 0 | AD97: 0 | AF97: 0.054 | AK97: 81 | AL97: 0 | AM97: 0 | AN97: 0 | AO97: 0.054
B98: 82 | C98: -4162 | D98: 5608 | F98: 0.06 | K98: 82 | L98: =(1-$F97)*C97 -> -5118.806 | M98: 6626.73 | O98: 0.06 | AB98: 82 | AC98: 0 | AD98: 0 | AF98: 0.06 | AK98: 82 | AL98: =(1-$F97)*AC97 -> 0 | AM98: 0 | AN98: 0 | AO98: 0.06
B99: 83 | C99: -3393 | D99: 4681 | F99: 0.066 | K99: 83 | L99: -3912.28 | M99: 5271.52 | O99: 0.066 | AB99: 83 | AC99: 0 | AD99: 0 | AF99: 0.066 | AK99: 83 | AL99: 0 | AM99: 0 | AN99: 0 | AO99: 0.066
B100: 84 | C100: -2757 | D100: 3851 | F100: 0.071 | K100: 84 | L100: -3169.062 | M100: 4372.054 | O100: 0.071 | AB100: 84 | AC100: 0 | AD100: 0 | AF100: 0.071 | AK100: 84 | AL100: 0 | AM100: 0 | AN100: 0 | AO100: 0.071
B101: 85 | C101: -5940 | D101: 8640 | F101: 1 | K101: 85 | L101: -2561.253 | M101: 3577.579 | O101: 1 | AB101: 85 | AC101: 0 | AD101: 0 | AF101: 1 | AK101: 85 | AL101: 0 | AM101: 0 | AN101: 0 | AO101: 1

Sheet Doc (hidden)
A1: Understanding ASFR and ASDR
A3: These data used for Example 2.
B33: Source: | C33: http://www.cpc.unc.edu/measure/prh/rh_indicators/specific/fertility/age-specific-fertility-rates
B62: Source: | C62: http://www.cdc.gov/nchs/data/nvsr/nvsr63/nvsr63_03.pdf

Sheet PopPyr
A1: This sheet downloads data from IDB and displays it in a population pyramid chart. | G1: Select a country, set years via scroll bars or direct enter in cells K3 and K4, and click Get IDB Data button. | Z1: Cell link | AA1: Code | AB1: Select a country | AC1: Country Selected
A2: Year | B2: Age | C2: Male | D2: Female | Z2: 1 | AA2: AF | AB2: Afghanistan | AC2: =OFFSET(AB1,Z2-1,0) -> Select a country
J3: Start year: | K3: 2019 | Q3: Usage Notes: | AA3: AL | AB3: Albania
J4: End year: | K4: 2019 | Q4: Data download from census.gov can be quite slow (depends on connection speed and years requested). | AA4: AG | AB4: Algeria
Q5: Data availability varies. 1950 to 2050 is max possible range. Click this button for more: | AA5: AQ | AB5: American Samoa
H6: 10 | Q6: When data not available, no data shown. | AA6: AN | AB6: Andorra
Q7: Get IDB Data button goes to web site (below chart) and downloads data requested into columns A:D via API call. | AA7: AO | AB7: Angola
AA8: AV | AB8: Anguilla
Q9: Top bar, 100+, is grouped. | AA9: AC | AB9: Antigua and Barbuda
AA10: AR | AB10: Argentina
Q11: Click on a cohort in the chart to display its population. | AA11: AM | AB11: Armenia
Q12: If no pop up, click this button | AA12: AA | AB12: Aruba
AA13: AS | AB13: Australia
Q14: Buttons below chart explained: | AA14: AU | AB14: Austria
Q15: Play animates the chart for all years of data in columns A:D. | AA15: AJ | AB15: Azerbaijan
Q16: Pick A Year sets the chart to a specific year from data in columns A:D. | AA16: BF | AB16: Bahamas
Q17: Show First Year sets the chart to first year of data (cell A3). | AA17: BA | AB17: Bahrain
Q18: Show (Hide) Age Axis is a toggle that adds or removes the age (y) axis | AA18: BG | AB18: Bangladesh
Q19: Common X Axis sets the same X axis for all existing PopPyr sheets (to make better comparisons). | AA19: BB | AB19: Barbados
Q20: Take a Picture copies the chart as a picture; paste it (ctrl-V) as needed. | AA20: BO | AB20: Belarus
Q21: Show Pyramids displays population pyramids (in 5-year groups) of all countries | AA21: BE | AB21: Belgium
Q22: Copy Sheet copies this sheet (to make country comparisons). | AA22: BH | AB22: Belize
Q23: Reset All wipes everything clear. | AA23: BN | AB23: Benin
AA24: BD | AB24: Bermuda
Q25: Double-click X axis values (in the chart) to set max and min values. | AA25: BT | AB25: Bhutan
AA26: BL | AB26: Bolivia
I27: Source: | J27: https://www.census.gov/data-tools/demo/idb | AA27: BK | AB27: Bosnia and Herzegovina
AA28: BC | AB28: Botswana
AA29: BR | AB29: Brazil
AA30: BX | AB30: Brunei
AA31: BU | AB31: Bulgaria
AA32: UV | AB32: Burkina
AA33: BM | AB33: Burma
AA34: BY | AB34: Burundi
AA35: CB | AB35: Cambodia
AA36: CM | AB36: Cameroon
AA37: CA | AB37: Canada
AA38: CV | AB38: Cape Verde
AA39: CJ | AB39: Cayman Islands
AA40: CT | AB40: Central African Republic
AA41: CD | AB41: Chad
AA42: CI | AB42: Chile
AA43: CH | AB43: China
AA44: CO | AB44: Colombia
AA45: CN | AB45: Comoros
AA46: CG | AB46: Congo (Kinshasa)
AA47: CF | AB47: Congo (Brazzaville)
AA48: CW | AB48: Cook Islands
AA49: CS | AB49: Costa Rica
AA50: IV | AB50: Cote D"Ivoire
AA51: HR | AB51: Croatia
AA52: CU | AB52: Cuba
AA53: UC | AB53: Curacao
AA54: CY | AB54: Cyprus
AA55: EZ | AB55: Czech Republic
AA56: DA | AB56: Denmark
AA57: DJ | AB57: Djibouti
AA58: DO | AB58: Dominica
AA59: DR | AB59: Dominican Republic
AA60: EC | AB60: Ecuador
AA61: EG | AB61: Egypt
AA62: ES | AB62: El Salvador
AA63: EK | AB63: Equatorial Guinea
AA64: ER | AB64: Eritrea
AA65: EN | AB65: Estonia
AA66: ET | AB66: Ethiopia
AA67: FO | AB67: Faroe Islands
AA68: FJ | AB68: Fiji
AA69: FI | AB69: Finland
AA70: FR | AB70: France
AA71: FP | AB71: French Polynesia
AA72: GB | AB72: Gabon
AA73: GA | AB73: Gambia
AA74: GZ | AB74: Gaza Strip
AA75: GG | AB75: Georgia
AA76: GM | AB76: Germany
AA77: GH | AB77: Ghana
AA78: GI | AB78: Gibralter
AA79: GR | AB79: Greece
AA80: GL | AB80: Greenland
AA81: GJ | AB81: Grenada
AA82: GQ | AB82: Guam
AA83: GT | AB83: Guatemala
AA84: GK | AB84: Guernsey
AA85: GV | AB85: Guinea
AA86: PU | AB86: Guinea-Bissau
AA87: GY | AB87: Guyana
AA88: HA | AB88: Haiti
AA89: HO | AB89: Honduras
AA90: HK | AB90: Hong Kong
AA91: HU | AB91: Hungary
AA92: IC | AB92: Iceland
AA93: IN | AB93: India
AA94: ID | AB94: Indonesia
AA95: IR | AB95: Iran
AA96: IZ | AB96: Iraq
AA97: EI | AB97: Ireland
AA98: IM | AB98: Isle of Man
AA99: IS | AB99: Israel
AA100: IT | AB100: Italy
AA101: JM | AB101: Jamaica
AA102: JA | AB102: Japan
AA103: JE | AB103: Jersey
AA104: JO | AB104: Jordan
AA105: KZ | AB105: Kazakhstan
AA106: KE | AB106: Kenya
AA107: KR | AB107: Kiribati
AA108: KN | AB108: Korea, North
AA109: KS | AB109: Korea, South
AA110: KV | AB110: Kosovo
AA111: KU | AB111: Kuwait
AA112: KG | AB112: Kyrgyzstan
AA113: LA | AB113: Laos
AA114: LG | AB114: Latvia
AA115: LE | AB115: Lebanon
AA116: LT | AB116: Lesotho
AA117: LI | AB117: Liberia
AA118: LY | AB118: Libya
AA119: LS | AB119: Liechtenstein
AA120: LH | AB120: Lithuania
AA121: LU | AB121: Luxembourg
AA122: MC | AB122: Macau
AA123: MK | AB123: Macedonia
AA124: MA | AB124: Madagascar
AA125: MI | AB125: Malawi
AA126: MY | AB126: Malaysia
AA127: MV | AB127: Maldives
AA128: ML | AB128: Mali
AA129: MT | AB129: Malta
AA130: RM | AB130: Marshall Islands
AA131: MR | AB131: Mauritania
AA132: MP | AB132: Mauritius
AA133: MX | AB133: Mexico
AA134: FM | AB134: Micronesia, Federated States of
AA135: MD | AB135: Moldova
AA136: MN | AB136: Monaco
AA137: MG | AB137: Mongolia
AA138: MJ | AB138: Montenegro
AA139: MH | AB139: Montserrat
AA140: MO | AB140: Morocco
AA141: MZ | AB141: Mozambique
AA142: WA | AB142: Namibia
AA143: NR | AB143: Nauru
AA144: NP | AB144: Nepal
AA145: NL | AB145: Netherlands
AA146: NC | AB146: New Caledonia
AA147: NZ | AB147: New Zealand
AA148: NU | AB148: Nicaragua
AA149: NG | AB149: Niger
AA150: NI | AB150: Nigeria
AA151: CQ | AB151: Northern Mariana Islands
AA152: NO | AB152: Norway
AA153: MU | AB153: Oman
AA154: PK | AB154: Pakistan
AA155: PS | AB155: Palau
AA156: PM | AB156: Panama
AA157: PP | AB157: Papua New Guinea
AA158: PA | AB158: Paraguay
AA159: PE | AB159: Peru
AA160: RQ | AB160: Puerto Rico
AA161: RP | AB161: Philippines
AA162: PL | AB162: Poland
AA163: PO | AB163: Portugal
AA164: QA | AB164: Qatar
AA165: RO | AB165: Romania
AA166: RS | AB166: Russia
AA167: RW | AB167: Rwanda
AA168: TB | AB168: Saint Barthelemy
AA169: SH | AB169: Saint Helena
AA170: SC | AB170: Saint Kitts and Nevis
AA171: ST | AB171: Saint Lucia
AA172: RN | AB172: Saint Martin
AA173: SB | AB173: Saint Pierre and Miquelon
AA174: VC | AB174: Saint Vincent & the Grenadines
AA175: WS | AB175: Samoa
AA176: SM | AB176: San Marino
AA177: TP | AB177: Sao Tome and Principe
AA178: SA | AB178: Saudi Arabia
AA179: SG | AB179: Senegal
AA180: RI | AB180: Serbia
AA181: SE | AB181: Seychelles
AA182: SL | AB182: Sierra Leone
AA183: SN | AB183: Singapore
AA184: NN | AB184: Sint Maarten
AA185: LO | AB185: Slovakia
AA186: SI | AB186: Slovenia
AA187: BP | AB187: Solomon Islands
AA188: SO | AB188: Somalia
AA189: SF | AB189: South Africa
AA190: OD | AB190: South Sudan
AA191: SP | AB191: Spain
AA192: CE | AB192: Sri Lanka
AA193: SU | AB193: Sudan
AA194: NS | AB194: Suriname
AA195: WZ | AB195: Swaziland
AA196: SW | AB196: Sweden
AA197: SZ | AB197: Switzerland
AA198: SY | AB198: Syria
AA199: TW | AB199: Taiwan
AA200: TI | AB200: Tajikistan
... 29 more rows

Sheet LFPR
A1: Population pyramid and labor force
A3: United States population in 2016.
A4: ASFR, ASDR from
A5: wonder.cdc.gov | K5: <-- Start | M5: =-SUM(C16:C101)+SUM(D16:D101) -> 321072156
A6: LFPR from | L6: Births | M6: =SUMPRODUCT(D16:D101,E16:E101) -> 4068260.839
A7: www.bls.gov/emp/ep_table_303.htm | L7: Deaths | M7: =-SUMPRODUCT(C16:C101,F16:F101)+SUMPRODUCT(D16:D101,F16:F101) -> 1993428.112
M8: =M5+M6-M7 -> 323146988.7 | N8: End -->
A9: For other countries, use PopPyr | M9: =(M8-M5)/M5 -> 0.00646220075
A10: sheet to get population.
A11: LFPR for many countries here
A12: stats.oecd.org/Index.aspx?DataSetCode=LFS_SEXAGE_I_R
A13: No one site for ASDR, ASFR. :-(
A15: Year | B15: Age | C15: Male | D15: Female | E15: ASFR | F15: ASDR | G15: M LFPR | H15: F LFPR | I15: M Labor | J15: F Labor | O15: Year | P15: Age | Q15: Male | R15: Female | S15: ASFR | T15: ASDR | U15: M LFPR | V15: F LFPR | W15: M Labor | X15: F Labor
A16: 1 | B16: 0 | C16: -2075603 | D16: 1981628 | E16: 0 | F16: 0.006 | G16: 0 | H16: 0 | I16: =C16*G16 -> 0 | J16: 0 | O16: =A16+1 -> 2 | P16: 0 | Q16: =-0.51*SUMPRODUCT(D16:D101,E16:E101) -> -2074813.028 | R16: =0.49*SUMPRODUCT(D16:D101,E16:E101) -> 1993447.811 | S16: =E16 -> 0 | T16: =F16 -> 0.006 | U16: =G16 -> 0 | V16: =H16 -> 0 | W16: =Q16*U16 -> 0 | X16: =R16*V16 -> 0
B17: 1 | C17: -2069787 | D17: 1976276 | E17: 0 | F17: 0.0003 | G17: 0 | H17: 0 | I17: 0 | J17: 0 | P17: 1 | Q17: =(1-F16)*C16 -> -2063149.382 | R17: =(1-F16)*D16 -> 1969738.232 | S17: 0 | T17: 0.0003 | U17: 0 | V17: 0 | W17: 0 | X17: 0
B18: 2 | C18: -2063401 | D18: 1970531 | E18: 0 | F18: 0.0002 | G18: 0 | H18: 0 | I18: 0 | J18: 0 | P18: 2 | Q18: -2069166.064 | R18: 1975683.117 | S18: 0 | T18: 0.0002 | U18: 0 | V18: 0 | W18: 0 | X18: 0
B19: 3 | C19: -2055517 | D19: 1963552 | E19: 0 | F19: 0.0002 | G19: 0 | H19: 0 | I19: 0 | J19: 0 | P19: 3 | Q19: -2062988.32 | R19: 1970136.894 | S19: 0 | T19: 0.0002 | U19: 0 | V19: 0 | W19: 0 | X19: 0
B20: 4 | C20: -2046061 | D20: 1954894 | E20: 0 | F20: 0.0001 | G20: 0 | H20: 0 | I20: 0 | J20: 0 | P20: 4 | Q20: -2055105.897 | R20: 1963159.29 | S20: 0 | T20: 0.0001 | U20: 0 | V20: 0 | W20: 0 | X20: 0
B21: 5 | C21: -2048634 | D21: 1961598 | E21: 0 | F21: 0.0001 | G21: 0 | H21: 0 | I21: 0 | J21: 0 | P21: 5 | Q21: -2045856.394 | R21: 1954698.511 | S21: 0 | T21: 0.0001 | U21: 0 | V21: 0 | W21: 0 | X21: 0
B22: 6 | C22: -2063893 | D22: 1973884 | E22: 0 | F22: 0.0001 | G22: 0 | H22: 0 | I22: 0 | J22: 0 | P22: 6 | Q22: -2048429.137 | R22: 1961401.84 | S22: 0 | T22: 0.0001 | U22: 0 | V22: 0 | W22: 0 | X22: 0
B23: 7 | C23: -2058301 | D23: 1976538 | E23: 0 | F23: 0.0001 | G23: 0 | H23: 0 | I23: 0 | J23: 0 | P23: 7 | Q23: -2063686.611 | R23: 1973686.612 | S23: 0 | T23: 0.0001 | U23: 0 | V23: 0 | W23: 0 | X23: 0
B24: 8 | C24: -2058013 | D24: 1977298 | E24: 0 | F24: 0.0001 | G24: 0 | H24: 0 | I24: 0 | J24: 0 | P24: 8 | Q24: -2058095.17 | R24: 1976340.346 | S24: 0 | T24: 0.0001 | U24: 0 | V24: 0 | W24: 0 | X24: 0
B25: 9 | C25: -2125335 | D25: 2039152 | E25: 0 | F25: 0.0001 | G25: 0 | H25: 0 | I25: 0 | J25: 0 | P25: 9 | Q25: -2057807.199 | R25: 1977100.27 | S25: 0 | T25: 0.0001 | U25: 0 | V25: 0 | W25: 0 | X25: 0
B26: 10 | C26: -2138168 | D26: 2046595 | E26: 0 | F26: 0.0001 | G26: 0 | H26: 0 | I26: 0 | J26: 0 | P26: 10 | Q26: -2125122.467 | R26: 2038948.085 | S26: 0 | T26: 0.0001 | U26: 0 | V26: 0 | W26: 0 | X26: 0
B27: 11 | C27: -2121714 | D27: 2029005 | E27: 0 | F27: 0.0001 | G27: 0 | H27: 0 | I27: 0 | J27: 0 | P27: 11 | Q27: -2137954.183 | R27: 2046390.34 | S27: 0 | T27: 0.0001 | U27: 0 | V27: 0 | W27: 0 | X27: 0
B28: 12 | C28: -2114033 | D28: 2023585 | E28: 0 | F28: 0.0001 | G28: 0 | H28: 0 | I28: 0 | J28: 0 | P28: 12 | Q28: -2121501.829 | R28: 2028802.1 | S28: 0 | T28: 0.0001 | U28: 0 | V28: 0 | W28: 0 | X28: 0
B29: 13 | C29: -2116804 | D29: 2029155 | E29: 0 | F29: 0.0001 | G29: 0 | H29: 0 | I29: 0 | J29: 0 | P29: 13 | Q29: -2113821.597 | R29: 2023382.641 | S29: 0 | T29: 0.0001 | U29: 0 | V29: 0 | W29: 0 | X29: 0
B30: 14 | C30: -2100731 | D30: 2016247 | E30: 0 | F30: 0.0001 | G30: 0 | H30: 0 | I30: 0 | J30: 0 | P30: 14 | Q30: -2116592.32 | R30: 2028952.085 | S30: 0 | T30: 0.0001 | U30: 0 | V30: 0 | W30: 0 | X30: 0
B31: 15 | C31: -2094257 | D31: 2010029 | E31: 0.024 | F31: 0.0002 | G31: 0 | H31: 0 | I31: 0 | J31: 0 | P31: 15 | Q31: -2100520.927 | R31: 2016045.375 | S31: 0.024 | T31: 0.0002 | U31: 0 | V31: 0 | W31: 0 | X31: 0
B32: 16 | C32: -2151856 | D32: 2061555 | E32: 0.024 | F32: 0.0004 | G32: 0.335 | H32: 0.345 | I32: -720871.76 | J32: 711236.475 | P32: 16 | Q32: -2093838.149 | R32: 2009626.994 | S32: 0.024 | T32: 0.0004 | U32: 0.335 | V32: 0.345 | W32: -701435.7798 | X32: 693321.313
B33: 17 | C33: -2195116 | D33: 2094807 | E33: 0.024 | F33: 0.0005 | G33: 0.335 | H33: 0.345 | I33: -735363.86 | J33: 722708.415 | P33: 17 | Q33: -2150995.258 | R33: 2060730.378 | S33: 0.024 | T33: 0.0005 | U33: 0.335 | V33: 0.345 | W33: -720583.4113 | X33: 710951.9804
B34: 18 | C34: -2169738 | D34: 2069862 | E34: 0.024 | F34: 0.0006 | G34: 0.335 | H34: 0.345 | I34: -726862.23 | J34: 714102.39 | P34: 18 | Q34: -2194018.442 | R34: 2093759.597 | S34: 0.024 | T34: 0.0006 | U34: 0.335 | V34: 0.345 | W34: -734996.1781 | X34: 722347.0608
B35: 19 | C35: -2182024 | D35: 2079760 | E35: 0.024 | F35: 0.0008 | G35: 0.335 | H35: 0.345 | I35: -730978.04 | J35: 717517.2 | P35: 19 | Q35: -2168436.157 | R35: 2068620.083 | S35: 0.024 | T35: 0.0008 | U35: 0.335 | V35: 0.345 | W35: -726426.1127 | X35: 713673.9286
B36: 20 | C36: -2197203 | D36: 2096150 | E36: 0.079 | F36: 0.0009 | G36: 0.739 | H36: 0.677 | I36: -1623733.017 | J36: 1419093.55 | P36: 20 | Q36: -2180278.381 | R36: 2078096.192 | S36: 0.079 | T36: 0.0009 | U36: 0.739 | V36: 0.677 | W36: -1611225.723 | X36: 1406871.122
B37: 21 | C37: -2228094 | D37: 2115336 | E37: 0.079 | F37: 0.0009 | G37: 0.739 | H37: 0.677 | I37: -1646561.466 | J37: 1432082.472 | P37: 21 | Q37: -2195225.517 | R37: 2094263.465 | S37: 0.079 | T37: 0.0009 | U37: 0.739 | V37: 0.677 | W37: -1622271.657 | X37: 1417816.366
B38: 22 | C38: -2285162 | D38: 2163160 | E38: 0.079 | F38: 0.0009 | G38: 0.739 | H38: 0.677 | I38: -1688734.718 | J38: 1464459.32 | P38: 22 | Q38: -2226088.715 | R38: 2113432.198 | S38: 0.079 | T38: 0.0009 | U38: 0.739 | V38: 0.677 | W38: -1645079.561 | X38: 1430793.598
B39: 23 | C39: -2335679 | D39: 2208461 | E39: 0.079 | F39: 0.0009 | G39: 0.739 | H39: 0.677 | I39: -1726066.781 | J39: 1495128.097 | P39: 23 | Q39: -2283105.354 | R39: 2161213.156 | S39: 0.079 | T39: 0.0009 | U39: 0.739 | V39: 0.677 | W39: -1687214.857 | X39: 1463141.307
B40: 24 | C40: -2374823 | D40: 2238706 | E40: 0.079 | F40: 0.0009 | G40: 0.739 | H40: 0.677 | I40: -1754994.197 | J40: 1515603.962 | P40: 24 | Q40: -2333576.889 | R40: 2206473.385 | S40: 0.079 | T40: 0.0009 | U40: 0.739 | V40: 0.677 | W40: -1724513.321 | X40: 1493782.482
B41: 25 | C41: -2429594 | D41: 2302626 | E41: 0.106 | F41: 0.001 | G41: 0.887 | H41: 0.738 | I41: -2155049.878 | J41: 1699337.988 | P41: 25 | Q41: -2372685.659 | R41: 2236691.165 | S41: 0.106 | T41: 0.001 | U41: 0.887 | V41: 0.738 | W41: -2104572.18 | X41: 1650678.079
B42: 26 | C42: -2459466 | D42: 2354390 | E42: 0.106 | F42: 0.001 | G42: 0.887 | H42: 0.738 | I42: -2181546.342 | J42: 1737539.82 | P42: 26 | Q42: -2427164.406 | R42: 2300323.374 | S42: 0.106 | T42: 0.001 | U42: 0.887 | V42: 0.738 | W42: -2152894.828 | X42: 1697638.65
B43: 27 | C43: -2448952 | D43: 2354126 | E43: 0.106 | F43: 0.001 | G43: 0.887 | H43: 0.738 | I43: -2172220.424 | J43: 1737344.988 | P43: 27 | Q43: -2457006.534 | R43: 2352035.61 | S43: 0.106 | T43: 0.001 | U43: 0.887 | V43: 0.738 | W43: -2179364.796 | X43: 1735802.28
B44: 28 | C44: -2352429 | D44: 2263618 | E44: 0.106 | F44: 0.001 | G44: 0.887 | H44: 0.738 | I44: -2086604.523 | J44: 1670550.084 | P44: 28 | Q44: -2446503.048 | R44: 2351771.874 | S44: 0.106 | T44: 0.001 | U44: 0.887 | V44: 0.738 | W44: -2170048.204 | X44: 1735607.643
B45: 29 | C45: -2293084 | D45: 2213568 | E45: 0.106 | F45: 0.001 | G45: 0.887 | H45: 0.738 | I45: -2033965.508 | J45: 1633613.184 | P45: 29 | Q45: -2350076.571 | R45: 2261354.382 | S45: 0.106 | T45: 0.001 | U45: 0.887 | V45: 0.738 | W45: -2084517.918 | X45: 1668879.534
B46: 30 | C46: -2250695 | D46: 2175689 | E46: 0.101 | F46: 0.0011 | G46: 0.887 | H46: 0.738 | I46: -1996366.465 | J46: 1605658.482 | P46: 30 | Q46: -2290790.916 | R46: 2211354.432 | S46: 0.101 | T46: 0.0011 | U46: 0.887 | V46: 0.738 | W46: -2031931.542 | X46: 1631979.571
B47: 31 | C47: -2253014 | D47: 2183961 | E47: 0.101 | F47: 0.0011 | G47: 0.887 | H47: 0.738 | I47: -1998423.418 | J47: 1611763.218 | P47: 31 | Q47: -2248219.235 | R47: 2173295.742 | S47: 0.101 | T47: 0.0011 | U47: 0.887 | V47: 0.738 | W47: -1994170.462 | X47: 1603892.258
B48: 32 | C48: -2259046 | D48: 2203759 | E48: 0.101 | F48: 0.0011 | G48: 0.887 | H48: 0.738 | I48: =C48*G48 -> -2003773.802 | J48: 1626374.142 | P48: 32 | Q48: -2250535.685 | R48: 2181558.643 | S48: =E48 -> 0.101 | T48: =F48 -> 0.0011 | U48: =G48 -> 0.887 | V48: =H48 -> 0.738 | W48: =Q48*U48 -> -1996225.152 | X48: =R48*V48 -> 1609990.278
B49: 33 | C49: -2177035 | D49: 2140290 | E49: 0.101 | F49: 0.0011 | G49: 0.887 | H49: 0.738 | I49: -1931030.045 | J49: 1579534.02 | P49: 33 | Q49: =(1-F48)*C48 -> -2256561.049 | R49: =(1-F48)*D48 -> 2201334.865 | S49: 0.101 | T49: 0.0011 | U49: 0.887 | V49: 0.738 | W49: -2001569.651 | X49: 1624585.13
B50: 34 | C50: -2201001 | D50: 2173763 | E50: 0.101 | F50: 0.0011 | G50: 0.887 | H50: 0.738 | I50: -1952287.887 | J50: 1604237.094 | P50: 34 | Q50: -2174640.262 | R50: 2137935.681 | S50: 0.101 | T50: 0.0011 | U50: 0.887 | V50: 0.738 | W50: -1928905.912 | X50: 1577796.533
B51: 35 | C51: -2194108 | D51: 2175228 | E51: 0.051 | F51: 0.0014 | G51: 0.905 | H51: 0.741 | I51: -1985667.74 | J51: 1611843.948 | P51: 35 | Q51: -2198579.899 | R51: 2171371.861 | S51: 0.051 | T51: 0.0014 | U51: 0.905 | V51: 0.741 | W51: -1989714.809 | X51: 1608986.549
B52: 36 | C52: -2164709 | D52: 2153754 | E52: 0.051 | F52: 0.0014 | G52: 0.905 | H52: 0.741 | I52: -1959061.645 | J52: 1595931.714 | P52: 36 | Q52: -2191036.249 | R52: 2172182.681 | S52: 0.051 | T52: 0.0014 | U52: 0.905 | V52: 0.741 | W52: -1982887.805 | X52: 1609587.366
B53: 37 | C53: -2212231 | D53: 2186556 | E53: 0.051 | F53: 0.0014 | G53: 0.905 | H53: 0.741 | I53: -2002069.055 | J53: 1620237.996 | P53: 37 | Q53: -2161678.407 | R53: 2150738.744 | S53: 0.051 | T53: 0.0014 | U53: 0.905 | V53: 0.741 | W53: -1956318.959 | X53: 1593697.41
B54: 38 | C54: -2066702 | D54: 2061990 | E54: 0.051 | F54: 0.0014 | G54: 0.905 | H54: 0.741 | I54: -1870365.31 | J54: 1527934.59 | P54: 38 | Q54: -2209133.877 | R54: 2183494.822 | S54: 0.051 | T54: 0.0014 | U54: 0.905 | V54: 0.741 | W54: -1999266.158 | X54: 1617969.663
B55: 39 | C55: -2021733 | D55: 2023332 | E55: 0.051 | F55: 0.0014 | G55: 0.905 | H55: 0.741 | I55: -1829668.365 | J55: 1499289.012 | P55: 39 | Q55: -2063808.617 | R55: 2059103.214 | S55: 0.051 | T55: 0.0014 | U55: 0.905 | V55: 0.741 | W55: -1867746.799 | X55: 1525795.482
B56: 40 | C56: -1993935 | D56: 2007785 | E56: 0.011 | F56: 0.0016 | G56: 0.905 | H56: 0.741 | I56: -1804511.175 | J56: 1487768.685 | P56: 40 | Q56: -2018902.574 | R56: 2020499.335 | S56: 0.011 | T56: 0.0016 | U56: 0.905 | V56: 0.741 | W56: -1827106.829 | X56: 1497190.007
B57: 41 | C57: -1934846 | D57: 1947159 | E57: 0.011 | F57: 0.0018 | G57: 0.905 | H57: 0.741 | I57: -1751035.63 | J57: 1442844.819 | P57: 41 | Q57: -1990744.704 | R57: 2004572.544 | S57: 0.011 | T57: 0.0018 | U57: 0.905 | V57: 0.741 | W57: -1801623.957 | X57: 1485388.255
B58: 42 | C58: -1993654 | D58: 2001903 | E58: 0.011 | F58: 0.002 | G58: 0.905 | H58: 0.741 | I58: -1804256.87 | J58: 1483410.123 | P58: 42 | Q58: -1931363.277 | R58: 1943654.114 | S58: 0.011 | T58: 0.002 | U58: 0.905 | V58: 0.741 | W58: -1747883.766 | X58: 1440247.698
B59: 43 | C59: -1921698 | D59: 1946433 | E59: 0.011 | F59: 0.0022 | G59: 0.905 | H59: 0.741 | I59: -1739136.69 | J59: 1442306.853 | P59: 43 | Q59: -1989666.692 | R59: 1997899.194 | S59: 0.011 | T59: 0.0022 | U59: 0.905 | V59: 0.741 | W59: -1800648.356 | X59: 1480443.303
B60: 44 | C60: -1941506 | D60: 1980630 | E60: 0.011 | F60: 0.0024 | G60: 0.905 | H60: 0.741 | I60: -1757062.93 | J60: 1467646.83 | P60: 44 | Q60: -1917470.264 | R60: 1942150.847 | S60: 0.011 | T60: 0.0024 | U60: 0.905 | V60: 0.741 | W60: -1735310.589 | X60: 1439133.778
B61: 45 | C61: -2030002 | D61: 2065549 | E61: 0 | F61: 0.0026 | G61: 0.856 | H61: 0.738 | I61: -1737681.712 | J61: 1524375.162 | P61: 45 | Q61: -1936846.386 | R61: 1975876.488 | S61: 0 | T61: 0.0026 | U61: 0.856 | V61: 0.738 | W61: -1657940.506 | X61: 1458196.848
B62: 46 | C62: -2142871 | D62: 2183428 | E62: 0 | F62: 0.0028 | G62: 0.856 | H62: 0.738 | I62: -1834297.576 | J62: 1611369.864 | P62: 46 | Q62: -2024723.995 | R62: 2060178.573 | S62: 0 | T62: 0.0028 | U62: 0.856 | V62: 0.738 | W62: -1733163.74 | X62: 1520411.787
B63: 47 | C63: -2175760 | D63: 2200930 | E63: 0 | F63: 0.003 | G63: 0.856 | H63: 0.738 | I63: -1862450.56 | J63: 1624286.34 | P63: 47 | Q63: -2136870.961 | R63: 2177314.402 | S63: 0 | T63: 0.003 | U63: 0.856 | V63: 0.738 | W63: -1829161.543 | X63: 1606858.028
B64: 48 | C64: -2057126 | D64: 2090126 | E64: 0 | F64: 0.0032 | G64: 0.856 | H64: 0.738 | I64: -1760899.856 | J64: 1542512.988 | P64: 48 | Q64: -2169232.72 | R64: 2194327.21 | S64: 0 | T64: 0.0032 | U64: 0.856 | V64: 0.738 | W64: -1856863.208 | X64: 1619413.481
B65: 49 | C65: -2008794 | D65: 2047712 | E65: 0 | F65: 0.0034 | G65: 0.856 | H65: 0.738 | I65: -1719527.664 | J65: 1511211.456 | P65: 49 | Q65: -2050543.197 | R65: 2083437.597 | S65: 0 | T65: 0.0034 | U65: 0.856 | V65: 0.738 | W65: -1755264.976 | X65: 1537576.946
B66: 50 | C66: -2002094 | D66: 2055460 | E66: 0 | F66: 0.004 | G66: 0.856 | H66: 0.738 | I66: -1713792.464 | J66: 1516929.48 | P66: 50 | Q66: -2001964.1 | R66: 2040749.779 | S66: 0 | T66: 0.004 | U66: 0.856 | V66: 0.738 | W66: -1713681.27 | X66: 1506073.337
B67: 51 | C67: -2036951 | D67: 2091224 | E67: 0 | F67: 0.0045 | G67: 0.856 | H67: 0.738 | I67: -1743630.056 | J67: 1543323.312 | P67: 51 | Q67: -1994085.624 | R67: 2047238.16 | S67: 0 | T67: 0.0045 | U67: 0.856 | V67: 0.738 | W67: -1706937.294 | X67: 1510861.762
B68: 52 | C68: -2153196 | D68: 2216872 | E68: 0 | F68: 0.005 | G68: 0.856 | H68: 0.738 | I68: -1843135.776 | J68: 1636051.536 | P68: 52 | Q68: -2027784.721 | R68: 2081813.492 | S68: 0 | T68: 0.005 | U68: 0.856 | V68: 0.738 | W68: -1735783.721 | X68: 1536378.357
B69: 53 | C69: -2181060 | D69: 2265513 | E69: 0 | F69: 0.0055 | G69: 0.856 | H69: 0.738 | I69: -1866987.36 | J69: 1671948.594 | P69: 53 | Q69: -2142430.02 | R69: 2205787.64 | S69: 0 | T69: 0.0055 | U69: 0.856 | V69: 0.738 | W69: -1833920.097 | X69: 1627871.278
B70: 54 | C70: -2171381 | D70: 2267125 | E70: 0 | F70: 0.006 | G70: 0.856 | H70: 0.738 | I70: -1858702.136 | J70: 1673138.25 | P70: 54 | Q70: -2169064.17 | R70: 2253052.678 | S70: 0 | T70: 0.006 | U70: 0.856 | V70: 0.738 | W70: -1856718.93 | X70: 1662752.877
B71: 55 | C71: -2161925 | D71: 2264873 | E71: 0 | F71: 0.0063 | G71: 0.768 | H71: 0.664 | I71: -1660358.4 | J71: 1503875.672 | P71: 55 | Q71: -2158352.714 | R71: 2253522.25 | S71: 0 | T71: 0.0063 | U71: 0.768 | V71: 0.664 | W71: -1657614.884 | X71: 1496338.774
B72: 56 | C72: -2179763 | D72: 2296847 | E72: 0 | F72: 0.0066 | G72: 0.768 | H72: 0.664 | I72: -1674057.984 | J72: 1525106.408 | P72: 56 | Q72: -2148304.873 | R72: 2250604.3 | S72: 0 | T72: 0.0066 | U72: 0.768 | V72: 0.664 | W72: -1649898.142 | X72: 1494401.255
B73: 57 | C73: -2197870 | D73: 2310345 | E73: 0 | F73: 0.007 | G73: 0.768 | H73: 0.664 | I73: -1687964.16 | J73: 1534069.08 | P73: 57 | Q73: -2165376.564 | R73: 2281687.81 | S73: 0 | T73: 0.007 | U73: 0.768 | V73: 0.664 | W73: -1663009.201 | X73: 1515040.706
B74: 58 | C74: -2112079 | D74: 2241340 | E74: 0 | F74: 0.0073 | G74: 0.768 | H74: 0.664 | I74: -1622076.672 | J74: 1488249.76 | P74: 58 | Q74: -2182484.91 | R74: 2294172.585 | S74: 0 | T74: 0.0073 | U74: 0.768 | V74: 0.664 | W74: -1676148.411 | X74: 1523330.596
B75: 59 | C75: -2091291 | D75: 2231299 | E75: 0 | F75: 0.0076 | G75: 0.768 | H75: 0.664 | I75: -1606111.488 | J75: 1481582.536 | P75: 59 | Q75: -2096660.823 | R75: 2224978.218 | S75: 0 | T75: 0.0076 | U75: 0.768 | V75: 0.664 | W75: -1610235.512 | X75: 1477385.537
B76: 60 | C76: -2057714 | D76: 2212197 | E76: 0 | F76: 0.008 | G76: 0.697 | H76: 0.576 | I76: -1434226.658 | J76: 1274225.472 | P76: 60 | Q76: -2075397.188 | R76: 2214341.128 | S76: 0 | T76: 0.008 | U76: 0.697 | V76: 0.576 | W76: -1446551.84 | X76: 1275460.489
B77: 61 | C77: -1973813 | D77: 2138130 | E77: 0 | F77: 0.009 | G77: 0.697 | H77: 0.576 | I77: -1375747.661 | J77: 1231562.88 | P77: 61 | Q77: -2041252.288 | R77: 2194499.424 | S77: 0 | T77: 0.009 | U77: 0.697 | V77: 0.576 | W77: -1422752.845 | X77: 1264031.668
B78: 62 | C78: -1949700 | D78: 2120157 | E78: 0 | F78: 0.01 | G78: 0.562 | H78: 0.447 | I78: -1095731.4 | J78: 947710.179 | P78: 62 | Q78: -1956048.683 | R78: 2118886.83 | S78: 0 | T78: 0.01 | U78: 0.562 | V78: 0.447 | W78: -1099299.36 | X78: 947142.413
B79: 63 | C79: -1856156 | D79: 2041613 | E79: 0 | F79: 0.011 | G79: 0.562 | H79: 0.447 | I79: -1043159.672 | J79: 912601.011 | P79: 63 | Q79: -1930203 | R79: 2098955.43 | S79: 0 | T79: 0.011 | U79: 0.562 | V79: 0.447 | W79: -1084774.086 | X79: 938233.0772
B80: 64 | C80: -1777569 | D80: 1965175 | E80: 0 | F80: 0.012 | G80: 0.562 | H80: 0.447 | I80: =C80*G80 -> -998993.778 | J80: 878433.225 | P80: 64 | Q80: -1835738.284 | R80: 2019155.257 | S80: =E80 -> 0 | T80: =F80 -> 0.012 | U80: =G80 -> 0.562 | V80: =H80 -> 0.447 | W80: =Q80*U80 -> -1031684.916 | X80: =R80*V80 -> 902562.3999
B81: 65 | C81: -1702823 | D81: 1887917 | E81: 0 | F81: 0.013 | G81: 0.361 | H81: 0.275 | I81: -614719.103 | J81: 519177.175 | P81: 65 | Q81: =(1-F80)*C80 -> -1756238.172 | R81: =(1-F80)*D80 -> 1941592.9 | S81: 0 | T81: 0.013 | U81: 0.361 | V81: 0.275 | W81: -634001.9801 | X81: 533938.0475
B82: 66 | C82: -1638014 | D82: 1832072 | E82: 0 | F82: 0.014 | G82: 0.361 | H82: 0.275 | I82: -591323.054 | J82: 503819.8 | P82: 66 | Q82: -1680686.301 | R82: 1863374.079 | S82: 0 | T82: 0.014 | U82: 0.361 | V82: 0.275 | W82: -606727.7547 | X82: 512427.8717
B83: 67 | C83: -1592120 | D83: 1783312 | E83: 0 | F83: 0.015 | G83: 0.361 | H83: 0.275 | I83: -574755.32 | J83: 490410.8 | P83: 67 | Q83: -1615081.804 | R83: 1806422.992 | S83: 0 | T83: 0.015 | U83: 0.361 | V83: 0.275 | W83: -583044.5312 | X83: 496766.3228
B84: 68 | C84: -1536427 | D84: 1730737 | E84: 0 | F84: 0.016 | G84: 0.361 | H84: 0.275 | I84: -554650.147 | J84: 475952.675 | P84: 68 | Q84: -1568238.2 | R84: 1756562.32 | S84: 0 | T84: 0.016 | U84: 0.361 | V84: 0.275 | W84: -566133.9902 | X84: 483054.638
B85: 69 | C85: -1514493 | D85: 1708901 | E85: 0 | F85: 0.017 | G85: 0.361 | H85: 0.275 | I85: -546731.973 | J85: 469947.775 | P85: 69 | Q85: -1511844.168 | R85: 1703045.208 | S85: 0 | T85: 0.017 | U85: 0.361 | V85: 0.275 | W85: -545775.7446 | X85: 468337.4322
B86: 70 | C86: -1567870 | D86: 1773538 | E86: 0 | F86: 0.019 | G86: 0.228 | H86: 0.156 | I86: -357474.36 | J86: 276671.928 | P86: 70 | Q86: -1488746.619 | R86: 1679849.683 | S86: 0 | T86: 0.019 | U86: 0.228 | V86: 0.156 | W86: -339434.2291 | X86: 262056.5505
B87: 71 | C87: -1141243 | D87: 1311663 | E87: 0 | F87: 0.021 | G87: 0.228 | H87: 0.156 | I87: -260203.404 | J87: 204619.428 | P87: 71 | Q87: -1538080.47 | R87: 1739840.778 | S87: 0 | T87: 0.021 | U87: 0.228 | V87: 0.156 | W87: -350682.3472 | X87: 271415.1614
B88: 72 | C88: -1112024 | D88: 1292617 | E88: 0 | F88: 0.023 | G88: 0.228 | H88: 0.156 | I88: -253541.472 | J88: 201648.252 | P88: 72 | Q88: -1117276.897 | R88: 1284118.077 | S88: 0 | T88: 0.023 | U88: 0.228 | V88: 0.156 | W88: -254739.1325 | X88: 200322.42
B89: 73 | C89: -1071578 | D89: 1259609 | E89: 0 | F89: 0.025 | G89: 0.228 | H89: 0.156 | I89: -244319.784 | J89: 196499.004 | P89: 73 | Q89: -1086447.448 | R89: 1262886.809 | S89: 0 | T89: 0.025 | U89: 0.228 | V89: 0.156 | W89: -247710.0181 | X89: 197010.3422
B90: 74 | C90: -1083644 | D90: 1284565 | E90: 0 | F90: 0.027 | G90: 0.228 | H90: 0.156 | I90: -247070.832 | J90: 200392.14 | P90: 74 | Q90: -1044788.55 | R90: 1228118.775 | S90: 0 | T90: 0.027 | U90: 0.228 | V90: 0.156 | W90: -238211.7894 | X90: 191586.5289
B91: 75 | C91: -928251 | D91: 1118130 | E91: 0 | F91: 0.03 | G91: 0.145 | H91: 0.059 | I91: -134596.395 | J91: 65969.67 | P91: 75 | Q91: -1054385.612 | R91: 1249881.745 | S91: 0 | T91: 0.03 | U91: 0.145 | V91: 0.059 | W91: -152885.9137 | X91: 73743.02295
B92: 76 | C92: -830444 | D92: 1021265 | E92: 0 | F92: 0.033 | G92: 0.145 | H92: 0.059 | I92: -120414.38 | J92: 60254.635 | P92: 76 | Q92: -900403.47 | R92: 1084586.1 | S92: 0 | T92: 0.033 | U92: 0.145 | V92: 0.059 | W92: -130558.5031 | X92: 63990.5799
B93: 77 | C93: -771933 | D93: 960582 | E93: 0 | F93: 0.037 | G93: 0.145 | H93: 0.059 | I93: -111930.285 | J93: 56674.338 | P93: 77 | Q93: -803039.348 | R93: 987563.255 | S93: 0 | T93: 0.037 | U93: 0.145 | V93: 0.059 | W93: -116440.7055 | X93: 58266.23205
B94: 78 | C94: -715318 | D94: 895353 | E94: 0 | F94: 0.041 | G94: 0.145 | H94: 0.059 | I94: -103721.11 | J94: 52825.827 | P94: 78 | Q94: -743371.479 | R94: 925040.466 | S94: 0 | T94: 0.041 | U94: 0.145 | V94: 0.059 | W94: -107788.8645 | X94: 54577.38749
B95: 79 | C95: -666582 | D95: 854558 | E95: 0 | F95: 0.044 | G95: 0.145 | H95: 0.059 | I95: -96654.39 | J95: 50418.922 | P95: 79 | Q95: -685989.962 | R95: 858643.527 | S95: 0 | T95: 0.044 | U95: 0.145 | V95: 0.059 | W95: -99468.54449 | X95: 50659.96809
B96: 80 | C96: -597682 | D96: 783321 | E96: 0 | F96: 0.049 | G96: 0.11 | H96: 0.059 | I96: -65745.02 | J96: 46215.939 | P96: 80 | Q96: -637252.392 | R96: 816957.448 | S96: 0 | T96: 0.049 | U96: 0.11 | V96: 0.059 | W96: -70097.76312 | X96: 48200.48943
B97: 81 | C97: -553332 | D97: 742519 | E97: 0 | F97: 0.054 | G97: 0.11 | H97: 0.059 | I97: -60866.52 | J97: 43808.621 | P97: 81 | Q97: -568395.582 | R97: 744938.271 | S97: 0 | T97: 0.054 | U97: 0.11 | V97: 0.059 | W97: -62523.51402 | X97: 43951.35799
B98: 82 | C98: -511259 | D98: 707204 | E98: 0 | F98: 0.06 | G98: 0.11 | H98: 0.059 | I98: -56238.49 | J98: 41725.036 | P98: 82 | Q98: -523452.072 | R98: 702422.974 | S98: 0 | T98: 0.06 | U98: 0.11 | V98: 0.059 | W98: -57579.72792 | X98: 41442.95547
B99: 83 | C99: -443217 | D99: 627695 | E99: 0 | F99: 0.066 | G99: 0.11 | H99: 0.059 | I99: -48753.87 | J99: 37034.005 | P99: 83 | Q99: -480583.46 | R99: 664771.76 | S99: 0 | T99: 0.066 | U99: 0.11 | V99: 0.059 | W99: -52864.1806 | X99: 39221.53384
B100: 84 | C100: -410021 | D100: 600051 | E100: 0 | F100: 0.071 | G100: 0.11 | H100: 0.059 | I100: -45102.31 | J100: 35403.009 | P100: 84 | Q100: -413964.678 | R100: 586267.13 | S100: 0 | T100: 0.071 | U100: 0.11 | V100: 0.059 | W100: -45536.11458 | X100: 34589.76067
B101: 85 | C101: -373305 | D101: 564228 | E101: 0 | F101: 0.077 | G101: 0.11 | H101: 0.059 | I101: -41063.55 | J101: 33289.452 | P101: 85 | Q101: -380909.509 | R101: 557447.379 | S101: 0 | T101: 0.077 | U101: 0.11 | V101: 0.059 | W101: -41900.04599 | X101: 32889.39536
B102: 86 | C102: -336572 | D102: 527740 | E102: 0 | F102: 0.084 | G102: 0.05 | H102: 0.03 | I102: -16828.6 | J102: 15832.2 | P102: 86 | Q102: -344560.515 | R102: 520782.444 | S102: 0 | T102: 0.084 | U102: 0 | V102: 0 | W102: 0 | X102: 0
B103: 87 | C103: -303213 | D103: 495644 | E103: 0 | F103: 0.091 | G103: 0.05 | H103: 0.03 | I103: -15160.65 | J103: 14869.32 | P103: 87 | Q103: -308299.952 | R103: 483409.84 | S103: 0 | T103: 0.091 | U103: 0 | V103: 0 | W103: 0 | X103: 0
B104: 88 | C104: -256034 | D104: 435897 | E104: 0 | F104: 0.099 | G104: 0.05 | H104: 0.03 | I104: -12801.7 | J104: 13076.91 | P104: 88 | Q104: -275620.617 | R104: 450540.396 | S104: 0 | T104: 0.099 | U104: 0 | V104: 0 | W104: 0 | X104: 0
B105: 89 | C105: -221606 | D105: 397523 | E105: 0 | F105: 0.108 | G105: 0.05 | H105: 0.03 | I105: -11080.3 | J105: 11925.69 | P105: 89 | Q105: -230686.634 | R105: 392743.197 | S105: 0 | T105: 0.108 | U105: 0 | V105: 0 | W105: 0 | X105: 0
B106: 90 | C106: -186381 | D106: 350949 | E106: 0 | F106: 0.117 | G106: 0 | H106: 0 | I106: 0 | J106: 0 | P106: 90 | Q106: -197672.552 | R106: 354590.516 | S106: 0 | T106: 0.117 | U106: 0 | V106: 0 | W106: 0 | X106: 0
B107: 91 | C107: -151157 | D107: 301456 | E107: 0 | F107: 0.127 | G107: 0 | H107: 0 | I107: 0 | J107: 0 | P107: 91 | Q107: -164574.423 | R107: 309887.967 | S107: 0 | T107: 0.127 | U107: 0 | V107: 0 | W107: 0 | X107: 0
B108: 92 | C108: -123075 | D108: 261380 | E108: 0 | F108: 0.137 | G108: 0 | H108: 0 | I108: 0 | J108: 0 | P108: 92 | Q108: -131960.061 | R108: 263171.088 | S108: 0 | T108: 0.137 | U108: 0 | V108: 0 | W108: 0 | X108: 0
B109: 93 | C109: -96692 | D109: 216556 | E109: 0 | F109: 0.149 | G109: 0 | H109: 0 | I109: 0 | J109: 0 | P109: 93 | Q109: -106213.725 | R109: 225570.94 | S109: 0 | T109: 0.149 | U109: 0 | V109: 0 | W109: 0 | X109: 0
B110: 94 | C110: -73963 | D110: 173490 | E110: 0 | F110: 0.161 | G110: 0 | H110: 0 | I110: 0 | J110: 0 | P110: 94 | Q110: -82284.892 | R110: 184289.156 | S110: 0 | T110: 0.161 | U110: 0 | V110: 0 | W110: 0 | X110: 0
B111: 95 | C111: -55397 | D111: 139001 | E111: 0 | F111: 0.174 | G111: 0 | H111: 0 | I111: 0 | J111: 0 | P111: 95 | Q111: -62054.957 | R111: 145558.11 | S111: 0 | T111: 0.174 | U111: 0 | V111: 0 | W111: 0 | X111: 0
B112: 96 | C112: -40496 | D112: 107024 | E112: 0 | F112: 0.188 | G112: 0 | H112: 0 | I112: 0 | J112: 0 | P112: 96 | Q112: -45757.922 | R112: 114814.826 | S112: 0 | T112: 0.188 | U112: 0 | V112: 0 | W112: 0 | X112: 0
B113: 97 | C113: -27398 | D113: 78544 | E113: 0 | F113: 0.203 | G113: 0 | H113: 0 | I113: 0 | J113: 0 | P113: 97 | Q113: -32882.752 | R113: 86903.488 | S113: 0 | T113: 0.203 | U113: 0 | V113: 0 | W113: 0 | X113: 0
B114: 98 | C114: -17470 | D114: 53307 | E114: 0 | F114: 0.218 | G114: 0 | H114: 0 | I114: 0 | J114: 0 | P114: 98 | Q114: -21836.206 | R114: 62599.568 | S114: 0 | T114: 0.218 | U114: 0 | V114: 0 | W114: 0 | X114: 0
B115: 99 | C115: -11848 | D115: 38997 | E115: 0 | F115: 0.235 | G115: 0 | H115: 0 | I115: 0 | J115: 0 | P115: 99 | Q115: -13661.54 | R115: 41686.074 | S115: 0 | T115: 0.235 | U115: 0 | V115: 0 | W115: 0 | X115: 0
B116: 100 | C116: -15353 | D116: 59472 | E116: 0 | F116: 1 | G116: 0 | H116: 0 | I116: 0 | J116: 0 | P116: 100 | Q116: -9063.72 | R116: 29832.705 | S116: 0 | T116: 1 | U116: 0 | V116: 0 | W116: 0 | X116: 0
B117: Pop | C117: =-SUM(C16:C116) -> 161034735 | D117: =SUM(D16:D116) -> 165591056 | H117: Labor Force | I117: =-SUM(I16:I116) -> 87693549.82 | J117: =SUM(J16:J116) -> 74628125.23 | P117: Pop | Q117: =-SUM(Q16:Q116) -> 161956413.2 | R117: =SUM(R16:R116) -> 166018743.4 | V117: Labor Force | W117: =-SUM(W16:W116) -> 87851965.15 | X117: =SUM(X16:X116) -> 74466758.24
D118: =C117+D117 -> 326625791 | J118: =I117+J117 -> 162321675.1 | R118: =Q117+R117 -> 327975156.6 | X118: =W117+X117 -> 162318723.4

Sheet Initial (hidden)
A1: Initial values
B15: Age | C15: Male | D15: Female | E15: ASFR | F15: ASDR | G15: M LFPR | H15: F LFPR | I15: M Labor | J15: F Labor
B16: 0 | C16: -2075603 | D16: 1981628 | E16: 0 | F16: 0.006 | G16: 0 | H16: 0 | I16: =C16*G16 -> 0 | J16: =D16*H16 -> 0
B17: 1 | C17: -2069787 | D17: 1976276 | E17: 0 | F17: 0.0003 | G17: 0 | H17: 0 | I17: 0 | J17: 0
B18: 2 | C18: -2063401 | D18: 1970531 | E18: 0 | F18: 0.0002 | G18: 0 | H18: 0 | I18: 0 | J18: 0
B19: 3 | C19: -2055517 | D19: 1963552 | E19: 0 | F19: 0.0002 | G19: 0 | H19: 0 | I19: 0 | J19: 0
B20: 4 | C20: -2046061 | D20: 1954894 | E20: 0 | F20: 0.0001 | G20: 0 | H20: 0 | I20: 0 | J20: 0
B21: 5 | C21: -2048634 | D21: 1961598 | E21: 0 | F21: 0.0001 | G21: 0 | H21: 0 | I21: 0 | J21: 0
B22: 6 | C22: -2063893 | D22: 1973884 | E22: 0 | F22: 0.0001 | G22: 0 | H22: 0 | I22: 0 | J22: 0
B23: 7 | C23: -2058301 | D23: 1976538 | E23: 0 | F23: 0.0001 | G23: 0 | H23: 0 | I23: 0 | J23: 0
B24: 8 | C24: -2058013 | D24: 1977298 | E24: 0 | F24: 0.0001 | G24: 0 | H24: 0 | I24: 0 | J24: 0
B25: 9 | C25: -2125335 | D25: 2039152 | E25: 0 | F25: 0.0001 | G25: 0 | H25: 0 | I25: 0 | J25: 0
B26: 10 | C26: -2138168 | D26: 2046595 | E26: 0 | F26: 0.0001 | G26: 0 | H26: 0 | I26: 0 | J26: 0
B27: 11 | C27: -2121714 | D27: 2029005 | E27: 0 | F27: 0.0001 | G27: 0 | H27: 0 | I27: 0 | J27: 0
B28: 12 | C28: -2114033 | D28: 2023585 | E28: 0 | F28: 0.0001 | G28: 0 | H28: 0 | I28: 0 | J28: 0
B29: 13 | C29: -2116804 | D29: 2029155 | E29: 0 | F29: 0.0001 | G29: 0 | H29: 0 | I29: 0 | J29: 0
B30: 14 | C30: -2100731 | D30: 2016247 | E30: 0 | F30: 0.0001 | G30: 0 | H30: 0 | I30: 0 | J30: 0
B31: 15 | C31: -2094257 | D31: 2010029 | E31: 0.024 | F31: 0.0002 | G31: 0 | H31: 0 | I31: 0 | J31: 0
B32: 16 | C32: -2151856 | D32: 2061555 | E32: 0.024 | F32: 0.0004 | G32: 0.335 | H32: 0.345 | I32: -720871.76 | J32: 711236.475
B33: 17 | C33: -2195116 | D33: 2094807 | E33: 0.024 | F33: 0.0005 | G33: 0.335 | H33: 0.345 | I33: -735363.86 | J33: 722708.415
B34: 18 | C34: -2169738 | D34: 2069862 | E34: 0.024 | F34: 0.0006 | G34: 0.335 | H34: 0.345 | I34: -726862.23 | J34: 714102.39
B35: 19 | C35: -2182024 | D35: 2079760 | E35: 0.024 | F35: 0.0008 | G35: 0.335 | H35: 0.345 | I35: -730978.04 | J35: 717517.2
B36: 20 | C36: -2197203 | D36: 2096150 | E36: 0.079 | F36: 0.0009 | G36: 0.739 | H36: 0.677 | I36: -1623733.017 | J36: 1419093.55
B37: 21 | C37: -2228094 | D37: 2115336 | E37: 0.079 | F37: 0.0009 | G37: 0.739 | H37: 0.677 | I37: -1646561.466 | J37: 1432082.472
B38: 22 | C38: -2285162 | D38: 2163160 | E38: 0.079 | F38: 0.0009 | G38: 0.739 | H38: 0.677 | I38: -1688734.718 | J38: 1464459.32
B39: 23 | C39: -2335679 | D39: 2208461 | E39: 0.079 | F39: 0.0009 | G39: 0.739 | H39: 0.677 | I39: -1726066.781 | J39: 1495128.097
B40: 24 | C40: -2374823 | D40: 2238706 | E40: 0.079 | F40: 0.0009 | G40: 0.739 | H40: 0.677 | I40: -1754994.197 | J40: 1515603.962
B41: 25 | C41: -2429594 | D41: 2302626 | E41: 0.106 | F41: 0.001 | G41: 0.887 | H41: 0.738 | I41: -2155049.878 | J41: 1699337.988
B42: 26 | C42: -2459466 | D42: 2354390 | E42: 0.106 | F42: 0.001 | G42: 0.887 | H42: 0.738 | I42: -2181546.342 | J42: 1737539.82
B43: 27 | C43: -2448952 | D43: 2354126 | E43: 0.106 | F43: 0.001 | G43: 0.887 | H43: 0.738 | I43: -2172220.424 | J43: 1737344.988
B44: 28 | C44: -2352429 | D44: 2263618 | E44: 0.106 | F44: 0.001 | G44: 0.887 | H44: 0.738 | I44: -2086604.523 | J44: 1670550.084
B45: 29 | C45: -2293084 | D45: 2213568 | E45: 0.106 | F45: 0.001 | G45: 0.887 | H45: 0.738 | I45: -2033965.508 | J45: 1633613.184
B46: 30 | C46: -2250695 | D46: 2175689 | E46: 0.101 | F46: 0.0011 | G46: 0.887 | H46: 0.738 | I46: -1996366.465 | J46: 1605658.482
B47: 31 | C47: -2253014 | D47: 2183961 | E47: 0.101 | F47: 0.0011 | G47: 0.887 | H47: 0.738 | I47: -1998423.418 | J47: 1611763.218
B48: 32 | C48: -2259046 | D48: 2203759 | E48: 0.101 | F48: 0.0011 | G48: 0.887 | H48: 0.738 | I48: =C48*G48 -> -2003773.802 | J48: =D48*H48 -> 1626374.142
B49: 33 | C49: -2177035 | D49: 2140290 | E49: 0.101 | F49: 0.0011 | G49: 0.887 | H49: 0.738 | I49: -1931030.045 | J49: 1579534.02
B50: 34 | C50: -2201001 | D50: 2173763 | E50: 0.101 | F50: 0.0011 | G50: 0.887 | H50: 0.738 | I50: -1952287.887 | J50: 1604237.094
B51: 35 | C51: -2194108 | D51: 2175228 | E51: 0.051 | F51: 0.0014 | G51: 0.905 | H51: 0.741 | I51: -1985667.74 | J51: 1611843.948
B52: 36 | C52: -2164709 | D52: 2153754 | E52: 0.051 | F52: 0.0014 | G52: 0.905 | H52: 0.741 | I52: -1959061.645 | J52: 1595931.714
B53: 37 | C53: -2212231 | D53: 2186556 | E53: 0.051 | F53: 0.0014 | G53: 0.905 | H53: 0.741 | I53: -2002069.055 | J53: 1620237.996
B54: 38 | C54: -2066702 | D54: 2061990 | E54: 0.051 | F54: 0.0014 | G54: 0.905 | H54: 0.741 | I54: -1870365.31 | J54: 1527934.59
B55: 39 | C55: -2021733 | D55: 2023332 | E55: 0.051 | F55: 0.0014 | G55: 0.905 | H55: 0.741 | I55: -1829668.365 | J55: 1499289.012
B56: 40 | C56: -1993935 | D56: 2007785 | E56: 0.011 | F56: 0.0016 | G56: 0.905 | H56: 0.741 | I56: -1804511.175 | J56: 1487768.685
B57: 41 | C57: -1934846 | D57: 1947159 | E57: 0.011 | F57: 0.0018 | G57: 0.905 | H57: 0.741 | I57: -1751035.63 | J57: 1442844.819
B58: 42 | C58: -1993654 | D58: 2001903 | E58: 0.011 | F58: 0.002 | G58: 0.905 | H58: 0.741 | I58: -1804256.87 | J58: 1483410.123
B59: 43 | C59: -1921698 | D59: 1946433 | E59: 0.011 | F59: 0.0022 | G59: 0.905 | H59: 0.741 | I59: -1739136.69 | J59: 1442306.853
B60: 44 | C60: -1941506 | D60: 1980630 | E60: 0.011 | F60: 0.0024 | G60: 0.905 | H60: 0.741 | I60: -1757062.93 | J60: 1467646.83
B61: 45 | C61: -2030002 | D61: 2065549 | E61: 0 | F61: 0.0026 | G61: 0.856 | H61: 0.738 | I61: -1737681.712 | J61: 1524375.162
B62: 46 | C62: -2142871 | D62: 2183428 | E62: 0 | F62: 0.0028 | G62: 0.856 | H62: 0.738 | I62: -1834297.576 | J62: 1611369.864
B63: 47 | C63: -2175760 | D63: 2200930 | E63: 0 | F63: 0.003 | G63: 0.856 | H63: 0.738 | I63: -1862450.56 | J63: 1624286.34
B64: 48 | C64: -2057126 | D64: 2090126 | E64: 0 | F64: 0.0032 | G64: 0.856 | H64: 0.738 | I64: -1760899.856 | J64: 1542512.988
B65: 49 | C65: -2008794 | D65: 2047712 | E65: 0 | F65: 0.0034 | G65: 0.856 | H65: 0.738 | I65: -1719527.664 | J65: 1511211.456
B66: 50 | C66: -2002094 | D66: 2055460 | E66: 0 | F66: 0.004 | G66: 0.856 | H66: 0.738 | I66: -1713792.464 | J66: 1516929.48
B67: 51 | C67: -2036951 | D67: 2091224 | E67: 0 | F67: 0.0045 | G67: 0.856 | H67: 0.738 | I67: -1743630.056 | J67: 1543323.312
B68: 52 | C68: -2153196 | D68: 2216872 | E68: 0 | F68: 0.005 | G68: 0.856 | H68: 0.738 | I68: -1843135.776 | J68: 1636051.536
B69: 53 | C69: -2181060 | D69: 2265513 | E69: 0 | F69: 0.0055 | G69: 0.856 | H69: 0.738 | I69: -1866987.36 | J69: 1671948.594
B70: 54 | C70: -2171381 | D70: 2267125 | E70: 0 | F70: 0.006 | G70: 0.856 | H70: 0.738 | I70: -1858702.136 | J70: 1673138.25
B71: 55 | C71: -2161925 | D71: 2264873 | E71: 0 | F71: 0.0063 | G71: 0.768 | H71: 0.664 | I71: -1660358.4 | J71: 1503875.672
B72: 56 | C72: -2179763 | D72: 2296847 | E72: 0 | F72: 0.0066 | G72: 0.768 | H72: 0.664 | I72: -1674057.984 | J72: 1525106.408
B73: 57 | C73: -2197870 | D73: 2310345 | E73: 0 | F73: 0.007 | G73: 0.768 | H73: 0.664 | I73: -1687964.16 | J73: 1534069.08
B74: 58 | C74: -2112079 | D74: 2241340 | E74: 0 | F74: 0.0073 | G74: 0.768 | H74: 0.664 | I74: -1622076.672 | J74: 1488249.76
B75: 59 | C75: -2091291 | D75: 2231299 | E75: 0 | F75: 0.0076 | G75: 0.768 | H75: 0.664 | I75: -1606111.488 | J75: 1481582.536
B76: 60 | C76: -2057714 | D76: 2212197 | E76: 0 | F76: 0.008 | G76: 0.697 | H76: 0.576 | I76: -1434226.658 | J76: 1274225.472
B77: 61 | C77: -1973813 | D77: 2138130 | E77: 0 | F77: 0.009 | G77: 0.697 | H77: 0.576 | I77: -1375747.661 | J77: 1231562.88
B78: 62 | C78: -1949700 | D78: 2120157 | E78: 0 | F78: 0.01 | G78: 0.562 | H78: 0.447 | I78: -1095731.4 | J78: 947710.179
B79: 63 | C79: -1856156 | D79: 2041613 | E79: 0 | F79: 0.011 | G79: 0.562 | H79: 0.447 | I79: -1043159.672 | J79: 912601.011
B80: 64 | C80: -1777569 | D80: 1965175 | E80: 0 | F80: 0.012 | G80: 0.562 | H80: 0.447 | I80: =C80*G80 -> -998993.778 | J80: =D80*H80 -> 878433.225
B81: 65 | C81: -1702823 | D81: 1887917 | E81: 0 | F81: 0.013 | G81: 0.361 | H81: 0.275 | I81: -614719.103 | J81: 519177.175
B82: 66 | C82: -1638014 | D82: 1832072 | E82: 0 | F82: 0.014 | G82: 0.361 | H82: 0.275 | I82: -591323.054 | J82: 503819.8
B83: 67 | C83: -1592120 | D83: 1783312 | E83: 0 | F83: 0.015 | G83: 0.361 | H83: 0.275 | I83: -574755.32 | J83: 490410.8
B84: 68 | C84: -1536427 | D84: 1730737 | E84: 0 | F84: 0.016 | G84: 0.361 | H84: 0.275 | I84: -554650.147 | J84: 475952.675
B85: 69 | C85: -1514493 | D85: 1708901 | E85: 0 | F85: 0.017 | G85: 0.361 | H85: 0.275 | I85: -546731.973 | J85: 469947.775
B86: 70 | C86: -1567870 | D86: 1773538 | E86: 0 | F86: 0.019 | G86: 0.228 | H86: 0.156 | I86: -357474.36 | J86: 276671.928
B87: 71 | C87: -1141243 | D87: 1311663 | E87: 0 | F87: 0.021 | G87: 0.228 | H87: 0.156 | I87: -260203.404 | J87: 204619.428
B88: 72 | C88: -1112024 | D88: 1292617 | E88: 0 | F88: 0.023 | G88: 0.228 | H88: 0.156 | I88: -253541.472 | J88: 201648.252
B89: 73 | C89: -1071578 | D89: 1259609 | E89: 0 | F89: 0.025 | G89: 0.228 | H89: 0.156 | I89: -244319.784 | J89: 196499.004
B90: 74 | C90: -1083644 | D90: 1284565 | E90: 0 | F90: 0.027 | G90: 0.228 | H90: 0.156 | I90: -247070.832 | J90: 200392.14
B91: 75 | C91: -928251 | D91: 1118130 | E91: 0 | F91: 0.03 | G91: 0.145 | H91: 0.059 | I91: -134596.395 | J91: 65969.67
B92: 76 | C92: -830444 | D92: 1021265 | E92: 0 | F92: 0.033 | G92: 0.145 | H92: 0.059 | I92: -120414.38 | J92: 60254.635
B93: 77 | C93: -771933 | D93: 960582 | E93: 0 | F93: 0.037 | G93: 0.145 | H93: 0.059 | I93: -111930.285 | J93: 56674.338
B94: 78 | C94: -715318 | D94: 895353 | E94: 0 | F94: 0.041 | G94: 0.145 | H94: 0.059 | I94: -103721.11 | J94: 52825.827
B95: 79 | C95: -666582 | D95: 854558 | E95: 0 | F95: 0.044 | G95: 0.145 | H95: 0.059 | I95: -96654.39 | J95: 50418.922
B96: 80 | C96: -597682 | D96: 783321 | E96: 0 | F96: 0.049 | G96: 0.11 | H96: 0.059 | I96: -65745.02 | J96: 46215.939
B97: 81 | C97: -553332 | D97: 742519 | E97: 0 | F97: 0.054 | G97: 0.11 | H97: 0.059 | I97: -60866.52 | J97: 43808.621
B98: 82 | C98: -511259 | D98: 707204 | E98: 0 | F98: 0.06 | G98: 0.11 | H98: 0.059 | I98: -56238.49 | J98: 41725.036
B99: 83 | C99: -443217 | D99: 627695 | E99: 0 | F99: 0.066 | G99: 0.11 | H99: 0.059 | I99: -48753.87 | J99: 37034.005
B100: 84 | C100: -410021 | D100: 600051 | E100: 0 | F100: 0.071 | G100: 0.11 | H100: 0.059 | I100: -45102.31 | J100: 35403.009
B101: 85 | C101: -373305 | D101: 564228 | E101: 0 | F101: 0.077 | G101: 0.11 | H101: 0.059 | I101: -41063.55 | J101: 33289.452
B102: 86 | C102: -336572 | D102: 527740 | E102: 0 | F102: 0.084 | G102: 0.05 | H102: 0.03 | I102: -16828.6 | J102: 15832.2
B103: 87 | C103: -303213 | D103: 495644 | E103: 0 | F103: 0.091 | G103: 0.05 | H103: 0.03 | I103: -15160.65 | J103: 14869.32
B104: 88 | C104: -256034 | D104: 435897 | E104: 0 | F104: 0.099 | G104: 0.05 | H104: 0.03 | I104: -12801.7 | J104: 13076.91
B105: 89 | C105: -221606 | D105: 397523 | E105: 0 | F105: 0.108 | G105: 0.05 | H105: 0.03 | I105: -11080.3 | J105: 11925.69
B106: 90 | C106: -186381 | D106: 350949 | E106: 0 | F106: 0.117 | G106: 0 | H106: 0 | I106: 0 | J106: 0
B107: 91 | C107: -151157 | D107: 301456 | E107: 0 | F107: 0.127 | G107: 0 | H107: 0 | I107: 0 | J107: 0
B108: 92 | C108: -123075 | D108: 261380 | E108: 0 | F108: 0.137 | G108: 0 | H108: 0 | I108: 0 | J108: 0
B109: 93 | C109: -96692 | D109: 216556 | E109: 0 | F109: 0.149 | G109: 0 | H109: 0 | I109: 0 | J109: 0
B110: 94 | C110: -73963 | D110: 173490 | E110: 0 | F110: 0.161 | G110: 0 | H110: 0 | I110: 0 | J110: 0
B111: 95 | C111: -55397 | D111: 139001 | E111: 0 | F111: 0.174 | G111: 0 | H111: 0 | I111: 0 | J111: 0
B112: 96 | C112: -40496 | D112: 107024 | E112: 0 | F112: 0.188 | G112: 0 | H112: 0 | I112: 0 | J112: 0
B113: 97 | C113: -27398 | D113: 78544 | E113: 0 | F113: 0.203 | G113: 0 | H113: 0 | I113: 0 | J113: 0
B114: 98 | C114: -17470 | D114: 53307 | E114: 0 | F114: 0.218 | G114: 0 | H114: 0 | I114: 0 | J114: 0
B115: 99 | C115: -11848 | D115: 38997 | E115: 0 | F115: 0.235 | G115: 0 | H115: 0 | I115: 0 | J115: 0
B116: 100 | C116: -15353 | D116: 59472 | E116: 0 | F116: 1 | G116: 0 | H116: 0 | I116: 0 | J116: 0
B117: Pop | C117: =-SUM(C16:C116) -> 161034735 | D117: =SUM(D16:D116) -> 165591056 | H117: Labor Force | I117: =-SUM(I16:I116) -> 87693549.82 | J117: =SUM(J16:J116) -> 74628125.23
D118: =C117+D117 -> 326625791 | J118: =I117+J117 -> 162321675.1

Sheet Mig
A1: Pyramids for natives and immigrants
A2: Source: | B2: http://www.migrationpolicy.org/programs/data-hub/charts/age-sex-pyramids-immigrant-and-native-born-population-over-time
B3: Migration Policy Institute tabulation of data from the U.S. Census Bureau's 2014 American Community Survey. Data were accessed from Steven Ruggles, Katie Genadek, Ronald Goeken, Josiah Grover, and Matthew Sobek. Integrated Public Use Microdata Series: Version 6.0 [Machine-readable database]. Minneapolis: University of Minnesota, 2015.
I4: Immigrant = non-native; not born, but residing in US, including illegally and foreign students
A5: United States, 2014, 5-yr cohorts | I5: Learn more --> | J5: http://www.migrationpolicy.org/article/frequently-requested-statistics-immigrants-and-immigration-united-states
A6: Data
A7: below
I21: This pyramid embeds immigrants within the total population to make comparison easy.
A22: Source | B22: IDB | C22: IDB | D22: MPI | E22: MPI | F22: Computed | G22: Computed
A23: Age | B23: Male Population | C23: Female Population | D23: M Immigrant | E23: F Immigrant | F23: M Native | G23: F Native | H23: % Immigrant
A24: Total | B24: -156936487 | C24: 161920569 | D24: -20562609 | E24: 21673140 | F24: =B24-D24 -> -136373878 | G24: =C24-E24 -> 140247429 | H24: =(-D24+E24)/(-B24+C24) -> 0.1324598224
A25: 0 | B25: -10155728 | C25: 9721155 | D25: -143561 | E25: 125614 | F25: =B25-D25 -> -10012167 | G25: 9595541
A26: 5 | B26: -10478429 | C26: 10041137 | D26: -270870 | E26: 261429 | F26: -10207559 | G26: 9779708
A27: 10 | B27: -10551219 | C27: 10120287 | D27: -443857 | E27: 453632 | F27: -10107362 | G27: 9666655
A28: 15 | B28: -10784023 | C28: 10283624 | D28: -810777 | E28: 712266 | F28: -9973246 | G28: 9571358
A29: 20 | B29: -11739427 | C29: 11172747 | D29: -1272314 | E29: 1126676 | F29: -10467113 | G29: 10046071
A30: 25 | B30: -11161389 | C30: 10826549 | D30: -1795915 | E30: 1698642 | F30: -9365474 | G30: 9127907
A31: 30 | B31: -10808825 | C31: 10719741 | D31: -2140584 | E31: 2044110 | F31: -8668241 | G31: 8675631
A32: 35 | B32: -9939836 | C32: 9981814 | D32: -2250759 | E32: 2254556 | F32: -7689077 | G32: 7727258
A33: 40 | B33: -10219393 | C33: 10372090 | D33: -2259078 | E33: 2370243 | F33: -7960315 | G33: 8001847
A34: 45 | B34: -10347463 | C34: 10540579 | D34: -2084207 | E34: 2130843 | F34: -8263256 | G34: 8409736
A35: 50 | B35: -11077581 | C35: 11493228 | D35: -1864257 | E35: 1939631 | F35: -9213324 | G35: 9553597
A36: 55 | B36: -10443988 | C36: 11067461 | D36: -1501222 | E36: 1649591 | F36: -8942766 | G36: 9417870
A37: 60 | B37: -8877894 | C37: 9688238 | D37: -1211301 | E37: 1366250 | F37: -7666593 | G37: 8321988
A38: 65 | B38: -7249106 | C38: 8076160 | D38: -909557 | E38: 1109634 | F38: -6339549 | G38: 6966526
A39: 70 | B39: -5099939 | C39: 5973085 | D39: -632327 | E39: 853589 | F39: -4467612 | G39: 5119496
A40: 75 | B40: -3511566 | C40: 4410758 | D40: -458474 | E40: 637726 | F40: -3053092 | G40: 3773032
A41: 80 | B41: -2381812 | C41: 3378554 | D41: -287137 | E41: 449809 | F41: -2094675 | G41: 2928745
A42: 85 | B42: -2108869 | C42: 4053362 | D42: -226412 | E42: 488899 | F42: =B42-D42 -> -1882457 | G42: 3564463
I43: Absent immigration, the United States would look a lot more like Japan.
I44: Here is a United Nations report on how rich, low-fertility countries could use immigration to avoid a narrowing base:
I45: http://www.un.org/esa/population/publications/migration/migration.htm
E73: But this is the immigrants in the US in 2014, not who entered in 2014.
E74: I entered in 1962, but I show up in the chart above as a 56 year old.

Sheet Lessons
A1: This sheet offers a few ideas worth remembering about population pyramids. | AA1: Age | AB1: Male | AC1: Female | AD1: This is college grads in the US in 2014 estimated from the ACS survey.
AA2: 0 | AD2: Since you came over here, can you replicate the population pyramid that I made?
A3: A population pyramid is a graph that shows the age-distribution of males and females. | AA3: 1 | AD3: More challenging and interesting, can you make a pyramid chart like
AA4: 2 | AD4: the LFPR or Mig sheets, with college grads the sub-group?
A5: High birth and death rates (which used to be common for poor, developing countries) produce lots of children and few old people, | AA5: 3 | AD5: Hint: Copy one of those sheets and copy and paste the data from here.
A6: yielding a triangular shape with a wide bottom and pointed top, Because it looks like one is why it is called a population pyramid. --> | AA6: 4 | AD6: Kinda cool?
AA7: 5 | AD7: Note: My estimate using ACS is much lower than NCES, who say 1.8 million BA degrees will be awarded:
A8: But there are other possible shapes. | AA8: 6 | AD8: http://nces.ed.gov/fastfacts/display.asp?id=372
B9: Many developed, rich countries (like the USA) have gone through a demographic transition, with death rates falling first, then fertility falling. | AA9: 7
B10: At this time, they have roughly equal numbers of people at each age until finally tapering off for older folks so it looks more like a house. --> | AA10: 8
AA11: 9
B12: With really low fertility (and little immigration), we get a hexagon, a house with an added narrow base. --> | AA12: 10
B13: This has the potential to cause serious problems for the economy and society. | AA13: 11
AA14: 12
A15: Population pyramids reflect historical events and calamities. | AA15: 13
B16: Baby booms are easily seen as bulges in the pyramid. | AA16: 14
B17: Indentations or gouges often reflect traumatic events such as wars or famines. | AA17: 15
AA18: 16
A19: Population pyramids have a dynamic aspect. The cohorts (horizontal bars) march up the graph as time goes by. | AA19: 17
B20: worldlifeexpectancy.com/cuba-population-pyramid | AA20: 18
AA21: 19
A22: Finally, population pyramids are actually a versatile type of graph. | AA22: 20
B23: The LFPR and Mig sheets show how you can provide a strong visual of a sub-group with a population pyramid. | AA23: 21
B24: As another example, consider the amazing increase in female versus male college graduates in the United States. | AA24: 22
B25: This is usally conveyed on a chart with time on the x axis and some measure of educational attainment on the y axis. | AA25: 23
B26: Many more women than men enroll in college today and this is the subject of much research. | AA26: 24
B27: Here is a population pyramid of the number of men and women with at least a college degree in each age cohort: | AA27: 25 | AB27: -629279.0065 | AC27: 773220.9975
AA28: 26 | AB28: -627004.9914 | AC28: 775721.9937
AA29: 27 | AB29: -612528.0024 | AC29: 793458.9964
AA30: 28 | AB30: -638060.0035 | AC30: 790054.9912
AA31: 29 | AB31: -625019.9909 | AC31: 813502.0037
AA32: 30 | AB32: -696584.9983 | AC32: 877647.9923
AA33: 31 | AB33: -646377.0002 | AC33: 822857.997
AA34: 32 | AB34: -651883.0086 | AC34: 822102.0089
AA35: 33 | AB35: -652922.9925 | AC35: 803212.9986
AA36: 34 | AB36: -626625.9948 | AC36: 783845.0071
AA37: 35 | AB37: -657629.0071 | AC37: 791898.9967
AA38: 36 | AB38: -629119.0072 | AC38: 752998.9955
AA39: 37 | AB39: -610678.9976 | AC39: 748883.9912
AA40: 38 | AB40: -610946.9982 | AC40: 720413.9922
AA41: 39 | AB41: -591520.0009 | AC41: 717953.9945
AA42: 40 | AB42: -633077.9948 | AC42: 754773.9936
AA43: 41 | AB43: -598663.0061 | AC43: 715124.0053
AA44: 42 | AB44: -628437.0025 | AC44: 743917.9974
AA45: 43 | AB45: -671300.0059 | AC45: 778973.0076
AA46: 44 | AB46: -665789.9916 | AC46: 759763.9982
AA47: 45 | AB47: -665657.0023 | AC47: 739625.0024
AA48: 46 | AB48: -610325.9937 | AC48: 683861.007
AA49: 47 | AB49: -601612.0061 | AC49: 679494.0025
AA50: 48 | AB50: -590494.9928 | AC50: 638499.007
AA51: 49 | AB51: -607056.0087 | AC51: 662331.0065
B52: Source: ACS accessed from usa.ipums.org | AA52: 50 | AB52: -661043.9967 | AC52: 702655.0075
B53: ACS is a 1-in-100 national random sample of the population; data set has over 2 million obs and I used weights to estimate the number of people with at least a college education. | AA53: 51 | AB53: -633386.004 | AC53: 665153.002
C54: If you are interested, the data are to the right --> | AA54: 52 | AB54: -601609.9968 | AC54: 654346.9981
AA55: 53 | AB55: -590859.0005 | AC55: 666427.0009
B56: The population pyramid of college gradutes in the United States in 2014 packs a lot of information. | AA56: 54 | AB56: -586195.9991 | AC56: 625996.991
C57: Notice the sudden increase in college enrollments for men and women 68 years old in 2014 (so they were 18 in 1964). | AA57: 55 | AB57: -584187.9892 | AC57: 628657.9954
C58: This was caused by a big increase in college age people from the baby boom after the end of WWII (18 year olds in 1964 were born in 1946), | AA58: 56 | AB58: -574651.9944 | AC58: 628171.9927
AA59: 57 | AB59: -577326.9906 | AC59: 628448.9946
C60: The increase in female college grads coincides with the women's liberation movement in the 1960s. | AA60: 58 | AB60: -572539.0008 | AC60: 619801.0039
C61: For men, it is hard to see, but the Vietnam War helped boost male college enrollment (men could defer being drafted by going to college). | AA61: 59 | AB61: -557990.0016 | AC61: 579518.9936
AA62: 60 | AB62: -599120.9898 | AC62: 616311.0051
C63: Look at the increase for female college grads versus the roughly even number of male college graduates. | AA63: 61 | AB63: -564805.0038 | AC63: 592252.9913
C64: In other words, the pyramid's base is not symmetric, with equal numbers of male and female college grads. | AA64: 62 | AB64: -585250.0058 | AC64: 581560.0101
C65: Male college grads are stable around 600,000 in each age cohort, | AA65: 63 | AB65: -571895.0065 | AC65: 542721.9943
C66: but the number of female college grads kept rising and is hovering around 800,000 for the most recent grads. | AA66: 64 | AB66: -560025.004 | AC66: 529234.9963
AA67: 65 | AB67: -561087.9979 | AC67: 494323.0058
C68: Continually adding 200,000 more women than men (one-third more women than men each year) will quickly accumulate. | AA68: 66 | AB68: -559676.0026 | AC68: 471493.9959
C69: Many more female college grads than males might create societal tensions and problems -- can you think of any? | AA69: 67 | AB69: -552272.9959 | AC69: 474611.9947
AA70: 68 | AB70: -420112.9942 | AC70: 351537.992
B71: It would be cool to embed the number of college grads into the United States population pyramid. | AA71: 69 | AB71: -376391.9972 | AC71: 323895.9974
C72: You can use the data to the right to do this. | AA72: 70 | AB72: -376847.9943 | AC72: 312597.9946
C73: Good luck! | AA73: 71 | AB73: -370783.9997 | AC73: 304656.0076
AA74: 72 | AB74: -317371.9944 | AC74: 239096.9929
AA75: 73 | AB75: -270825.0023 | AC75: 231279.9963
AA76: 74 | AB76: -235952.9955 | AC76: 197391.0016
AA77: 75 | AB77: -238903.0024 | AC77: 190133.0054
AA78: 76 | AB78: -214865.0019 | AC78: 166543.997
AA79: 77 | AB79: -187464.0017 | AC79: 142323.9961
AA80: 78 | AB80: -184441.9994 | AC80: 139572.0007
AA81: 79 | AB81: -167112.0027 | AC81: 135830.9952
AA82: 80 | AB82: -153906.0011 | AC82: 126124.0013
AA83: 81 | AB83: -150097.001 | AC83: 109224.0017
AA84: 82 | AB84: -139153.0005 | AC84: 107753.002
AA85: 83 | AB85: -119455.0009 | AC85: 100512.9972
AA86: 84 | AB86: -105780.0008 | AC86: 101352.9973

Sheet 5YrPopPyr (hidden)
A1: The sheet shows population pyramids from 2012 as images (dead graphs) created from the IDB website. | AR1: Five Year Age Groups and Sex for Region Summary
A2: Scroll down and right to quickly get a sense of how population is distributed across 5-yr age groups in all of the countries in the database. | AR2: Region | AS2: Country | AT2: Year | AU2: Age | AV2: Both Sexes Population | AW2: Male Population | AX2: Female Population | AY2: Percent Both Sexes | AZ2: Percent Male | BA2: Percent Female | BB2: Sex Ratio
A3: Scroll far right for data. | AR3: World | AS3: Afghanistan | AT3: 2012 | AU3: Total | AV3: 30419928 | AW3: 15437091 | AX3: 14982837 | AY3: 100 | AZ3: 100 | BA3: 100 | BB3: 103
AR4: World | AS4: Afghanistan | AT4: 2012 | AU4: 0-4 | AV4: 4869973 | AW4: 2473425 | AX4: 2396548 | AY4: 16 | AZ4: 16 | BA4: 16 | BB4: 103.2
AR5: World | AS5: Afghanistan | AT5: 2012 | AU5: 5-9 | AV5: 4106568 | AW5: 2085382 | AX5: 2021186 | AY5: 13.5 | AZ5: 13.5 | BA5: 13.5 | BB5: 103.2
AR6: World | AS6: Afghanistan | AT6: 2012 | AU6: 10-14 | AV6: 4155176 | AW6: 2112876 | AX6: 2042300 | AY6: 13.7 | AZ6: 13.7 | BA6: 13.6 | BB6: 103.5
AR7: World | AS7: Afghanistan | AT7: 2012 | AU7: 15-19 | AV7: 3642613 | AW7: 1856244 | AX7: 1786369 | AY7: 12 | AZ7: 12 | BA7: 11.9 | BB7: 103.9
AR8: World | AS8: Afghanistan | AT8: 2012 | AU8: 20-24 | AV8: 2941460 | AW8: 1501435 | AX8: 1440025 | AY8: 9.7 | AZ8: 9.7 | BA8: 9.6 | BB8: 104.3
AR9: World | AS9: Afghanistan | AT9: 2012 | AU9: 25-29 | AV9: 2198254 | AW9: 1122034 | AX9: 1076220 | AY9: 7.2 | AZ9: 7.3 | BA9: 7.2 | BB9: 104.3
AR10: World | AS10: Afghanistan | AT10: 2012 | AU10: 30-34 | AV10: 1786887 | AW10: 919735 | AX10: 867152 | AY10: 5.9 | AZ10: 6 | BA10: 5.8 | BB10: 106.1
AR11: World | AS11: Afghanistan | AT11: 2012 | AU11: 35-39 | AV11: 1603071 | AW11: 819261 | AX11: 783810 | AY11: 5.3 | AZ11: 5.3 | BA11: 5.2 | BB11: 104.5
AR12: World | AS12: Afghanistan | AT12: 2012 | AU12: 40-44 | AV12: 1295282 | AW12: 659233 | AX12: 636049 | AY12: 4.3 | AZ12: 4.3 | BA12: 4.2 | BB12: 103.6
AR13: World | AS13: Afghanistan | AT13: 2012 | AU13: 45-49 | AV13: 1060896 | AW13: 539417 | AX13: 521479 | AY13: 3.5 | AZ13: 3.5 | BA13: 3.5 | BB13: 103.4
AR14: World | AS14: Afghanistan | AT14: 2012 | AU14: 50-54 | AV14: 849454 | AW14: 427867 | AX14: 421587 | AY14: 2.8 | AZ14: 2.8 | BA14: 2.8 | BB14: 101.5
AR15: World | AS15: Afghanistan | AT15: 2012 | AU15: 55-59 | AV15: 662381 | AW15: 328663 | AX15: 333718 | AY15: 2.2 | AZ15: 2.1 | BA15: 2.2 | BB15: 98.5
AR16: World | AS16: Afghanistan | AT16: 2012 | AU16: 60-64 | AV16: 496034 | AW16: 240827 | AX16: 255207 | AY16: 1.6 | AZ16: 1.6 | BA16: 1.7 | BB16: 94.4
AR17: World | AS17: Afghanistan | AT17: 2012 | AU17: 65-69 | AV17: 347936 | AW17: 165798 | AX17: 182138 | AY17: 1.1 | AZ17: 1.1 | BA17: 1.2 | BB17: 91
AR18: World | AS18: Afghanistan | AT18: 2012 | AU18: 70-74 | AV18: 220869 | AW18: 103078 | AX18: 117791 | AY18: 0.7 | AZ18: 0.7 | BA18: 0.8 | BB18: 87.5
AR19: World | AS19: Afghanistan | AT19: 2012 | AU19: 75-79 | AV19: 118737 | AW19: 54314 | AX19: 64423 | AY19: 0.4 | AZ19: 0.4 | BA19: 0.4 | BB19: 84.3
AR20: World | AS20: Afghanistan | AT20: 2012 | AU20: 80-84 | AV20: 48584 | AW20: 20980 | AX20: 27604 | AY20: 0.2 | AZ20: 0.1 | BA20: 0.2 | BB20: 76
AR21: World | AS21: Afghanistan | AT21: 2012 | AU21: 85-89 | AV21: 13259 | AW21: 5511 | AX21: 7748 | AY21: 0 | AZ21: 0 | BA21: 0.1 | BB21: 71.1
AR22: World | AS22: Afghanistan | AT22: 2012 | AU22: 90-94 | AV22: 2307 | AW22: 940 | AX22: 1367 | AY22: 0 | AZ22: 0 | BA22: 0 | BB22: 68.8
AR23: World | AS23: Afghanistan | AT23: 2012 | AU23: 95-99 | AV23: 179 | AW23: 68 | AX23: 111 | AY23: 0 | AZ23: 0 | BA23: 0 | BB23: 61.3
AR24: World | AS24: Afghanistan | AT24: 2012 | AU24: 100+ | AV24: 8 | AW24: 3 | AX24: 5 | AY24: 0 | AZ24: 0 | BA24: 0 | BB24: 60
AR25: World | AS25: Albania | AT25: 2012 | AU25: Total | AV25: 3002859 | AW25: 1486040 | AX25: 1516819 | AY25: 100 | AZ25: 100 | BA25: 100 | BB25: 98
AR26: World | AS26: Albania | AT26: 2012 | AU26: 0-4 | AV26: 171915 | AW26: 90938 | AX26: 80977 | AY26: 5.7 | AZ26: 6.1 | BA26: 5.3 | BB26: 112.3
AR27: World | AS27: Albania | AT27: 2012 | AU27: 5-9 | AV27: 194251 | AW27: 103223 | AX27: 91028 | AY27: 6.5 | AZ27: 6.9 | BA27: 6 | BB27: 113.4
AR28: World | AS28: Albania | AT28: 2012 | AU28: 10-14 | AV28: 252008 | AW28: 131761 | AX28: 120247 | AY28: 8.4 | AZ28: 8.9 | BA28: 7.9 | BB28: 109.6
AR29: World | AS29: Albania | AT29: 2012 | AU29: 15-19 | AV29: 295752 | AW29: 152846 | AX29: 142906 | AY29: 9.8 | AZ29: 10.3 | BA29: 9.4 | BB29: 107
AR30: World | AS30: Albania | AT30: 2012 | AU30: 20-24 | AV30: 299769 | AW30: 150294 | AX30: 149475 | AY30: 10 | AZ30: 10.1 | BA30: 9.9 | BB30: 100.5
AR31: World | AS31: Albania | AT31: 2012 | AU31: 25-29 | AV31: 254649 | AW31: 124534 | AX31: 130115 | AY31: 8.5 | AZ31: 8.4 | BA31: 8.6 | BB31: 95.7
AR32: World | AS32: Albania | AT32: 2012 | AU32: 30-34 | AV32: 194158 | AW32: 89277 | AX32: 104881 | AY32: 6.5 | AZ32: 6 | BA32: 6.9 | BB32: 85.1
AR33: World | AS33: Albania | AT33: 2012 | AU33: 35-39 | AV33: 175566 | AW33: 79702 | AX33: 95864 | AY33: 5.8 | AZ33: 5.4 | BA33: 6.3 | BB33: 83.1
AR34: World | AS34: Albania | AT34: 2012 | AU34: 40-44 | AV34: 174552 | AW34: 81843 | AX34: 92709 | AY34: 5.8 | AZ34: 5.5 | BA34: 6.1 | BB34: 88.3
AR35: World | AS35: Albania | AT35: 2012 | AU35: 45-49 | AV35: 185784 | AW35: 89218 | AX35: 96566 | AY35: 6.2 | AZ35: 6 | BA35: 6.4 | BB35: 92.4
AR36: World | AS36: Albania | AT36: 2012 | AU36: 50-54 | AV36: 197429 | AW36: 97452 | AX36: 99977 | AY36: 6.6 | AZ36: 6.6 | BA36: 6.6 | BB36: 97.5
AR37: World | AS37: Albania | AT37: 2012 | AU37: 55-59 | AV37: 164888 | AW37: 82257 | AX37: 82631 | AY37: 5.5 | AZ37: 5.5 | BA37: 5.4 | BB37: 99.5
AR38: World | AS38: Albania | AT38: 2012 | AU38: 60-64 | AV38: 122494 | AW38: 61794 | AX38: 60700 | AY38: 4.1 | AZ38: 4.2 | BA38: 4 | BB38: 101.8
AR39: World | AS39: Albania | AT39: 2012 | AU39: 65-69 | AV39: 103231 | AW39: 51906 | AX39: 51325 | AY39: 3.4 | AZ39: 3.5 | BA39: 3.4 | BB39: 101.1
AR40: World | AS40: Albania | AT40: 2012 | AU40: 70-74 | AV40: 96190 | AW40: 47390 | AX40: 48800 | AY40: 3.2 | AZ40: 3.2 | BA40: 3.2 | BB40: 97.1
AR41: World | AS41: Albania | AT41: 2012 | AU41: 75-79 | AV41: 63204 | AW41: 30384 | AX41: 32820 | AY41: 2.1 | AZ41: 2 | BA41: 2.2 | BB41: 92.6
AR42: World | AS42: Albania | AT42: 2012 | AU42: 80-84 | AV42: 35571 | AW42: 14724 | AX42: 20847 | AY42: 1.2 | AZ42: 1 | BA42: 1.4 | BB42: 70.6
AR43: World | AS43: Albania | AT43: 2012 | AU43: 85-89 | AV43: 15823 | AW43: 5135 | AX43: 10688 | AY43: 0.5 | AZ43: 0.3 | BA43: 0.7 | BB43: 48
AR44: World | AS44: Albania | AT44: 2012 | AU44: 90-94 | AV44: 4827 | AW44: 1222 | AX44: 3605 | AY44: 0.2 | AZ44: 0.1 | BA44: 0.2 | BB44: 33.9
AR45: World | AS45: Albania | AT45: 2012 | AU45: 95-99 | AV45: 707 | AW45: 129 | AX45: 578 | AY45: 0 | AZ45: 0 | BA45: 0 | BB45: 22.3
AR46: World | AS46: Albania | AT46: 2012 | AU46: 100+ | AV46: 91 | AW46: 11 | AX46: 80 | AY46: 0 | AZ46: 0 | BA46: 0 | BB46: 13.8
AR47: World | AS47: Algeria | AT47: 2012 | AU47: Total | AV47: 37367226 | AW47: 18915196 | AX47: 18452030 | AY47: 100 | AZ47: 100 | BA47: 100 | BB47: 102.5
AR48: World | AS48: Algeria | AT48: 2012 | AU48: 0-4 | AV48: 4188690 | AW48: 2144492 | AX48: 2044198 | AY48: 11.2 | AZ48: 11.3 | BA48: 11.1 | BB48: 104.9
AR49: World | AS49: Algeria | AT49: 2012 | AU49: 5-9 | AV49: 3321704 | AW49: 1700608 | AX49: 1621096 | AY49: 8.9 | AZ49: 9 | BA49: 8.8 | BB49: 104.9
AR50: World | AS50: Algeria | AT50: 2012 | AU50: 10-14 | AV50: 2880079 | AW50: 1473000 | AX50: 1407079 | AY50: 7.7 | AZ50: 7.8 | BA50: 7.6 | BB50: 104.7
AR51: World | AS51: Algeria | AT51: 2012 | AU51: 15-19 | AV51: 3424064 | AW51: 1751644 | AX51: 1672420 | AY51: 9.2 | AZ51: 9.3 | BA51: 9.1 | BB51: 104.7
AR52: World | AS52: Algeria | AT52: 2012 | AU52: 20-24 | AV52: 3641838 | AW52: 1865998 | AX52: 1775840 | AY52: 9.7 | AZ52: 9.9 | BA52: 9.6 | BB52: 105.1
AR53: World | AS53: Algeria | AT53: 2012 | AU53: 25-29 | AV53: 3654122 | AW53: 1845500 | AX53: 1808622 | AY53: 9.8 | AZ53: 9.8 | BA53: 9.8 | BB53: 102
AR54: World | AS54: Algeria | AT54: 2012 | AU54: 30-34 | AV54: 3397355 | AW54: 1710417 | AX54: 1686938 | AY54: 9.1 | AZ54: 9 | BA54: 9.1 | BB54: 101.4
AR55: World | AS55: Algeria | AT55: 2012 | AU55: 35-39 | AV55: 2758083 | AW55: 1402729 | AX55: 1355354 | AY55: 7.4 | AZ55: 7.4 | BA55: 7.3 | BB55: 103.5
AR56: World | AS56: Algeria | AT56: 2012 | AU56: 40-44 | AV56: 2380245 | AW56: 1203838 | AX56: 1176407 | AY56: 6.4 | AZ56: 6.4 | BA56: 6.4 | BB56: 102.3
AR57: World | AS57: Algeria | AT57: 2012 | AU57: 45-49 | AV57: 2014430 | AW57: 1015481 | AX57: 998949 | AY57: 5.4 | AZ57: 5.4 | BA57: 5.4 | BB57: 101.7
AR58: World | AS58: Algeria | AT58: 2012 | AU58: 50-54 | AV58: 1650262 | AW58: 833221 | AX58: 817041 | AY58: 4.4 | AZ58: 4.4 | BA58: 4.4 | BB58: 102
AR59: World | AS59: Algeria | AT59: 2012 | AU59: 55-59 | AV59: 1246099 | AW59: 638880 | AX59: 607219 | AY59: 3.3 | AZ59: 3.4 | BA59: 3.3 | BB59: 105.2
AR60: World | AS60: Algeria | AT60: 2012 | AU60: 60-64 | AV60: 940344 | AW60: 475352 | AX60: 464992 | AY60: 2.5 | AZ60: 2.5 | BA60: 2.5 | BB60: 102.2
AR61: World | AS61: Algeria | AT61: 2012 | AU61: 65-69 | AV61: 632799 | AW61: 300975 | AX61: 331824 | AY61: 1.7 | AZ61: 1.6 | BA61: 1.8 | BB61: 90.7
AR62: World | AS62: Algeria | AT62: 2012 | AU62: 70-74 | AV62: 472402 | AW62: 216588 | AX62: 255814 | AY62: 1.3 | AZ62: 1.1 | BA62: 1.4 | BB62: 84.7
AR63: World | AS63: Algeria | AT63: 2012 | AU63: 75-79 | AV63: 382774 | AW63: 172690 | AX63: 210084 | AY63: 1 | AZ63: 0.9 | BA63: 1.1 | BB63: 82.2
AR64: World | AS64: Algeria | AT64: 2012 | AU64: 80-84 | AV64: 235429 | AW64: 103202 | AX64: 132227 | AY64: 0.6 | AZ64: 0.5 | BA64: 0.7 | BB64: 78
AR65: World | AS65: Algeria | AT65: 2012 | AU65: 85-89 | AV65: 102449 | AW65: 43072 | AX65: 59377 | AY65: 0.3 | AZ65: 0.2 | BA65: 0.3 | BB65: 72.5
AR66: World | AS66: Algeria | AT66: 2012 | AU66: 90-94 | AV66: 34989 | AW66: 14063 | AX66: 20926 | AY66: 0.1 | AZ66: 0.1 | BA66: 0.1 | BB66: 67.2
AR67: World | AS67: Algeria | AT67: 2012 | AU67: 95-99 | AV67: 7965 | AW67: 3036 | AX67: 4929 | AY67: 0 | AZ67: 0 | BA67: 0 | BB67: 61.6
AR68: World | AS68: Algeria | AT68: 2012 | AU68: 100+ | AV68: 1104 | AW68: 410 | AX68: 694 | AY68: 0 | AZ68: 0 | BA68: 0 | BB68: 59.1
AR69: World | AS69: American Samoa | AT69: 2012 | AU69: Total | AV69: 54947 | AW69: 27561 | AX69: 27386 | AY69: 100 | AZ69: 100 | BA69: 100 | BB69: 100.6
AR70: World | AS70: American Samoa | AT70: 2012 | AU70: 0-4 | AV70: 5307 | AW70: 2605 | AX70: 2702 | AY70: 9.7 | AZ70: 9.5 | BA70: 9.9 | BB70: 96.4
AR71: World | AS71: American Samoa | AT71: 2012 | AU71: 5-9 | AV71: 4277 | AW71: 2072 | AX71: 2205 | AY71: 7.8 | AZ71: 7.5 | BA71: 8.1 | BB71: 94
AR72: World | AS72: American Samoa | AT72: 2012 | AU72: 10-14 | AV72: 4573 | AW72: 2327 | AX72: 2246 | AY72: 8.3 | AZ72: 8.4 | BA72: 8.2 | BB72: 103.6
AR73: World | AS73: American Samoa | AT73: 2012 | AU73: 15-19 | AV73: 6450 | AW73: 3200 | AX73: 3250 | AY73: 11.7 | AZ73: 11.6 | BA73: 11.9 | BB73: 98.5
AR74: World | AS74: American Samoa | AT74: 2012 | AU74: 20-24 | AV74: 5173 | AW74: 2554 | AX74: 2619 | AY74: 9.4 | AZ74: 9.3 | BA74: 9.6 | BB74: 97.5
AR75: World | AS75: American Samoa | AT75: 2012 | AU75: 25-29 | AV75: 3738 | AW75: 1901 | AX75: 1837 | AY75: 6.8 | AZ75: 6.9 | BA75: 6.7 | BB75: 103.5
AR76: World | AS76: American Samoa | AT76: 2012 | AU76: 30-34 | AV76: 3772 | AW76: 2119 | AX76: 1653 | AY76: 6.9 | AZ76: 7.7 | BA76: 6 | BB76: 128.2
AR77: World | AS77: American Samoa | AT77: 2012 | AU77: 35-39 | AV77: 3801 | AW77: 2092 | AX77: 1709 | AY77: 6.9 | AZ77: 7.6 | BA77: 6.2 | BB77: 122.4
AR78: World | AS78: American Samoa | AT78: 2012 | AU78: 40-44 | AV78: 4052 | AW78: 2059 | AX78: 1993 | AY78: 7.4 | AZ78: 7.5 | BA78: 7.3 | BB78: 103.3
AR79: World | AS79: American Samoa | AT79: 2012 | AU79: 45-49 | AV79: 3927 | AW79: 1830 | AX79: 2097 | AY79: 7.1 | AZ79: 6.6 | BA79: 7.7 | BB79: 87.3
AR80: World | AS80: American Samoa | AT80: 2012 | AU80: 50-54 | AV80: 3395 | AW80: 1669 | AX80: 1726 | AY80: 6.2 | AZ80: 6.1 | BA80: 6.3 | BB80: 96.7
AR81: World | AS81: American Samoa | AT81: 2012 | AU81: 55-59 | AV81: 2384 | AW81: 1171 | AX81: 1213 | AY81: 4.3 | AZ81: 4.2 | BA81: 4.4 | BB81: 96.5
AR82: World | AS82: American Samoa | AT82: 2012 | AU82: 60-64 | AV82: 1627 | AW82: 818 | AX82: 809 | AY82: 3 | AZ82: 3 | BA82: 3 | BB82: 101.1
AR83: World | AS83: American Samoa | AT83: 2012 | AU83: 65-69 | AV83: 1107 | AW83: 554 | AX83: 553 | AY83: 2 | AZ83: 2 | BA83: 2 | BB83: 100.2
AR84: World | AS84: American Samoa | AT84: 2012 | AU84: 70-74 | AV84: 669 | AW84: 312 | AX84: 357 | AY84: 1.2 | AZ84: 1.1 | BA84: 1.3 | BB84: 87.4
AR85: World | AS85: American Samoa | AT85: 2012 | AU85: 75-79 | AV85: 348 | AW85: 159 | AX85: 189 | AY85: 0.6 | AZ85: 0.6 | BA85: 0.7 | BB85: 84.1
AR86: World | AS86: American Samoa | AT86: 2012 | AU86: 80-84 | AV86: 204 | AW86: 80 | AX86: 124 | AY86: 0.4 | AZ86: 0.3 | BA86: 0.5 | BB86: 64.5
AR87: World | AS87: American Samoa | AT87: 2012 | AU87: 85-89 | AV87: 108 | AW87: 33 | AX87: 75 | AY87: 0.2 | AZ87: 0.1 | BA87: 0.3 | BB87: 44
AR88: World | AS88: American Samoa | AT88: 2012 | AU88: 90-94 | AV88: 30 | AW88: 5 | AX88: 25 | AY88: 0.1 | AZ88: 0 | BA88: 0.1 | BB88: 20
AR89: World | AS89: American Samoa | AT89: 2012 | AU89: 95-99 | AV89: 5 | AW89: 1 | AX89: 4 | AY89: 0 | AZ89: 0 | BA89: 0 | BB89: 25
AR90: World | AS90: American Samoa | AT90: 2012 | AU90: 100+ | AV90: 0 | AW90: 0 | AX90: 0 | AY90: 0 | AZ90: 0 | BA90: 0
AR91: World | AS91: Andorra | AT91: 2012 | AU91: Total | AV91: 85082 | AW91: 43949 | AX91: 41133 | AY91: 100 | AZ91: 100 | BA91: 100 | BB91: 106.8
AR92: World | AS92: Andorra | AT92: 2012 | AU92: 0-4 | AV92: 4250 | AW92: 2192 | AX92: 2058 | AY92: 5 | AZ92: 5 | BA92: 5 | BB92: 106.5
AR93: World | AS93: Andorra | AT93: 2012 | AU93: 5-9 | AV93: 4551 | AW93: 2321 | AX93: 2230 | AY93: 5.3 | AZ93: 5.3 | BA93: 5.4 | BB93: 104.1
AR94: World | AS94: Andorra | AT94: 2012 | AU94: 10-14 | AV94: 4477 | AW94: 2283 | AX94: 2194 | AY94: 5.3 | AZ94: 5.2 | BA94: 5.3 | BB94: 104.1
AR95: World | AS95: Andorra | AT95: 2012 | AU95: 15-19 | AV95: 3800 | AW95: 2014 | AX95: 1786 | AY95: 4.5 | AZ95: 4.6 | BA95: 4.3 | BB95: 112.8
AR96: World | AS96: Andorra | AT96: 2012 | AU96: 20-24 | AV96: 3874 | AW96: 1987 | AX96: 1887 | AY96: 4.6 | AZ96: 4.5 | BA96: 4.6 | BB96: 105.3
AR97: World | AS97: Andorra | AT97: 2012 | AU97: 25-29 | AV97: 4617 | AW97: 2358 | AX97: 2259 | AY97: 5.4 | AZ97: 5.4 | BA97: 5.5 | BB97: 104.4
AR98: World | AS98: Andorra | AT98: 2012 | AU98: 30-34 | AV98: 6776 | AW98: 3425 | AX98: 3351 | AY98: 8 | AZ98: 7.8 | BA98: 8.1 | BB98: 102.2
AR99: World | AS99: Andorra | AT99: 2012 | AU99: 35-39 | AV99: 8263 | AW99: 4184 | AX99: 4079 | AY99: 9.7 | AZ99: 9.5 | BA99: 9.9 | BB99: 102.6
AR100: World | AS100: Andorra | AT100: 2012 | AU100: 40-44 | AV100: 8269 | AW100: 4250 | AX100: 4019 | AY100: 9.7 | AZ100: 9.7 | BA100: 9.8 | BB100: 105.7
AR101: World | AS101: Andorra | AT101: 2012 | AU101: 45-49 | AV101: 7997 | AW101: 4177 | AX101: 3820 | AY101: 9.4 | AZ101: 9.5 | BA101: 9.3 | BB101: 109.3
AR102: World | AS102: Andorra | AT102: 2012 | AU102: 50-54 | AV102: 6877 | AW102: 3679 | AX102: 3198 | AY102: 8.1 | AZ102: 8.4 | BA102: 7.8 | BB102: 115
AR103: World | AS103: Andorra | AT103: 2012 | AU103: 55-59 | AV103: 5506 | AW103: 2958 | AX103: 2548 | AY103: 6.5 | AZ103: 6.7 | BA103: 6.2 | BB103: 116.1
AR104: World | AS104: Andorra | AT104: 2012 | AU104: 60-64 | AV104: 4473 | AW104: 2435 | AX104: 2038 | AY104: 5.3 | AZ104: 5.5 | BA104: 5 | BB104: 119.5
AR105: World | AS105: Andorra | AT105: 2012 | AU105: 65-69 | AV105: 3561 | AW105: 1913 | AX105: 1648 | AY105: 4.2 | AZ105: 4.4 | BA105: 4 | BB105: 116.1
AR106: World | AS106: Andorra | AT106: 2012 | AU106: 70-74 | AV106: 2384 | AW106: 1202 | AX106: 1182 | AY106: 2.8 | AZ106: 2.7 | BA106: 2.9 | BB106: 101.7
AR107: World | AS107: Andorra | AT107: 2012 | AU107: 75-79 | AV107: 2006 | AW107: 1026 | AX107: 980 | AY107: 2.4 | AZ107: 2.3 | BA107: 2.4 | BB107: 104.7
AR108: World | AS108: Andorra | AT108: 2012 | AU108: 80-84 | AV108: 1654 | AW108: 786 | AX108: 868 | AY108: 1.9 | AZ108: 1.8 | BA108: 2.1 | BB108: 90.6
AR109: World | AS109: Andorra | AT109: 2012 | AU109: 85-89 | AV109: 1271 | AW109: 543 | AX109: 728 | AY109: 1.5 | AZ109: 1.2 | BA109: 1.8 | BB109: 74.6
AR110: World | AS110: Andorra | AT110: 2012 | AU110: 90-94 | AV110: 396 | AW110: 175 | AX110: 221 | AY110: 0.5 | AZ110: 0.4 | BA110: 0.5 | BB110: 79.2
AR111: World | AS111: Andorra | AT111: 2012 | AU111: 95-99 | AV111: 72 | AW111: 36 | AX111: 36 | AY111: 0.1 | AZ111: 0.1 | BA111: 0.1 | BB111: 100
AR112: World | AS112: Andorra | AT112: 2012 | AU112: 100+ | AV112: 8 | AW112: 5 | AX112: 3 | AY112: 0 | AZ112: 0 | BA112: 0 | BB112: 166.7
AR113: World | AS113: Angola | AT113: 2012 | AU113: Total | AV113: 18056072 | AW113: 9127939 | AX113: 8928133 | AY113: 100 | AZ113: 100 | BA113: 100 | BB113: 102.2
AR114: World | AS114: Angola | AT114: 2012 | AU114: 0-4 | AV114: 3008360 | AW114: 1534613 | AX114: 1473747 | AY114: 16.7 | AZ114: 16.8 | BA114: 16.5 | BB114: 104.1
AR115: World | AS115: Angola | AT115: 2012 | AU115: 5-9 | AV115: 2566956 | AW115: 1308417 | AX115: 1258539 | AY115: 14.2 | AZ115: 14.3 | BA115: 14.1 | BB115: 104
AR116: World | AS116: Angola | AT116: 2012 | AU116: 10-14 | AV116: 2349914 | AW116: 1198025 | AX116: 1151889 | AY116: 13 | AZ116: 13.1 | BA116: 12.9 | BB116: 104
AR117: World | AS117: Angola | AT117: 2012 | AU117: 15-19 | AV117: 2019121 | AW117: 1028010 | AX117: 991111 | AY117: 11.2 | AZ117: 11.3 | BA117: 11.1 | BB117: 103.7
AR118: World | AS118: Angola | AT118: 2012 | AU118: 20-24 | AV118: 1616541 | AW118: 821771 | AX118: 794770 | AY118: 9 | AZ118: 9 | BA118: 8.9 | BB118: 103.4
AR119: World | AS119: Angola | AT119: 2012 | AU119: 25-29 | AV119: 1355369 | AW119: 688618 | AX119: 666751 | AY119: 7.5 | AZ119: 7.5 | BA119: 7.5 | BB119: 103.3
AR120: World | AS120: Angola | AT120: 2012 | AU120: 30-34 | AV120: 1139195 | AW120: 580315 | AX120: 558880 | AY120: 6.3 | AZ120: 6.4 | BA120: 6.3 | BB120: 103.8
AR121: World | AS121: Angola | AT121: 2012 | AU121: 35-39 | AV121: 932048 | AW121: 473963 | AX121: 458085 | AY121: 5.2 | AZ121: 5.2 | BA121: 5.1 | BB121: 103.5
AR122: World | AS122: Angola | AT122: 2012 | AU122: 40-44 | AV122: 739120 | AW122: 369768 | AX122: 369352 | AY122: 4.1 | AZ122: 4.1 | BA122: 4.1 | BB122: 100.1
AR123: World | AS123: Angola | AT123: 2012 | AU123: 45-49 | AV123: 600350 | AW123: 295545 | AX123: 304805 | AY123: 3.3 | AZ123: 3.2 | BA123: 3.4 | BB123: 97
AR124: World | AS124: Angola | AT124: 2012 | AU124: 50-54 | AV124: 493356 | AW124: 240638 | AX124: 252718 | AY124: 2.7 | AZ124: 2.6 | BA124: 2.8 | BB124: 95.2
AR125: World | AS125: Angola | AT125: 2012 | AU125: 55-59 | AV125: 402498 | AW125: 196868 | AX125: 205630 | AY125: 2.2 | AZ125: 2.2 | BA125: 2.3 | BB125: 95.7
AR126: World | AS126: Angola | AT126: 2012 | AU126: 60-64 | AV126: 311345 | AW126: 149967 | AX126: 161378 | AY126: 1.7 | AZ126: 1.6 | BA126: 1.8 | BB126: 92.9
AR127: World | AS127: Angola | AT127: 2012 | AU127: 65-69 | AV127: 228522 | AW127: 108076 | AX127: 120446 | AY127: 1.3 | AZ127: 1.2 | BA127: 1.3 | BB127: 89.7
AR128: World | AS128: Angola | AT128: 2012 | AU128: 70-74 | AV128: 152431 | AW128: 70710 | AX128: 81721 | AY128: 0.8 | AZ128: 0.8 | BA128: 0.9 | BB128: 86.5
AR129: World | AS129: Angola | AT129: 2012 | AU129: 75-79 | AV129: 87382 | AW129: 39591 | AX129: 47791 | AY129: 0.5 | AZ129: 0.4 | BA129: 0.5 | BB129: 82.8
AR130: World | AS130: Angola | AT130: 2012 | AU130: 80-84 | AV130: 39262 | AW130: 17147 | AX130: 22115 | AY130: 0.2 | AZ130: 0.2 | BA130: 0.2 | BB130: 77.5
AR131: World | AS131: Angola | AT131: 2012 | AU131: 85-89 | AV131: 11931 | AW131: 4969 | AX131: 6962 | AY131: 0.1 | AZ131: 0.1 | BA131: 0.1 | BB131: 71.4
AR132: World | AS132: Angola | AT132: 2012 | AU132: 90-94 | AV132: 2158 | AW132: 850 | AX132: 1308 | AY132: 0 | AZ132: 0 | BA132: 0 | BB132: 65
AR133: World | AS133: Angola | AT133: 2012 | AU133: 95-99 | AV133: 204 | AW133: 75 | AX133: 129 | AY133: 0 | AZ133: 0 | BA133: 0 | BB133: 58.1
AR134: World | AS134: Angola | AT134: 2012 | AU134: 100+ | AV134: 9 | AW134: 3 | AX134: 6 | AY134: 0 | AZ134: 0 | BA134: 0 | BB134: 50
AR135: World | AS135: Anguilla | AT135: 2012 | AU135: Total | AV135: 15423 | AW135: 7432 | AX135: 7991 | AY135: 100 | AZ135: 100 | BA135: 100 | BB135: 93
AR136: World | AS136: Anguilla | AT136: 2012 | AU136: 0-4 | AV136: 1192 | AW136: 610 | AX136: 582 | AY136: 7.7 | AZ136: 8.2 | BA136: 7.3 | BB136: 104.8
AR137: World | AS137: Anguilla | AT137: 2012 | AU137: 5-9 | AV137: 1214 | AW137: 622 | AX137: 592 | AY137: 7.9 | AZ137: 8.4 | BA137: 7.4 | BB137: 105.1
AR138: World | AS138: Anguilla | AT138: 2012 | AU138: 10-14 | AV138: 1262 | AW138: 650 | AX138: 612 | AY138: 8.2 | AZ138: 8.7 | BA138: 7.7 | BB138: 106.2
AR139: World | AS139: Anguilla | AT139: 2012 | AU139: 15-19 | AV139: 1102 | AW139: 549 | AX139: 553 | AY139: 7.1 | AZ139: 7.4 | BA139: 6.9 | BB139: 99.3
AR140: World | AS140: Anguilla | AT140: 2012 | AU140: 20-24 | AV140: 1140 | AW140: 556 | AX140: 584 | AY140: 7.4 | AZ140: 7.5 | BA140: 7.3 | BB140: 95.2
AR141: World | AS141: Anguilla | AT141: 2012 | AU141: 25-29 | AV141: 1115 | AW141: 537 | AX141: 578 | AY141: 7.2 | AZ141: 7.2 | BA141: 7.2 | BB141: 92.9
AR142: World | AS142: Anguilla | AT142: 2012 | AU142: 30-34 | AV142: 957 | AW142: 466 | AX142: 491 | AY142: 6.2 | AZ142: 6.3 | BA142: 6.1 | BB142: 94.9
AR143: World | AS143: Anguilla | AT143: 2012 | AU143: 35-39 | AV143: 1131 | AW143: 527 | AX143: 604 | AY143: 7.3 | AZ143: 7.1 | BA143: 7.6 | BB143: 87.3
AR144: World | AS144: Anguilla | AT144: 2012 | AU144: 40-44 | AV144: 1340 | AW144: 583 | AX144: 757 | AY144: 8.7 | AZ144: 7.8 | BA144: 9.5 | BB144: 77
AR145: World | AS145: Anguilla | AT145: 2012 | AU145: 45-49 | AV145: 1329 | AW145: 570 | AX145: 759 | AY145: 8.6 | AZ145: 7.7 | BA145: 9.5 | BB145: 75.1
AR146: World | AS146: Anguilla | AT146: 2012 | AU146: 50-54 | AV146: 1111 | AW146: 496 | AX146: 615 | AY146: 7.2 | AZ146: 6.7 | BA146: 7.7 | BB146: 80.7
AR147: World | AS147: Anguilla | AT147: 2012 | AU147: 55-59 | AV147: 770 | AW147: 385 | AX147: 385 | AY147: 5 | AZ147: 5.2 | BA147: 4.8 | BB147: 100
AR148: World | AS148: Anguilla | AT148: 2012 | AU148: 60-64 | AV148: 525 | AW148: 276 | AX148: 249 | AY148: 3.4 | AZ148: 3.7 | BA148: 3.1 | BB148: 110.8
AR149: World | AS149: Anguilla | AT149: 2012 | AU149: 65-69 | AV149: 415 | AW149: 216 | AX149: 199 | AY149: 2.7 | AZ149: 2.9 | BA149: 2.5 | BB149: 108.5
AR150: World | AS150: Anguilla | AT150: 2012 | AU150: 70-74 | AV150: 322 | AW150: 159 | AX150: 163 | AY150: 2.1 | AZ150: 2.1 | BA150: 2 | BB150: 97.5
AR151: World | AS151: Anguilla | AT151: 2012 | AU151: 75-79 | AV151: 224 | AW151: 110 | AX151: 114 | AY151: 1.5 | AZ151: 1.5 | BA151: 1.4 | BB151: 96.5
AR152: World | AS152: Anguilla | AT152: 2012 | AU152: 80-84 | AV152: 135 | AW152: 65 | AX152: 70 | AY152: 0.9 | AZ152: 0.9 | BA152: 0.9 | BB152: 92.9
AR153: World | AS153: Anguilla | AT153: 2012 | AU153: 85-89 | AV153: 79 | AW153: 35 | AX153: 44 | AY153: 0.5 | AZ153: 0.5 | BA153: 0.6 | BB153: 79.5
AR154: World | AS154: Anguilla | AT154: 2012 | AU154: 90-94 | AV154: 43 | AW154: 15 | AX154: 28 | AY154: 0.3 | AZ154: 0.2 | BA154: 0.4 | BB154: 53.6
AR155: World | AS155: Anguilla | AT155: 2012 | AU155: 95-99 | AV155: 14 | AW155: 4 | AX155: 10 | AY155: 0.1 | AZ155: 0.1 | BA155: 0.1 | BB155: 40
AR156: World | AS156: Anguilla | AT156: 2012 | AU156: 100+ | AV156: 3 | AW156: 1 | AX156: 2 | AY156: 0 | AZ156: 0 | BA156: 0 | BB156: 50
AR157: World | AS157: Antigua and Barbuda | AT157: 2012 | AU157: Total | AV157: 89018 | AW157: 42228 | AX157: 46790 | AY157: 100 | AZ157: 100 | BA157: 100 | BB157: 90.3
AR158: World | AS158: Antigua and Barbuda | AT158: 2012 | AU158: 0-4 | AV158: 7124 | AW158: 3638 | AX158: 3486 | AY158: 8 | AZ158: 8.6 | BA158: 7.5 | BB158: 104.4
AR159: World | AS159: Antigua and Barbuda | AT159: 2012 | AU159: 5-9 | AV159: 7222 | AW159: 3671 | AX159: 3551 | AY159: 8.1 | AZ159: 8.7 | BA159: 7.6 | BB159: 103.4
AR160: World | AS160: Antigua and Barbuda | AT160: 2012 | AU160: 10-14 | AV160: 8126 | AW160: 4104 | AX160: 4022 | AY160: 9.1 | AZ160: 9.7 | BA160: 8.6 | BB160: 102
AR161: World | AS161: Antigua and Barbuda | AT161: 2012 | AU161: 15-19 | AV161: 7877 | AW161: 3939 | AX161: 3938 | AY161: 8.8 | AZ161: 9.3 | BA161: 8.4 | BB161: 100
AR162: World | AS162: Antigua and Barbuda | AT162: 2012 | AU162: 20-24 | AV162: 6909 | AW162: 3357 | AX162: 3552 | AY162: 7.8 | AZ162: 7.9 | BA162: 7.6 | BB162: 94.5
AR163: World | AS163: Antigua and Barbuda | AT163: 2012 | AU163: 25-29 | AV163: 6526 | AW163: 3066 | AX163: 3460 | AY163: 7.3 | AZ163: 7.3 | BA163: 7.4 | BB163: 88.6
AR164: World | AS164: Antigua and Barbuda | AT164: 2012 | AU164: 30-34 | AV164: 6445 | AW164: 3007 | AX164: 3438 | AY164: 7.2 | AZ164: 7.1 | BA164: 7.3 | BB164: 87.5
AR165: World | AS165: Antigua and Barbuda | AT165: 2012 | AU165: 35-39 | AV165: 6374 | AW165: 2901 | AX165: 3473 | AY165: 7.2 | AZ165: 6.9 | BA165: 7.4 | BB165: 83.5
AR166: World | AS166: Antigua and Barbuda | AT166: 2012 | AU166: 40-44 | AV166: 6821 | AW166: 3074 | AX166: 3747 | AY166: 7.7 | AZ166: 7.3 | BA166: 8 | BB166: 82
AR167: World | AS167: Antigua and Barbuda | AT167: 2012 | AU167: 45-49 | AV167: 6502 | AW167: 2931 | AX167: 3571 | AY167: 7.3 | AZ167: 6.9 | BA167: 7.6 | BB167: 82.1
AR168: World | AS168: Antigua and Barbuda | AT168: 2012 | AU168: 50-54 | AV168: 5514 | AW168: 2502 | AX168: 3012 | AY168: 6.2 | AZ168: 5.9 | BA168: 6.4 | BB168: 83.1
AR169: World | AS169: Antigua and Barbuda | AT169: 2012 | AU169: 55-59 | AV169: 4180 | AW169: 1910 | AX169: 2270 | AY169: 4.7 | AZ169: 4.5 | BA169: 4.9 | BB169: 84.1
AR170: World | AS170: Antigua and Barbuda | AT170: 2012 | AU170: 60-64 | AV170: 3203 | AW170: 1454 | AX170: 1749 | AY170: 3.6 | AZ170: 3.4 | BA170: 3.7 | BB170: 83.1
AR171: World | AS171: Antigua and Barbuda | AT171: 2012 | AU171: 65-69 | AV171: 2255 | AW171: 999 | AX171: 1256 | AY171: 2.5 | AZ171: 2.4 | BA171: 2.7 | BB171: 79.5
AR172: World | AS172: Antigua and Barbuda | AT172: 2012 | AU172: 70-74 | AV172: 1524 | AW172: 682 | AX172: 842 | AY172: 1.7 | AZ172: 1.6 | BA172: 1.8 | BB172: 81
AR173: World | AS173: Antigua and Barbuda | AT173: 2012 | AU173: 75-79 | AV173: 1074 | AW173: 471 | AX173: 603 | AY173: 1.2 | AZ173: 1.1 | BA173: 1.3 | BB173: 78.1
AR174: World | AS174: Antigua and Barbuda | AT174: 2012 | AU174: 80-84 | AV174: 730 | AW174: 296 | AX174: 434 | AY174: 0.8 | AZ174: 0.7 | BA174: 0.9 | BB174: 68.2
AR175: World | AS175: Antigua and Barbuda | AT175: 2012 | AU175: 85-89 | AV175: 415 | AW175: 161 | AX175: 254 | AY175: 0.5 | AZ175: 0.4 | BA175: 0.5 | BB175: 63.4
AR176: World | AS176: Antigua and Barbuda | AT176: 2012 | AU176: 90-94 | AV176: 160 | AW176: 55 | AX176: 105 | AY176: 0.2 | AZ176: 0.1 | BA176: 0.2 | BB176: 52.4
AR177: World | AS177: Antigua and Barbuda | AT177: 2012 | AU177: 95-99 | AV177: 34 | AW177: 10 | AX177: 24 | AY177: 0 | AZ177: 0 | BA177: 0.1 | BB177: 41.7
AR178: World | AS178: Antigua and Barbuda | AT178: 2012 | AU178: 100+ | AV178: 3 | AW178: 0 | AX178: 3 | AY178: 0 | AZ178: 0 | BA178: 0 | BB178: 0
AR179: World | AS179: Argentina | AT179: 2012 | AU179: Total | AV179: 42192494 | AW179: 20792486 | AX179: 21400008 | AY179: 100 | AZ179: 100 | BA179: 100 | BB179: 97.2
AR180: World | AS180: Argentina | AT180: 2012 | AU180: 0-4 | AV180: 3621839 | AW180: 1854383 | AX180: 1767456 | AY180: 8.6 | AZ180: 8.9 | BA180: 8.3 | BB180: 104.9
AR181: World | AS181: Argentina | AT181: 2012 | AU181: 5-9 | AV181: 3587077 | AW181: 1835880 | AX181: 1751197 | AY181: 8.5 | AZ181: 8.8 | BA181: 8.2 | BB181: 104.8
AR182: World | AS182: Argentina | AT182: 2012 | AU182: 10-14 | AV182: 3442467 | AW182: 1760416 | AX182: 1682051 | AY182: 8.2 | AZ182: 8.5 | BA182: 7.9 | BB182: 104.7
AR183: World | AS183: Argentina | AT183: 2012 | AU183: 15-19 | AV183: 3338755 | AW183: 1707827 | AX183: 1630928 | AY183: 7.9 | AZ183: 8.2 | BA183: 7.6 | BB183: 104.7
AR184: World | AS184: Argentina | AT184: 2012 | AU184: 20-24 | AV184: 3380454 | AW184: 1718991 | AX184: 1661463 | AY184: 8 | AZ184: 8.3 | BA184: 7.8 | BB184: 103.5
AR185: World | AS185: Argentina | AT185: 2012 | AU185: 25-29 | AV185: 3235299 | AW185: 1620704 | AX185: 1614595 | AY185: 7.7 | AZ185: 7.8 | BA185: 7.5 | BB185: 100.4
AR186: World | AS186: Argentina | AT186: 2012 | AU186: 30-34 | AV186: 3299095 | AW186: 1652908 | AX186: 1646187 | AY186: 7.8 | AZ186: 7.9 | BA186: 7.7 | BB186: 100.4
AR187: World | AS187: Argentina | AT187: 2012 | AU187: 35-39 | AV187: 2890124 | AW187: 1442819 | AX187: 1447305 | AY187: 6.8 | AZ187: 6.9 | BA187: 6.8 | BB187: 99.7
AR188: World | AS188: Argentina | AT188: 2012 | AU188: 40-44 | AV188: 2474398 | AW188: 1230151 | AX188: 1244247 | AY188: 5.9 | AZ188: 5.9 | BA188: 5.8 | BB188: 98.9
AR189: World | AS189: Argentina | AT189: 2012 | AU189: 45-49 | AV189: 2255637 | AW189: 1116617 | AX189: 1139020 | AY189: 5.3 | AZ189: 5.4 | BA189: 5.3 | BB189: 98
AR190: World | AS190: Argentina | AT190: 2012 | AU190: 50-54 | AV190: 2163131 | AW190: 1066970 | AX190: 1096161 | AY190: 5.1 | AZ190: 5.1 | BA190: 5.1 | BB190: 97.3
AR191: World | AS191: Argentina | AT191: 2012 | AU191: 55-59 | AV191: 2030477 | AW191: 992241 | AX191: 1038236 | AY191: 4.8 | AZ191: 4.8 | BA191: 4.9 | BB191: 95.6
AR192: World | AS192: Argentina | AT192: 2012 | AU192: 60-64 | AV192: 1774575 | AW192: 851769 | AX192: 922806 | AY192: 4.2 | AZ192: 4.1 | BA192: 4.3 | BB192: 92.3
AR193: World | AS193: Argentina | AT193: 2012 | AU193: 65-69 | AV193: 1439627 | AW193: 666608 | AX193: 773019 | AY193: 3.4 | AZ193: 3.2 | BA193: 3.6 | BB193: 86.2
AR194: World | AS194: Argentina | AT194: 2012 | AU194: 70-74 | AV194: 1140041 | AW194: 495902 | AX194: 644139 | AY194: 2.7 | AZ194: 2.4 | BA194: 3 | BB194: 77
AR195: World | AS195: Argentina | AT195: 2012 | AU195: 75-79 | AV195: 893110 | AW195: 356047 | AX195: 537063 | AY195: 2.1 | AZ195: 1.7 | BA195: 2.5 | BB195: 66.3
AR196: World | AS196: Argentina | AT196: 2012 | AU196: 80-84 | AV196: 646655 | AW196: 234839 | AX196: 411816 | AY196: 1.5 | AZ196: 1.1 | BA196: 1.9 | BB196: 57
AR197: World | AS197: Argentina | AT197: 2012 | AU197: 85-89 | AV197: 378509 | AW197: 126972 | AX197: 251537 | AY197: 0.9 | AZ197: 0.6 | BA197: 1.2 | BB197: 50.5
AR198: World | AS198: Argentina | AT198: 2012 | AU198: 90-94 | AV198: 155273 | AW198: 47630 | AX198: 107643 | AY198: 0.4 | AZ198: 0.2 | BA198: 0.5 | BB198: 44.2
AR199: World | AS199: Argentina | AT199: 2012 | AU199: 95-99 | AV199: 40313 | AW199: 11299 | AX199: 29014 | AY199: 0.1 | AZ199: 0.1 | BA199: 0.1 | BB199: 38.9
AR200: World | AS200: Argentina | AT200: 2012 | AU200: 100+ | AV200: 5638 | AW200: 1513 | AX200: 4125 | AY200: 0 | AZ200: 0 | BA200: 0 | BB200: 36.7
... 925 more rows

Sheet IDBYearsAvail (hidden)
A1: This sheet shows the data availability for all countries in the IDB database for single year age groups. Red text around the table explains what's going on so scroll down and right. | X1: First occurrence of a 1 is when data availability starts for that country. | AF1: Oddly, Bhutan and Djibuti are the only countries with data from 1950. | AP1: Alpha by country code; search in row 2 for a country if you can't find it. | AY1: Zoom out to see more of the table.
B2: Aruba | C2: Antigua and Barbuda | D2: United Arab Emirates | E2: Afghanistan | F2: Algeria | G2: Azerbaijan | H2: Albania | I2: Armenia | J2: Andorra | K2: Angola | L2: American Samoa | M2: Argentina | N2: Australia | O2: Austria | P2: Anguilla | Q2: Bahrain | R2: Barbados | S2: Botswana | T2: Bermuda | U2: Belgium | V2: Bahamas | W2: Bangladesh | X2: Belize | Y2: Bosnia and Herzegovina | Z2: Bolivia | AA2: Burma | AB2: Benin | AC2: Belarus | AD2: Solomon Islands | AE2: Brazil | AF2: Bhutan | AG2: Bulgaria | AH2: Brunei | AI2: Burundi | AJ2: Canada | AK2: Cambodia | AL2: Chad | AM2: Sri Lanka | AN2: Congo (Brazzaville) | AO2: Congo (Kinshasa) | AP2: China | AQ2: Chile | AR2: Cayman Islands | AS2: Cameroon | AT2: Comoros | AU2: Colombia | AV2: Northern Mariana Islands | AW2: Costa Rica | AX2: Central African Republic | AY2: Cuba | AZ2: Cape Verde | BA2: Cook Islands | BB2: Cyprus | BC2: Denmark | BD2: Djibouti | BE2: Dominica | BF2: Dominican Republic | BG2: Ecuador | BH2: Egypt | BI2: Ireland | BJ2: Equatorial Guinea | BK2: Estonia | BL2: Eritrea | BM2: El Salvador | BN2: Ethiopia | BO2: Czech Republic | BP2: Finland | BQ2: Fiji | BR2: Micronesia, Federated States of | BS2: Faroe Islands | BT2: French Polynesia | BU2: France | BV2: Gambia | BW2: Gabon | BX2: Georgia | BY2: Ghana | BZ2: Gibralter | CA2: Grenada | CB2: Guernsey | CC2: Greenland | CD2: Germany | CE2: Guam | CF2: Greece | CG2: Guatemala | CH2: Guinea | CI2: Guyana | CJ2: Gaza Strip | CK2: Haiti | CL2: Hong Kong | CM2: Honduras | CN2: Croatia | CO2: Hungary | CP2: Iceland | CQ2: Indonesia | CR2: Isle of Man | CS2: India | CT2: Iran | CU2: Israel | CV2: Italy | CW2: Cote D"Ivoire | CX2: Iraq | CY2: Japan | CZ2: Jersey | DA2: Jamaica | DB2: Jordan | DC2: Kenya | DD2: Kyrgyzstan | DE2: Korea, North | DF2: Kiribati | DG2: Korea, South | DH2: Kuwait | DI2: Kosovo | DJ2: Kazakhstan | DK2: Laos | DL2: Lebanon | DM2: Latvia | DN2: Lithuania | DO2: Liberia | DP2: Slovakia | DQ2: Liechtenstein | DR2: Lesotho | DS2: Luxembourg | DT2: Libya | DU2: Madagascar | DV2: Macau | DW2: Moldova | DX2: Mongolia | DY2: Montserrat | DZ2: Malawi | EA2: Montenegro | EB2: Macedonia | EC2: Mali | ED2: Monaco | EE2: Morocco | EF2: Mauritius | EG2: Mauritania | EH2: Malta | EI2: Oman | EJ2: Maldives | EK2: Mexico | EL2: Malaysia | EM2: Mozambique | EN2: New Caledonia | EO2: Niger | EP2: Vanuatu | EQ2: Nigeria | ER2: Netherlands | ES2: Sint Maarten | ET2: Norway | EU2: Nepal | EV2: Nauru | EW2: Suriname | EX2: Nicaragua | EY2: New Zealand | EZ2: South Sudan | FA2: Paraguay | FB2: Peru | FC2: Pakistan | FD2: Poland | FE2: Panama | FF2: Portugal | FG2: Papua New Guinea | FH2: Palau | FI2: Guinea-Bissau | FJ2: Qatar | FK2: Serbia | FL2: Marshall Islands | FM2: Saint Martin | FN2: Romania | FO2: Philippines | FP2: Puerto Rico | FQ2: Russia | FR2: Rwanda | FS2: Saudi Arabia | FT2: Saint Pierre and Miquelon | FU2: Saint Kitts and Nevis | FV2: Seychelles | FW2: South Africa | FX2: Senegal | FY2: Saint Helena | FZ2: Slovenia | GA2: Sierra Leone | GB2: San Marino | GC2: Singapore | GD2: Somalia | GE2: Spain | GF2: Saint Lucia | GG2: Sudan | GH2: Sweden | GI2: Syria | GJ2: Switzerland | GK2: Saint Barthelemy | GL2: Trinidad and Tobago | GM2: Thailand | GN2: Tajikistan | GO2: Turks and Caicos Islands | GP2: Tonga | GQ2: Togo | GR2: Sao Tome and Principe | GS2: Tunisia | GT2: Timor-Leste | GU2: Turkey | GV2: Tuvalu | GW2: Taiwan | GX2: Turkmenistan | GY2: Tanzania | GZ2: Curacao | HA2: Uganda | HB2: United Kingdom | HC2: Ukraine | HD2: United States | HE2: Burkina | HF2: Uruguay | HG2: Uzbekistan | HH2: Saint Vincent & the Grenadines | HI2: Venezuela | HJ2: Virgin Islands, British | HK2: Vietnam | HL2: Virgin Islands, U.S. | HM2: Namibia | HN2: West Bank | HO2: Wallis and Futuna | HP2: Western Sahara | HQ2: Samoa | HR2: Swaziland | HS2: Yemen | HT2: Zambia | HU2: Zimbabwe
A3: Year | B3: AA | C3: AC | D3: AE | E3: AF | F3: AG | G3: AJ | H3: AL | I3: AM | J3: AN | K3: AO | L3: AQ | M3: AR | N3: AS | O3: AU | P3: AV | Q3: BA | R3: BB | S3: BC | T3: BD | U3: BE | V3: BF | W3: BG | X3: BH | Y3: BK | Z3: BL | AA3: BM | AB3: BN | AC3: BO | AD3: BP | AE3: BR | AF3: BT | AG3: BU | AH3: BX | AI3: BY | AJ3: CA | AK3: CB | AL3: CD | AM3: CE | AN3: CF | AO3: CG | AP3: CH | AQ3: CI | AR3: CJ | AS3: CM | AT3: CN | AU3: CO | AV3: CQ | AW3: CS | AX3: CT | AY3: CU | AZ3: CV | BA3: CW | BB3: CY | BC3: DA | BD3: DJ | BE3: DO | BF3: DR | BG3: EC | BH3: EG | BI3: EI | BJ3: EK | BK3: EN | BL3: ER | BM3: ES | BN3: ET | BO3: EZ | BP3: FI | BQ3: FJ | BR3: FM | BS3: FO | BT3: FP | BU3: FR | BV3: GA | BW3: GB | BX3: GG | BY3: GH | BZ3: GI | CA3: GJ | CB3: GK | CC3: GL | CD3: GM | CE3: GQ | CF3: GR | CG3: GT | CH3: GV | CI3: GY | CJ3: GZ | CK3: HA | CL3: HK | CM3: HO | CN3: HR | CO3: HU | CP3: IC | CQ3: ID | CR3: IM | CS3: IN | CT3: IR | CU3: IS | CV3: IT | CW3: IV | CX3: IZ | CY3: JA | CZ3: JE | DA3: JM | DB3: JO | DC3: KE | DD3: KG | DE3: KN | DF3: KR | DG3: KS | DH3: KU | DI3: KV | DJ3: KZ | DK3: LA | DL3: LE | DM3: LG | DN3: LH | DO3: LI | DP3: LO | DQ3: LS | DR3: LT | DS3: LU | DT3: LY | DU3: MA | DV3: MC | DW3: MD | DX3: MG | DY3: MH | DZ3: MI | EA3: MJ | EB3: MK | EC3: ML | ED3: MN | EE3: MO | EF3: MP | EG3: MR | EH3: MT | EI3: MU | EJ3: MV | EK3: MX | EL3: MY | EM3: MZ | EN3: NC | EO3: NG | EP3: NH | EQ3: NI | ER3: NL | ES3: NN | ET3: NO | EU3: NP | EV3: NR | EW3: NS | EX3: NU | EY3: NZ | EZ3: OD | FA3: PA | FB3: PE | FC3: PK | FD3: PL | FE3: PM | FF3: PO | FG3: PP | FH3: PS | FI3: PU | FJ3: QA | FK3: RI | FL3: RM | FM3: RN | FN3: RO | FO3: RP | FP3: RQ | FQ3: RS | FR3: RW | FS3: SA | FT3: SB | FU3: SC | FV3: SE | FW3: SF | FX3: SG | FY3: SH | FZ3: SI | GA3: SL | GB3: SM | GC3: SN | GD3: SO | GE3: SP | GF3: ST | GG3: SU | GH3: SW | GI3: SY | GJ3: SZ | GK3: TB | GL3: TD | GM3: TH | GN3: TI | GO3: TK | GP3: TN | GQ3: TO | GR3: TP | GS3: TS | GT3: TT | GU3: TU | GV3: TV | GW3: TW | GX3: TX | GY3: TZ | GZ3: UC | HA3: UG | HB3: UK | HC3: UP | HD3: US | HE3: UV | HF3: UY | HG3: UZ | HH3: VC | HI3: VE | HJ3: VI | HK3: VM | HL3: VQ | HM3: WA | HN3: WE | HO3: WF | HP3: WI | HQ3: WS | HR3: WZ | HS3: YM | HT3: ZA | HU3: ZI | HV3: Grand Total
A4: 1950 | AF4: 1 | BD4: 1 | HV4: 2 | HW4: This column reports how many countries have data back to a given year.
A5: 1951 | AF5: 1 | BD5: 1 | HV5: 2
A6: 1952 | AF6: 1 | BD6: 1 | HV6: 2
A7: 1953 | AF7: 1 | BD7: 1 | EQ7: 1 | HV7: 3
A8: 1954 | AF8: 1 | BD8: 1 | EQ8: 1 | HV8: 3
A9: 1955 | AF9: 1 | BD9: 1 | CH9: 1 | EQ9: 1 | HV9: 4
A10: 1956 | AF10: 1 | BD10: 1 | CH10: 1 | EQ10: 1 | HV10: 4
A11: 1957 | AF11: 1 | BD11: 1 | CH11: 1 | EQ11: 1 | HV11: 4
A12: 1958 | AF12: 1 | BD12: 1 | CH12: 1 | EQ12: 1 | HV12: 4
A13: 1959 | AF13: 1 | BD13: 1 | CH13: 1 | EQ13: 1 | HV13: 4
A14: 1960 | AF14: 1 | BD14: 1 | CH14: 1 | EQ14: 1 | HV14: 4
A15: 1961 | AF15: 1 | BD15: 1 | CH15: 1 | EQ15: 1 | HV15: 4
A16: 1962 | AF16: 1 | AK16: 1 | BD16: 1 | CH16: 1 | EQ16: 1 | HV16: 5
A17: 1963 | AF17: 1 | AK17: 1 | BD17: 1 | CH17: 1 | EQ17: 1 | HV17: 5
A18: 1964 | AF18: 1 | AK18: 1 | AL18: 1 | BD18: 1 | CH18: 1 | EQ18: 1 | HV18: 6
A19: 1965 | AF19: 1 | AK19: 1 | AL19: 1 | BD19: 1 | CH19: 1 | EQ19: 1 | HV19: 6
A20: 1966 | AF20: 1 | AK20: 1 | AL20: 1 | BD20: 1 | CH20: 1 | EQ20: 1 | HV20: 6
A21: 1967 | AF21: 1 | AK21: 1 | AL21: 1 | BD21: 1 | CH21: 1 | EQ21: 1 | HV21: 6
A22: 1968 | AF22: 1 | AK22: 1 | AL22: 1 | BD22: 1 | CH22: 1 | EQ22: 1 | HV22: 6
A23: 1969 | AF23: 1 | AK23: 1 | AL23: 1 | BD23: 1 | BW23: 1 | CH23: 1 | EQ23: 1 | HA23: 1 | HV23: 8
A24: 1970 | K24: 1 | AE24: 1 | AF24: 1 | AK24: 1 | AL24: 1 | BD24: 1 | BW24: 1 | BY24: 1 | CH24: 1 | DL24: 1 | EQ24: 1 | HA24: 1 | HP24: 1 | HV24: 13
A25: 1971 | K25: 1 | AE25: 1 | AF25: 1 | AK25: 1 | AL25: 1 | BD25: 1 | BW25: 1 | BY25: 1 | CH25: 1 | CK25: 1 | DL25: 1 | EQ25: 1 | EU25: 1 | EX25: 1 | HA25: 1 | HP25: 1 | HV25: 16
A26: 1972 | K26: 1 | AE26: 1 | AF26: 1 | AK26: 1 | AL26: 1 | BD26: 1 | BW26: 1 | BY26: 1 | CH26: 1 | CK26: 1 | DL26: 1 | EQ26: 1 | EU26: 1 | EX26: 1 | FA26: 1 | HA26: 1 | HP26: 1 | HV26: 17
A27: 1973 | K27: 1 | AA27: 1 | AE27: 1 | AF27: 1 | AK27: 1 | AL27: 1 | AU27: 1 | BD27: 1 | BW27: 1 | BY27: 1 | CH27: 1 | CK27: 1 | DL27: 1 | DT27: 1 | EQ27: 1 | EU27: 1 | EX27: 1 | FA27: 1 | HA27: 1 | HP27: 1 | HV27: 20
A28: 1974 | K28: 1 | AA28: 1 | AE28: 1 | AF28: 1 | AK28: 1 | AL28: 1 | AN28: 1 | AO28: 1 | AU28: 1 | BD28: 1 | BW28: 1 | BY28: 1 | CH28: 1 | CK28: 1 | CM28: 1 | DL28: 1 | DO28: 1 | DT28: 1 | EQ28: 1 | EU28: 1 | EX28: 1 | FA28: 1 | GA28: 1 | HA28: 1 | HP28: 1 | HV28: 25
A29: 1975 | K29: 1 | AA29: 1 | AE29: 1 | AF29: 1 | AK29: 1 | AL29: 1 | AN29: 1 | AO29: 1 | AU29: 1 | AX29: 1 | BD29: 1 | BW29: 1 | BY29: 1 | CH29: 1 | CK29: 1 | CM29: 1 | CW29: 1 | DL29: 1 | DO29: 1 | DT29: 1 | DU29: 1 | EQ29: 1 | EU29: 1 | EX29: 1 | FA29: 1 | GA29: 1 | GD29: 1 | HA29: 1 | HP29: 1 | HV29: 29
A30: 1976 | K30: 1 | AA30: 1 | AD30: 1 | AE30: 1 | AF30: 1 | AK30: 1 | AL30: 1 | AN30: 1 | AO30: 1 | AS30: 1 | AU30: 1 | AX30: 1 | BD30: 1 | BW30: 1 | BY30: 1 | CH30: 1 | CK30: 1 | CM30: 1 | CW30: 1 | DL30: 1 | DO30: 1 | DR30: 1 | DT30: 1 | DU30: 1 | EQ30: 1 | EU30: 1 | EX30: 1 | FA30: 1 | FX30: 1 | GA30: 1 | GD30: 1 | HA30: 1 | HE30: 1 | HP30: 1 | HR30: 1 | HV30: 35
A31: 1977 | K31: 1 | AA31: 1 | AD31: 1 | AE31: 1 | AF31: 1 | AK31: 1 | AL31: 1 | AN31: 1 | AO31: 1 | AS31: 1 | AU31: 1 | AX31: 1 | BD31: 1 | BW31: 1 | BY31: 1 | CH31: 1 | CK31: 1 | CM31: 1 | CW31: 1 | DL31: 1 | DO31: 1 | DR31: 1 | DT31: 1 | DU31: 1 | DZ31: 1 | EC31: 1 | EG31: 1 | EO31: 1 | EQ31: 1 | EU31: 1 | EX31: 1 | FA31: 1 | FV31: 1 | FX31: 1 | GA31: 1 | GD31: 1 | HA31: 1 | HE31: 1 | HP31: 1 | HR31: 1 | HV31: 40
A32: 1978 | K32: 1 | AA32: 1 | AD32: 1 | AE32: 1 | AF32: 1 | AK32: 1 | AL32: 1 | AN32: 1 | AO32: 1 | AS32: 1 | AU32: 1 | AX32: 1 | BD32: 1 | BW32: 1 | BY32: 1 | CH32: 1 | CK32: 1 | CM32: 1 | CW32: 1 | DL32: 1 | DO32: 1 | DR32: 1 | DT32: 1 | DU32: 1 | DZ32: 1 | EC32: 1 | EG32: 1 | EO32: 1 | EQ32: 1 | EU32: 1 | EX32: 1 | FA32: 1 | FR32: 1 | FV32: 1 | FX32: 1 | GA32: 1 | GD32: 1 | GY32: 1 | HA32: 1 | HE32: 1 | HP32: 1 | HR32: 1 | HV32: 42
A33: 1979 | E33: 1 | K33: 1 | AA33: 1 | AB33: 1 | AD33: 1 | AE33: 1 | AF33: 1 | AI33: 1 | AK33: 1 | AL33: 1 | AN33: 1 | AO33: 1 | AS33: 1 | AU33: 1 | AX33: 1 | BD33: 1 | BW33: 1 | BY33: 1 | CH33: 1 | CK33: 1 | CM33: 1 | CW33: 1 | DB33: 1 | DC33: 1 | DL33: 1 | DO33: 1 | DR33: 1 | DT33: 1 | DU33: 1 | DZ33: 1 | EC33: 1 | EG33: 1 | EO33: 1 | EQ33: 1 | EU33: 1 | EX33: 1 | FA33: 1 | FI33: 1 | FR33: 1 | FV33: 1 | FX33: 1 | GA33: 1 | GD33: 1 | GV33: 1 | GY33: 1 | HA33: 1 | HE33: 1 | HP33: 1 | HR33: 1 | HV33: 49
A34: 1980 | E34: 1 | K34: 1 | M34: 1 | R34: 1 | V34: 1 | X34: 1 | AA34: 1 | AB34: 1 | AD34: 1 | AE34: 1 | AF34: 1 | AI34: 1 | AK34: 1 | AL34: 1 | AN34: 1 | AO34: 1 | AS34: 1 | AT34: 1 | AU34: 1 | AX34: 1 | AZ34: 1 | BD34: 1 | BF34: 1 | BL34: 1 | BN34: 1 | BW34: 1 | BY34: 1 | CH34: 1 | CI34: 1 | CK34: 1 | CM34: 1 | CQ34: 1 | CW34: 1 | DB34: 1 | DC34: 1 | DL34: 1 | DO34: 1 | DR34: 1 | DT34: 1 | DU34: 1 | DZ34: 1 | EC34: 1 | EG34: 1 | EK34: 1 | EL34: 1 | EM34: 1 | EO34: 1 | EQ34: 1 | EU34: 1 | EW34: 1 | EX34: 1 | FA34: 1 | FE34: 1 | FG34: 1 | FI34: 1 | FO34: 1 | FR34: 1 | FU34: 1 | FV34: 1 | FX34: 1 | GA34: 1 | GD34: 1 | GF34: 1 | GL34: 1 | GU34: 1 | GV34: 1 | GY34: 1 | HA34: 1 | HD34: 1 | HE34: 1 | HM34: 1 | HP34: 1 | HR34: 1 | HT34: 1 | HV34: 74
A35: 1981 | B35: 1 | E35: 1 | K35: 1 | M35: 1 | Q35: 1 | R35: 1 | S35: 1 | V35: 1 | W35: 1 | X35: 1 | AA35: 1 | AB35: 1 | AD35: 1 | AE35: 1 | AF35: 1 | AH35: 1 | AI35: 1 | AK35: 1 | AL35: 1 | AM35: 1 | AN35: 1 | AO35: 1 | AS35: 1 | AT35: 1 | AU35: 1 | AX35: 1 | AZ35: 1 | BD35: 1 | BE35: 1 | BF35: 1 | BL35: 1 | BN35: 1 | BW35: 1 | BY35: 1 | CA35: 1 | CG35: 1 | CH35: 1 | CI35: 1 | CK35: 1 | CM35: 1 | CQ35: 1 | CW35: 1 | DB35: 1 | DC35: 1 | DI35: 1 | DL35: 1 | DO35: 1 | DR35: 1 | DT35: 1 | DU35: 1 | DZ35: 1 | EC35: 1 | EG35: 1 | EK35: 1 | EL35: 1 | EM35: 1 | EO35: 1 | EQ35: 1 | EU35: 1 | EW35: 1 | EX35: 1 | FA35: 1 | FB35: 1 | FC35: 1 | FE35: 1 | FG35: 1 | FI35: 1 | FK35: 1 | FO35: 1 | FR35: 1 | FU35: 1 | FV35: 1 | FX35: 1 | GA35: 1 | GD35: 1 | GF35: 1 | GI35: 1 | GL35: 1 | GQ35: 1 | GR35: 1 | GU35: 1 | GV35: 1 | GY35: 1 | HA35: 1 | HD35: 1 | HE35: 1 | HM35: 1 | HP35: 1 | HQ35: 1 | HR35: 1 | HT35: 1 | HV35: 91
A36: 1982 | B36: 1 | E36: 1 | K36: 1 | M36: 1 | Q36: 1 | R36: 1 | S36: 1 | V36: 1 | W36: 1 | X36: 1 | AA36: 1 | AB36: 1 | AD36: 1 | AE36: 1 | AF36: 1 | AH36: 1 | AI36: 1 | AK36: 1 | AL36: 1 | AM36: 1 | AN36: 1 | AO36: 1 | AQ36: 1 | AS36: 1 | AT36: 1 | AU36: 1 | AX36: 1 | AY36: 1 | AZ36: 1 | BB36: 1 | BD36: 1 | BE36: 1 | BF36: 1 | BL36: 1 | BN36: 1 | BW36: 1 | BY36: 1 | BZ36: 1 | CA36: 1 | CG36: 1 | CH36: 1 | CI36: 1 | CK36: 1 | CM36: 1 | CQ36: 1 | CW36: 1 | DA36: 1 | DB36: 1 | DC36: 1 | DI36: 1 | DL36: 1 | DO36: 1 | DR36: 1 | DT36: 1 | DU36: 1 | DZ36: 1 | EC36: 1 | EE36: 1 | EG36: 1 | EK36: 1 | EL36: 1 | EM36: 1 | EO36: 1 | EQ36: 1 | EU36: 1 | EW36: 1 | EX36: 1 | FA36: 1 | FB36: 1 | FC36: 1 | FE36: 1 | FG36: 1 | FI36: 1 | FK36: 1 | FM36: 1 | FO36: 1 | FR36: 1 | FT36: 1 | FU36: 1 | FV36: 1 | FX36: 1 | GA36: 1 | GD36: 1 | GF36: 1 | GI36: 1 | GK36: 1 | GL36: 1 | GQ36: 1 | GR36: 1 | GU36: 1 | GV36: 1 | GY36: 1 | HA36: 1 | HD36: 1 | HE36: 1 | HM36: 1 | HP36: 1 | HQ36: 1 | HR36: 1 | HT36: 1 | HU36: 1 | HV36: 101
A37: 1983 | B37: 1 | E37: 1 | K37: 1 | M37: 1 | Q37: 1 | R37: 1 | S37: 1 | V37: 1 | W37: 1 | X37: 1 | AA37: 1 | AB37: 1 | AD37: 1 | AE37: 1 | AF37: 1 | AH37: 1 | AI37: 1 | AK37: 1 | AL37: 1 | AM37: 1 | AN37: 1 | AO37: 1 | AQ37: 1 | AS37: 1 | AT37: 1 | AU37: 1 | AX37: 1 | AY37: 1 | AZ37: 1 | BB37: 1 | BD37: 1 | BE37: 1 | BF37: 1 | BJ37: 1 | BL37: 1 | BN37: 1 | BT37: 1 | BV37: 1 | BW37: 1 | BY37: 1 | BZ37: 1 | CA37: 1 | CG37: 1 | CH37: 1 | CI37: 1 | CK37: 1 | CM37: 1 | CQ37: 1 | CU37: 1 | CW37: 1 | DA37: 1 | DB37: 1 | DC37: 1 | DI37: 1 | DL37: 1 | DO37: 1 | DR37: 1 | DT37: 1 | DU37: 1 | DZ37: 1 | EC37: 1 | EE37: 1 | EF37: 1 | EG37: 1 | EK37: 1 | EL37: 1 | EM37: 1 | EN37: 1 | EO37: 1 | EQ37: 1 | EU37: 1 | EW37: 1 | EX37: 1 | FA37: 1 | FB37: 1 | FC37: 1 | FE37: 1 | FG37: 1 | FI37: 1 | FK37: 1 | FM37: 1 | FO37: 1 | FR37: 1 | FT37: 1 | FU37: 1 | FV37: 1 | FX37: 1 | GA37: 1 | GD37: 1 | GF37: 1 | GI37: 1 | GK37: 1 | GL37: 1 | GQ37: 1 | GR37: 1 | GU37: 1 | GV37: 1 | GY37: 1 | HA37: 1 | HD37: 1 | HE37: 1 | HM37: 1 | HP37: 1 | HQ37: 1 | HR37: 1 | HT37: 1 | HU37: 1 | HV37: 107
A38: 1984 | B38: 1 | E38: 1 | K38: 1 | M38: 1 | P38: 1 | Q38: 1 | R38: 1 | S38: 1 | V38: 1 | W38: 1 | X38: 1 | AA38: 1 | AB38: 1 | AD38: 1 | AE38: 1 | AF38: 1 | AH38: 1 | AI38: 1 | AK38: 1 | AL38: 1 | AM38: 1 | AN38: 1 | AO38: 1 | AQ38: 1 | AS38: 1 | AT38: 1 | AU38: 1 | AW38: 1 | AX38: 1 | AY38: 1 | AZ38: 1 | BB38: 1 | BD38: 1 | BE38: 1 | BF38: 1 | BJ38: 1 | BL38: 1 | BN38: 1 | BT38: 1 | BV38: 1 | BW38: 1 | BY38: 1 | BZ38: 1 | CA38: 1 | CG38: 1 | CH38: 1 | CI38: 1 | CK38: 1 | CM38: 1 | CQ38: 1 | CU38: 1 | CW38: 1 | DA38: 1 | DB38: 1 | DC38: 1 | DI38: 1 | DL38: 1 | DO38: 1 | DR38: 1 | DT38: 1 | DU38: 1 | DZ38: 1 | EC38: 1 | EE38: 1 | EF38: 1 | EG38: 1 | EK38: 1 | EL38: 1 | EM38: 1 | EN38: 1 | EO38: 1 | EQ38: 1 | EU38: 1 | EW38: 1 | EX38: 1 | FA38: 1 | FB38: 1 | FC38: 1 | FE38: 1 | FG38: 1 | FI38: 1 | FK38: 1 | FM38: 1 | FO38: 1 | FR38: 1 | FT38: 1 | FU38: 1 | FV38: 1 | FX38: 1 | GA38: 1 | GD38: 1 | GF38: 1 | GI38: 1 | GK38: 1 | GL38: 1 | GQ38: 1 | GR38: 1 | GS38: 1 | GU38: 1 | GV38: 1 | GY38: 1 | HA38: 1 | HD38: 1 | HE38: 1 | HF38: 1 | HM38: 1 | HP38: 1 | HQ38: 1 | HR38: 1 | HT38: 1 | HU38: 1 | HV38: 111
A39: 1985 | B39: 1 | E39: 1 | K39: 1 | M39: 1 | P39: 1 | Q39: 1 | R39: 1 | S39: 1 | V39: 1 | W39: 1 | X39: 1 | AA39: 1 | AB39: 1 | AD39: 1 | AE39: 1 | AF39: 1 | AH39: 1 | AI39: 1 | AK39: 1 | AL39: 1 | AM39: 1 | AN39: 1 | AO39: 1 | AQ39: 1 | AS39: 1 | AT39: 1 | AU39: 1 | AW39: 1 | AX39: 1 | AY39: 1 | AZ39: 1 | BB39: 1 | BD39: 1 | BE39: 1 | BF39: 1 | BJ39: 1 | BL39: 1 | BN39: 1 | BT39: 1 | BV39: 1 | BW39: 1 | BY39: 1 | BZ39: 1 | CA39: 1 | CG39: 1 | CH39: 1 | CI39: 1 | CK39: 1 | CM39: 1 | CQ39: 1 | CU39: 1 | CW39: 1 | DA39: 1 | DB39: 1 | DC39: 1 | DF39: 1 | DH39: 1 | DI39: 1 | DL39: 1 | DO39: 1 | DR39: 1 | DT39: 1 | DU39: 1 | DZ39: 1 | EC39: 1 | EE39: 1 | EF39: 1 | EG39: 1 | EJ39: 1 | EK39: 1 | EL39: 1 | EM39: 1 | EN39: 1 | EO39: 1 | EQ39: 1 | EU39: 1 | EW39: 1 | EX39: 1 | FA39: 1 | FB39: 1 | FC39: 1 | FE39: 1 | FG39: 1 | FI39: 1 | FK39: 1 | FM39: 1 | FO39: 1 | FR39: 1 | FT39: 1 | FU39: 1 | FV39: 1 | FW39: 1 | FX39: 1 | GA39: 1 | GD39: 1 | GF39: 1 | GI39: 1 | GK39: 1 | GL39: 1 | GQ39: 1 | GR39: 1 | GS39: 1 | GU39: 1 | GV39: 1 | GY39: 1 | HA39: 1 | HD39: 1 | HE39: 1 | HF39: 1 | HM39: 1 | HP39: 1 | HQ39: 1 | HR39: 1 | HT39: 1 | HU39: 1 | HV39: 115
A40: 1986 | B40: 1 | D40: 1 | E40: 1 | K40: 1 | M40: 1 | N40: 1 | P40: 1 | Q40: 1 | R40: 1 | S40: 1 | V40: 1 | W40: 1 | X40: 1 | AA40: 1 | AB40: 1 | AD40: 1 | AE40: 1 | AF40: 1 | AH40: 1 | AI40: 1 | AK40: 1 | AL40: 1 | AM40: 1 | AN40: 1 | AO40: 1 | AQ40: 1 | AS40: 1 | AT40: 1 | AU40: 1 | AW40: 1 | AX40: 1 | AY40: 1 | AZ40: 1 | BB40: 1 | BD40: 1 | BE40: 1 | BF40: 1 | BJ40: 1 | BL40: 1 | BN40: 1 | BQ40: 1 | BT40: 1 | BV40: 1 | BW40: 1 | BY40: 1 | BZ40: 1 | CA40: 1 | CG40: 1 | CH40: 1 | CI40: 1 | CK40: 1 | CM40: 1 | CQ40: 1 | CT40: 1 | CU40: 1 | CW40: 1 | DA40: 1 | DB40: 1 | DC40: 1 | DF40: 1 | DH40: 1 | DI40: 1 | DL40: 1 | DO40: 1 | DR40: 1 | DT40: 1 | DU40: 1 | DZ40: 1 | EC40: 1 | EE40: 1 | EF40: 1 | EG40: 1 | EJ40: 1 | EK40: 1 | EL40: 1 | EM40: 1 | EN40: 1 | EO40: 1 | EQ40: 1 | EU40: 1 | EW40: 1 | EX40: 1 | EY40: 1 | FA40: 1 | FB40: 1 | FC40: 1 | FE40: 1 | FG40: 1 | FI40: 1 | FJ40: 1 | FK40: 1 | FM40: 1 | FO40: 1 | FR40: 1 | FT40: 1 | FU40: 1 | FV40: 1 | FW40: 1 | FX40: 1 | GA40: 1 | GD40: 1 | GF40: 1 | GI40: 1 | GK40: 1 | GL40: 1 | GP40: 1 | GQ40: 1 | GR40: 1 | GS40: 1 | GU40: 1 | GV40: 1 | GY40: 1 | HA40: 1 | HD40: 1 | HE40: 1 | HF40: 1 | HM40: 1 | HP40: 1 | HQ40: 1 | HR40: 1 | HT40: 1 | HU40: 1 | HV40: 122
A41: 1987 | B41: 1 | D41: 1 | E41: 1 | F41: 1 | K41: 1 | M41: 1 | N41: 1 | P41: 1 | Q41: 1 | R41: 1 | S41: 1 | V41: 1 | W41: 1 | X41: 1 | AA41: 1 | AB41: 1 | AD41: 1 | AE41: 1 | AF41: 1 | AH41: 1 | AI41: 1 | AK41: 1 | AL41: 1 | AM41: 1 | AN41: 1 | AO41: 1 | AQ41: 1 | AS41: 1 | AT41: 1 | AU41: 1 | AW41: 1 | AX41: 1 | AY41: 1 | AZ41: 1 | BB41: 1 | BD41: 1 | BE41: 1 | BF41: 1 | BJ41: 1 | BL41: 1 | BN41: 1 | BQ41: 1 | BT41: 1 | BV41: 1 | BW41: 1 | BY41: 1 | BZ41: 1 | CA41: 1 | CG41: 1 | CH41: 1 | CI41: 1 | CK41: 1 | CM41: 1 | CQ41: 1 | CT41: 1 | CU41: 1 | CW41: 1 | CX41: 1 | DA41: 1 | DB41: 1 | DC41: 1 | DF41: 1 | DH41: 1 | DI41: 1 | DL41: 1 | DO41: 1 | DR41: 1 | DT41: 1 | DU41: 1 | DZ41: 1 | EC41: 1 | EE41: 1 | EF41: 1 | EG41: 1 | EJ41: 1 | EK41: 1 | EL41: 1 | EM41: 1 | EN41: 1 | EO41: 1 | EQ41: 1 | EU41: 1 | EW41: 1 | EX41: 1 | EY41: 1 | FA41: 1 | FB41: 1 | FC41: 1 | FE41: 1 | FG41: 1 | FI41: 1 | FJ41: 1 | FK41: 1 | FM41: 1 | FO41: 1 | FR41: 1 | FT41: 1 | FU41: 1 | FV41: 1 | FW41: 1 | FX41: 1 | FY41: 1 | GA41: 1 | GD41: 1 | GF41: 1 | GI41: 1 | GK41: 1 | GL41: 1 | GP41: 1 | GQ41: 1 | GR41: 1 | GS41: 1 | GU41: 1 | GV41: 1 | GY41: 1 | HA41: 1 | HD41: 1 | HE41: 1 | HF41: 1 | HM41: 1 | HP41: 1 | HQ41: 1 | HR41: 1 | HT41: 1 | HU41: 1 | HV41: 125
A42: 1988 | B42: 1 | D42: 1 | E42: 1 | F42: 1 | K42: 1 | M42: 1 | N42: 1 | P42: 1 | Q42: 1 | R42: 1 | S42: 1 | V42: 1 | W42: 1 | X42: 1 | AA42: 1 | AB42: 1 | AD42: 1 | AE42: 1 | AF42: 1 | AH42: 1 | AI42: 1 | AK42: 1 | AL42: 1 | AM42: 1 | AN42: 1 | AO42: 1 | AQ42: 1 | AS42: 1 | AT42: 1 | AU42: 1 | AW42: 1 | AX42: 1 | AY42: 1 | AZ42: 1 | BB42: 1 | BD42: 1 | BE42: 1 | BF42: 1 | BJ42: 1 | BL42: 1 | BN42: 1 | BQ42: 1 | BT42: 1 | BV42: 1 | BW42: 1 | BY42: 1 | BZ42: 1 | CA42: 1 | CG42: 1 | CH42: 1 | CI42: 1 | CK42: 1 | CM42: 1 | CQ42: 1 | CT42: 1 | CU42: 1 | CW42: 1 | CX42: 1 | DA42: 1 | DB42: 1 | DC42: 1 | DF42: 1 | DH42: 1 | DI42: 1 | DL42: 1 | DO42: 1 | DR42: 1 | DT42: 1 | DU42: 1 | DZ42: 1 | EC42: 1 | EE42: 1 | EF42: 1 | EG42: 1 | EJ42: 1 | EK42: 1 | EL42: 1 | EM42: 1 | EN42: 1 | EO42: 1 | EQ42: 1 | EU42: 1 | EW42: 1 | EX42: 1 | EY42: 1 | FA42: 1 | FB42: 1 | FC42: 1 | FE42: 1 | FG42: 1 | FI42: 1 | FJ42: 1 | FK42: 1 | FL42: 1 | FM42: 1 | FO42: 1 | FR42: 1 | FT42: 1 | FU42: 1 | FV42: 1 | FW42: 1 | FX42: 1 | FY42: 1 | GA42: 1 | GD42: 1 | GF42: 1 | GI42: 1 | GK42: 1 | GL42: 1 | GP42: 1 | GQ42: 1 | GR42: 1 | GS42: 1 | GU42: 1 | GV42: 1 | GY42: 1 | HA42: 1 | HD42: 1 | HE42: 1 | HF42: 1 | HM42: 1 | HP42: 1 | HQ42: 1 | HR42: 1 | HT42: 1 | HU42: 1 | HV42: 126
A43: 1989 | B43: 1 | D43: 1 | E43: 1 | F43: 1 | G43: 1 | H43: 1 | I43: 1 | K43: 1 | M43: 1 | N43: 1 | P43: 1 | Q43: 1 | R43: 1 | S43: 1 | V43: 1 | W43: 1 | X43: 1 | AA43: 1 | AB43: 1 | AC43: 1 | AD43: 1 | AE43: 1 | AF43: 1 | AH43: 1 | AI43: 1 | AK43: 1 | AL43: 1 | AM43: 1 | AN43: 1 | AO43: 1 | AQ43: 1 | AR43: 1 | AS43: 1 | AT43: 1 | AU43: 1 | AW43: 1 | AX43: 1 | AY43: 1 | AZ43: 1 | BB43: 1 | BD43: 1 | BE43: 1 | BF43: 1 | BJ43: 1 | BK43: 1 | BL43: 1 | BN43: 1 | BQ43: 1 | BT43: 1 | BV43: 1 | BW43: 1 | BX43: 1 | BY43: 1 | BZ43: 1 | CA43: 1 | CG43: 1 | CH43: 1 | CI43: 1 | CK43: 1 | CM43: 1 | CQ43: 1 | CT43: 1 | CU43: 1 | CW43: 1 | CX43: 1 | DA43: 1 | DB43: 1 | DC43: 1 | DD43: 1 | DF43: 1 | DH43: 1 | DI43: 1 | DJ43: 1 | DL43: 1 | DM43: 1 | DN43: 1 | DO43: 1 | DR43: 1 | DT43: 1 | DU43: 1 | DW43: 1 | DX43: 1 | DZ43: 1 | EC43: 1 | EE43: 1 | EF43: 1 | EG43: 1 | EJ43: 1 | EK43: 1 | EL43: 1 | EM43: 1 | EN43: 1 | EO43: 1 | EQ43: 1 | EU43: 1 | EW43: 1 | EX43: 1 | EY43: 1 | FA43: 1 | FB43: 1 | FC43: 1 | FD43: 1 | FE43: 1 | FG43: 1 | FI43: 1 | FJ43: 1 | FK43: 1 | FL43: 1 | FM43: 1 | FO43: 1 | FQ43: 1 | FR43: 1 | FT43: 1 | FU43: 1 | FV43: 1 | FW43: 1 | FX43: 1 | FY43: 1 | GA43: 1 | GD43: 1 | GF43: 1 | GI43: 1 | GK43: 1 | GL43: 1 | GN43: 1 | GP43: 1 | GQ43: 1 | GR43: 1 | GS43: 1 | GU43: 1 | GV43: 1 | GX43: 1 | GY43: 1 | HA43: 1 | HC43: 1 | HD43: 1 | HE43: 1 | HF43: 1 | HG43: 1 | HK43: 1 | HM43: 1 | HP43: 1 | HQ43: 1 | HR43: 1 | HT43: 1 | HU43: 1 | HV43: 146
A44: 1990 | B44: 1 | D44: 1 | E44: 1 | F44: 1 | G44: 1 | H44: 1 | I44: 1 | J44: 1 | K44: 1 | M44: 1 | N44: 1 | P44: 1 | Q44: 1 | R44: 1 | S44: 1 | V44: 1 | W44: 1 | X44: 1 | AA44: 1 | AB44: 1 | AC44: 1 | AD44: 1 | AE44: 1 | AF44: 1 | AH44: 1 | AI44: 1 | AK44: 1 | AL44: 1 | AM44: 1 | AN44: 1 | AO44: 1 | AP44: 1 | AQ44: 1 | AR44: 1 | AS44: 1 | AT44: 1 | AU44: 1 | AW44: 1 | AX44: 1 | AY44: 1 | AZ44: 1 | BB44: 1 | BD44: 1 | BE44: 1 | BF44: 1 | BG44: 1 | BJ44: 1 | BK44: 1 | BL44: 1 | BN44: 1 | BQ44: 1 | BT44: 1 | BU44: 1 | BV44: 1 | BW44: 1 | BX44: 1 | BY44: 1 | BZ44: 1 | CA44: 1 | CC44: 1 | CG44: 1 | CH44: 1 | CI44: 1 | CK44: 1 | CM44: 1 | CO44: 1 | CQ44: 1 | CT44: 1 | CU44: 1 | CW44: 1 | CX44: 1 | CY44: 1 | DA44: 1 | DB44: 1 | DC44: 1 | DD44: 1 | DF44: 1 | DG44: 1 | DH44: 1 | DI44: 1 | DJ44: 1 | DL44: 1 | DM44: 1 | DN44: 1 | DO44: 1 | DR44: 1 | DT44: 1 | DU44: 1 | DW44: 1 | DX44: 1 | DZ44: 1 | EC44: 1 | ED44: 1 | EE44: 1 | EF44: 1 | EG44: 1 | EJ44: 1 | EK44: 1 | EL44: 1 | EM44: 1 | EN44: 1 | EO44: 1 | EQ44: 1 | EU44: 1 | EW44: 1 | EX44: 1 | EY44: 1 | FA44: 1 | FB44: 1 | FC44: 1 | FD44: 1 | FE44: 1 | FG44: 1 | FH44: 1 | FI44: 1 | FJ44: 1 | FK44: 1 | FL44: 1 | FM44: 1 | FO44: 1 | FQ44: 1 | FR44: 1 | FT44: 1 | FU44: 1 | FV44: 1 | FW44: 1 | FX44: 1 | FY44: 1 | GA44: 1 | GC44: 1 | GD44: 1 | GF44: 1 | GI44: 1 | GJ44: 1 | GK44: 1 | GL44: 1 | GM44: 1 | GN44: 1 | GO44: 1 | GP44: 1 | GQ44: 1 | GR44: 1 | GS44: 1 | GT44: 1 | GU44: 1 | GV44: 1 | GW44: 1 | GX44: 1 | GY44: 1 | HA44: 1 | HC44: 1 | HD44: 1 | HE44: 1 | HF44: 1 | HG44: 1 | HI44: 1 | HK44: 1 | HM44: 1 | HP44: 1 | HQ44: 1 | HR44: 1 | HT44: 1 | HU44: 1 | HV44: 163
A45: 1991 | B45: 1 | C45: 1 | D45: 1 | E45: 1 | F45: 1 | G45: 1 | H45: 1 | I45: 1 | J45: 1 | K45: 1 | M45: 1 | N45: 1 | O45: 1 | P45: 1 | Q45: 1 | R45: 1 | S45: 1 | T45: 1 | U45: 1 | V45: 1 | W45: 1 | X45: 1 | Y45: 1 | AA45: 1 | AB45: 1 | AC45: 1 | AD45: 1 | AE45: 1 | AF45: 1 | AH45: 1 | AI45: 1 | AJ45: 1 | AK45: 1 | AL45: 1 | AM45: 1 | AN45: 1 | AO45: 1 | AP45: 1 | AQ45: 1 | AR45: 1 | AS45: 1 | AT45: 1 | AU45: 1 | AW45: 1 | AX45: 1 | AY45: 1 | AZ45: 1 | BA45: 1 | BB45: 1 | BC45: 1 | BD45: 1 | BE45: 1 | BF45: 1 | BG45: 1 | BJ45: 1 | BK45: 1 | BL45: 1 | BN45: 1 | BO45: 1 | BP45: 1 | BQ45: 1 | BT45: 1 | BU45: 1 | BV45: 1 | BW45: 1 | BX45: 1 | BY45: 1 | BZ45: 1 | CA45: 1 | CB45: 1 | CC45: 1 | CD45: 1 | CF45: 1 | CG45: 1 | CH45: 1 | CI45: 1 | CK45: 1 | CL45: 1 | CM45: 1 | CN45: 1 | CO45: 1 | CQ45: 1 | CR45: 1 | CS45: 1 | CT45: 1 | CU45: 1 | CV45: 1 | CW45: 1 | CX45: 1 | CY45: 1 | CZ45: 1 | DA45: 1 | DB45: 1 | DC45: 1 | DD45: 1 | DF45: 1 | DG45: 1 | DH45: 1 | DI45: 1 | DJ45: 1 | DL45: 1 | DM45: 1 | DN45: 1 | DO45: 1 | DP45: 1 | DQ45: 1 | DR45: 1 | DS45: 1 | DT45: 1 | DU45: 1 | DV45: 1 | DW45: 1 | DX45: 1 | DY45: 1 | DZ45: 1 | EC45: 1 | ED45: 1 | EE45: 1 | EF45: 1 | EG45: 1 | EJ45: 1 | EK45: 1 | EL45: 1 | EM45: 1 | EN45: 1 | EO45: 1 | EQ45: 1 | ET45: 1 | EU45: 1 | EW45: 1 | EX45: 1 | EY45: 1 | FA45: 1 | FB45: 1 | FC45: 1 | FD45: 1 | FE45: 1 | FF45: 1 | FG45: 1 | FH45: 1 | FI45: 1 | FJ45: 1 | FK45: 1 | FL45: 1 | FM45: 1 | FO45: 1 | FQ45: 1 | FR45: 1 | FT45: 1 | FU45: 1 | FV45: 1 | FW45: 1 | FX45: 1 | FY45: 1 | FZ45: 1 | GA45: 1 | GC45: 1 | GD45: 1 | GE45: 1 | GF45: 1 | GH45: 1 | GI45: 1 | GJ45: 1 | GK45: 1 | GL45: 1 | GM45: 1 | GN45: 1 | GO45: 1 | GP45: 1 | GQ45: 1 | GR45: 1 | GS45: 1 | GT45: 1 | GU45: 1 | GV45: 1 | GW45: 1 | GX45: 1 | GY45: 1 | HA45: 1 | HB45: 1 | HC45: 1 | HD45: 1 | HE45: 1 | HF45: 1 | HG45: 1 | HH45: 1 | HI45: 1 | HJ45: 1 | HK45: 1 | HM45: 1 | HP45: 1 | HQ45: 1 | HR45: 1 | HT45: 1 | HU45: 1 | HV45: 195
A46: 1992 | B46: 1 | C46: 1 | D46: 1 | E46: 1 | F46: 1 | G46: 1 | H46: 1 | I46: 1 | J46: 1 | K46: 1 | M46: 1 | N46: 1 | O46: 1 | P46: 1 | Q46: 1 | R46: 1 | S46: 1 | T46: 1 | U46: 1 | V46: 1 | W46: 1 | X46: 1 | Y46: 1 | Z46: 1 | AA46: 1 | AB46: 1 | AC46: 1 | AD46: 1 | AE46: 1 | AF46: 1 | AH46: 1 | AI46: 1 | AJ46: 1 | AK46: 1 | AL46: 1 | AM46: 1 | AN46: 1 | AO46: 1 | AP46: 1 | AQ46: 1 | AR46: 1 | AS46: 1 | AT46: 1 | AU46: 1 | AW46: 1 | AX46: 1 | AY46: 1 | AZ46: 1 | BA46: 1 | BB46: 1 | BC46: 1 | BD46: 1 | BE46: 1 | BF46: 1 | BG46: 1 | BJ46: 1 | BK46: 1 | BL46: 1 | BM46: 1 | BN46: 1 | BO46: 1 | BP46: 1 | BQ46: 1 | BT46: 1 | BU46: 1 | BV46: 1 | BW46: 1 | BX46: 1 | BY46: 1 | BZ46: 1 | CA46: 1 | CB46: 1 | CC46: 1 | CD46: 1 | CF46: 1 | CG46: 1 | CH46: 1 | CI46: 1 | CK46: 1 | CL46: 1 | CM46: 1 | CN46: 1 | CO46: 1 | CQ46: 1 | CR46: 1 | CS46: 1 | CT46: 1 | CU46: 1 | CV46: 1 | CW46: 1 | CX46: 1 | CY46: 1 | CZ46: 1 | DA46: 1 | DB46: 1 | DC46: 1 | DD46: 1 | DF46: 1 | DG46: 1 | DH46: 1 | DI46: 1 | DJ46: 1 | DL46: 1 | DM46: 1 | DN46: 1 | DO46: 1 | DP46: 1 | DQ46: 1 | DR46: 1 | DS46: 1 | DT46: 1 | DU46: 1 | DV46: 1 | DW46: 1 | DX46: 1 | DY46: 1 | DZ46: 1 | EA46: 1 | EC46: 1 | ED46: 1 | EE46: 1 | EF46: 1 | EG46: 1 | EJ46: 1 | EK46: 1 | EL46: 1 | EM46: 1 | EN46: 1 | EO46: 1 | EQ46: 1 | ES46: 1 | ET46: 1 | EU46: 1 | EV46: 1 | EW46: 1 | EX46: 1 | EY46: 1 | FA46: 1 | FB46: 1 | FC46: 1 | FD46: 1 | FE46: 1 | FF46: 1 | FG46: 1 | FH46: 1 | FI46: 1 | FJ46: 1 | FK46: 1 | FL46: 1 | FM46: 1 | FN46: 1 | FO46: 1 | FQ46: 1 | FR46: 1 | FS46: 1 | FT46: 1 | FU46: 1 | FV46: 1 | FW46: 1 | FX46: 1 | FY46: 1 | FZ46: 1 | GA46: 1 | GC46: 1 | GD46: 1 | GE46: 1 | GF46: 1 | GH46: 1 | GI46: 1 | GJ46: 1 | GK46: 1 | GL46: 1 | GM46: 1 | GN46: 1 | GO46: 1 | GP46: 1 | GQ46: 1 | GR46: 1 | GS46: 1 | GT46: 1 | GU46: 1 | GV46: 1 | GW46: 1 | GX46: 1 | GY46: 1 | GZ46: 1 | HA46: 1 | HB46: 1 | HC46: 1 | HD46: 1 | HE46: 1 | HF46: 1 | HG46: 1 | HH46: 1 | HI46: 1 | HJ46: 1 | HK46: 1 | HM46: 1 | HP46: 1 | HQ46: 1 | HR46: 1 | HT46: 1 | HU46: 1 | HV46: 203
A47: 1993 | B47: 1 | C47: 1 | D47: 1 | E47: 1 | F47: 1 | G47: 1 | H47: 1 | I47: 1 | J47: 1 | K47: 1 | M47: 1 | N47: 1 | O47: 1 | P47: 1 | Q47: 1 | R47: 1 | S47: 1 | T47: 1 | U47: 1 | V47: 1 | W47: 1 | X47: 1 | Y47: 1 | Z47: 1 | AA47: 1 | AB47: 1 | AC47: 1 | AD47: 1 | AE47: 1 | AF47: 1 | AG47: 1 | AH47: 1 | AI47: 1 | AJ47: 1 | AK47: 1 | AL47: 1 | AM47: 1 | AN47: 1 | AO47: 1 | AP47: 1 | AQ47: 1 | AR47: 1 | AS47: 1 | AT47: 1 | AU47: 1 | AW47: 1 | AX47: 1 | AY47: 1 | AZ47: 1 | BA47: 1 | BB47: 1 | BC47: 1 | BD47: 1 | BE47: 1 | BF47: 1 | BG47: 1 | BJ47: 1 | BK47: 1 | BL47: 1 | BM47: 1 | BN47: 1 | BO47: 1 | BP47: 1 | BQ47: 1 | BT47: 1 | BU47: 1 | BV47: 1 | BW47: 1 | BX47: 1 | BY47: 1 | BZ47: 1 | CA47: 1 | CB47: 1 | CC47: 1 | CD47: 1 | CF47: 1 | CG47: 1 | CH47: 1 | CI47: 1 | CK47: 1 | CL47: 1 | CM47: 1 | CN47: 1 | CO47: 1 | CQ47: 1 | CR47: 1 | CS47: 1 | CT47: 1 | CU47: 1 | CV47: 1 | CW47: 1 | CX47: 1 | CY47: 1 | CZ47: 1 | DA47: 1 | DB47: 1 | DC47: 1 | DD47: 1 | DE47: 1 | DF47: 1 | DG47: 1 | DH47: 1 | DI47: 1 | DJ47: 1 | DL47: 1 | DM47: 1 | DN47: 1 | DO47: 1 | DP47: 1 | DQ47: 1 | DR47: 1 | DS47: 1 | DT47: 1 | DU47: 1 | DV47: 1 | DW47: 1 | DX47: 1 | DY47: 1 | DZ47: 1 | EA47: 1 | EC47: 1 | ED47: 1 | EE47: 1 | EF47: 1 | EG47: 1 | EI47: 1 | EJ47: 1 | EK47: 1 | EL47: 1 | EM47: 1 | EN47: 1 | EO47: 1 | EQ47: 1 | ES47: 1 | ET47: 1 | EU47: 1 | EV47: 1 | EW47: 1 | EX47: 1 | EY47: 1 | FA47: 1 | FB47: 1 | FC47: 1 | FD47: 1 | FE47: 1 | FF47: 1 | FG47: 1 | FH47: 1 | FI47: 1 | FJ47: 1 | FK47: 1 | FL47: 1 | FM47: 1 | FN47: 1 | FO47: 1 | FQ47: 1 | FR47: 1 | FS47: 1 | FT47: 1 | FU47: 1 | FV47: 1 | FW47: 1 | FX47: 1 | FY47: 1 | FZ47: 1 | GA47: 1 | GC47: 1 | GD47: 1 | GE47: 1 | GF47: 1 | GH47: 1 | GI47: 1 | GJ47: 1 | GK47: 1 | GL47: 1 | GM47: 1 | GN47: 1 | GO47: 1 | GP47: 1 | GQ47: 1 | GR47: 1 | GS47: 1 | GT47: 1 | GU47: 1 | GV47: 1 | GW47: 1 | GX47: 1 | GY47: 1 | GZ47: 1 | HA47: 1 | HB47: 1 | HC47: 1 | HD47: 1 | HE47: 1 | HF47: 1 | HG47: 1 | HH47: 1 | HI47: 1 | HJ47: 1 | HK47: 1 | HM47: 1 | HP47: 1 | HQ47: 1 | HR47: 1 | HT47: 1 | HU47: 1 | HV47: 206
A48: 1994 | B48: 1 | C48: 1 | D48: 1 | E48: 1 | F48: 1 | G48: 1 | H48: 1 | I48: 1 | J48: 1 | K48: 1 | M48: 1 | N48: 1 | O48: 1 | P48: 1 | Q48: 1 | R48: 1 | S48: 1 | T48: 1 | U48: 1 | V48: 1 | W48: 1 | X48: 1 | Y48: 1 | Z48: 1 | AA48: 1 | AB48: 1 | AC48: 1 | AD48: 1 | AE48: 1 | AF48: 1 | AG48: 1 | AH48: 1 | AI48: 1 | AJ48: 1 | AK48: 1 | AL48: 1 | AM48: 1 | AN48: 1 | AO48: 1 | AP48: 1 | AQ48: 1 | AR48: 1 | AS48: 1 | AT48: 1 | AU48: 1 | AW48: 1 | AX48: 1 | AY48: 1 | AZ48: 1 | BA48: 1 | BB48: 1 | BC48: 1 | BD48: 1 | BE48: 1 | BF48: 1 | BG48: 1 | BJ48: 1 | BK48: 1 | BL48: 1 | BM48: 1 | BN48: 1 | BO48: 1 | BP48: 1 | BQ48: 1 | BR48: 1 | BS48: 1 | BT48: 1 | BU48: 1 | BV48: 1 | BW48: 1 | BX48: 1 | BY48: 1 | BZ48: 1 | CA48: 1 | CB48: 1 | CC48: 1 | CD48: 1 | CF48: 1 | CG48: 1 | CH48: 1 | CI48: 1 | CK48: 1 | CL48: 1 | CM48: 1 | CN48: 1 | CO48: 1 | CP48: 1 | CQ48: 1 | CR48: 1 | CS48: 1 | CT48: 1 | CU48: 1 | CV48: 1 | CW48: 1 | CX48: 1 | CY48: 1 | CZ48: 1 | DA48: 1 | DB48: 1 | DC48: 1 | DD48: 1 | DE48: 1 | DF48: 1 | DG48: 1 | DH48: 1 | DI48: 1 | DJ48: 1 | DL48: 1 | DM48: 1 | DN48: 1 | DO48: 1 | DP48: 1 | DQ48: 1 | DR48: 1 | DS48: 1 | DT48: 1 | DU48: 1 | DV48: 1 | DW48: 1 | DX48: 1 | DY48: 1 | DZ48: 1 | EA48: 1 | EB48: 1 | EC48: 1 | ED48: 1 | EE48: 1 | EF48: 1 | EG48: 1 | EI48: 1 | EJ48: 1 | EK48: 1 | EL48: 1 | EM48: 1 | EN48: 1 | EO48: 1 | EQ48: 1 | ES48: 1 | ET48: 1 | EU48: 1 | EV48: 1 | EW48: 1 | EX48: 1 | EY48: 1 | FA48: 1 | FB48: 1 | FC48: 1 | FD48: 1 | FE48: 1 | FF48: 1 | FG48: 1 | FH48: 1 | FI48: 1 | FJ48: 1 | FK48: 1 | FL48: 1 | FM48: 1 | FN48: 1 | FO48: 1 | FQ48: 1 | FR48: 1 | FS48: 1 | FT48: 1 | FU48: 1 | FV48: 1 | FW48: 1 | FX48: 1 | FY48: 1 | FZ48: 1 | GA48: 1 | GC48: 1 | GD48: 1 | GE48: 1 | GF48: 1 | GH48: 1 | GI48: 1 | GJ48: 1 | GK48: 1 | GL48: 1 | GM48: 1 | GN48: 1 | GO48: 1 | GP48: 1 | GQ48: 1 | GR48: 1 | GS48: 1 | GT48: 1 | GU48: 1 | GV48: 1 | GW48: 1 | GX48: 1 | GY48: 1 | GZ48: 1 | HA48: 1 | HB48: 1 | HC48: 1 | HD48: 1 | HE48: 1 | HF48: 1 | HG48: 1 | HH48: 1 | HI48: 1 | HJ48: 1 | HK48: 1 | HM48: 1 | HP48: 1 | HQ48: 1 | HR48: 1 | HS48: 1 | HT48: 1 | HU48: 1 | HV48: 211
A49: 1995 | B49: 1 | C49: 1 | D49: 1 | E49: 1 | F49: 1 | G49: 1 | H49: 1 | I49: 1 | J49: 1 | K49: 1 | M49: 1 | N49: 1 | O49: 1 | P49: 1 | Q49: 1 | R49: 1 | S49: 1 | T49: 1 | U49: 1 | V49: 1 | W49: 1 | X49: 1 | Y49: 1 | Z49: 1 | AA49: 1 | AB49: 1 | AC49: 1 | AD49: 1 | AE49: 1 | AF49: 1 | AG49: 1 | AH49: 1 | AI49: 1 | AJ49: 1 | AK49: 1 | AL49: 1 | AM49: 1 | AN49: 1 | AO49: 1 | AP49: 1 | AQ49: 1 | AR49: 1 | AS49: 1 | AT49: 1 | AU49: 1 | AW49: 1 | AX49: 1 | AY49: 1 | AZ49: 1 | BA49: 1 | BB49: 1 | BC49: 1 | BD49: 1 | BE49: 1 | BF49: 1 | BG49: 1 | BJ49: 1 | BK49: 1 | BL49: 1 | BM49: 1 | BN49: 1 | BO49: 1 | BP49: 1 | BQ49: 1 | BR49: 1 | BS49: 1 | BT49: 1 | BU49: 1 | BV49: 1 | BW49: 1 | BX49: 1 | BY49: 1 | BZ49: 1 | CA49: 1 | CB49: 1 | CC49: 1 | CD49: 1 | CF49: 1 | CG49: 1 | CH49: 1 | CI49: 1 | CK49: 1 | CL49: 1 | CM49: 1 | CN49: 1 | CO49: 1 | CP49: 1 | CQ49: 1 | CR49: 1 | CS49: 1 | CT49: 1 | CU49: 1 | CV49: 1 | CW49: 1 | CX49: 1 | CY49: 1 | CZ49: 1 | DA49: 1 | DB49: 1 | DC49: 1 | DD49: 1 | DE49: 1 | DF49: 1 | DG49: 1 | DH49: 1 | DI49: 1 | DJ49: 1 | DK49: 1 | DL49: 1 | DM49: 1 | DN49: 1 | DO49: 1 | DP49: 1 | DQ49: 1 | DR49: 1 | DS49: 1 | DT49: 1 | DU49: 1 | DV49: 1 | DW49: 1 | DX49: 1 | DY49: 1 | DZ49: 1 | EA49: 1 | EB49: 1 | EC49: 1 | ED49: 1 | EE49: 1 | EF49: 1 | EG49: 1 | EI49: 1 | EJ49: 1 | EK49: 1 | EL49: 1 | EM49: 1 | EN49: 1 | EO49: 1 | EQ49: 1 | ER49: 1 | ES49: 1 | ET49: 1 | EU49: 1 | EV49: 1 | EW49: 1 | EX49: 1 | EY49: 1 | FA49: 1 | FB49: 1 | FC49: 1 | FD49: 1 | FE49: 1 | FF49: 1 | FG49: 1 | FH49: 1 | FI49: 1 | FJ49: 1 | FK49: 1 | FL49: 1 | FM49: 1 | FN49: 1 | FO49: 1 | FQ49: 1 | FR49: 1 | FS49: 1 | FT49: 1 | FU49: 1 | FV49: 1 | FW49: 1 | FX49: 1 | FY49: 1 | FZ49: 1 | GA49: 1 | GB49: 1 | GC49: 1 | GD49: 1 | GE49: 1 | GF49: 1 | GH49: 1 | GI49: 1 | GJ49: 1 | GK49: 1 | GL49: 1 | GM49: 1 | GN49: 1 | GO49: 1 | GP49: 1 | GQ49: 1 | GR49: 1 | GS49: 1 | GT49: 1 | GU49: 1 | GV49: 1 | GW49: 1 | GX49: 1 | GY49: 1 | GZ49: 1 | HA49: 1 | HB49: 1 | HC49: 1 | HD49: 1 | HE49: 1 | HF49: 1 | HG49: 1 | HH49: 1 | HI49: 1 | HJ49: 1 | HK49: 1 | HM49: 1 | HP49: 1 | HQ49: 1 | HR49: 1 | HS49: 1 | HT49: 1 | HU49: 1 | HV49: 214
A50: 1996 | B50: 1 | C50: 1 | D50: 1 | E50: 1 | F50: 1 | G50: 1 | H50: 1 | I50: 1 | J50: 1 | K50: 1 | M50: 1 | N50: 1 | O50: 1 | P50: 1 | Q50: 1 | R50: 1 | S50: 1 | T50: 1 | U50: 1 | V50: 1 | W50: 1 | X50: 1 | Y50: 1 | Z50: 1 | AA50: 1 | AB50: 1 | AC50: 1 | AD50: 1 | AE50: 1 | AF50: 1 | AG50: 1 | AH50: 1 | AI50: 1 | AJ50: 1 | AK50: 1 | AL50: 1 | AM50: 1 | AN50: 1 | AO50: 1 | AP50: 1 | AQ50: 1 | AR50: 1 | AS50: 1 | AT50: 1 | AU50: 1 | AW50: 1 | AX50: 1 | AY50: 1 | AZ50: 1 | BA50: 1 | BB50: 1 | BC50: 1 | BD50: 1 | BE50: 1 | BF50: 1 | BG50: 1 | BH50: 1 | BI50: 1 | BJ50: 1 | BK50: 1 | BL50: 1 | BM50: 1 | BN50: 1 | BO50: 1 | BP50: 1 | BQ50: 1 | BR50: 1 | BS50: 1 | BT50: 1 | BU50: 1 | BV50: 1 | BW50: 1 | BX50: 1 | BY50: 1 | BZ50: 1 | CA50: 1 | CB50: 1 | CC50: 1 | CD50: 1 | CF50: 1 | CG50: 1 | CH50: 1 | CI50: 1 | CK50: 1 | CL50: 1 | CM50: 1 | CN50: 1 | CO50: 1 | CP50: 1 | CQ50: 1 | CR50: 1 | CS50: 1 | CT50: 1 | CU50: 1 | CV50: 1 | CW50: 1 | CX50: 1 | CY50: 1 | CZ50: 1 | DA50: 1 | DB50: 1 | DC50: 1 | DD50: 1 | DE50: 1 | DF50: 1 | DG50: 1 | DH50: 1 | DI50: 1 | DJ50: 1 | DK50: 1 | DL50: 1 | DM50: 1 | DN50: 1 | DO50: 1 | DP50: 1 | DQ50: 1 | DR50: 1 | DS50: 1 | DT50: 1 | DU50: 1 | DV50: 1 | DW50: 1 | DX50: 1 | DY50: 1 | DZ50: 1 | EA50: 1 | EB50: 1 | EC50: 1 | ED50: 1 | EE50: 1 | EF50: 1 | EG50: 1 | EH50: 1 | EI50: 1 | EJ50: 1 | EK50: 1 | EL50: 1 | EM50: 1 | EN50: 1 | EO50: 1 | EQ50: 1 | ER50: 1 | ES50: 1 | ET50: 1 | EU50: 1 | EV50: 1 | EW50: 1 | EX50: 1 | EY50: 1 | FA50: 1 | FB50: 1 | FC50: 1 | FD50: 1 | FE50: 1 | FF50: 1 | FG50: 1 | FH50: 1 | FI50: 1 | FJ50: 1 | FK50: 1 | FL50: 1 | FM50: 1 | FN50: 1 | FO50: 1 | FQ50: 1 | FR50: 1 | FS50: 1 | FT50: 1 | FU50: 1 | FV50: 1 | FW50: 1 | FX50: 1 | FY50: 1 | FZ50: 1 | GA50: 1 | GB50: 1 | GC50: 1 | GD50: 1 | GE50: 1 | GF50: 1 | GH50: 1 | GI50: 1 | GJ50: 1 | GK50: 1 | GL50: 1 | GM50: 1 | GN50: 1 | GO50: 1 | GP50: 1 | GQ50: 1 | GR50: 1 | GS50: 1 | GT50: 1 | GU50: 1 | GV50: 1 | GW50: 1 | GX50: 1 | GY50: 1 | GZ50: 1 | HA50: 1 | HB50: 1 | HC50: 1 | HD50: 1 | HE50: 1 | HF50: 1 | HG50: 1 | HH50: 1 | HI50: 1 | HJ50: 1 | HK50: 1 | HM50: 1 | HO50: 1 | HP50: 1 | HQ50: 1 | HR50: 1 | HS50: 1 | HT50: 1 | HU50: 1 | HV50: 218
A51: 1997 | B51: 1 | C51: 1 | D51: 1 | E51: 1 | F51: 1 | G51: 1 | H51: 1 | I51: 1 | J51: 1 | K51: 1 | M51: 1 | N51: 1 | O51: 1 | P51: 1 | Q51: 1 | R51: 1 | S51: 1 | T51: 1 | U51: 1 | V51: 1 | W51: 1 | X51: 1 | Y51: 1 | Z51: 1 | AA51: 1 | AB51: 1 | AC51: 1 | AD51: 1 | AE51: 1 | AF51: 1 | AG51: 1 | AH51: 1 | AI51: 1 | AJ51: 1 | AK51: 1 | AL51: 1 | AM51: 1 | AN51: 1 | AO51: 1 | AP51: 1 | AQ51: 1 | AR51: 1 | AS51: 1 | AT51: 1 | AU51: 1 | AW51: 1 | AX51: 1 | AY51: 1 | AZ51: 1 | BA51: 1 | BB51: 1 | BC51: 1 | BD51: 1 | BE51: 1 | BF51: 1 | BG51: 1 | BH51: 1 | BI51: 1 | BJ51: 1 | BK51: 1 | BL51: 1 | BM51: 1 | BN51: 1 | BO51: 1 | BP51: 1 | BQ51: 1 | BR51: 1 | BS51: 1 | BT51: 1 | BU51: 1 | BV51: 1 | BW51: 1 | BX51: 1 | BY51: 1 | BZ51: 1 | CA51: 1 | CB51: 1 | CC51: 1 | CD51: 1 | CF51: 1 | CG51: 1 | CH51: 1 | CI51: 1 | CJ51: 1 | CK51: 1 | CL51: 1 | CM51: 1 | CN51: 1 | CO51: 1 | CP51: 1 | CQ51: 1 | CR51: 1 | CS51: 1 | CT51: 1 | CU51: 1 | CV51: 1 | CW51: 1 | CX51: 1 | CY51: 1 | CZ51: 1 | DA51: 1 | DB51: 1 | DC51: 1 | DD51: 1 | DE51: 1 | DF51: 1 | DG51: 1 | DH51: 1 | DI51: 1 | DJ51: 1 | DK51: 1 | DL51: 1 | DM51: 1 | DN51: 1 | DO51: 1 | DP51: 1 | DQ51: 1 | DR51: 1 | DS51: 1 | DT51: 1 | DU51: 1 | DV51: 1 | DW51: 1 | DX51: 1 | DY51: 1 | DZ51: 1 | EA51: 1 | EB51: 1 | EC51: 1 | ED51: 1 | EE51: 1 | EF51: 1 | EG51: 1 | EH51: 1 | EI51: 1 | EJ51: 1 | EK51: 1 | EL51: 1 | EM51: 1 | EN51: 1 | EO51: 1 | EQ51: 1 | ER51: 1 | ES51: 1 | ET51: 1 | EU51: 1 | EV51: 1 | EW51: 1 | EX51: 1 | EY51: 1 | FA51: 1 | FB51: 1 | FC51: 1 | FD51: 1 | FE51: 1 | FF51: 1 | FG51: 1 | FH51: 1 | FI51: 1 | FJ51: 1 | FK51: 1 | FL51: 1 | FM51: 1 | FN51: 1 | FO51: 1 | FQ51: 1 | FR51: 1 | FS51: 1 | FT51: 1 | FU51: 1 | FV51: 1 | FW51: 1 | FX51: 1 | FY51: 1 | FZ51: 1 | GA51: 1 | GB51: 1 | GC51: 1 | GD51: 1 | GE51: 1 | GF51: 1 | GH51: 1 | GI51: 1 | GJ51: 1 | GK51: 1 | GL51: 1 | GM51: 1 | GN51: 1 | GO51: 1 | GP51: 1 | GQ51: 1 | GR51: 1 | GS51: 1 | GT51: 1 | GU51: 1 | GV51: 1 | GW51: 1 | GX51: 1 | GY51: 1 | GZ51: 1 | HA51: 1 | HB51: 1 | HC51: 1 | HD51: 1 | HE51: 1 | HF51: 1 | HG51: 1 | HH51: 1 | HI51: 1 | HJ51: 1 | HK51: 1 | HM51: 1 | HN51: 1 | HO51: 1 | HP51: 1 | HQ51: 1 | HR51: 1 | HS51: 1 | HT51: 1 | HU51: 1 | HV51: 220
A52: 1998 | B52: 1 | C52: 1 | D52: 1 | E52: 1 | F52: 1 | G52: 1 | H52: 1 | I52: 1 | J52: 1 | K52: 1 | M52: 1 | N52: 1 | O52: 1 | P52: 1 | Q52: 1 | R52: 1 | S52: 1 | T52: 1 | U52: 1 | V52: 1 | W52: 1 | X52: 1 | Y52: 1 | Z52: 1 | AA52: 1 | AB52: 1 | AC52: 1 | AD52: 1 | AE52: 1 | AF52: 1 | AG52: 1 | AH52: 1 | AI52: 1 | AJ52: 1 | AK52: 1 | AL52: 1 | AM52: 1 | AN52: 1 | AO52: 1 | AP52: 1 | AQ52: 1 | AR52: 1 | AS52: 1 | AT52: 1 | AU52: 1 | AW52: 1 | AX52: 1 | AY52: 1 | AZ52: 1 | BA52: 1 | BB52: 1 | BC52: 1 | BD52: 1 | BE52: 1 | BF52: 1 | BG52: 1 | BH52: 1 | BI52: 1 | BJ52: 1 | BK52: 1 | BL52: 1 | BM52: 1 | BN52: 1 | BO52: 1 | BP52: 1 | BQ52: 1 | BR52: 1 | BS52: 1 | BT52: 1 | BU52: 1 | BV52: 1 | BW52: 1 | BX52: 1 | BY52: 1 | BZ52: 1 | CA52: 1 | CB52: 1 | CC52: 1 | CD52: 1 | CF52: 1 | CG52: 1 | CH52: 1 | CI52: 1 | CJ52: 1 | CK52: 1 | CL52: 1 | CM52: 1 | CN52: 1 | CO52: 1 | CP52: 1 | CQ52: 1 | CR52: 1 | CS52: 1 | CT52: 1 | CU52: 1 | CV52: 1 | CW52: 1 | CX52: 1 | CY52: 1 | CZ52: 1 | DA52: 1 | DB52: 1 | DC52: 1 | DD52: 1 | DE52: 1 | DF52: 1 | DG52: 1 | DH52: 1 | DI52: 1 | DJ52: 1 | DK52: 1 | DL52: 1 | DM52: 1 | DN52: 1 | DO52: 1 | DP52: 1 | DQ52: 1 | DR52: 1 | DS52: 1 | DT52: 1 | DU52: 1 | DV52: 1 | DW52: 1 | DX52: 1 | DY52: 1 | DZ52: 1 | EA52: 1 | EB52: 1 | EC52: 1 | ED52: 1 | EE52: 1 | EF52: 1 | EG52: 1 | EH52: 1 | EI52: 1 | EJ52: 1 | EK52: 1 | EL52: 1 | EM52: 1 | EN52: 1 | EO52: 1 | EQ52: 1 | ER52: 1 | ES52: 1 | ET52: 1 | EU52: 1 | EV52: 1 | EW52: 1 | EX52: 1 | EY52: 1 | FA52: 1 | FB52: 1 | FC52: 1 | FD52: 1 | FE52: 1 | FF52: 1 | FG52: 1 | FH52: 1 | FI52: 1 | FJ52: 1 | FK52: 1 | FL52: 1 | FM52: 1 | FN52: 1 | FO52: 1 | FQ52: 1 | FR52: 1 | FS52: 1 | FT52: 1 | FU52: 1 | FV52: 1 | FW52: 1 | FX52: 1 | FY52: 1 | FZ52: 1 | GA52: 1 | GB52: 1 | GC52: 1 | GD52: 1 | GE52: 1 | GF52: 1 | GH52: 1 | GI52: 1 | GJ52: 1 | GK52: 1 | GL52: 1 | GM52: 1 | GN52: 1 | GO52: 1 | GP52: 1 | GQ52: 1 | GR52: 1 | GS52: 1 | GT52: 1 | GU52: 1 | GV52: 1 | GW52: 1 | GX52: 1 | GY52: 1 | GZ52: 1 | HA52: 1 | HB52: 1 | HC52: 1 | HD52: 1 | HE52: 1 | HF52: 1 | HG52: 1 | HH52: 1 | HI52: 1 | HJ52: 1 | HK52: 1 | HM52: 1 | HN52: 1 | HO52: 1 | HP52: 1 | HQ52: 1 | HR52: 1 | HS52: 1 | HT52: 1 | HU52: 1 | HV52: 220
A53: 1999 | B53: 1 | C53: 1 | D53: 1 | E53: 1 | F53: 1 | G53: 1 | H53: 1 | I53: 1 | J53: 1 | K53: 1 | M53: 1 | N53: 1 | O53: 1 | P53: 1 | Q53: 1 | R53: 1 | S53: 1 | T53: 1 | U53: 1 | V53: 1 | W53: 1 | X53: 1 | Y53: 1 | Z53: 1 | AA53: 1 | AB53: 1 | AC53: 1 | AD53: 1 | AE53: 1 | AF53: 1 | AG53: 1 | AH53: 1 | AI53: 1 | AJ53: 1 | AK53: 1 | AL53: 1 | AM53: 1 | AN53: 1 | AO53: 1 | AP53: 1 | AQ53: 1 | AR53: 1 | AS53: 1 | AT53: 1 | AU53: 1 | AW53: 1 | AX53: 1 | AY53: 1 | AZ53: 1 | BA53: 1 | BB53: 1 | BC53: 1 | BD53: 1 | BE53: 1 | BF53: 1 | BG53: 1 | BH53: 1 | BI53: 1 | BJ53: 1 | BK53: 1 | BL53: 1 | BM53: 1 | BN53: 1 | BO53: 1 | BP53: 1 | BQ53: 1 | BR53: 1 | BS53: 1 | BT53: 1 | BU53: 1 | BV53: 1 | BW53: 1 | BX53: 1 | BY53: 1 | BZ53: 1 | CA53: 1 | CB53: 1 | CC53: 1 | CD53: 1 | CF53: 1 | CG53: 1 | CH53: 1 | CI53: 1 | CJ53: 1 | CK53: 1 | CL53: 1 | CM53: 1 | CN53: 1 | CO53: 1 | CP53: 1 | CQ53: 1 | CR53: 1 | CS53: 1 | CT53: 1 | CU53: 1 | CV53: 1 | CW53: 1 | CX53: 1 | CY53: 1 | CZ53: 1 | DA53: 1 | DB53: 1 | DC53: 1 | DD53: 1 | DE53: 1 | DF53: 1 | DG53: 1 | DH53: 1 | DI53: 1 | DJ53: 1 | DK53: 1 | DL53: 1 | DM53: 1 | DN53: 1 | DO53: 1 | DP53: 1 | DQ53: 1 | DR53: 1 | DS53: 1 | DT53: 1 | DU53: 1 | DV53: 1 | DW53: 1 | DX53: 1 | DY53: 1 | DZ53: 1 | EA53: 1 | EB53: 1 | EC53: 1 | ED53: 1 | EE53: 1 | EF53: 1 | EG53: 1 | EH53: 1 | EI53: 1 | EJ53: 1 | EK53: 1 | EL53: 1 | EM53: 1 | EN53: 1 | EO53: 1 | EP53: 1 | EQ53: 1 | ER53: 1 | ES53: 1 | ET53: 1 | EU53: 1 | EV53: 1 | EW53: 1 | EX53: 1 | EY53: 1 | FA53: 1 | FB53: 1 | FC53: 1 | FD53: 1 | FE53: 1 | FF53: 1 | FG53: 1 | FH53: 1 | FI53: 1 | FJ53: 1 | FK53: 1 | FL53: 1 | FM53: 1 | FN53: 1 | FO53: 1 | FQ53: 1 | FR53: 1 | FS53: 1 | FT53: 1 | FU53: 1 | FV53: 1 | FW53: 1 | FX53: 1 | FY53: 1 | FZ53: 1 | GA53: 1 | GB53: 1 | GC53: 1 | GD53: 1 | GE53: 1 | GF53: 1 | GH53: 1 | GI53: 1 | GJ53: 1 | GK53: 1 | GL53: 1 | GM53: 1 | GN53: 1 | GO53: 1 | GP53: 1 | GQ53: 1 | GR53: 1 | GS53: 1 | GT53: 1 | GU53: 1 | GV53: 1 | GW53: 1 | GX53: 1 | GY53: 1 | GZ53: 1 | HA53: 1 | HB53: 1 | HC53: 1 | HD53: 1 | HE53: 1 | HF53: 1 | HG53: 1 | HH53: 1 | HI53: 1 | HJ53: 1 | HK53: 1 | HM53: 1 | HN53: 1 | HO53: 1 | HP53: 1 | HQ53: 1 | HR53: 1 | HS53: 1 | HT53: 1 | HU53: 1 | HV53: 221
A54: 2000 | B54: 1 | C54: 1 | D54: 1 | E54: 1 | F54: 1 | G54: 1 | H54: 1 | I54: 1 | J54: 1 | K54: 1 | L54: 1 | M54: 1 | N54: 1 | O54: 1 | P54: 1 | Q54: 1 | R54: 1 | S54: 1 | T54: 1 | U54: 1 | V54: 1 | W54: 1 | X54: 1 | Y54: 1 | Z54: 1 | AA54: 1 | AB54: 1 | AC54: 1 | AD54: 1 | AE54: 1 | AF54: 1 | AG54: 1 | AH54: 1 | AI54: 1 | AJ54: 1 | AK54: 1 | AL54: 1 | AM54: 1 | AN54: 1 | AO54: 1 | AP54: 1 | AQ54: 1 | AR54: 1 | AS54: 1 | AT54: 1 | AU54: 1 | AV54: 1 | AW54: 1 | AX54: 1 | AY54: 1 | AZ54: 1 | BA54: 1 | BB54: 1 | BC54: 1 | BD54: 1 | BE54: 1 | BF54: 1 | BG54: 1 | BH54: 1 | BI54: 1 | BJ54: 1 | BK54: 1 | BL54: 1 | BM54: 1 | BN54: 1 | BO54: 1 | BP54: 1 | BQ54: 1 | BR54: 1 | BS54: 1 | BT54: 1 | BU54: 1 | BV54: 1 | BW54: 1 | BX54: 1 | BY54: 1 | BZ54: 1 | CA54: 1 | CB54: 1 | CC54: 1 | CD54: 1 | CE54: 1 | CF54: 1 | CG54: 1 | CH54: 1 | CI54: 1 | CJ54: 1 | CK54: 1 | CL54: 1 | CM54: 1 | CN54: 1 | CO54: 1 | CP54: 1 | CQ54: 1 | CR54: 1 | CS54: 1 | CT54: 1 | CU54: 1 | CV54: 1 | CW54: 1 | CX54: 1 | CY54: 1 | CZ54: 1 | DA54: 1 | DB54: 1 | DC54: 1 | DD54: 1 | DE54: 1 | DF54: 1 | DG54: 1 | DH54: 1 | DI54: 1 | DJ54: 1 | DK54: 1 | DL54: 1 | DM54: 1 | DN54: 1 | DO54: 1 | DP54: 1 | DQ54: 1 | DR54: 1 | DS54: 1 | DT54: 1 | DU54: 1 | DV54: 1 | DW54: 1 | DX54: 1 | DY54: 1 | DZ54: 1 | EA54: 1 | EB54: 1 | EC54: 1 | ED54: 1 | EE54: 1 | EF54: 1 | EG54: 1 | EH54: 1 | EI54: 1 | EJ54: 1 | EK54: 1 | EL54: 1 | EM54: 1 | EN54: 1 | EO54: 1 | EP54: 1 | EQ54: 1 | ER54: 1 | ES54: 1 | ET54: 1 | EU54: 1 | EV54: 1 | EW54: 1 | EX54: 1 | EY54: 1 | FA54: 1 | FB54: 1 | FC54: 1 | FD54: 1 | FE54: 1 | FF54: 1 | FG54: 1 | FH54: 1 | FI54: 1 | FJ54: 1 | FK54: 1 | FL54: 1 | FM54: 1 | FN54: 1 | FO54: 1 | FQ54: 1 | FR54: 1 | FS54: 1 | FT54: 1 | FU54: 1 | FV54: 1 | FW54: 1 | FX54: 1 | FY54: 1 | FZ54: 1 | GA54: 1 | GB54: 1 | GC54: 1 | GD54: 1 | GE54: 1 | GF54: 1 | GH54: 1 | GI54: 1 | GJ54: 1 | GK54: 1 | GL54: 1 | GM54: 1 | GN54: 1 | GO54: 1 | GP54: 1 | GQ54: 1 | GR54: 1 | GS54: 1 | GT54: 1 | GU54: 1 | GV54: 1 | GW54: 1 | GX54: 1 | GY54: 1 | GZ54: 1 | HA54: 1 | HB54: 1 | HC54: 1 | HD54: 1 | HE54: 1 | HF54: 1 | HG54: 1 | HH54: 1 | HI54: 1 | HJ54: 1 | HK54: 1 | HL54: 1 | HM54: 1 | HN54: 1 | HO54: 1 | HP54: 1 | HQ54: 1 | HR54: 1 | HS54: 1 | HT54: 1 | HU54: 1 | HV54: 225
A55: 2001 | B55: 1 | C55: 1 | D55: 1 | E55: 1 | F55: 1 | G55: 1 | H55: 1 | I55: 1 | J55: 1 | K55: 1 | L55: 1 | M55: 1 | N55: 1 | O55: 1 | P55: 1 | Q55: 1 | R55: 1 | S55: 1 | T55: 1 | U55: 1 | V55: 1 | W55: 1 | X55: 1 | Y55: 1 | Z55: 1 | AA55: 1 | AB55: 1 | AC55: 1 | AD55: 1 | AE55: 1 | AF55: 1 | AG55: 1 | AH55: 1 | AI55: 1 | AJ55: 1 | AK55: 1 | AL55: 1 | AM55: 1 | AN55: 1 | AO55: 1 | AP55: 1 | AQ55: 1 | AR55: 1 | AS55: 1 | AT55: 1 | AU55: 1 | AV55: 1 | AW55: 1 | AX55: 1 | AY55: 1 | AZ55: 1 | BA55: 1 | BB55: 1 | BC55: 1 | BD55: 1 | BE55: 1 | BF55: 1 | BG55: 1 | BH55: 1 | BI55: 1 | BJ55: 1 | BK55: 1 | BL55: 1 | BM55: 1 | BN55: 1 | BO55: 1 | BP55: 1 | BQ55: 1 | BR55: 1 | BS55: 1 | BT55: 1 | BU55: 1 | BV55: 1 | BW55: 1 | BX55: 1 | BY55: 1 | BZ55: 1 | CA55: 1 | CB55: 1 | CC55: 1 | CD55: 1 | CE55: 1 | CF55: 1 | CG55: 1 | CH55: 1 | CI55: 1 | CJ55: 1 | CK55: 1 | CL55: 1 | CM55: 1 | CN55: 1 | CO55: 1 | CP55: 1 | CQ55: 1 | CR55: 1 | CS55: 1 | CT55: 1 | CU55: 1 | CV55: 1 | CW55: 1 | CX55: 1 | CY55: 1 | CZ55: 1 | DA55: 1 | DB55: 1 | DC55: 1 | DD55: 1 | DE55: 1 | DF55: 1 | DG55: 1 | DH55: 1 | DI55: 1 | DJ55: 1 | DK55: 1 | DL55: 1 | DM55: 1 | DN55: 1 | DO55: 1 | DP55: 1 | DQ55: 1 | DR55: 1 | DS55: 1 | DT55: 1 | DU55: 1 | DV55: 1 | DW55: 1 | DX55: 1 | DY55: 1 | DZ55: 1 | EA55: 1 | EB55: 1 | EC55: 1 | ED55: 1 | EE55: 1 | EF55: 1 | EG55: 1 | EH55: 1 | EI55: 1 | EJ55: 1 | EK55: 1 | EL55: 1 | EM55: 1 | EN55: 1 | EO55: 1 | EP55: 1 | EQ55: 1 | ER55: 1 | ES55: 1 | ET55: 1 | EU55: 1 | EV55: 1 | EW55: 1 | EX55: 1 | EY55: 1 | FA55: 1 | FB55: 1 | FC55: 1 | FD55: 1 | FE55: 1 | FF55: 1 | FG55: 1 | FH55: 1 | FI55: 1 | FJ55: 1 | FK55: 1 | FL55: 1 | FM55: 1 | FN55: 1 | FO55: 1 | FQ55: 1 | FR55: 1 | FS55: 1 | FT55: 1 | FU55: 1 | FV55: 1 | FW55: 1 | FX55: 1 | FY55: 1 | FZ55: 1 | GA55: 1 | GB55: 1 | GC55: 1 | GD55: 1 | GE55: 1 | GF55: 1 | GH55: 1 | GI55: 1 | GJ55: 1 | GK55: 1 | GL55: 1 | GM55: 1 | GN55: 1 | GO55: 1 | GP55: 1 | GQ55: 1 | GR55: 1 | GS55: 1 | GT55: 1 | GU55: 1 | GV55: 1 | GW55: 1 | GX55: 1 | GY55: 1 | GZ55: 1 | HA55: 1 | HB55: 1 | HC55: 1 | HD55: 1 | HE55: 1 | HF55: 1 | HG55: 1 | HH55: 1 | HI55: 1 | HJ55: 1 | HK55: 1 | HL55: 1 | HM55: 1 | HN55: 1 | HO55: 1 | HP55: 1 | HQ55: 1 | HR55: 1 | HS55: 1 | HT55: 1 | HU55: 1 | HV55: 225
A56: 2002 | B56: 1 | C56: 1 | D56: 1 | E56: 1 | F56: 1 | G56: 1 | H56: 1 | I56: 1 | J56: 1 | K56: 1 | L56: 1 | M56: 1 | N56: 1 | O56: 1 | P56: 1 | Q56: 1 | R56: 1 | S56: 1 | T56: 1 | U56: 1 | V56: 1 | W56: 1 | X56: 1 | Y56: 1 | Z56: 1 | AA56: 1 | AB56: 1 | AC56: 1 | AD56: 1 | AE56: 1 | AF56: 1 | AG56: 1 | AH56: 1 | AI56: 1 | AJ56: 1 | AK56: 1 | AL56: 1 | AM56: 1 | AN56: 1 | AO56: 1 | AP56: 1 | AQ56: 1 | AR56: 1 | AS56: 1 | AT56: 1 | AU56: 1 | AV56: 1 | AW56: 1 | AX56: 1 | AY56: 1 | AZ56: 1 | BA56: 1 | BB56: 1 | BC56: 1 | BD56: 1 | BE56: 1 | BF56: 1 | BG56: 1 | BH56: 1 | BI56: 1 | BJ56: 1 | BK56: 1 | BL56: 1 | BM56: 1 | BN56: 1 | BO56: 1 | BP56: 1 | BQ56: 1 | BR56: 1 | BS56: 1 | BT56: 1 | BU56: 1 | BV56: 1 | BW56: 1 | BX56: 1 | BY56: 1 | BZ56: 1 | CA56: 1 | CB56: 1 | CC56: 1 | CD56: 1 | CE56: 1 | CF56: 1 | CG56: 1 | CH56: 1 | CI56: 1 | CJ56: 1 | CK56: 1 | CL56: 1 | CM56: 1 | CN56: 1 | CO56: 1 | CP56: 1 | CQ56: 1 | CR56: 1 | CS56: 1 | CT56: 1 | CU56: 1 | CV56: 1 | CW56: 1 | CX56: 1 | CY56: 1 | CZ56: 1 | DA56: 1 | DB56: 1 | DC56: 1 | DD56: 1 | DE56: 1 | DF56: 1 | DG56: 1 | DH56: 1 | DI56: 1 | DJ56: 1 | DK56: 1 | DL56: 1 | DM56: 1 | DN56: 1 | DO56: 1 | DP56: 1 | DQ56: 1 | DR56: 1 | DS56: 1 | DT56: 1 | DU56: 1 | DV56: 1 | DW56: 1 | DX56: 1 | DY56: 1 | DZ56: 1 | EA56: 1 | EB56: 1 | EC56: 1 | ED56: 1 | EE56: 1 | EF56: 1 | EG56: 1 | EH56: 1 | EI56: 1 | EJ56: 1 | EK56: 1 | EL56: 1 | EM56: 1 | EN56: 1 | EO56: 1 | EP56: 1 | EQ56: 1 | ER56: 1 | ES56: 1 | ET56: 1 | EU56: 1 | EV56: 1 | EW56: 1 | EX56: 1 | EY56: 1 | FA56: 1 | FB56: 1 | FC56: 1 | FD56: 1 | FE56: 1 | FF56: 1 | FG56: 1 | FH56: 1 | FI56: 1 | FJ56: 1 | FK56: 1 | FL56: 1 | FM56: 1 | FN56: 1 | FO56: 1 | FQ56: 1 | FR56: 1 | FS56: 1 | FT56: 1 | FU56: 1 | FV56: 1 | FW56: 1 | FX56: 1 | FY56: 1 | FZ56: 1 | GA56: 1 | GB56: 1 | GC56: 1 | GD56: 1 | GE56: 1 | GF56: 1 | GH56: 1 | GI56: 1 | GJ56: 1 | GK56: 1 | GL56: 1 | GM56: 1 | GN56: 1 | GO56: 1 | GP56: 1 | GQ56: 1 | GR56: 1 | GS56: 1 | GT56: 1 | GU56: 1 | GV56: 1 | GW56: 1 | GX56: 1 | GY56: 1 | GZ56: 1 | HA56: 1 | HB56: 1 | HC56: 1 | HD56: 1 | HE56: 1 | HF56: 1 | HG56: 1 | HH56: 1 | HI56: 1 | HJ56: 1 | HK56: 1 | HL56: 1 | HM56: 1 | HN56: 1 | HO56: 1 | HP56: 1 | HQ56: 1 | HR56: 1 | HS56: 1 | HT56: 1 | HU56: 1 | HV56: 225
A57: 2003 | B57: 1 | C57: 1 | D57: 1 | E57: 1 | F57: 1 | G57: 1 | H57: 1 | I57: 1 | J57: 1 | K57: 1 | L57: 1 | M57: 1 | N57: 1 | O57: 1 | P57: 1 | Q57: 1 | R57: 1 | S57: 1 | T57: 1 | U57: 1 | V57: 1 | W57: 1 | X57: 1 | Y57: 1 | Z57: 1 | AA57: 1 | AB57: 1 | AC57: 1 | AD57: 1 | AE57: 1 | AF57: 1 | AG57: 1 | AH57: 1 | AI57: 1 | AJ57: 1 | AK57: 1 | AL57: 1 | AM57: 1 | AN57: 1 | AO57: 1 | AP57: 1 | AQ57: 1 | AR57: 1 | AS57: 1 | AT57: 1 | AU57: 1 | AV57: 1 | AW57: 1 | AX57: 1 | AY57: 1 | AZ57: 1 | BA57: 1 | BB57: 1 | BC57: 1 | BD57: 1 | BE57: 1 | BF57: 1 | BG57: 1 | BH57: 1 | BI57: 1 | BJ57: 1 | BK57: 1 | BL57: 1 | BM57: 1 | BN57: 1 | BO57: 1 | BP57: 1 | BQ57: 1 | BR57: 1 | BS57: 1 | BT57: 1 | BU57: 1 | BV57: 1 | BW57: 1 | BX57: 1 | BY57: 1 | BZ57: 1 | CA57: 1 | CB57: 1 | CC57: 1 | CD57: 1 | CE57: 1 | CF57: 1 | CG57: 1 | CH57: 1 | CI57: 1 | CJ57: 1 | CK57: 1 | CL57: 1 | CM57: 1 | CN57: 1 | CO57: 1 | CP57: 1 | CQ57: 1 | CR57: 1 | CS57: 1 | CT57: 1 | CU57: 1 | CV57: 1 | CW57: 1 | CX57: 1 | CY57: 1 | CZ57: 1 | DA57: 1 | DB57: 1 | DC57: 1 | DD57: 1 | DE57: 1 | DF57: 1 | DG57: 1 | DH57: 1 | DI57: 1 | DJ57: 1 | DK57: 1 | DL57: 1 | DM57: 1 | DN57: 1 | DO57: 1 | DP57: 1 | DQ57: 1 | DR57: 1 | DS57: 1 | DT57: 1 | DU57: 1 | DV57: 1 | DW57: 1 | DX57: 1 | DY57: 1 | DZ57: 1 | EA57: 1 | EB57: 1 | EC57: 1 | ED57: 1 | EE57: 1 | EF57: 1 | EG57: 1 | EH57: 1 | EI57: 1 | EJ57: 1 | EK57: 1 | EL57: 1 | EM57: 1 | EN57: 1 | EO57: 1 | EP57: 1 | EQ57: 1 | ER57: 1 | ES57: 1 | ET57: 1 | EU57: 1 | EV57: 1 | EW57: 1 | EX57: 1 | EY57: 1 | FA57: 1 | FB57: 1 | FC57: 1 | FD57: 1 | FE57: 1 | FF57: 1 | FG57: 1 | FH57: 1 | FI57: 1 | FJ57: 1 | FK57: 1 | FL57: 1 | FM57: 1 | FN57: 1 | FO57: 1 | FQ57: 1 | FR57: 1 | FS57: 1 | FT57: 1 | FU57: 1 | FV57: 1 | FW57: 1 | FX57: 1 | FY57: 1 | FZ57: 1 | GA57: 1 | GB57: 1 | GC57: 1 | GD57: 1 | GE57: 1 | GF57: 1 | GH57: 1 | GI57: 1 | GJ57: 1 | GK57: 1 | GL57: 1 | GM57: 1 | GN57: 1 | GO57: 1 | GP57: 1 | GQ57: 1 | GR57: 1 | GS57: 1 | GT57: 1 | GU57: 1 | GV57: 1 | GW57: 1 | GX57: 1 | GY57: 1 | GZ57: 1 | HA57: 1 | HB57: 1 | HC57: 1 | HD57: 1 | HE57: 1 | HF57: 1 | HG57: 1 | HH57: 1 | HI57: 1 | HJ57: 1 | HK57: 1 | HL57: 1 | HM57: 1 | HN57: 1 | HO57: 1 | HP57: 1 | HQ57: 1 | HR57: 1 | HS57: 1 | HT57: 1 | HU57: 1 | HV57: 225
A58: 2004 | B58: 1 | C58: 1 | D58: 1 | E58: 1 | F58: 1 | G58: 1 | H58: 1 | I58: 1 | J58: 1 | K58: 1 | L58: 1 | M58: 1 | N58: 1 | O58: 1 | P58: 1 | Q58: 1 | R58: 1 | S58: 1 | T58: 1 | U58: 1 | V58: 1 | W58: 1 | X58: 1 | Y58: 1 | Z58: 1 | AA58: 1 | AB58: 1 | AC58: 1 | AD58: 1 | AE58: 1 | AF58: 1 | AG58: 1 | AH58: 1 | AI58: 1 | AJ58: 1 | AK58: 1 | AL58: 1 | AM58: 1 | AN58: 1 | AO58: 1 | AP58: 1 | AQ58: 1 | AR58: 1 | AS58: 1 | AT58: 1 | AU58: 1 | AV58: 1 | AW58: 1 | AX58: 1 | AY58: 1 | AZ58: 1 | BA58: 1 | BB58: 1 | BC58: 1 | BD58: 1 | BE58: 1 | BF58: 1 | BG58: 1 | BH58: 1 | BI58: 1 | BJ58: 1 | BK58: 1 | BL58: 1 | BM58: 1 | BN58: 1 | BO58: 1 | BP58: 1 | BQ58: 1 | BR58: 1 | BS58: 1 | BT58: 1 | BU58: 1 | BV58: 1 | BW58: 1 | BX58: 1 | BY58: 1 | BZ58: 1 | CA58: 1 | CB58: 1 | CC58: 1 | CD58: 1 | CE58: 1 | CF58: 1 | CG58: 1 | CH58: 1 | CI58: 1 | CJ58: 1 | CK58: 1 | CL58: 1 | CM58: 1 | CN58: 1 | CO58: 1 | CP58: 1 | CQ58: 1 | CR58: 1 | CS58: 1 | CT58: 1 | CU58: 1 | CV58: 1 | CW58: 1 | CX58: 1 | CY58: 1 | CZ58: 1 | DA58: 1 | DB58: 1 | DC58: 1 | DD58: 1 | DE58: 1 | DF58: 1 | DG58: 1 | DH58: 1 | DI58: 1 | DJ58: 1 | DK58: 1 | DL58: 1 | DM58: 1 | DN58: 1 | DO58: 1 | DP58: 1 | DQ58: 1 | DR58: 1 | DS58: 1 | DT58: 1 | DU58: 1 | DV58: 1 | DW58: 1 | DX58: 1 | DY58: 1 | DZ58: 1 | EA58: 1 | EB58: 1 | EC58: 1 | ED58: 1 | EE58: 1 | EF58: 1 | EG58: 1 | EH58: 1 | EI58: 1 | EJ58: 1 | EK58: 1 | EL58: 1 | EM58: 1 | EN58: 1 | EO58: 1 | EP58: 1 | EQ58: 1 | ER58: 1 | ES58: 1 | ET58: 1 | EU58: 1 | EV58: 1 | EW58: 1 | EX58: 1 | EY58: 1 | FA58: 1 | FB58: 1 | FC58: 1 | FD58: 1 | FE58: 1 | FF58: 1 | FG58: 1 | FH58: 1 | FI58: 1 | FJ58: 1 | FK58: 1 | FL58: 1 | FM58: 1 | FN58: 1 | FO58: 1 | FQ58: 1 | FR58: 1 | FS58: 1 | FT58: 1 | FU58: 1 | FV58: 1 | FW58: 1 | FX58: 1 | FY58: 1 | FZ58: 1 | GA58: 1 | GB58: 1 | GC58: 1 | GD58: 1 | GE58: 1 | GF58: 1 | GH58: 1 | GI58: 1 | GJ58: 1 | GK58: 1 | GL58: 1 | GM58: 1 | GN58: 1 | GO58: 1 | GP58: 1 | GQ58: 1 | GR58: 1 | GS58: 1 | GT58: 1 | GU58: 1 | GV58: 1 | GW58: 1 | GX58: 1 | GY58: 1 | GZ58: 1 | HA58: 1 | HB58: 1 | HC58: 1 | HD58: 1 | HE58: 1 | HF58: 1 | HG58: 1 | HH58: 1 | HI58: 1 | HJ58: 1 | HK58: 1 | HL58: 1 | HM58: 1 | HN58: 1 | HO58: 1 | HP58: 1 | HQ58: 1 | HR58: 1 | HS58: 1 | HT58: 1 | HU58: 1 | HV58: 225
A59: 2005 | B59: 1 | C59: 1 | D59: 1 | E59: 1 | F59: 1 | G59: 1 | H59: 1 | I59: 1 | J59: 1 | K59: 1 | L59: 1 | M59: 1 | N59: 1 | O59: 1 | P59: 1 | Q59: 1 | R59: 1 | S59: 1 | T59: 1 | U59: 1 | V59: 1 | W59: 1 | X59: 1 | Y59: 1 | Z59: 1 | AA59: 1 | AB59: 1 | AC59: 1 | AD59: 1 | AE59: 1 | AF59: 1 | AG59: 1 | AH59: 1 | AI59: 1 | AJ59: 1 | AK59: 1 | AL59: 1 | AM59: 1 | AN59: 1 | AO59: 1 | AP59: 1 | AQ59: 1 | AR59: 1 | AS59: 1 | AT59: 1 | AU59: 1 | AV59: 1 | AW59: 1 | AX59: 1 | AY59: 1 | AZ59: 1 | BA59: 1 | BB59: 1 | BC59: 1 | BD59: 1 | BE59: 1 | BF59: 1 | BG59: 1 | BH59: 1 | BI59: 1 | BJ59: 1 | BK59: 1 | BL59: 1 | BM59: 1 | BN59: 1 | BO59: 1 | BP59: 1 | BQ59: 1 | BR59: 1 | BS59: 1 | BT59: 1 | BU59: 1 | BV59: 1 | BW59: 1 | BX59: 1 | BY59: 1 | BZ59: 1 | CA59: 1 | CB59: 1 | CC59: 1 | CD59: 1 | CE59: 1 | CF59: 1 | CG59: 1 | CH59: 1 | CI59: 1 | CJ59: 1 | CK59: 1 | CL59: 1 | CM59: 1 | CN59: 1 | CO59: 1 | CP59: 1 | CQ59: 1 | CR59: 1 | CS59: 1 | CT59: 1 | CU59: 1 | CV59: 1 | CW59: 1 | CX59: 1 | CY59: 1 | CZ59: 1 | DA59: 1 | DB59: 1 | DC59: 1 | DD59: 1 | DE59: 1 | DF59: 1 | DG59: 1 | DH59: 1 | DI59: 1 | DJ59: 1 | DK59: 1 | DL59: 1 | DM59: 1 | DN59: 1 | DO59: 1 | DP59: 1 | DQ59: 1 | DR59: 1 | DS59: 1 | DT59: 1 | DU59: 1 | DV59: 1 | DW59: 1 | DX59: 1 | DY59: 1 | DZ59: 1 | EA59: 1 | EB59: 1 | EC59: 1 | ED59: 1 | EE59: 1 | EF59: 1 | EG59: 1 | EH59: 1 | EI59: 1 | EJ59: 1 | EK59: 1 | EL59: 1 | EM59: 1 | EN59: 1 | EO59: 1 | EP59: 1 | EQ59: 1 | ER59: 1 | ES59: 1 | ET59: 1 | EU59: 1 | EV59: 1 | EW59: 1 | EX59: 1 | EY59: 1 | FA59: 1 | FB59: 1 | FC59: 1 | FD59: 1 | FE59: 1 | FF59: 1 | FG59: 1 | FH59: 1 | FI59: 1 | FJ59: 1 | FK59: 1 | FL59: 1 | FM59: 1 | FN59: 1 | FO59: 1 | FQ59: 1 | FR59: 1 | FS59: 1 | FT59: 1 | FU59: 1 | FV59: 1 | FW59: 1 | FX59: 1 | FY59: 1 | FZ59: 1 | GA59: 1 | GB59: 1 | GC59: 1 | GD59: 1 | GE59: 1 | GF59: 1 | GH59: 1 | GI59: 1 | GJ59: 1 | GK59: 1 | GL59: 1 | GM59: 1 | GN59: 1 | GO59: 1 | GP59: 1 | GQ59: 1 | GR59: 1 | GS59: 1 | GT59: 1 | GU59: 1 | GV59: 1 | GW59: 1 | GX59: 1 | GY59: 1 | GZ59: 1 | HA59: 1 | HB59: 1 | HC59: 1 | HD59: 1 | HE59: 1 | HF59: 1 | HG59: 1 | HH59: 1 | HI59: 1 | HJ59: 1 | HK59: 1 | HL59: 1 | HM59: 1 | HN59: 1 | HO59: 1 | HP59: 1 | HQ59: 1 | HR59: 1 | HS59: 1 | HT59: 1 | HU59: 1 | HV59: 225
A60: 2006 | B60: 1 | C60: 1 | D60: 1 | E60: 1 | F60: 1 | G60: 1 | H60: 1 | I60: 1 | J60: 1 | K60: 1 | L60: 1 | M60: 1 | N60: 1 | O60: 1 | P60: 1 | Q60: 1 | R60: 1 | S60: 1 | T60: 1 | U60: 1 | V60: 1 | W60: 1 | X60: 1 | Y60: 1 | Z60: 1 | AA60: 1 | AB60: 1 | AC60: 1 | AD60: 1 | AE60: 1 | AF60: 1 | AG60: 1 | AH60: 1 | AI60: 1 | AJ60: 1 | AK60: 1 | AL60: 1 | AM60: 1 | AN60: 1 | AO60: 1 | AP60: 1 | AQ60: 1 | AR60: 1 | AS60: 1 | AT60: 1 | AU60: 1 | AV60: 1 | AW60: 1 | AX60: 1 | AY60: 1 | AZ60: 1 | BA60: 1 | BB60: 1 | BC60: 1 | BD60: 1 | BE60: 1 | BF60: 1 | BG60: 1 | BH60: 1 | BI60: 1 | BJ60: 1 | BK60: 1 | BL60: 1 | BM60: 1 | BN60: 1 | BO60: 1 | BP60: 1 | BQ60: 1 | BR60: 1 | BS60: 1 | BT60: 1 | BU60: 1 | BV60: 1 | BW60: 1 | BX60: 1 | BY60: 1 | BZ60: 1 | CA60: 1 | CB60: 1 | CC60: 1 | CD60: 1 | CE60: 1 | CF60: 1 | CG60: 1 | CH60: 1 | CI60: 1 | CJ60: 1 | CK60: 1 | CL60: 1 | CM60: 1 | CN60: 1 | CO60: 1 | CP60: 1 | CQ60: 1 | CR60: 1 | CS60: 1 | CT60: 1 | CU60: 1 | CV60: 1 | CW60: 1 | CX60: 1 | CY60: 1 | CZ60: 1 | DA60: 1 | DB60: 1 | DC60: 1 | DD60: 1 | DE60: 1 | DF60: 1 | DG60: 1 | DH60: 1 | DI60: 1 | DJ60: 1 | DK60: 1 | DL60: 1 | DM60: 1 | DN60: 1 | DO60: 1 | DP60: 1 | DQ60: 1 | DR60: 1 | DS60: 1 | DT60: 1 | DU60: 1 | DV60: 1 | DW60: 1 | DX60: 1 | DY60: 1 | DZ60: 1 | EA60: 1 | EB60: 1 | EC60: 1 | ED60: 1 | EE60: 1 | EF60: 1 | EG60: 1 | EH60: 1 | EI60: 1 | EJ60: 1 | EK60: 1 | EL60: 1 | EM60: 1 | EN60: 1 | EO60: 1 | EP60: 1 | EQ60: 1 | ER60: 1 | ES60: 1 | ET60: 1 | EU60: 1 | EV60: 1 | EW60: 1 | EX60: 1 | EY60: 1 | FA60: 1 | FB60: 1 | FC60: 1 | FD60: 1 | FE60: 1 | FF60: 1 | FG60: 1 | FH60: 1 | FI60: 1 | FJ60: 1 | FK60: 1 | FL60: 1 | FM60: 1 | FN60: 1 | FO60: 1 | FQ60: 1 | FR60: 1 | FS60: 1 | FT60: 1 | FU60: 1 | FV60: 1 | FW60: 1 | FX60: 1 | FY60: 1 | FZ60: 1 | GA60: 1 | GB60: 1 | GC60: 1 | GD60: 1 | GE60: 1 | GF60: 1 | GH60: 1 | GI60: 1 | GJ60: 1 | GK60: 1 | GL60: 1 | GM60: 1 | GN60: 1 | GO60: 1 | GP60: 1 | GQ60: 1 | GR60: 1 | GS60: 1 | GT60: 1 | GU60: 1 | GV60: 1 | GW60: 1 | GX60: 1 | GY60: 1 | GZ60: 1 | HA60: 1 | HB60: 1 | HC60: 1 | HD60: 1 | HE60: 1 | HF60: 1 | HG60: 1 | HH60: 1 | HI60: 1 | HJ60: 1 | HK60: 1 | HL60: 1 | HM60: 1 | HN60: 1 | HO60: 1 | HP60: 1 | HQ60: 1 | HR60: 1 | HS60: 1 | HT60: 1 | HU60: 1 | HV60: 225
A61: 2007 | B61: 1 | C61: 1 | D61: 1 | E61: 1 | F61: 1 | G61: 1 | H61: 1 | I61: 1 | J61: 1 | K61: 1 | L61: 1 | M61: 1 | N61: 1 | O61: 1 | P61: 1 | Q61: 1 | R61: 1 | S61: 1 | T61: 1 | U61: 1 | V61: 1 | W61: 1 | X61: 1 | Y61: 1 | Z61: 1 | AA61: 1 | AB61: 1 | AC61: 1 | AD61: 1 | AE61: 1 | AF61: 1 | AG61: 1 | AH61: 1 | AI61: 1 | AJ61: 1 | AK61: 1 | AL61: 1 | AM61: 1 | AN61: 1 | AO61: 1 | AP61: 1 | AQ61: 1 | AR61: 1 | AS61: 1 | AT61: 1 | AU61: 1 | AV61: 1 | AW61: 1 | AX61: 1 | AY61: 1 | AZ61: 1 | BA61: 1 | BB61: 1 | BC61: 1 | BD61: 1 | BE61: 1 | BF61: 1 | BG61: 1 | BH61: 1 | BI61: 1 | BJ61: 1 | BK61: 1 | BL61: 1 | BM61: 1 | BN61: 1 | BO61: 1 | BP61: 1 | BQ61: 1 | BR61: 1 | BS61: 1 | BT61: 1 | BU61: 1 | BV61: 1 | BW61: 1 | BX61: 1 | BY61: 1 | BZ61: 1 | CA61: 1 | CB61: 1 | CC61: 1 | CD61: 1 | CE61: 1 | CF61: 1 | CG61: 1 | CH61: 1 | CI61: 1 | CJ61: 1 | CK61: 1 | CL61: 1 | CM61: 1 | CN61: 1 | CO61: 1 | CP61: 1 | CQ61: 1 | CR61: 1 | CS61: 1 | CT61: 1 | CU61: 1 | CV61: 1 | CW61: 1 | CX61: 1 | CY61: 1 | CZ61: 1 | DA61: 1 | DB61: 1 | DC61: 1 | DD61: 1 | DE61: 1 | DF61: 1 | DG61: 1 | DH61: 1 | DI61: 1 | DJ61: 1 | DK61: 1 | DL61: 1 | DM61: 1 | DN61: 1 | DO61: 1 | DP61: 1 | DQ61: 1 | DR61: 1 | DS61: 1 | DT61: 1 | DU61: 1 | DV61: 1 | DW61: 1 | DX61: 1 | DY61: 1 | DZ61: 1 | EA61: 1 | EB61: 1 | EC61: 1 | ED61: 1 | EE61: 1 | EF61: 1 | EG61: 1 | EH61: 1 | EI61: 1 | EJ61: 1 | EK61: 1 | EL61: 1 | EM61: 1 | EN61: 1 | EO61: 1 | EP61: 1 | EQ61: 1 | ER61: 1 | ES61: 1 | ET61: 1 | EU61: 1 | EV61: 1 | EW61: 1 | EX61: 1 | EY61: 1 | FA61: 1 | FB61: 1 | FC61: 1 | FD61: 1 | FE61: 1 | FF61: 1 | FG61: 1 | FH61: 1 | FI61: 1 | FJ61: 1 | FK61: 1 | FL61: 1 | FM61: 1 | FN61: 1 | FO61: 1 | FQ61: 1 | FR61: 1 | FS61: 1 | FT61: 1 | FU61: 1 | FV61: 1 | FW61: 1 | FX61: 1 | FY61: 1 | FZ61: 1 | GA61: 1 | GB61: 1 | GC61: 1 | GD61: 1 | GE61: 1 | GF61: 1 | GH61: 1 | GI61: 1 | GJ61: 1 | GK61: 1 | GL61: 1 | GM61: 1 | GN61: 1 | GO61: 1 | GP61: 1 | GQ61: 1 | GR61: 1 | GS61: 1 | GT61: 1 | GU61: 1 | GV61: 1 | GW61: 1 | GX61: 1 | GY61: 1 | GZ61: 1 | HA61: 1 | HB61: 1 | HC61: 1 | HD61: 1 | HE61: 1 | HF61: 1 | HG61: 1 | HH61: 1 | HI61: 1 | HJ61: 1 | HK61: 1 | HL61: 1 | HM61: 1 | HN61: 1 | HO61: 1 | HP61: 1 | HQ61: 1 | HR61: 1 | HS61: 1 | HT61: 1 | HU61: 1 | HV61: 225
A62: 2008 | B62: 1 | C62: 1 | D62: 1 | E62: 1 | F62: 1 | G62: 1 | H62: 1 | I62: 1 | J62: 1 | K62: 1 | L62: 1 | M62: 1 | N62: 1 | O62: 1 | P62: 1 | Q62: 1 | R62: 1 | S62: 1 | T62: 1 | U62: 1 | V62: 1 | W62: 1 | X62: 1 | Y62: 1 | Z62: 1 | AA62: 1 | AB62: 1 | AC62: 1 | AD62: 1 | AE62: 1 | AF62: 1 | AG62: 1 | AH62: 1 | AI62: 1 | AJ62: 1 | AK62: 1 | AL62: 1 | AM62: 1 | AN62: 1 | AO62: 1 | AP62: 1 | AQ62: 1 | AR62: 1 | AS62: 1 | AT62: 1 | AU62: 1 | AV62: 1 | AW62: 1 | AX62: 1 | AY62: 1 | AZ62: 1 | BA62: 1 | BB62: 1 | BC62: 1 | BD62: 1 | BE62: 1 | BF62: 1 | BG62: 1 | BH62: 1 | BI62: 1 | BJ62: 1 | BK62: 1 | BL62: 1 | BM62: 1 | BN62: 1 | BO62: 1 | BP62: 1 | BQ62: 1 | BR62: 1 | BS62: 1 | BT62: 1 | BU62: 1 | BV62: 1 | BW62: 1 | BX62: 1 | BY62: 1 | BZ62: 1 | CA62: 1 | CB62: 1 | CC62: 1 | CD62: 1 | CE62: 1 | CF62: 1 | CG62: 1 | CH62: 1 | CI62: 1 | CJ62: 1 | CK62: 1 | CL62: 1 | CM62: 1 | CN62: 1 | CO62: 1 | CP62: 1 | CQ62: 1 | CR62: 1 | CS62: 1 | CT62: 1 | CU62: 1 | CV62: 1 | CW62: 1 | CX62: 1 | CY62: 1 | CZ62: 1 | DA62: 1 | DB62: 1 | DC62: 1 | DD62: 1 | DE62: 1 | DF62: 1 | DG62: 1 | DH62: 1 | DI62: 1 | DJ62: 1 | DK62: 1 | DL62: 1 | DM62: 1 | DN62: 1 | DO62: 1 | DP62: 1 | DQ62: 1 | DR62: 1 | DS62: 1 | DT62: 1 | DU62: 1 | DV62: 1 | DW62: 1 | DX62: 1 | DY62: 1 | DZ62: 1 | EA62: 1 | EB62: 1 | EC62: 1 | ED62: 1 | EE62: 1 | EF62: 1 | EG62: 1 | EH62: 1 | EI62: 1 | EJ62: 1 | EK62: 1 | EL62: 1 | EM62: 1 | EN62: 1 | EO62: 1 | EP62: 1 | EQ62: 1 | ER62: 1 | ES62: 1 | ET62: 1 | EU62: 1 | EV62: 1 | EW62: 1 | EX62: 1 | EY62: 1 | EZ62: 1 | FA62: 1 | FB62: 1 | FC62: 1 | FD62: 1 | FE62: 1 | FF62: 1 | FG62: 1 | FH62: 1 | FI62: 1 | FJ62: 1 | FK62: 1 | FL62: 1 | FM62: 1 | FN62: 1 | FO62: 1 | FQ62: 1 | FR62: 1 | FS62: 1 | FT62: 1 | FU62: 1 | FV62: 1 | FW62: 1 | FX62: 1 | FY62: 1 | FZ62: 1 | GA62: 1 | GB62: 1 | GC62: 1 | GD62: 1 | GE62: 1 | GF62: 1 | GG62: 1 | GH62: 1 | GI62: 1 | GJ62: 1 | GK62: 1 | GL62: 1 | GM62: 1 | GN62: 1 | GO62: 1 | GP62: 1 | GQ62: 1 | GR62: 1 | GS62: 1 | GT62: 1 | GU62: 1 | GV62: 1 | GW62: 1 | GX62: 1 | GY62: 1 | GZ62: 1 | HA62: 1 | HB62: 1 | HC62: 1 | HD62: 1 | HE62: 1 | HF62: 1 | HG62: 1 | HH62: 1 | HI62: 1 | HJ62: 1 | HK62: 1 | HL62: 1 | HM62: 1 | HN62: 1 | HO62: 1 | HP62: 1 | HQ62: 1 | HR62: 1 | HS62: 1 | HT62: 1 | HU62: 1 | HV62: 227
A63: 2009 | B63: 1 | C63: 1 | D63: 1 | E63: 1 | F63: 1 | G63: 1 | H63: 1 | I63: 1 | J63: 1 | K63: 1 | L63: 1 | M63: 1 | N63: 1 | O63: 1 | P63: 1 | Q63: 1 | R63: 1 | S63: 1 | T63: 1 | U63: 1 | V63: 1 | W63: 1 | X63: 1 | Y63: 1 | Z63: 1 | AA63: 1 | AB63: 1 | AC63: 1 | AD63: 1 | AE63: 1 | AF63: 1 | AG63: 1 | AH63: 1 | AI63: 1 | AJ63: 1 | AK63: 1 | AL63: 1 | AM63: 1 | AN63: 1 | AO63: 1 | AP63: 1 | AQ63: 1 | AR63: 1 | AS63: 1 | AT63: 1 | AU63: 1 | AV63: 1 | AW63: 1 | AX63: 1 | AY63: 1 | AZ63: 1 | BA63: 1 | BB63: 1 | BC63: 1 | BD63: 1 | BE63: 1 | BF63: 1 | BG63: 1 | BH63: 1 | BI63: 1 | BJ63: 1 | BK63: 1 | BL63: 1 | BM63: 1 | BN63: 1 | BO63: 1 | BP63: 1 | BQ63: 1 | BR63: 1 | BS63: 1 | BT63: 1 | BU63: 1 | BV63: 1 | BW63: 1 | BX63: 1 | BY63: 1 | BZ63: 1 | CA63: 1 | CB63: 1 | CC63: 1 | CD63: 1 | CE63: 1 | CF63: 1 | CG63: 1 | CH63: 1 | CI63: 1 | CJ63: 1 | CK63: 1 | CL63: 1 | CM63: 1 | CN63: 1 | CO63: 1 | CP63: 1 | CQ63: 1 | CR63: 1 | CS63: 1 | CT63: 1 | CU63: 1 | CV63: 1 | CW63: 1 | CX63: 1 | CY63: 1 | CZ63: 1 | DA63: 1 | DB63: 1 | DC63: 1 | DD63: 1 | DE63: 1 | DF63: 1 | DG63: 1 | DH63: 1 | DI63: 1 | DJ63: 1 | DK63: 1 | DL63: 1 | DM63: 1 | DN63: 1 | DO63: 1 | DP63: 1 | DQ63: 1 | DR63: 1 | DS63: 1 | DT63: 1 | DU63: 1 | DV63: 1 | DW63: 1 | DX63: 1 | DY63: 1 | DZ63: 1 | EA63: 1 | EB63: 1 | EC63: 1 | ED63: 1 | EE63: 1 | EF63: 1 | EG63: 1 | EH63: 1 | EI63: 1 | EJ63: 1 | EK63: 1 | EL63: 1 | EM63: 1 | EN63: 1 | EO63: 1 | EP63: 1 | EQ63: 1 | ER63: 1 | ES63: 1 | ET63: 1 | EU63: 1 | EV63: 1 | EW63: 1 | EX63: 1 | EY63: 1 | EZ63: 1 | FA63: 1 | FB63: 1 | FC63: 1 | FD63: 1 | FE63: 1 | FF63: 1 | FG63: 1 | FH63: 1 | FI63: 1 | FJ63: 1 | FK63: 1 | FL63: 1 | FM63: 1 | FN63: 1 | FO63: 1 | FQ63: 1 | FR63: 1 | FS63: 1 | FT63: 1 | FU63: 1 | FV63: 1 | FW63: 1 | FX63: 1 | FY63: 1 | FZ63: 1 | GA63: 1 | GB63: 1 | GC63: 1 | GD63: 1 | GE63: 1 | GF63: 1 | GG63: 1 | GH63: 1 | GI63: 1 | GJ63: 1 | GK63: 1 | GL63: 1 | GM63: 1 | GN63: 1 | GO63: 1 | GP63: 1 | GQ63: 1 | GR63: 1 | GS63: 1 | GT63: 1 | GU63: 1 | GV63: 1 | GW63: 1 | GX63: 1 | GY63: 1 | GZ63: 1 | HA63: 1 | HB63: 1 | HC63: 1 | HD63: 1 | HE63: 1 | HF63: 1 | HG63: 1 | HH63: 1 | HI63: 1 | HJ63: 1 | HK63: 1 | HL63: 1 | HM63: 1 | HN63: 1 | HO63: 1 | HP63: 1 | HQ63: 1 | HR63: 1 | HS63: 1 | HT63: 1 | HU63: 1 | HV63: 227
A64: 2010 | B64: 1 | C64: 1 | D64: 1 | E64: 1 | F64: 1 | G64: 1 | H64: 1 | I64: 1 | J64: 1 | K64: 1 | L64: 1 | M64: 1 | N64: 1 | O64: 1 | P64: 1 | Q64: 1 | R64: 1 | S64: 1 | T64: 1 | U64: 1 | V64: 1 | W64: 1 | X64: 1 | Y64: 1 | Z64: 1 | AA64: 1 | AB64: 1 | AC64: 1 | AD64: 1 | AE64: 1 | AF64: 1 | AG64: 1 | AH64: 1 | AI64: 1 | AJ64: 1 | AK64: 1 | AL64: 1 | AM64: 1 | AN64: 1 | AO64: 1 | AP64: 1 | AQ64: 1 | AR64: 1 | AS64: 1 | AT64: 1 | AU64: 1 | AV64: 1 | AW64: 1 | AX64: 1 | AY64: 1 | AZ64: 1 | BA64: 1 | BB64: 1 | BC64: 1 | BD64: 1 | BE64: 1 | BF64: 1 | BG64: 1 | BH64: 1 | BI64: 1 | BJ64: 1 | BK64: 1 | BL64: 1 | BM64: 1 | BN64: 1 | BO64: 1 | BP64: 1 | BQ64: 1 | BR64: 1 | BS64: 1 | BT64: 1 | BU64: 1 | BV64: 1 | BW64: 1 | BX64: 1 | BY64: 1 | BZ64: 1 | CA64: 1 | CB64: 1 | CC64: 1 | CD64: 1 | CE64: 1 | CF64: 1 | CG64: 1 | CH64: 1 | CI64: 1 | CJ64: 1 | CK64: 1 | CL64: 1 | CM64: 1 | CN64: 1 | CO64: 1 | CP64: 1 | CQ64: 1 | CR64: 1 | CS64: 1 | CT64: 1 | CU64: 1 | CV64: 1 | CW64: 1 | CX64: 1 | CY64: 1 | CZ64: 1 | DA64: 1 | DB64: 1 | DC64: 1 | DD64: 1 | DE64: 1 | DF64: 1 | DG64: 1 | DH64: 1 | DI64: 1 | DJ64: 1 | DK64: 1 | DL64: 1 | DM64: 1 | DN64: 1 | DO64: 1 | DP64: 1 | DQ64: 1 | DR64: 1 | DS64: 1 | DT64: 1 | DU64: 1 | DV64: 1 | DW64: 1 | DX64: 1 | DY64: 1 | DZ64: 1 | EA64: 1 | EB64: 1 | EC64: 1 | ED64: 1 | EE64: 1 | EF64: 1 | EG64: 1 | EH64: 1 | EI64: 1 | EJ64: 1 | EK64: 1 | EL64: 1 | EM64: 1 | EN64: 1 | EO64: 1 | EP64: 1 | EQ64: 1 | ER64: 1 | ES64: 1 | ET64: 1 | EU64: 1 | EV64: 1 | EW64: 1 | EX64: 1 | EY64: 1 | EZ64: 1 | FA64: 1 | FB64: 1 | FC64: 1 | FD64: 1 | FE64: 1 | FF64: 1 | FG64: 1 | FH64: 1 | FI64: 1 | FJ64: 1 | FK64: 1 | FL64: 1 | FM64: 1 | FN64: 1 | FO64: 1 | FP64: 1 | FQ64: 1 | FR64: 1 | FS64: 1 | FT64: 1 | FU64: 1 | FV64: 1 | FW64: 1 | FX64: 1 | FY64: 1 | FZ64: 1 | GA64: 1 | GB64: 1 | GC64: 1 | GD64: 1 | GE64: 1 | GF64: 1 | GG64: 1 | GH64: 1 | GI64: 1 | GJ64: 1 | GK64: 1 | GL64: 1 | GM64: 1 | GN64: 1 | GO64: 1 | GP64: 1 | GQ64: 1 | GR64: 1 | GS64: 1 | GT64: 1 | GU64: 1 | GV64: 1 | GW64: 1 | GX64: 1 | GY64: 1 | GZ64: 1 | HA64: 1 | HB64: 1 | HC64: 1 | HD64: 1 | HE64: 1 | HF64: 1 | HG64: 1 | HH64: 1 | HI64: 1 | HJ64: 1 | HK64: 1 | HL64: 1 | HM64: 1 | HN64: 1 | HO64: 1 | HP64: 1 | HQ64: 1 | HR64: 1 | HS64: 1 | HT64: 1 | HU64: 1 | HV64: 228
A65: 2011 | B65: 1 | C65: 1 | D65: 1 | E65: 1 | F65: 1 | G65: 1 | H65: 1 | I65: 1 | J65: 1 | K65: 1 | L65: 1 | M65: 1 | N65: 1 | O65: 1 | P65: 1 | Q65: 1 | R65: 1 | S65: 1 | T65: 1 | U65: 1 | V65: 1 | W65: 1 | X65: 1 | Y65: 1 | Z65: 1 | AA65: 1 | AB65: 1 | AC65: 1 | AD65: 1 | AE65: 1 | AF65: 1 | AG65: 1 | AH65: 1 | AI65: 1 | AJ65: 1 | AK65: 1 | AL65: 1 | AM65: 1 | AN65: 1 | AO65: 1 | AP65: 1 | AQ65: 1 | AR65: 1 | AS65: 1 | AT65: 1 | AU65: 1 | AV65: 1 | AW65: 1 | AX65: 1 | AY65: 1 | AZ65: 1 | BA65: 1 | BB65: 1 | BC65: 1 | BD65: 1 | BE65: 1 | BF65: 1 | BG65: 1 | BH65: 1 | BI65: 1 | BJ65: 1 | BK65: 1 | BL65: 1 | BM65: 1 | BN65: 1 | BO65: 1 | BP65: 1 | BQ65: 1 | BR65: 1 | BS65: 1 | BT65: 1 | BU65: 1 | BV65: 1 | BW65: 1 | BX65: 1 | BY65: 1 | BZ65: 1 | CA65: 1 | CB65: 1 | CC65: 1 | CD65: 1 | CE65: 1 | CF65: 1 | CG65: 1 | CH65: 1 | CI65: 1 | CJ65: 1 | CK65: 1 | CL65: 1 | CM65: 1 | CN65: 1 | CO65: 1 | CP65: 1 | CQ65: 1 | CR65: 1 | CS65: 1 | CT65: 1 | CU65: 1 | CV65: 1 | CW65: 1 | CX65: 1 | CY65: 1 | CZ65: 1 | DA65: 1 | DB65: 1 | DC65: 1 | DD65: 1 | DE65: 1 | DF65: 1 | DG65: 1 | DH65: 1 | DI65: 1 | DJ65: 1 | DK65: 1 | DL65: 1 | DM65: 1 | DN65: 1 | DO65: 1 | DP65: 1 | DQ65: 1 | DR65: 1 | DS65: 1 | DT65: 1 | DU65: 1 | DV65: 1 | DW65: 1 | DX65: 1 | DY65: 1 | DZ65: 1 | EA65: 1 | EB65: 1 | EC65: 1 | ED65: 1 | EE65: 1 | EF65: 1 | EG65: 1 | EH65: 1 | EI65: 1 | EJ65: 1 | EK65: 1 | EL65: 1 | EM65: 1 | EN65: 1 | EO65: 1 | EP65: 1 | EQ65: 1 | ER65: 1 | ES65: 1 | ET65: 1 | EU65: 1 | EV65: 1 | EW65: 1 | EX65: 1 | EY65: 1 | EZ65: 1 | FA65: 1 | FB65: 1 | FC65: 1 | FD65: 1 | FE65: 1 | FF65: 1 | FG65: 1 | FH65: 1 | FI65: 1 | FJ65: 1 | FK65: 1 | FL65: 1 | FM65: 1 | FN65: 1 | FO65: 1 | FP65: 1 | FQ65: 1 | FR65: 1 | FS65: 1 | FT65: 1 | FU65: 1 | FV65: 1 | FW65: 1 | FX65: 1 | FY65: 1 | FZ65: 1 | GA65: 1 | GB65: 1 | GC65: 1 | GD65: 1 | GE65: 1 | GF65: 1 | GG65: 1 | GH65: 1 | GI65: 1 | GJ65: 1 | GK65: 1 | GL65: 1 | GM65: 1 | GN65: 1 | GO65: 1 | GP65: 1 | GQ65: 1 | GR65: 1 | GS65: 1 | GT65: 1 | GU65: 1 | GV65: 1 | GW65: 1 | GX65: 1 | GY65: 1 | GZ65: 1 | HA65: 1 | HB65: 1 | HC65: 1 | HD65: 1 | HE65: 1 | HF65: 1 | HG65: 1 | HH65: 1 | HI65: 1 | HJ65: 1 | HK65: 1 | HL65: 1 | HM65: 1 | HN65: 1 | HO65: 1 | HP65: 1 | HQ65: 1 | HR65: 1 | HS65: 1 | HT65: 1 | HU65: 1 | HV65: 228
A66: 2012 | B66: 1 | C66: 1 | D66: 1 | E66: 1 | F66: 1 | G66: 1 | H66: 1 | I66: 1 | J66: 1 | K66: 1 | L66: 1 | M66: 1 | N66: 1 | O66: 1 | P66: 1 | Q66: 1 | R66: 1 | S66: 1 | T66: 1 | U66: 1 | V66: 1 | W66: 1 | X66: 1 | Y66: 1 | Z66: 1 | AA66: 1 | AB66: 1 | AC66: 1 | AD66: 1 | AE66: 1 | AF66: 1 | AG66: 1 | AH66: 1 | AI66: 1 | AJ66: 1 | AK66: 1 | AL66: 1 | AM66: 1 | AN66: 1 | AO66: 1 | AP66: 1 | AQ66: 1 | AR66: 1 | AS66: 1 | AT66: 1 | AU66: 1 | AV66: 1 | AW66: 1 | AX66: 1 | AY66: 1 | AZ66: 1 | BA66: 1 | BB66: 1 | BC66: 1 | BD66: 1 | BE66: 1 | BF66: 1 | BG66: 1 | BH66: 1 | BI66: 1 | BJ66: 1 | BK66: 1 | BL66: 1 | BM66: 1 | BN66: 1 | BO66: 1 | BP66: 1 | BQ66: 1 | BR66: 1 | BS66: 1 | BT66: 1 | BU66: 1 | BV66: 1 | BW66: 1 | BX66: 1 | BY66: 1 | BZ66: 1 | CA66: 1 | CB66: 1 | CC66: 1 | CD66: 1 | CE66: 1 | CF66: 1 | CG66: 1 | CH66: 1 | CI66: 1 | CJ66: 1 | CK66: 1 | CL66: 1 | CM66: 1 | CN66: 1 | CO66: 1 | CP66: 1 | CQ66: 1 | CR66: 1 | CS66: 1 | CT66: 1 | CU66: 1 | CV66: 1 | CW66: 1 | CX66: 1 | CY66: 1 | CZ66: 1 | DA66: 1 | DB66: 1 | DC66: 1 | DD66: 1 | DE66: 1 | DF66: 1 | DG66: 1 | DH66: 1 | DI66: 1 | DJ66: 1 | DK66: 1 | DL66: 1 | DM66: 1 | DN66: 1 | DO66: 1 | DP66: 1 | DQ66: 1 | DR66: 1 | DS66: 1 | DT66: 1 | DU66: 1 | DV66: 1 | DW66: 1 | DX66: 1 | DY66: 1 | DZ66: 1 | EA66: 1 | EB66: 1 | EC66: 1 | ED66: 1 | EE66: 1 | EF66: 1 | EG66: 1 | EH66: 1 | EI66: 1 | EJ66: 1 | EK66: 1 | EL66: 1 | EM66: 1 | EN66: 1 | EO66: 1 | EP66: 1 | EQ66: 1 | ER66: 1 | ES66: 1 | ET66: 1 | EU66: 1 | EV66: 1 | EW66: 1 | EX66: 1 | EY66: 1 | EZ66: 1 | FA66: 1 | FB66: 1 | FC66: 1 | FD66: 1 | FE66: 1 | FF66: 1 | FG66: 1 | FH66: 1 | FI66: 1 | FJ66: 1 | FK66: 1 | FL66: 1 | FM66: 1 | FN66: 1 | FO66: 1 | FP66: 1 | FQ66: 1 | FR66: 1 | FS66: 1 | FT66: 1 | FU66: 1 | FV66: 1 | FW66: 1 | FX66: 1 | FY66: 1 | FZ66: 1 | GA66: 1 | GB66: 1 | GC66: 1 | GD66: 1 | GE66: 1 | GF66: 1 | GG66: 1 | GH66: 1 | GI66: 1 | GJ66: 1 | GK66: 1 | GL66: 1 | GM66: 1 | GN66: 1 | GO66: 1 | GP66: 1 | GQ66: 1 | GR66: 1 | GS66: 1 | GT66: 1 | GU66: 1 | GV66: 1 | GW66: 1 | GX66: 1 | GY66: 1 | GZ66: 1 | HA66: 1 | HB66: 1 | HC66: 1 | HD66: 1 | HE66: 1 | HF66: 1 | HG66: 1 | HH66: 1 | HI66: 1 | HJ66: 1 | HK66: 1 | HL66: 1 | HM66: 1 | HN66: 1 | HO66: 1 | HP66: 1 | HQ66: 1 | HR66: 1 | HS66: 1 | HT66: 1 | HU66: 1 | HV66: 228
A67: 2013 | B67: 1 | C67: 1 | D67: 1 | E67: 1 | F67: 1 | G67: 1 | H67: 1 | I67: 1 | J67: 1 | K67: 1 | L67: 1 | M67: 1 | N67: 1 | O67: 1 | P67: 1 | Q67: 1 | R67: 1 | S67: 1 | T67: 1 | U67: 1 | V67: 1 | W67: 1 | X67: 1 | Y67: 1 | Z67: 1 | AA67: 1 | AB67: 1 | AC67: 1 | AD67: 1 | AE67: 1 | AF67: 1 | AG67: 1 | AH67: 1 | AI67: 1 | AJ67: 1 | AK67: 1 | AL67: 1 | AM67: 1 | AN67: 1 | AO67: 1 | AP67: 1 | AQ67: 1 | AR67: 1 | AS67: 1 | AT67: 1 | AU67: 1 | AV67: 1 | AW67: 1 | AX67: 1 | AY67: 1 | AZ67: 1 | BA67: 1 | BB67: 1 | BC67: 1 | BD67: 1 | BE67: 1 | BF67: 1 | BG67: 1 | BH67: 1 | BI67: 1 | BJ67: 1 | BK67: 1 | BL67: 1 | BM67: 1 | BN67: 1 | BO67: 1 | BP67: 1 | BQ67: 1 | BR67: 1 | BS67: 1 | BT67: 1 | BU67: 1 | BV67: 1 | BW67: 1 | BX67: 1 | BY67: 1 | BZ67: 1 | CA67: 1 | CB67: 1 | CC67: 1 | CD67: 1 | CE67: 1 | CF67: 1 | CG67: 1 | CH67: 1 | CI67: 1 | CJ67: 1 | CK67: 1 | CL67: 1 | CM67: 1 | CN67: 1 | CO67: 1 | CP67: 1 | CQ67: 1 | CR67: 1 | CS67: 1 | CT67: 1 | CU67: 1 | CV67: 1 | CW67: 1 | CX67: 1 | CY67: 1 | CZ67: 1 | DA67: 1 | DB67: 1 | DC67: 1 | DD67: 1 | DE67: 1 | DF67: 1 | DG67: 1 | DH67: 1 | DI67: 1 | DJ67: 1 | DK67: 1 | DL67: 1 | DM67: 1 | DN67: 1 | DO67: 1 | DP67: 1 | DQ67: 1 | DR67: 1 | DS67: 1 | DT67: 1 | DU67: 1 | DV67: 1 | DW67: 1 | DX67: 1 | DY67: 1 | DZ67: 1 | EA67: 1 | EB67: 1 | EC67: 1 | ED67: 1 | EE67: 1 | EF67: 1 | EG67: 1 | EH67: 1 | EI67: 1 | EJ67: 1 | EK67: 1 | EL67: 1 | EM67: 1 | EN67: 1 | EO67: 1 | EP67: 1 | EQ67: 1 | ER67: 1 | ES67: 1 | ET67: 1 | EU67: 1 | EV67: 1 | EW67: 1 | EX67: 1 | EY67: 1 | EZ67: 1 | FA67: 1 | FB67: 1 | FC67: 1 | FD67: 1 | FE67: 1 | FF67: 1 | FG67: 1 | FH67: 1 | FI67: 1 | FJ67: 1 | FK67: 1 | FL67: 1 | FM67: 1 | FN67: 1 | FO67: 1 | FP67: 1 | FQ67: 1 | FR67: 1 | FS67: 1 | FT67: 1 | FU67: 1 | FV67: 1 | FW67: 1 | FX67: 1 | FY67: 1 | FZ67: 1 | GA67: 1 | GB67: 1 | GC67: 1 | GD67: 1 | GE67: 1 | GF67: 1 | GG67: 1 | GH67: 1 | GI67: 1 | GJ67: 1 | GK67: 1 | GL67: 1 | GM67: 1 | GN67: 1 | GO67: 1 | GP67: 1 | GQ67: 1 | GR67: 1 | GS67: 1 | GT67: 1 | GU67: 1 | GV67: 1 | GW67: 1 | GX67: 1 | GY67: 1 | GZ67: 1 | HA67: 1 | HB67: 1 | HC67: 1 | HD67: 1 | HE67: 1 | HF67: 1 | HG67: 1 | HH67: 1 | HI67: 1 | HJ67: 1 | HK67: 1 | HL67: 1 | HM67: 1 | HN67: 1 | HO67: 1 | HP67: 1 | HQ67: 1 | HR67: 1 | HS67: 1 | HT67: 1 | HU67: 1 | HV67: 228
A68: 2014 | B68: 1 | C68: 1 | D68: 1 | E68: 1 | F68: 1 | G68: 1 | H68: 1 | I68: 1 | J68: 1 | K68: 1 | L68: 1 | M68: 1 | N68: 1 | O68: 1 | P68: 1 | Q68: 1 | R68: 1 | S68: 1 | T68: 1 | U68: 1 | V68: 1 | W68: 1 | X68: 1 | Y68: 1 | Z68: 1 | AA68: 1 | AB68: 1 | AC68: 1 | AD68: 1 | AE68: 1 | AF68: 1 | AG68: 1 | AH68: 1 | AI68: 1 | AJ68: 1 | AK68: 1 | AL68: 1 | AM68: 1 | AN68: 1 | AO68: 1 | AP68: 1 | AQ68: 1 | AR68: 1 | AS68: 1 | AT68: 1 | AU68: 1 | AV68: 1 | AW68: 1 | AX68: 1 | AY68: 1 | AZ68: 1 | BA68: 1 | BB68: 1 | BC68: 1 | BD68: 1 | BE68: 1 | BF68: 1 | BG68: 1 | BH68: 1 | BI68: 1 | BJ68: 1 | BK68: 1 | BL68: 1 | BM68: 1 | BN68: 1 | BO68: 1 | BP68: 1 | BQ68: 1 | BR68: 1 | BS68: 1 | BT68: 1 | BU68: 1 | BV68: 1 | BW68: 1 | BX68: 1 | BY68: 1 | BZ68: 1 | CA68: 1 | CB68: 1 | CC68: 1 | CD68: 1 | CE68: 1 | CF68: 1 | CG68: 1 | CH68: 1 | CI68: 1 | CJ68: 1 | CK68: 1 | CL68: 1 | CM68: 1 | CN68: 1 | CO68: 1 | CP68: 1 | CQ68: 1 | CR68: 1 | CS68: 1 | CT68: 1 | CU68: 1 | CV68: 1 | CW68: 1 | CX68: 1 | CY68: 1 | CZ68: 1 | DA68: 1 | DB68: 1 | DC68: 1 | DD68: 1 | DE68: 1 | DF68: 1 | DG68: 1 | DH68: 1 | DI68: 1 | DJ68: 1 | DK68: 1 | DL68: 1 | DM68: 1 | DN68: 1 | DO68: 1 | DP68: 1 | DQ68: 1 | DR68: 1 | DS68: 1 | DT68: 1 | DU68: 1 | DV68: 1 | DW68: 1 | DX68: 1 | DY68: 1 | DZ68: 1 | EA68: 1 | EB68: 1 | EC68: 1 | ED68: 1 | EE68: 1 | EF68: 1 | EG68: 1 | EH68: 1 | EI68: 1 | EJ68: 1 | EK68: 1 | EL68: 1 | EM68: 1 | EN68: 1 | EO68: 1 | EP68: 1 | EQ68: 1 | ER68: 1 | ES68: 1 | ET68: 1 | EU68: 1 | EV68: 1 | EW68: 1 | EX68: 1 | EY68: 1 | EZ68: 1 | FA68: 1 | FB68: 1 | FC68: 1 | FD68: 1 | FE68: 1 | FF68: 1 | FG68: 1 | FH68: 1 | FI68: 1 | FJ68: 1 | FK68: 1 | FL68: 1 | FM68: 1 | FN68: 1 | FO68: 1 | FP68: 1 | FQ68: 1 | FR68: 1 | FS68: 1 | FT68: 1 | FU68: 1 | FV68: 1 | FW68: 1 | FX68: 1 | FY68: 1 | FZ68: 1 | GA68: 1 | GB68: 1 | GC68: 1 | GD68: 1 | GE68: 1 | GF68: 1 | GG68: 1 | GH68: 1 | GI68: 1 | GJ68: 1 | GK68: 1 | GL68: 1 | GM68: 1 | GN68: 1 | GO68: 1 | GP68: 1 | GQ68: 1 | GR68: 1 | GS68: 1 | GT68: 1 | GU68: 1 | GV68: 1 | GW68: 1 | GX68: 1 | GY68: 1 | GZ68: 1 | HA68: 1 | HB68: 1 | HC68: 1 | HD68: 1 | HE68: 1 | HF68: 1 | HG68: 1 | HH68: 1 | HI68: 1 | HJ68: 1 | HK68: 1 | HL68: 1 | HM68: 1 | HN68: 1 | HO68: 1 | HP68: 1 | HQ68: 1 | HR68: 1 | HS68: 1 | HT68: 1 | HU68: 1 | HV68: 228
A69: 2015 | B69: 1 | C69: 1 | D69: 1 | E69: 1 | F69: 1 | G69: 1 | H69: 1 | I69: 1 | J69: 1 | K69: 1 | L69: 1 | M69: 1 | N69: 1 | O69: 1 | P69: 1 | Q69: 1 | R69: 1 | S69: 1 | T69: 1 | U69: 1 | V69: 1 | W69: 1 | X69: 1 | Y69: 1 | Z69: 1 | AA69: 1 | AB69: 1 | AC69: 1 | AD69: 1 | AE69: 1 | AF69: 1 | AG69: 1 | AH69: 1 | AI69: 1 | AJ69: 1 | AK69: 1 | AL69: 1 | AM69: 1 | AN69: 1 | AO69: 1 | AP69: 1 | AQ69: 1 | AR69: 1 | AS69: 1 | AT69: 1 | AU69: 1 | AV69: 1 | AW69: 1 | AX69: 1 | AY69: 1 | AZ69: 1 | BA69: 1 | BB69: 1 | BC69: 1 | BD69: 1 | BE69: 1 | BF69: 1 | BG69: 1 | BH69: 1 | BI69: 1 | BJ69: 1 | BK69: 1 | BL69: 1 | BM69: 1 | BN69: 1 | BO69: 1 | BP69: 1 | BQ69: 1 | BR69: 1 | BS69: 1 | BT69: 1 | BU69: 1 | BV69: 1 | BW69: 1 | BX69: 1 | BY69: 1 | BZ69: 1 | CA69: 1 | CB69: 1 | CC69: 1 | CD69: 1 | CE69: 1 | CF69: 1 | CG69: 1 | CH69: 1 | CI69: 1 | CJ69: 1 | CK69: 1 | CL69: 1 | CM69: 1 | CN69: 1 | CO69: 1 | CP69: 1 | CQ69: 1 | CR69: 1 | CS69: 1 | CT69: 1 | CU69: 1 | CV69: 1 | CW69: 1 | CX69: 1 | CY69: 1 | CZ69: 1 | DA69: 1 | DB69: 1 | DC69: 1 | DD69: 1 | DE69: 1 | DF69: 1 | DG69: 1 | DH69: 1 | DI69: 1 | DJ69: 1 | DK69: 1 | DL69: 1 | DM69: 1 | DN69: 1 | DO69: 1 | DP69: 1 | DQ69: 1 | DR69: 1 | DS69: 1 | DT69: 1 | DU69: 1 | DV69: 1 | DW69: 1 | DX69: 1 | DY69: 1 | DZ69: 1 | EA69: 1 | EB69: 1 | EC69: 1 | ED69: 1 | EE69: 1 | EF69: 1 | EG69: 1 | EH69: 1 | EI69: 1 | EJ69: 1 | EK69: 1 | EL69: 1 | EM69: 1 | EN69: 1 | EO69: 1 | EP69: 1 | EQ69: 1 | ER69: 1 | ES69: 1 | ET69: 1 | EU69: 1 | EV69: 1 | EW69: 1 | EX69: 1 | EY69: 1 | EZ69: 1 | FA69: 1 | FB69: 1 | FC69: 1 | FD69: 1 | FE69: 1 | FF69: 1 | FG69: 1 | FH69: 1 | FI69: 1 | FJ69: 1 | FK69: 1 | FL69: 1 | FM69: 1 | FN69: 1 | FO69: 1 | FP69: 1 | FQ69: 1 | FR69: 1 | FS69: 1 | FT69: 1 | FU69: 1 | FV69: 1 | FW69: 1 | FX69: 1 | FY69: 1 | FZ69: 1 | GA69: 1 | GB69: 1 | GC69: 1 | GD69: 1 | GE69: 1 | GF69: 1 | GG69: 1 | GH69: 1 | GI69: 1 | GJ69: 1 | GK69: 1 | GL69: 1 | GM69: 1 | GN69: 1 | GO69: 1 | GP69: 1 | GQ69: 1 | GR69: 1 | GS69: 1 | GT69: 1 | GU69: 1 | GV69: 1 | GW69: 1 | GX69: 1 | GY69: 1 | GZ69: 1 | HA69: 1 | HB69: 1 | HC69: 1 | HD69: 1 | HE69: 1 | HF69: 1 | HG69: 1 | HH69: 1 | HI69: 1 | HJ69: 1 | HK69: 1 | HL69: 1 | HM69: 1 | HN69: 1 | HO69: 1 | HP69: 1 | HQ69: 1 | HR69: 1 | HS69: 1 | HT69: 1 | HU69: 1 | HV69: 228
A70: 2016 | B70: 1 | C70: 1 | D70: 1 | E70: 1 | F70: 1 | G70: 1 | H70: 1 | I70: 1 | J70: 1 | K70: 1 | L70: 1 | M70: 1 | N70: 1 | O70: 1 | P70: 1 | Q70: 1 | R70: 1 | S70: 1 | T70: 1 | U70: 1 | V70: 1 | W70: 1 | X70: 1 | Y70: 1 | Z70: 1 | AA70: 1 | AB70: 1 | AC70: 1 | AD70: 1 | AE70: 1 | AF70: 1 | AG70: 1 | AH70: 1 | AI70: 1 | AJ70: 1 | AK70: 1 | AL70: 1 | AM70: 1 | AN70: 1 | AO70: 1 | AP70: 1 | AQ70: 1 | AR70: 1 | AS70: 1 | AT70: 1 | AU70: 1 | AV70: 1 | AW70: 1 | AX70: 1 | AY70: 1 | AZ70: 1 | BA70: 1 | BB70: 1 | BC70: 1 | BD70: 1 | BE70: 1 | BF70: 1 | BG70: 1 | BH70: 1 | BI70: 1 | BJ70: 1 | BK70: 1 | BL70: 1 | BM70: 1 | BN70: 1 | BO70: 1 | BP70: 1 | BQ70: 1 | BR70: 1 | BS70: 1 | BT70: 1 | BU70: 1 | BV70: 1 | BW70: 1 | BX70: 1 | BY70: 1 | BZ70: 1 | CA70: 1 | CB70: 1 | CC70: 1 | CD70: 1 | CE70: 1 | CF70: 1 | CG70: 1 | CH70: 1 | CI70: 1 | CJ70: 1 | CK70: 1 | CL70: 1 | CM70: 1 | CN70: 1 | CO70: 1 | CP70: 1 | CQ70: 1 | CR70: 1 | CS70: 1 | CT70: 1 | CU70: 1 | CV70: 1 | CW70: 1 | CX70: 1 | CY70: 1 | CZ70: 1 | DA70: 1 | DB70: 1 | DC70: 1 | DD70: 1 | DE70: 1 | DF70: 1 | DG70: 1 | DH70: 1 | DI70: 1 | DJ70: 1 | DK70: 1 | DL70: 1 | DM70: 1 | DN70: 1 | DO70: 1 | DP70: 1 | DQ70: 1 | DR70: 1 | DS70: 1 | DT70: 1 | DU70: 1 | DV70: 1 | DW70: 1 | DX70: 1 | DY70: 1 | DZ70: 1 | EA70: 1 | EB70: 1 | EC70: 1 | ED70: 1 | EE70: 1 | EF70: 1 | EG70: 1 | EH70: 1 | EI70: 1 | EJ70: 1 | EK70: 1 | EL70: 1 | EM70: 1 | EN70: 1 | EO70: 1 | EP70: 1 | EQ70: 1 | ER70: 1 | ES70: 1 | ET70: 1 | EU70: 1 | EV70: 1 | EW70: 1 | EX70: 1 | EY70: 1 | EZ70: 1 | FA70: 1 | FB70: 1 | FC70: 1 | FD70: 1 | FE70: 1 | FF70: 1 | FG70: 1 | FH70: 1 | FI70: 1 | FJ70: 1 | FK70: 1 | FL70: 1 | FM70: 1 | FN70: 1 | FO70: 1 | FP70: 1 | FQ70: 1 | FR70: 1 | FS70: 1 | FT70: 1 | FU70: 1 | FV70: 1 | FW70: 1 | FX70: 1 | FY70: 1 | FZ70: 1 | GA70: 1 | GB70: 1 | GC70: 1 | GD70: 1 | GE70: 1 | GF70: 1 | GG70: 1 | GH70: 1 | GI70: 1 | GJ70: 1 | GK70: 1 | GL70: 1 | GM70: 1 | GN70: 1 | GO70: 1 | GP70: 1 | GQ70: 1 | GR70: 1 | GS70: 1 | GT70: 1 | GU70: 1 | GV70: 1 | GW70: 1 | GX70: 1 | GY70: 1 | GZ70: 1 | HA70: 1 | HB70: 1 | HC70: 1 | HD70: 1 | HE70: 1 | HF70: 1 | HG70: 1 | HH70: 1 | HI70: 1 | HJ70: 1 | HK70: 1 | HL70: 1 | HM70: 1 | HN70: 1 | HO70: 1 | HP70: 1 | HQ70: 1 | HR70: 1 | HS70: 1 | HT70: 1 | HU70: 1 | HV70: 228
A71: 2017 | B71: 1 | C71: 1 | D71: 1 | E71: 1 | F71: 1 | G71: 1 | H71: 1 | I71: 1 | J71: 1 | K71: 1 | L71: 1 | M71: 1 | N71: 1 | O71: 1 | P71: 1 | Q71: 1 | R71: 1 | S71: 1 | T71: 1 | U71: 1 | V71: 1 | W71: 1 | X71: 1 | Y71: 1 | Z71: 1 | AA71: 1 | AB71: 1 | AC71: 1 | AD71: 1 | AE71: 1 | AF71: 1 | AG71: 1 | AH71: 1 | AI71: 1 | AJ71: 1 | AK71: 1 | AL71: 1 | AM71: 1 | AN71: 1 | AO71: 1 | AP71: 1 | AQ71: 1 | AR71: 1 | AS71: 1 | AT71: 1 | AU71: 1 | AV71: 1 | AW71: 1 | AX71: 1 | AY71: 1 | AZ71: 1 | BA71: 1 | BB71: 1 | BC71: 1 | BD71: 1 | BE71: 1 | BF71: 1 | BG71: 1 | BH71: 1 | BI71: 1 | BJ71: 1 | BK71: 1 | BL71: 1 | BM71: 1 | BN71: 1 | BO71: 1 | BP71: 1 | BQ71: 1 | BR71: 1 | BS71: 1 | BT71: 1 | BU71: 1 | BV71: 1 | BW71: 1 | BX71: 1 | BY71: 1 | BZ71: 1 | CA71: 1 | CB71: 1 | CC71: 1 | CD71: 1 | CE71: 1 | CF71: 1 | CG71: 1 | CH71: 1 | CI71: 1 | CJ71: 1 | CK71: 1 | CL71: 1 | CM71: 1 | CN71: 1 | CO71: 1 | CP71: 1 | CQ71: 1 | CR71: 1 | CS71: 1 | CT71: 1 | CU71: 1 | CV71: 1 | CW71: 1 | CX71: 1 | CY71: 1 | CZ71: 1 | DA71: 1 | DB71: 1 | DC71: 1 | DD71: 1 | DE71: 1 | DF71: 1 | DG71: 1 | DH71: 1 | DI71: 1 | DJ71: 1 | DK71: 1 | DL71: 1 | DM71: 1 | DN71: 1 | DO71: 1 | DP71: 1 | DQ71: 1 | DR71: 1 | DS71: 1 | DT71: 1 | DU71: 1 | DV71: 1 | DW71: 1 | DX71: 1 | DY71: 1 | DZ71: 1 | EA71: 1 | EB71: 1 | EC71: 1 | ED71: 1 | EE71: 1 | EF71: 1 | EG71: 1 | EH71: 1 | EI71: 1 | EJ71: 1 | EK71: 1 | EL71: 1 | EM71: 1 | EN71: 1 | EO71: 1 | EP71: 1 | EQ71: 1 | ER71: 1 | ES71: 1 | ET71: 1 | EU71: 1 | EV71: 1 | EW71: 1 | EX71: 1 | EY71: 1 | EZ71: 1 | FA71: 1 | FB71: 1 | FC71: 1 | FD71: 1 | FE71: 1 | FF71: 1 | FG71: 1 | FH71: 1 | FI71: 1 | FJ71: 1 | FK71: 1 | FL71: 1 | FM71: 1 | FN71: 1 | FO71: 1 | FP71: 1 | FQ71: 1 | FR71: 1 | FS71: 1 | FT71: 1 | FU71: 1 | FV71: 1 | FW71: 1 | FX71: 1 | FY71: 1 | FZ71: 1 | GA71: 1 | GB71: 1 | GC71: 1 | GD71: 1 | GE71: 1 | GF71: 1 | GG71: 1 | GH71: 1 | GI71: 1 | GJ71: 1 | GK71: 1 | GL71: 1 | GM71: 1 | GN71: 1 | GO71: 1 | GP71: 1 | GQ71: 1 | GR71: 1 | GS71: 1 | GT71: 1 | GU71: 1 | GV71: 1 | GW71: 1 | GX71: 1 | GY71: 1 | GZ71: 1 | HA71: 1 | HB71: 1 | HC71: 1 | HD71: 1 | HE71: 1 | HF71: 1 | HG71: 1 | HH71: 1 | HI71: 1 | HJ71: 1 | HK71: 1 | HL71: 1 | HM71: 1 | HN71: 1 | HO71: 1 | HP71: 1 | HQ71: 1 | HR71: 1 | HS71: 1 | HT71: 1 | HU71: 1 | HV71: 228
A72: 2018 | B72: 1 | C72: 1 | D72: 1 | E72: 1 | F72: 1 | G72: 1 | H72: 1 | I72: 1 | J72: 1 | K72: 1 | L72: 1 | M72: 1 | N72: 1 | O72: 1 | P72: 1 | Q72: 1 | R72: 1 | S72: 1 | T72: 1 | U72: 1 | V72: 1 | W72: 1 | X72: 1 | Y72: 1 | Z72: 1 | AA72: 1 | AB72: 1 | AC72: 1 | AD72: 1 | AE72: 1 | AF72: 1 | AG72: 1 | AH72: 1 | AI72: 1 | AJ72: 1 | AK72: 1 | AL72: 1 | AM72: 1 | AN72: 1 | AO72: 1 | AP72: 1 | AQ72: 1 | AR72: 1 | AS72: 1 | AT72: 1 | AU72: 1 | AV72: 1 | AW72: 1 | AX72: 1 | AY72: 1 | AZ72: 1 | BA72: 1 | BB72: 1 | BC72: 1 | BD72: 1 | BE72: 1 | BF72: 1 | BG72: 1 | BH72: 1 | BI72: 1 | BJ72: 1 | BK72: 1 | BL72: 1 | BM72: 1 | BN72: 1 | BO72: 1 | BP72: 1 | BQ72: 1 | BR72: 1 | BS72: 1 | BT72: 1 | BU72: 1 | BV72: 1 | BW72: 1 | BX72: 1 | BY72: 1 | BZ72: 1 | CA72: 1 | CB72: 1 | CC72: 1 | CD72: 1 | CE72: 1 | CF72: 1 | CG72: 1 | CH72: 1 | CI72: 1 | CJ72: 1 | CK72: 1 | CL72: 1 | CM72: 1 | CN72: 1 | CO72: 1 | CP72: 1 | CQ72: 1 | CR72: 1 | CS72: 1 | CT72: 1 | CU72: 1 | CV72: 1 | CW72: 1 | CX72: 1 | CY72: 1 | CZ72: 1 | DA72: 1 | DB72: 1 | DC72: 1 | DD72: 1 | DE72: 1 | DF72: 1 | DG72: 1 | DH72: 1 | DI72: 1 | DJ72: 1 | DK72: 1 | DL72: 1 | DM72: 1 | DN72: 1 | DO72: 1 | DP72: 1 | DQ72: 1 | DR72: 1 | DS72: 1 | DT72: 1 | DU72: 1 | DV72: 1 | DW72: 1 | DX72: 1 | DY72: 1 | DZ72: 1 | EA72: 1 | EB72: 1 | EC72: 1 | ED72: 1 | EE72: 1 | EF72: 1 | EG72: 1 | EH72: 1 | EI72: 1 | EJ72: 1 | EK72: 1 | EL72: 1 | EM72: 1 | EN72: 1 | EO72: 1 | EP72: 1 | EQ72: 1 | ER72: 1 | ES72: 1 | ET72: 1 | EU72: 1 | EV72: 1 | EW72: 1 | EX72: 1 | EY72: 1 | EZ72: 1 | FA72: 1 | FB72: 1 | FC72: 1 | FD72: 1 | FE72: 1 | FF72: 1 | FG72: 1 | FH72: 1 | FI72: 1 | FJ72: 1 | FK72: 1 | FL72: 1 | FM72: 1 | FN72: 1 | FO72: 1 | FP72: 1 | FQ72: 1 | FR72: 1 | FS72: 1 | FT72: 1 | FU72: 1 | FV72: 1 | FW72: 1 | FX72: 1 | FY72: 1 | FZ72: 1 | GA72: 1 | GB72: 1 | GC72: 1 | GD72: 1 | GE72: 1 | GF72: 1 | GG72: 1 | GH72: 1 | GI72: 1 | GJ72: 1 | GK72: 1 | GL72: 1 | GM72: 1 | GN72: 1 | GO72: 1 | GP72: 1 | GQ72: 1 | GR72: 1 | GS72: 1 | GT72: 1 | GU72: 1 | GV72: 1 | GW72: 1 | GX72: 1 | GY72: 1 | GZ72: 1 | HA72: 1 | HB72: 1 | HC72: 1 | HD72: 1 | HE72: 1 | HF72: 1 | HG72: 1 | HH72: 1 | HI72: 1 | HJ72: 1 | HK72: 1 | HL72: 1 | HM72: 1 | HN72: 1 | HO72: 1 | HP72: 1 | HQ72: 1 | HR72: 1 | HS72: 1 | HT72: 1 | HU72: 1 | HV72: 228
A73: 2019 | B73: 1 | C73: 1 | D73: 1 | E73: 1 | F73: 1 | G73: 1 | H73: 1 | I73: 1 | J73: 1 | K73: 1 | L73: 1 | M73: 1 | N73: 1 | O73: 1 | P73: 1 | Q73: 1 | R73: 1 | S73: 1 | T73: 1 | U73: 1 | V73: 1 | W73: 1 | X73: 1 | Y73: 1 | Z73: 1 | AA73: 1 | AB73: 1 | AC73: 1 | AD73: 1 | AE73: 1 | AF73: 1 | AG73: 1 | AH73: 1 | AI73: 1 | AJ73: 1 | AK73: 1 | AL73: 1 | AM73: 1 | AN73: 1 | AO73: 1 | AP73: 1 | AQ73: 1 | AR73: 1 | AS73: 1 | AT73: 1 | AU73: 1 | AV73: 1 | AW73: 1 | AX73: 1 | AY73: 1 | AZ73: 1 | BA73: 1 | BB73: 1 | BC73: 1 | BD73: 1 | BE73: 1 | BF73: 1 | BG73: 1 | BH73: 1 | BI73: 1 | BJ73: 1 | BK73: 1 | BL73: 1 | BM73: 1 | BN73: 1 | BO73: 1 | BP73: 1 | BQ73: 1 | BR73: 1 | BS73: 1 | BT73: 1 | BU73: 1 | BV73: 1 | BW73: 1 | BX73: 1 | BY73: 1 | BZ73: 1 | CA73: 1 | CB73: 1 | CC73: 1 | CD73: 1 | CE73: 1 | CF73: 1 | CG73: 1 | CH73: 1 | CI73: 1 | CJ73: 1 | CK73: 1 | CL73: 1 | CM73: 1 | CN73: 1 | CO73: 1 | CP73: 1 | CQ73: 1 | CR73: 1 | CS73: 1 | CT73: 1 | CU73: 1 | CV73: 1 | CW73: 1 | CX73: 1 | CY73: 1 | CZ73: 1 | DA73: 1 | DB73: 1 | DC73: 1 | DD73: 1 | DE73: 1 | DF73: 1 | DG73: 1 | DH73: 1 | DI73: 1 | DJ73: 1 | DK73: 1 | DL73: 1 | DM73: 1 | DN73: 1 | DO73: 1 | DP73: 1 | DQ73: 1 | DR73: 1 | DS73: 1 | DT73: 1 | DU73: 1 | DV73: 1 | DW73: 1 | DX73: 1 | DY73: 1 | DZ73: 1 | EA73: 1 | EB73: 1 | EC73: 1 | ED73: 1 | EE73: 1 | EF73: 1 | EG73: 1 | EH73: 1 | EI73: 1 | EJ73: 1 | EK73: 1 | EL73: 1 | EM73: 1 | EN73: 1 | EO73: 1 | EP73: 1 | EQ73: 1 | ER73: 1 | ES73: 1 | ET73: 1 | EU73: 1 | EV73: 1 | EW73: 1 | EX73: 1 | EY73: 1 | EZ73: 1 | FA73: 1 | FB73: 1 | FC73: 1 | FD73: 1 | FE73: 1 | FF73: 1 | FG73: 1 | FH73: 1 | FI73: 1 | FJ73: 1 | FK73: 1 | FL73: 1 | FM73: 1 | FN73: 1 | FO73: 1 | FP73: 1 | FQ73: 1 | FR73: 1 | FS73: 1 | FT73: 1 | FU73: 1 | FV73: 1 | FW73: 1 | FX73: 1 | FY73: 1 | FZ73: 1 | GA73: 1 | GB73: 1 | GC73: 1 | GD73: 1 | GE73: 1 | GF73: 1 | GG73: 1 | GH73: 1 | GI73: 1 | GJ73: 1 | GK73: 1 | GL73: 1 | GM73: 1 | GN73: 1 | GO73: 1 | GP73: 1 | GQ73: 1 | GR73: 1 | GS73: 1 | GT73: 1 | GU73: 1 | GV73: 1 | GW73: 1 | GX73: 1 | GY73: 1 | GZ73: 1 | HA73: 1 | HB73: 1 | HC73: 1 | HD73: 1 | HE73: 1 | HF73: 1 | HG73: 1 | HH73: 1 | HI73: 1 | HJ73: 1 | HK73: 1 | HL73: 1 | HM73: 1 | HN73: 1 | HO73: 1 | HP73: 1 | HQ73: 1 | HR73: 1 | HS73: 1 | HT73: 1 | HU73: 1 | HV73: 228
A74: 2020 | B74: 1 | C74: 1 | D74: 1 | E74: 1 | F74: 1 | G74: 1 | H74: 1 | I74: 1 | J74: 1 | K74: 1 | L74: 1 | M74: 1 | N74: 1 | O74: 1 | P74: 1 | Q74: 1 | R74: 1 | S74: 1 | T74: 1 | U74: 1 | V74: 1 | W74: 1 | X74: 1 | Y74: 1 | Z74: 1 | AA74: 1 | AB74: 1 | AC74: 1 | AD74: 1 | AE74: 1 | AF74: 1 | AG74: 1 | AH74: 1 | AI74: 1 | AJ74: 1 | AK74: 1 | AL74: 1 | AM74: 1 | AN74: 1 | AO74: 1 | AP74: 1 | AQ74: 1 | AR74: 1 | AS74: 1 | AT74: 1 | AU74: 1 | AV74: 1 | AW74: 1 | AX74: 1 | AY74: 1 | AZ74: 1 | BA74: 1 | BB74: 1 | BC74: 1 | BD74: 1 | BE74: 1 | BF74: 1 | BG74: 1 | BH74: 1 | BI74: 1 | BJ74: 1 | BK74: 1 | BL74: 1 | BM74: 1 | BN74: 1 | BO74: 1 | BP74: 1 | BQ74: 1 | BR74: 1 | BS74: 1 | BT74: 1 | BU74: 1 | BV74: 1 | BW74: 1 | BX74: 1 | BY74: 1 | BZ74: 1 | CA74: 1 | CB74: 1 | CC74: 1 | CD74: 1 | CE74: 1 | CF74: 1 | CG74: 1 | CH74: 1 | CI74: 1 | CJ74: 1 | CK74: 1 | CL74: 1 | CM74: 1 | CN74: 1 | CO74: 1 | CP74: 1 | CQ74: 1 | CR74: 1 | CS74: 1 | CT74: 1 | CU74: 1 | CV74: 1 | CW74: 1 | CX74: 1 | CY74: 1 | CZ74: 1 | DA74: 1 | DB74: 1 | DC74: 1 | DD74: 1 | DE74: 1 | DF74: 1 | DG74: 1 | DH74: 1 | DI74: 1 | DJ74: 1 | DK74: 1 | DL74: 1 | DM74: 1 | DN74: 1 | DO74: 1 | DP74: 1 | DQ74: 1 | DR74: 1 | DS74: 1 | DT74: 1 | DU74: 1 | DV74: 1 | DW74: 1 | DX74: 1 | DY74: 1 | DZ74: 1 | EA74: 1 | EB74: 1 | EC74: 1 | ED74: 1 | EE74: 1 | EF74: 1 | EG74: 1 | EH74: 1 | EI74: 1 | EJ74: 1 | EK74: 1 | EL74: 1 | EM74: 1 | EN74: 1 | EO74: 1 | EP74: 1 | EQ74: 1 | ER74: 1 | ES74: 1 | ET74: 1 | EU74: 1 | EV74: 1 | EW74: 1 | EX74: 1 | EY74: 1 | EZ74: 1 | FA74: 1 | FB74: 1 | FC74: 1 | FD74: 1 | FE74: 1 | FF74: 1 | FG74: 1 | FH74: 1 | FI74: 1 | FJ74: 1 | FK74: 1 | FL74: 1 | FM74: 1 | FN74: 1 | FO74: 1 | FP74: 1 | FQ74: 1 | FR74: 1 | FS74: 1 | FT74: 1 | FU74: 1 | FV74: 1 | FW74: 1 | FX74: 1 | FY74: 1 | FZ74: 1 | GA74: 1 | GB74: 1 | GC74: 1 | GD74: 1 | GE74: 1 | GF74: 1 | GG74: 1 | GH74: 1 | GI74: 1 | GJ74: 1 | GK74: 1 | GL74: 1 | GM74: 1 | GN74: 1 | GO74: 1 | GP74: 1 | GQ74: 1 | GR74: 1 | GS74: 1 | GT74: 1 | GU74: 1 | GV74: 1 | GW74: 1 | GX74: 1 | GY74: 1 | GZ74: 1 | HA74: 1 | HB74: 1 | HC74: 1 | HD74: 1 | HE74: 1 | HF74: 1 | HG74: 1 | HH74: 1 | HI74: 1 | HJ74: 1 | HK74: 1 | HL74: 1 | HM74: 1 | HN74: 1 | HO74: 1 | HP74: 1 | HQ74: 1 | HR74: 1 | HS74: 1 | HT74: 1 | HU74: 1 | HV74: 228
A75: 2021 | B75: 1 | C75: 1 | D75: 1 | E75: 1 | F75: 1 | G75: 1 | H75: 1 | I75: 1 | J75: 1 | K75: 1 | L75: 1 | M75: 1 | N75: 1 | O75: 1 | P75: 1 | Q75: 1 | R75: 1 | S75: 1 | T75: 1 | U75: 1 | V75: 1 | W75: 1 | X75: 1 | Y75: 1 | Z75: 1 | AA75: 1 | AB75: 1 | AC75: 1 | AD75: 1 | AE75: 1 | AF75: 1 | AG75: 1 | AH75: 1 | AI75: 1 | AJ75: 1 | AK75: 1 | AL75: 1 | AM75: 1 | AN75: 1 | AO75: 1 | AP75: 1 | AQ75: 1 | AR75: 1 | AS75: 1 | AT75: 1 | AU75: 1 | AV75: 1 | AW75: 1 | AX75: 1 | AY75: 1 | AZ75: 1 | BA75: 1 | BB75: 1 | BC75: 1 | BD75: 1 | BE75: 1 | BF75: 1 | BG75: 1 | BH75: 1 | BI75: 1 | BJ75: 1 | BK75: 1 | BL75: 1 | BM75: 1 | BN75: 1 | BO75: 1 | BP75: 1 | BQ75: 1 | BR75: 1 | BS75: 1 | BT75: 1 | BU75: 1 | BV75: 1 | BW75: 1 | BX75: 1 | BY75: 1 | BZ75: 1 | CA75: 1 | CB75: 1 | CC75: 1 | CD75: 1 | CE75: 1 | CF75: 1 | CG75: 1 | CH75: 1 | CI75: 1 | CJ75: 1 | CK75: 1 | CL75: 1 | CM75: 1 | CN75: 1 | CO75: 1 | CP75: 1 | CQ75: 1 | CR75: 1 | CS75: 1 | CT75: 1 | CU75: 1 | CV75: 1 | CW75: 1 | CX75: 1 | CY75: 1 | CZ75: 1 | DA75: 1 | DB75: 1 | DC75: 1 | DD75: 1 | DE75: 1 | DF75: 1 | DG75: 1 | DH75: 1 | DI75: 1 | DJ75: 1 | DK75: 1 | DL75: 1 | DM75: 1 | DN75: 1 | DO75: 1 | DP75: 1 | DQ75: 1 | DR75: 1 | DS75: 1 | DT75: 1 | DU75: 1 | DV75: 1 | DW75: 1 | DX75: 1 | DY75: 1 | DZ75: 1 | EA75: 1 | EB75: 1 | EC75: 1 | ED75: 1 | EE75: 1 | EF75: 1 | EG75: 1 | EH75: 1 | EI75: 1 | EJ75: 1 | EK75: 1 | EL75: 1 | EM75: 1 | EN75: 1 | EO75: 1 | EP75: 1 | EQ75: 1 | ER75: 1 | ES75: 1 | ET75: 1 | EU75: 1 | EV75: 1 | EW75: 1 | EX75: 1 | EY75: 1 | EZ75: 1 | FA75: 1 | FB75: 1 | FC75: 1 | FD75: 1 | FE75: 1 | FF75: 1 | FG75: 1 | FH75: 1 | FI75: 1 | FJ75: 1 | FK75: 1 | FL75: 1 | FM75: 1 | FN75: 1 | FO75: 1 | FP75: 1 | FQ75: 1 | FR75: 1 | FS75: 1 | FT75: 1 | FU75: 1 | FV75: 1 | FW75: 1 | FX75: 1 | FY75: 1 | FZ75: 1 | GA75: 1 | GB75: 1 | GC75: 1 | GD75: 1 | GE75: 1 | GF75: 1 | GG75: 1 | GH75: 1 | GI75: 1 | GJ75: 1 | GK75: 1 | GL75: 1 | GM75: 1 | GN75: 1 | GO75: 1 | GP75: 1 | GQ75: 1 | GR75: 1 | GS75: 1 | GT75: 1 | GU75: 1 | GV75: 1 | GW75: 1 | GX75: 1 | GY75: 1 | GZ75: 1 | HA75: 1 | HB75: 1 | HC75: 1 | HD75: 1 | HE75: 1 | HF75: 1 | HG75: 1 | HH75: 1 | HI75: 1 | HJ75: 1 | HK75: 1 | HL75: 1 | HM75: 1 | HN75: 1 | HO75: 1 | HP75: 1 | HQ75: 1 | HR75: 1 | HS75: 1 | HT75: 1 | HU75: 1 | HV75: 228
A76: 2022 | B76: 1 | C76: 1 | D76: 1 | E76: 1 | F76: 1 | G76: 1 | H76: 1 | I76: 1 | J76: 1 | K76: 1 | L76: 1 | M76: 1 | N76: 1 | O76: 1 | P76: 1 | Q76: 1 | R76: 1 | S76: 1 | T76: 1 | U76: 1 | V76: 1 | W76: 1 | X76: 1 | Y76: 1 | Z76: 1 | AA76: 1 | AB76: 1 | AC76: 1 | AD76: 1 | AE76: 1 | AF76: 1 | AG76: 1 | AH76: 1 | AI76: 1 | AJ76: 1 | AK76: 1 | AL76: 1 | AM76: 1 | AN76: 1 | AO76: 1 | AP76: 1 | AQ76: 1 | AR76: 1 | AS76: 1 | AT76: 1 | AU76: 1 | AV76: 1 | AW76: 1 | AX76: 1 | AY76: 1 | AZ76: 1 | BA76: 1 | BB76: 1 | BC76: 1 | BD76: 1 | BE76: 1 | BF76: 1 | BG76: 1 | BH76: 1 | BI76: 1 | BJ76: 1 | BK76: 1 | BL76: 1 | BM76: 1 | BN76: 1 | BO76: 1 | BP76: 1 | BQ76: 1 | BR76: 1 | BS76: 1 | BT76: 1 | BU76: 1 | BV76: 1 | BW76: 1 | BX76: 1 | BY76: 1 | BZ76: 1 | CA76: 1 | CB76: 1 | CC76: 1 | CD76: 1 | CE76: 1 | CF76: 1 | CG76: 1 | CH76: 1 | CI76: 1 | CJ76: 1 | CK76: 1 | CL76: 1 | CM76: 1 | CN76: 1 | CO76: 1 | CP76: 1 | CQ76: 1 | CR76: 1 | CS76: 1 | CT76: 1 | CU76: 1 | CV76: 1 | CW76: 1 | CX76: 1 | CY76: 1 | CZ76: 1 | DA76: 1 | DB76: 1 | DC76: 1 | DD76: 1 | DE76: 1 | DF76: 1 | DG76: 1 | DH76: 1 | DI76: 1 | DJ76: 1 | DK76: 1 | DL76: 1 | DM76: 1 | DN76: 1 | DO76: 1 | DP76: 1 | DQ76: 1 | DR76: 1 | DS76: 1 | DT76: 1 | DU76: 1 | DV76: 1 | DW76: 1 | DX76: 1 | DY76: 1 | DZ76: 1 | EA76: 1 | EB76: 1 | EC76: 1 | ED76: 1 | EE76: 1 | EF76: 1 | EG76: 1 | EH76: 1 | EI76: 1 | EJ76: 1 | EK76: 1 | EL76: 1 | EM76: 1 | EN76: 1 | EO76: 1 | EP76: 1 | EQ76: 1 | ER76: 1 | ES76: 1 | ET76: 1 | EU76: 1 | EV76: 1 | EW76: 1 | EX76: 1 | EY76: 1 | EZ76: 1 | FA76: 1 | FB76: 1 | FC76: 1 | FD76: 1 | FE76: 1 | FF76: 1 | FG76: 1 | FH76: 1 | FI76: 1 | FJ76: 1 | FK76: 1 | FL76: 1 | FM76: 1 | FN76: 1 | FO76: 1 | FP76: 1 | FQ76: 1 | FR76: 1 | FS76: 1 | FT76: 1 | FU76: 1 | FV76: 1 | FW76: 1 | FX76: 1 | FY76: 1 | FZ76: 1 | GA76: 1 | GB76: 1 | GC76: 1 | GD76: 1 | GE76: 1 | GF76: 1 | GG76: 1 | GH76: 1 | GI76: 1 | GJ76: 1 | GK76: 1 | GL76: 1 | GM76: 1 | GN76: 1 | GO76: 1 | GP76: 1 | GQ76: 1 | GR76: 1 | GS76: 1 | GT76: 1 | GU76: 1 | GV76: 1 | GW76: 1 | GX76: 1 | GY76: 1 | GZ76: 1 | HA76: 1 | HB76: 1 | HC76: 1 | HD76: 1 | HE76: 1 | HF76: 1 | HG76: 1 | HH76: 1 | HI76: 1 | HJ76: 1 | HK76: 1 | HL76: 1 | HM76: 1 | HN76: 1 | HO76: 1 | HP76: 1 | HQ76: 1 | HR76: 1 | HS76: 1 | HT76: 1 | HU76: 1 | HV76: 228
A77: 2023 | B77: 1 | C77: 1 | D77: 1 | E77: 1 | F77: 1 | G77: 1 | H77: 1 | I77: 1 | J77: 1 | K77: 1 | L77: 1 | M77: 1 | N77: 1 | O77: 1 | P77: 1 | Q77: 1 | R77: 1 | S77: 1 | T77: 1 | U77: 1 | V77: 1 | W77: 1 | X77: 1 | Y77: 1 | Z77: 1 | AA77: 1 | AB77: 1 | AC77: 1 | AD77: 1 | AE77: 1 | AF77: 1 | AG77: 1 | AH77: 1 | AI77: 1 | AJ77: 1 | AK77: 1 | AL77: 1 | AM77: 1 | AN77: 1 | AO77: 1 | AP77: 1 | AQ77: 1 | AR77: 1 | AS77: 1 | AT77: 1 | AU77: 1 | AV77: 1 | AW77: 1 | AX77: 1 | AY77: 1 | AZ77: 1 | BA77: 1 | BB77: 1 | BC77: 1 | BD77: 1 | BE77: 1 | BF77: 1 | BG77: 1 | BH77: 1 | BI77: 1 | BJ77: 1 | BK77: 1 | BL77: 1 | BM77: 1 | BN77: 1 | BO77: 1 | BP77: 1 | BQ77: 1 | BR77: 1 | BS77: 1 | BT77: 1 | BU77: 1 | BV77: 1 | BW77: 1 | BX77: 1 | BY77: 1 | BZ77: 1 | CA77: 1 | CB77: 1 | CC77: 1 | CD77: 1 | CE77: 1 | CF77: 1 | CG77: 1 | CH77: 1 | CI77: 1 | CJ77: 1 | CK77: 1 | CL77: 1 | CM77: 1 | CN77: 1 | CO77: 1 | CP77: 1 | CQ77: 1 | CR77: 1 | CS77: 1 | CT77: 1 | CU77: 1 | CV77: 1 | CW77: 1 | CX77: 1 | CY77: 1 | CZ77: 1 | DA77: 1 | DB77: 1 | DC77: 1 | DD77: 1 | DE77: 1 | DF77: 1 | DG77: 1 | DH77: 1 | DI77: 1 | DJ77: 1 | DK77: 1 | DL77: 1 | DM77: 1 | DN77: 1 | DO77: 1 | DP77: 1 | DQ77: 1 | DR77: 1 | DS77: 1 | DT77: 1 | DU77: 1 | DV77: 1 | DW77: 1 | DX77: 1 | DY77: 1 | DZ77: 1 | EA77: 1 | EB77: 1 | EC77: 1 | ED77: 1 | EE77: 1 | EF77: 1 | EG77: 1 | EH77: 1 | EI77: 1 | EJ77: 1 | EK77: 1 | EL77: 1 | EM77: 1 | EN77: 1 | EO77: 1 | EP77: 1 | EQ77: 1 | ER77: 1 | ES77: 1 | ET77: 1 | EU77: 1 | EV77: 1 | EW77: 1 | EX77: 1 | EY77: 1 | EZ77: 1 | FA77: 1 | FB77: 1 | FC77: 1 | FD77: 1 | FE77: 1 | FF77: 1 | FG77: 1 | FH77: 1 | FI77: 1 | FJ77: 1 | FK77: 1 | FL77: 1 | FM77: 1 | FN77: 1 | FO77: 1 | FP77: 1 | FQ77: 1 | FR77: 1 | FS77: 1 | FT77: 1 | FU77: 1 | FV77: 1 | FW77: 1 | FX77: 1 | FY77: 1 | FZ77: 1 | GA77: 1 | GB77: 1 | GC77: 1 | GD77: 1 | GE77: 1 | GF77: 1 | GG77: 1 | GH77: 1 | GI77: 1 | GJ77: 1 | GK77: 1 | GL77: 1 | GM77: 1 | GN77: 1 | GO77: 1 | GP77: 1 | GQ77: 1 | GR77: 1 | GS77: 1 | GT77: 1 | GU77: 1 | GV77: 1 | GW77: 1 | GX77: 1 | GY77: 1 | GZ77: 1 | HA77: 1 | HB77: 1 | HC77: 1 | HD77: 1 | HE77: 1 | HF77: 1 | HG77: 1 | HH77: 1 | HI77: 1 | HJ77: 1 | HK77: 1 | HL77: 1 | HM77: 1 | HN77: 1 | HO77: 1 | HP77: 1 | HQ77: 1 | HR77: 1 | HS77: 1 | HT77: 1 | HU77: 1 | HV77: 228
A78: 2024 | B78: 1 | C78: 1 | D78: 1 | E78: 1 | F78: 1 | G78: 1 | H78: 1 | I78: 1 | J78: 1 | K78: 1 | L78: 1 | M78: 1 | N78: 1 | O78: 1 | P78: 1 | Q78: 1 | R78: 1 | S78: 1 | T78: 1 | U78: 1 | V78: 1 | W78: 1 | X78: 1 | Y78: 1 | Z78: 1 | AA78: 1 | AB78: 1 | AC78: 1 | AD78: 1 | AE78: 1 | AF78: 1 | AG78: 1 | AH78: 1 | AI78: 1 | AJ78: 1 | AK78: 1 | AL78: 1 | AM78: 1 | AN78: 1 | AO78: 1 | AP78: 1 | AQ78: 1 | AR78: 1 | AS78: 1 | AT78: 1 | AU78: 1 | AV78: 1 | AW78: 1 | AX78: 1 | AY78: 1 | AZ78: 1 | BA78: 1 | BB78: 1 | BC78: 1 | BD78: 1 | BE78: 1 | BF78: 1 | BG78: 1 | BH78: 1 | BI78: 1 | BJ78: 1 | BK78: 1 | BL78: 1 | BM78: 1 | BN78: 1 | BO78: 1 | BP78: 1 | BQ78: 1 | BR78: 1 | BS78: 1 | BT78: 1 | BU78: 1 | BV78: 1 | BW78: 1 | BX78: 1 | BY78: 1 | BZ78: 1 | CA78: 1 | CB78: 1 | CC78: 1 | CD78: 1 | CE78: 1 | CF78: 1 | CG78: 1 | CH78: 1 | CI78: 1 | CJ78: 1 | CK78: 1 | CL78: 1 | CM78: 1 | CN78: 1 | CO78: 1 | CP78: 1 | CQ78: 1 | CR78: 1 | CS78: 1 | CT78: 1 | CU78: 1 | CV78: 1 | CW78: 1 | CX78: 1 | CY78: 1 | CZ78: 1 | DA78: 1 | DB78: 1 | DC78: 1 | DD78: 1 | DE78: 1 | DF78: 1 | DG78: 1 | DH78: 1 | DI78: 1 | DJ78: 1 | DK78: 1 | DL78: 1 | DM78: 1 | DN78: 1 | DO78: 1 | DP78: 1 | DQ78: 1 | DR78: 1 | DS78: 1 | DT78: 1 | DU78: 1 | DV78: 1 | DW78: 1 | DX78: 1 | DY78: 1 | DZ78: 1 | EA78: 1 | EB78: 1 | EC78: 1 | ED78: 1 | EE78: 1 | EF78: 1 | EG78: 1 | EH78: 1 | EI78: 1 | EJ78: 1 | EK78: 1 | EL78: 1 | EM78: 1 | EN78: 1 | EO78: 1 | EP78: 1 | EQ78: 1 | ER78: 1 | ES78: 1 | ET78: 1 | EU78: 1 | EV78: 1 | EW78: 1 | EX78: 1 | EY78: 1 | EZ78: 1 | FA78: 1 | FB78: 1 | FC78: 1 | FD78: 1 | FE78: 1 | FF78: 1 | FG78: 1 | FH78: 1 | FI78: 1 | FJ78: 1 | FK78: 1 | FL78: 1 | FM78: 1 | FN78: 1 | FO78: 1 | FP78: 1 | FQ78: 1 | FR78: 1 | FS78: 1 | FT78: 1 | FU78: 1 | FV78: 1 | FW78: 1 | FX78: 1 | FY78: 1 | FZ78: 1 | GA78: 1 | GB78: 1 | GC78: 1 | GD78: 1 | GE78: 1 | GF78: 1 | GG78: 1 | GH78: 1 | GI78: 1 | GJ78: 1 | GK78: 1 | GL78: 1 | GM78: 1 | GN78: 1 | GO78: 1 | GP78: 1 | GQ78: 1 | GR78: 1 | GS78: 1 | GT78: 1 | GU78: 1 | GV78: 1 | GW78: 1 | GX78: 1 | GY78: 1 | GZ78: 1 | HA78: 1 | HB78: 1 | HC78: 1 | HD78: 1 | HE78: 1 | HF78: 1 | HG78: 1 | HH78: 1 | HI78: 1 | HJ78: 1 | HK78: 1 | HL78: 1 | HM78: 1 | HN78: 1 | HO78: 1 | HP78: 1 | HQ78: 1 | HR78: 1 | HS78: 1 | HT78: 1 | HU78: 1 | HV78: 228
A79: 2025 | B79: 1 | C79: 1 | D79: 1 | E79: 1 | F79: 1 | G79: 1 | H79: 1 | I79: 1 | J79: 1 | K79: 1 | L79: 1 | M79: 1 | N79: 1 | O79: 1 | P79: 1 | Q79: 1 | R79: 1 | S79: 1 | T79: 1 | U79: 1 | V79: 1 | W79: 1 | X79: 1 | Y79: 1 | Z79: 1 | AA79: 1 | AB79: 1 | AC79: 1 | AD79: 1 | AE79: 1 | AF79: 1 | AG79: 1 | AH79: 1 | AI79: 1 | AJ79: 1 | AK79: 1 | AL79: 1 | AM79: 1 | AN79: 1 | AO79: 1 | AP79: 1 | AQ79: 1 | AR79: 1 | AS79: 1 | AT79: 1 | AU79: 1 | AV79: 1 | AW79: 1 | AX79: 1 | AY79: 1 | AZ79: 1 | BA79: 1 | BB79: 1 | BC79: 1 | BD79: 1 | BE79: 1 | BF79: 1 | BG79: 1 | BH79: 1 | BI79: 1 | BJ79: 1 | BK79: 1 | BL79: 1 | BM79: 1 | BN79: 1 | BO79: 1 | BP79: 1 | BQ79: 1 | BR79: 1 | BS79: 1 | BT79: 1 | BU79: 1 | BV79: 1 | BW79: 1 | BX79: 1 | BY79: 1 | BZ79: 1 | CA79: 1 | CB79: 1 | CC79: 1 | CD79: 1 | CE79: 1 | CF79: 1 | CG79: 1 | CH79: 1 | CI79: 1 | CJ79: 1 | CK79: 1 | CL79: 1 | CM79: 1 | CN79: 1 | CO79: 1 | CP79: 1 | CQ79: 1 | CR79: 1 | CS79: 1 | CT79: 1 | CU79: 1 | CV79: 1 | CW79: 1 | CX79: 1 | CY79: 1 | CZ79: 1 | DA79: 1 | DB79: 1 | DC79: 1 | DD79: 1 | DE79: 1 | DF79: 1 | DG79: 1 | DH79: 1 | DI79: 1 | DJ79: 1 | DK79: 1 | DL79: 1 | DM79: 1 | DN79: 1 | DO79: 1 | DP79: 1 | DQ79: 1 | DR79: 1 | DS79: 1 | DT79: 1 | DU79: 1 | DV79: 1 | DW79: 1 | DX79: 1 | DY79: 1 | DZ79: 1 | EA79: 1 | EB79: 1 | EC79: 1 | ED79: 1 | EE79: 1 | EF79: 1 | EG79: 1 | EH79: 1 | EI79: 1 | EJ79: 1 | EK79: 1 | EL79: 1 | EM79: 1 | EN79: 1 | EO79: 1 | EP79: 1 | EQ79: 1 | ER79: 1 | ES79: 1 | ET79: 1 | EU79: 1 | EV79: 1 | EW79: 1 | EX79: 1 | EY79: 1 | EZ79: 1 | FA79: 1 | FB79: 1 | FC79: 1 | FD79: 1 | FE79: 1 | FF79: 1 | FG79: 1 | FH79: 1 | FI79: 1 | FJ79: 1 | FK79: 1 | FL79: 1 | FM79: 1 | FN79: 1 | FO79: 1 | FP79: 1 | FQ79: 1 | FR79: 1 | FS79: 1 | FT79: 1 | FU79: 1 | FV79: 1 | FW79: 1 | FX79: 1 | FY79: 1 | FZ79: 1 | GA79: 1 | GB79: 1 | GC79: 1 | GD79: 1 | GE79: 1 | GF79: 1 | GG79: 1 | GH79: 1 | GI79: 1 | GJ79: 1 | GK79: 1 | GL79: 1 | GM79: 1 | GN79: 1 | GO79: 1 | GP79: 1 | GQ79: 1 | GR79: 1 | GS79: 1 | GT79: 1 | GU79: 1 | GV79: 1 | GW79: 1 | GX79: 1 | GY79: 1 | GZ79: 1 | HA79: 1 | HB79: 1 | HC79: 1 | HD79: 1 | HE79: 1 | HF79: 1 | HG79: 1 | HH79: 1 | HI79: 1 | HJ79: 1 | HK79: 1 | HL79: 1 | HM79: 1 | HN79: 1 | HO79: 1 | HP79: 1 | HQ79: 1 | HR79: 1 | HS79: 1 | HT79: 1 | HU79: 1 | HV79: 228
A80: 2026 | B80: 1 | C80: 1 | D80: 1 | E80: 1 | F80: 1 | G80: 1 | H80: 1 | I80: 1 | J80: 1 | K80: 1 | L80: 1 | M80: 1 | N80: 1 | O80: 1 | P80: 1 | Q80: 1 | R80: 1 | S80: 1 | T80: 1 | U80: 1 | V80: 1 | W80: 1 | X80: 1 | Y80: 1 | Z80: 1 | AA80: 1 | AB80: 1 | AC80: 1 | AD80: 1 | AE80: 1 | AF80: 1 | AG80: 1 | AH80: 1 | AI80: 1 | AJ80: 1 | AK80: 1 | AL80: 1 | AM80: 1 | AN80: 1 | AO80: 1 | AP80: 1 | AQ80: 1 | AR80: 1 | AS80: 1 | AT80: 1 | AU80: 1 | AV80: 1 | AW80: 1 | AX80: 1 | AY80: 1 | AZ80: 1 | BA80: 1 | BB80: 1 | BC80: 1 | BD80: 1 | BE80: 1 | BF80: 1 | BG80: 1 | BH80: 1 | BI80: 1 | BJ80: 1 | BK80: 1 | BL80: 1 | BM80: 1 | BN80: 1 | BO80: 1 | BP80: 1 | BQ80: 1 | BR80: 1 | BS80: 1 | BT80: 1 | BU80: 1 | BV80: 1 | BW80: 1 | BX80: 1 | BY80: 1 | BZ80: 1 | CA80: 1 | CB80: 1 | CC80: 1 | CD80: 1 | CE80: 1 | CF80: 1 | CG80: 1 | CH80: 1 | CI80: 1 | CJ80: 1 | CK80: 1 | CL80: 1 | CM80: 1 | CN80: 1 | CO80: 1 | CP80: 1 | CQ80: 1 | CR80: 1 | CS80: 1 | CT80: 1 | CU80: 1 | CV80: 1 | CW80: 1 | CX80: 1 | CY80: 1 | CZ80: 1 | DA80: 1 | DB80: 1 | DC80: 1 | DD80: 1 | DE80: 1 | DF80: 1 | DG80: 1 | DH80: 1 | DI80: 1 | DJ80: 1 | DK80: 1 | DL80: 1 | DM80: 1 | DN80: 1 | DO80: 1 | DP80: 1 | DQ80: 1 | DR80: 1 | DS80: 1 | DT80: 1 | DU80: 1 | DV80: 1 | DW80: 1 | DX80: 1 | DY80: 1 | DZ80: 1 | EA80: 1 | EB80: 1 | EC80: 1 | ED80: 1 | EE80: 1 | EF80: 1 | EG80: 1 | EH80: 1 | EI80: 1 | EJ80: 1 | EK80: 1 | EL80: 1 | EM80: 1 | EN80: 1 | EO80: 1 | EP80: 1 | EQ80: 1 | ER80: 1 | ES80: 1 | ET80: 1 | EU80: 1 | EV80: 1 | EW80: 1 | EX80: 1 | EY80: 1 | EZ80: 1 | FA80: 1 | FB80: 1 | FC80: 1 | FD80: 1 | FE80: 1 | FF80: 1 | FG80: 1 | FH80: 1 | FI80: 1 | FJ80: 1 | FK80: 1 | FL80: 1 | FM80: 1 | FN80: 1 | FO80: 1 | FP80: 1 | FQ80: 1 | FR80: 1 | FS80: 1 | FT80: 1 | FU80: 1 | FV80: 1 | FW80: 1 | FX80: 1 | FY80: 1 | FZ80: 1 | GA80: 1 | GB80: 1 | GC80: 1 | GD80: 1 | GE80: 1 | GF80: 1 | GG80: 1 | GH80: 1 | GI80: 1 | GJ80: 1 | GK80: 1 | GL80: 1 | GM80: 1 | GN80: 1 | GO80: 1 | GP80: 1 | GQ80: 1 | GR80: 1 | GS80: 1 | GT80: 1 | GU80: 1 | GV80: 1 | GW80: 1 | GX80: 1 | GY80: 1 | GZ80: 1 | HA80: 1 | HB80: 1 | HC80: 1 | HD80: 1 | HE80: 1 | HF80: 1 | HG80: 1 | HH80: 1 | HI80: 1 | HJ80: 1 | HK80: 1 | HL80: 1 | HM80: 1 | HN80: 1 | HO80: 1 | HP80: 1 | HQ80: 1 | HR80: 1 | HS80: 1 | HT80: 1 | HU80: 1 | HV80: 228
A81: 2027 | B81: 1 | C81: 1 | D81: 1 | E81: 1 | F81: 1 | G81: 1 | H81: 1 | I81: 1 | J81: 1 | K81: 1 | L81: 1 | M81: 1 | N81: 1 | O81: 1 | P81: 1 | Q81: 1 | R81: 1 | S81: 1 | T81: 1 | U81: 1 | V81: 1 | W81: 1 | X81: 1 | Y81: 1 | Z81: 1 | AA81: 1 | AB81: 1 | AC81: 1 | AD81: 1 | AE81: 1 | AF81: 1 | AG81: 1 | AH81: 1 | AI81: 1 | AJ81: 1 | AK81: 1 | AL81: 1 | AM81: 1 | AN81: 1 | AO81: 1 | AP81: 1 | AQ81: 1 | AR81: 1 | AS81: 1 | AT81: 1 | AU81: 1 | AV81: 1 | AW81: 1 | AX81: 1 | AY81: 1 | AZ81: 1 | BA81: 1 | BB81: 1 | BC81: 1 | BD81: 1 | BE81: 1 | BF81: 1 | BG81: 1 | BH81: 1 | BI81: 1 | BJ81: 1 | BK81: 1 | BL81: 1 | BM81: 1 | BN81: 1 | BO81: 1 | BP81: 1 | BQ81: 1 | BR81: 1 | BS81: 1 | BT81: 1 | BU81: 1 | BV81: 1 | BW81: 1 | BX81: 1 | BY81: 1 | BZ81: 1 | CA81: 1 | CB81: 1 | CC81: 1 | CD81: 1 | CE81: 1 | CF81: 1 | CG81: 1 | CH81: 1 | CI81: 1 | CJ81: 1 | CK81: 1 | CL81: 1 | CM81: 1 | CN81: 1 | CO81: 1 | CP81: 1 | CQ81: 1 | CR81: 1 | CS81: 1 | CT81: 1 | CU81: 1 | CV81: 1 | CW81: 1 | CX81: 1 | CY81: 1 | CZ81: 1 | DA81: 1 | DB81: 1 | DC81: 1 | DD81: 1 | DE81: 1 | DF81: 1 | DG81: 1 | DH81: 1 | DI81: 1 | DJ81: 1 | DK81: 1 | DL81: 1 | DM81: 1 | DN81: 1 | DO81: 1 | DP81: 1 | DQ81: 1 | DR81: 1 | DS81: 1 | DT81: 1 | DU81: 1 | DV81: 1 | DW81: 1 | DX81: 1 | DY81: 1 | DZ81: 1 | EA81: 1 | EB81: 1 | EC81: 1 | ED81: 1 | EE81: 1 | EF81: 1 | EG81: 1 | EH81: 1 | EI81: 1 | EJ81: 1 | EK81: 1 | EL81: 1 | EM81: 1 | EN81: 1 | EO81: 1 | EP81: 1 | EQ81: 1 | ER81: 1 | ES81: 1 | ET81: 1 | EU81: 1 | EV81: 1 | EW81: 1 | EX81: 1 | EY81: 1 | EZ81: 1 | FA81: 1 | FB81: 1 | FC81: 1 | FD81: 1 | FE81: 1 | FF81: 1 | FG81: 1 | FH81: 1 | FI81: 1 | FJ81: 1 | FK81: 1 | FL81: 1 | FM81: 1 | FN81: 1 | FO81: 1 | FP81: 1 | FQ81: 1 | FR81: 1 | FS81: 1 | FT81: 1 | FU81: 1 | FV81: 1 | FW81: 1 | FX81: 1 | FY81: 1 | FZ81: 1 | GA81: 1 | GB81: 1 | GC81: 1 | GD81: 1 | GE81: 1 | GF81: 1 | GG81: 1 | GH81: 1 | GI81: 1 | GJ81: 1 | GK81: 1 | GL81: 1 | GM81: 1 | GN81: 1 | GO81: 1 | GP81: 1 | GQ81: 1 | GR81: 1 | GS81: 1 | GT81: 1 | GU81: 1 | GV81: 1 | GW81: 1 | GX81: 1 | GY81: 1 | GZ81: 1 | HA81: 1 | HB81: 1 | HC81: 1 | HD81: 1 | HE81: 1 | HF81: 1 | HG81: 1 | HH81: 1 | HI81: 1 | HJ81: 1 | HK81: 1 | HL81: 1 | HM81: 1 | HN81: 1 | HO81: 1 | HP81: 1 | HQ81: 1 | HR81: 1 | HS81: 1 | HT81: 1 | HU81: 1 | HV81: 228
A82: 2028 | B82: 1 | C82: 1 | D82: 1 | E82: 1 | F82: 1 | G82: 1 | H82: 1 | I82: 1 | J82: 1 | K82: 1 | L82: 1 | M82: 1 | N82: 1 | O82: 1 | P82: 1 | Q82: 1 | R82: 1 | S82: 1 | T82: 1 | U82: 1 | V82: 1 | W82: 1 | X82: 1 | Y82: 1 | Z82: 1 | AA82: 1 | AB82: 1 | AC82: 1 | AD82: 1 | AE82: 1 | AF82: 1 | AG82: 1 | AH82: 1 | AI82: 1 | AJ82: 1 | AK82: 1 | AL82: 1 | AM82: 1 | AN82: 1 | AO82: 1 | AP82: 1 | AQ82: 1 | AR82: 1 | AS82: 1 | AT82: 1 | AU82: 1 | AV82: 1 | AW82: 1 | AX82: 1 | AY82: 1 | AZ82: 1 | BA82: 1 | BB82: 1 | BC82: 1 | BD82: 1 | BE82: 1 | BF82: 1 | BG82: 1 | BH82: 1 | BI82: 1 | BJ82: 1 | BK82: 1 | BL82: 1 | BM82: 1 | BN82: 1 | BO82: 1 | BP82: 1 | BQ82: 1 | BR82: 1 | BS82: 1 | BT82: 1 | BU82: 1 | BV82: 1 | BW82: 1 | BX82: 1 | BY82: 1 | BZ82: 1 | CA82: 1 | CB82: 1 | CC82: 1 | CD82: 1 | CE82: 1 | CF82: 1 | CG82: 1 | CH82: 1 | CI82: 1 | CJ82: 1 | CK82: 1 | CL82: 1 | CM82: 1 | CN82: 1 | CO82: 1 | CP82: 1 | CQ82: 1 | CR82: 1 | CS82: 1 | CT82: 1 | CU82: 1 | CV82: 1 | CW82: 1 | CX82: 1 | CY82: 1 | CZ82: 1 | DA82: 1 | DB82: 1 | DC82: 1 | DD82: 1 | DE82: 1 | DF82: 1 | DG82: 1 | DH82: 1 | DI82: 1 | DJ82: 1 | DK82: 1 | DL82: 1 | DM82: 1 | DN82: 1 | DO82: 1 | DP82: 1 | DQ82: 1 | DR82: 1 | DS82: 1 | DT82: 1 | DU82: 1 | DV82: 1 | DW82: 1 | DX82: 1 | DY82: 1 | DZ82: 1 | EA82: 1 | EB82: 1 | EC82: 1 | ED82: 1 | EE82: 1 | EF82: 1 | EG82: 1 | EH82: 1 | EI82: 1 | EJ82: 1 | EK82: 1 | EL82: 1 | EM82: 1 | EN82: 1 | EO82: 1 | EP82: 1 | EQ82: 1 | ER82: 1 | ES82: 1 | ET82: 1 | EU82: 1 | EV82: 1 | EW82: 1 | EX82: 1 | EY82: 1 | EZ82: 1 | FA82: 1 | FB82: 1 | FC82: 1 | FD82: 1 | FE82: 1 | FF82: 1 | FG82: 1 | FH82: 1 | FI82: 1 | FJ82: 1 | FK82: 1 | FL82: 1 | FM82: 1 | FN82: 1 | FO82: 1 | FP82: 1 | FQ82: 1 | FR82: 1 | FS82: 1 | FT82: 1 | FU82: 1 | FV82: 1 | FW82: 1 | FX82: 1 | FY82: 1 | FZ82: 1 | GA82: 1 | GB82: 1 | GC82: 1 | GD82: 1 | GE82: 1 | GF82: 1 | GG82: 1 | GH82: 1 | GI82: 1 | GJ82: 1 | GK82: 1 | GL82: 1 | GM82: 1 | GN82: 1 | GO82: 1 | GP82: 1 | GQ82: 1 | GR82: 1 | GS82: 1 | GT82: 1 | GU82: 1 | GV82: 1 | GW82: 1 | GX82: 1 | GY82: 1 | GZ82: 1 | HA82: 1 | HB82: 1 | HC82: 1 | HD82: 1 | HE82: 1 | HF82: 1 | HG82: 1 | HH82: 1 | HI82: 1 | HJ82: 1 | HK82: 1 | HL82: 1 | HM82: 1 | HN82: 1 | HO82: 1 | HP82: 1 | HQ82: 1 | HR82: 1 | HS82: 1 | HT82: 1 | HU82: 1 | HV82: 228
A83: 2029 | B83: 1 | C83: 1 | D83: 1 | E83: 1 | F83: 1 | G83: 1 | H83: 1 | I83: 1 | J83: 1 | K83: 1 | L83: 1 | M83: 1 | N83: 1 | O83: 1 | P83: 1 | Q83: 1 | R83: 1 | S83: 1 | T83: 1 | U83: 1 | V83: 1 | W83: 1 | X83: 1 | Y83: 1 | Z83: 1 | AA83: 1 | AB83: 1 | AC83: 1 | AD83: 1 | AE83: 1 | AF83: 1 | AG83: 1 | AH83: 1 | AI83: 1 | AJ83: 1 | AK83: 1 | AL83: 1 | AM83: 1 | AN83: 1 | AO83: 1 | AP83: 1 | AQ83: 1 | AR83: 1 | AS83: 1 | AT83: 1 | AU83: 1 | AV83: 1 | AW83: 1 | AX83: 1 | AY83: 1 | AZ83: 1 | BA83: 1 | BB83: 1 | BC83: 1 | BD83: 1 | BE83: 1 | BF83: 1 | BG83: 1 | BH83: 1 | BI83: 1 | BJ83: 1 | BK83: 1 | BL83: 1 | BM83: 1 | BN83: 1 | BO83: 1 | BP83: 1 | BQ83: 1 | BR83: 1 | BS83: 1 | BT83: 1 | BU83: 1 | BV83: 1 | BW83: 1 | BX83: 1 | BY83: 1 | BZ83: 1 | CA83: 1 | CB83: 1 | CC83: 1 | CD83: 1 | CE83: 1 | CF83: 1 | CG83: 1 | CH83: 1 | CI83: 1 | CJ83: 1 | CK83: 1 | CL83: 1 | CM83: 1 | CN83: 1 | CO83: 1 | CP83: 1 | CQ83: 1 | CR83: 1 | CS83: 1 | CT83: 1 | CU83: 1 | CV83: 1 | CW83: 1 | CX83: 1 | CY83: 1 | CZ83: 1 | DA83: 1 | DB83: 1 | DC83: 1 | DD83: 1 | DE83: 1 | DF83: 1 | DG83: 1 | DH83: 1 | DI83: 1 | DJ83: 1 | DK83: 1 | DL83: 1 | DM83: 1 | DN83: 1 | DO83: 1 | DP83: 1 | DQ83: 1 | DR83: 1 | DS83: 1 | DT83: 1 | DU83: 1 | DV83: 1 | DW83: 1 | DX83: 1 | DY83: 1 | DZ83: 1 | EA83: 1 | EB83: 1 | EC83: 1 | ED83: 1 | EE83: 1 | EF83: 1 | EG83: 1 | EH83: 1 | EI83: 1 | EJ83: 1 | EK83: 1 | EL83: 1 | EM83: 1 | EN83: 1 | EO83: 1 | EP83: 1 | EQ83: 1 | ER83: 1 | ES83: 1 | ET83: 1 | EU83: 1 | EV83: 1 | EW83: 1 | EX83: 1 | EY83: 1 | EZ83: 1 | FA83: 1 | FB83: 1 | FC83: 1 | FD83: 1 | FE83: 1 | FF83: 1 | FG83: 1 | FH83: 1 | FI83: 1 | FJ83: 1 | FK83: 1 | FL83: 1 | FM83: 1 | FN83: 1 | FO83: 1 | FP83: 1 | FQ83: 1 | FR83: 1 | FS83: 1 | FT83: 1 | FU83: 1 | FV83: 1 | FW83: 1 | FX83: 1 | FY83: 1 | FZ83: 1 | GA83: 1 | GB83: 1 | GC83: 1 | GD83: 1 | GE83: 1 | GF83: 1 | GG83: 1 | GH83: 1 | GI83: 1 | GJ83: 1 | GK83: 1 | GL83: 1 | GM83: 1 | GN83: 1 | GO83: 1 | GP83: 1 | GQ83: 1 | GR83: 1 | GS83: 1 | GT83: 1 | GU83: 1 | GV83: 1 | GW83: 1 | GX83: 1 | GY83: 1 | GZ83: 1 | HA83: 1 | HB83: 1 | HC83: 1 | HD83: 1 | HE83: 1 | HF83: 1 | HG83: 1 | HH83: 1 | HI83: 1 | HJ83: 1 | HK83: 1 | HL83: 1 | HM83: 1 | HN83: 1 | HO83: 1 | HP83: 1 | HQ83: 1 | HR83: 1 | HS83: 1 | HT83: 1 | HU83: 1 | HV83: 228
A84: 2030 | B84: 1 | C84: 1 | D84: 1 | E84: 1 | F84: 1 | G84: 1 | H84: 1 | I84: 1 | J84: 1 | K84: 1 | L84: 1 | M84: 1 | N84: 1 | O84: 1 | P84: 1 | Q84: 1 | R84: 1 | S84: 1 | T84: 1 | U84: 1 | V84: 1 | W84: 1 | X84: 1 | Y84: 1 | Z84: 1 | AA84: 1 | AB84: 1 | AC84: 1 | AD84: 1 | AE84: 1 | AF84: 1 | AG84: 1 | AH84: 1 | AI84: 1 | AJ84: 1 | AK84: 1 | AL84: 1 | AM84: 1 | AN84: 1 | AO84: 1 | AP84: 1 | AQ84: 1 | AR84: 1 | AS84: 1 | AT84: 1 | AU84: 1 | AV84: 1 | AW84: 1 | AX84: 1 | AY84: 1 | AZ84: 1 | BA84: 1 | BB84: 1 | BC84: 1 | BD84: 1 | BE84: 1 | BF84: 1 | BG84: 1 | BH84: 1 | BI84: 1 | BJ84: 1 | BK84: 1 | BL84: 1 | BM84: 1 | BN84: 1 | BO84: 1 | BP84: 1 | BQ84: 1 | BR84: 1 | BS84: 1 | BT84: 1 | BU84: 1 | BV84: 1 | BW84: 1 | BX84: 1 | BY84: 1 | BZ84: 1 | CA84: 1 | CB84: 1 | CC84: 1 | CD84: 1 | CE84: 1 | CF84: 1 | CG84: 1 | CH84: 1 | CI84: 1 | CJ84: 1 | CK84: 1 | CL84: 1 | CM84: 1 | CN84: 1 | CO84: 1 | CP84: 1 | CQ84: 1 | CR84: 1 | CS84: 1 | CT84: 1 | CU84: 1 | CV84: 1 | CW84: 1 | CX84: 1 | CY84: 1 | CZ84: 1 | DA84: 1 | DB84: 1 | DC84: 1 | DD84: 1 | DE84: 1 | DF84: 1 | DG84: 1 | DH84: 1 | DI84: 1 | DJ84: 1 | DK84: 1 | DL84: 1 | DM84: 1 | DN84: 1 | DO84: 1 | DP84: 1 | DQ84: 1 | DR84: 1 | DS84: 1 | DT84: 1 | DU84: 1 | DV84: 1 | DW84: 1 | DX84: 1 | DY84: 1 | DZ84: 1 | EA84: 1 | EB84: 1 | EC84: 1 | ED84: 1 | EE84: 1 | EF84: 1 | EG84: 1 | EH84: 1 | EI84: 1 | EJ84: 1 | EK84: 1 | EL84: 1 | EM84: 1 | EN84: 1 | EO84: 1 | EP84: 1 | EQ84: 1 | ER84: 1 | ES84: 1 | ET84: 1 | EU84: 1 | EV84: 1 | EW84: 1 | EX84: 1 | EY84: 1 | EZ84: 1 | FA84: 1 | FB84: 1 | FC84: 1 | FD84: 1 | FE84: 1 | FF84: 1 | FG84: 1 | FH84: 1 | FI84: 1 | FJ84: 1 | FK84: 1 | FL84: 1 | FM84: 1 | FN84: 1 | FO84: 1 | FP84: 1 | FQ84: 1 | FR84: 1 | FS84: 1 | FT84: 1 | FU84: 1 | FV84: 1 | FW84: 1 | FX84: 1 | FY84: 1 | FZ84: 1 | GA84: 1 | GB84: 1 | GC84: 1 | GD84: 1 | GE84: 1 | GF84: 1 | GG84: 1 | GH84: 1 | GI84: 1 | GJ84: 1 | GK84: 1 | GL84: 1 | GM84: 1 | GN84: 1 | GO84: 1 | GP84: 1 | GQ84: 1 | GR84: 1 | GS84: 1 | GT84: 1 | GU84: 1 | GV84: 1 | GW84: 1 | GX84: 1 | GY84: 1 | GZ84: 1 | HA84: 1 | HB84: 1 | HC84: 1 | HD84: 1 | HE84: 1 | HF84: 1 | HG84: 1 | HH84: 1 | HI84: 1 | HJ84: 1 | HK84: 1 | HL84: 1 | HM84: 1 | HN84: 1 | HO84: 1 | HP84: 1 | HQ84: 1 | HR84: 1 | HS84: 1 | HT84: 1 | HU84: 1 | HV84: 228
A85: 2031 | B85: 1 | C85: 1 | D85: 1 | E85: 1 | F85: 1 | G85: 1 | H85: 1 | I85: 1 | J85: 1 | K85: 1 | L85: 1 | M85: 1 | N85: 1 | O85: 1 | P85: 1 | Q85: 1 | R85: 1 | S85: 1 | T85: 1 | U85: 1 | V85: 1 | W85: 1 | X85: 1 | Y85: 1 | Z85: 1 | AA85: 1 | AB85: 1 | AC85: 1 | AD85: 1 | AE85: 1 | AF85: 1 | AG85: 1 | AH85: 1 | AI85: 1 | AJ85: 1 | AK85: 1 | AL85: 1 | AM85: 1 | AN85: 1 | AO85: 1 | AP85: 1 | AQ85: 1 | AR85: 1 | AS85: 1 | AT85: 1 | AU85: 1 | AV85: 1 | AW85: 1 | AX85: 1 | AY85: 1 | AZ85: 1 | BA85: 1 | BB85: 1 | BC85: 1 | BD85: 1 | BE85: 1 | BF85: 1 | BG85: 1 | BH85: 1 | BI85: 1 | BJ85: 1 | BK85: 1 | BL85: 1 | BM85: 1 | BN85: 1 | BO85: 1 | BP85: 1 | BQ85: 1 | BR85: 1 | BS85: 1 | BT85: 1 | BU85: 1 | BV85: 1 | BW85: 1 | BX85: 1 | BY85: 1 | BZ85: 1 | CA85: 1 | CB85: 1 | CC85: 1 | CD85: 1 | CE85: 1 | CF85: 1 | CG85: 1 | CH85: 1 | CI85: 1 | CJ85: 1 | CK85: 1 | CL85: 1 | CM85: 1 | CN85: 1 | CO85: 1 | CP85: 1 | CQ85: 1 | CR85: 1 | CS85: 1 | CT85: 1 | CU85: 1 | CV85: 1 | CW85: 1 | CX85: 1 | CY85: 1 | CZ85: 1 | DA85: 1 | DB85: 1 | DC85: 1 | DD85: 1 | DE85: 1 | DF85: 1 | DG85: 1 | DH85: 1 | DI85: 1 | DJ85: 1 | DK85: 1 | DL85: 1 | DM85: 1 | DN85: 1 | DO85: 1 | DP85: 1 | DQ85: 1 | DR85: 1 | DS85: 1 | DT85: 1 | DU85: 1 | DV85: 1 | DW85: 1 | DX85: 1 | DY85: 1 | DZ85: 1 | EA85: 1 | EB85: 1 | EC85: 1 | ED85: 1 | EE85: 1 | EF85: 1 | EG85: 1 | EH85: 1 | EI85: 1 | EJ85: 1 | EK85: 1 | EL85: 1 | EM85: 1 | EN85: 1 | EO85: 1 | EP85: 1 | EQ85: 1 | ER85: 1 | ES85: 1 | ET85: 1 | EU85: 1 | EV85: 1 | EW85: 1 | EX85: 1 | EY85: 1 | EZ85: 1 | FA85: 1 | FB85: 1 | FC85: 1 | FD85: 1 | FE85: 1 | FF85: 1 | FG85: 1 | FH85: 1 | FI85: 1 | FJ85: 1 | FK85: 1 | FL85: 1 | FM85: 1 | FN85: 1 | FO85: 1 | FP85: 1 | FQ85: 1 | FR85: 1 | FS85: 1 | FT85: 1 | FU85: 1 | FV85: 1 | FW85: 1 | FX85: 1 | FY85: 1 | FZ85: 1 | GA85: 1 | GB85: 1 | GC85: 1 | GD85: 1 | GE85: 1 | GF85: 1 | GG85: 1 | GH85: 1 | GI85: 1 | GJ85: 1 | GK85: 1 | GL85: 1 | GM85: 1 | GN85: 1 | GO85: 1 | GP85: 1 | GQ85: 1 | GR85: 1 | GS85: 1 | GT85: 1 | GU85: 1 | GV85: 1 | GW85: 1 | GX85: 1 | GY85: 1 | GZ85: 1 | HA85: 1 | HB85: 1 | HC85: 1 | HD85: 1 | HE85: 1 | HF85: 1 | HG85: 1 | HH85: 1 | HI85: 1 | HJ85: 1 | HK85: 1 | HL85: 1 | HM85: 1 | HN85: 1 | HO85: 1 | HP85: 1 | HQ85: 1 | HR85: 1 | HS85: 1 | HT85: 1 | HU85: 1 | HV85: 228
A86: 2032 | B86: 1 | C86: 1 | D86: 1 | E86: 1 | F86: 1 | G86: 1 | H86: 1 | I86: 1 | J86: 1 | K86: 1 | L86: 1 | M86: 1 | N86: 1 | O86: 1 | P86: 1 | Q86: 1 | R86: 1 | S86: 1 | T86: 1 | U86: 1 | V86: 1 | W86: 1 | X86: 1 | Y86: 1 | Z86: 1 | AA86: 1 | AB86: 1 | AC86: 1 | AD86: 1 | AE86: 1 | AF86: 1 | AG86: 1 | AH86: 1 | AI86: 1 | AJ86: 1 | AK86: 1 | AL86: 1 | AM86: 1 | AN86: 1 | AO86: 1 | AP86: 1 | AQ86: 1 | AR86: 1 | AS86: 1 | AT86: 1 | AU86: 1 | AV86: 1 | AW86: 1 | AX86: 1 | AY86: 1 | AZ86: 1 | BA86: 1 | BB86: 1 | BC86: 1 | BD86: 1 | BE86: 1 | BF86: 1 | BG86: 1 | BH86: 1 | BI86: 1 | BJ86: 1 | BK86: 1 | BL86: 1 | BM86: 1 | BN86: 1 | BO86: 1 | BP86: 1 | BQ86: 1 | BR86: 1 | BS86: 1 | BT86: 1 | BU86: 1 | BV86: 1 | BW86: 1 | BX86: 1 | BY86: 1 | BZ86: 1 | CA86: 1 | CB86: 1 | CC86: 1 | CD86: 1 | CE86: 1 | CF86: 1 | CG86: 1 | CH86: 1 | CI86: 1 | CJ86: 1 | CK86: 1 | CL86: 1 | CM86: 1 | CN86: 1 | CO86: 1 | CP86: 1 | CQ86: 1 | CR86: 1 | CS86: 1 | CT86: 1 | CU86: 1 | CV86: 1 | CW86: 1 | CX86: 1 | CY86: 1 | CZ86: 1 | DA86: 1 | DB86: 1 | DC86: 1 | DD86: 1 | DE86: 1 | DF86: 1 | DG86: 1 | DH86: 1 | DI86: 1 | DJ86: 1 | DK86: 1 | DL86: 1 | DM86: 1 | DN86: 1 | DO86: 1 | DP86: 1 | DQ86: 1 | DR86: 1 | DS86: 1 | DT86: 1 | DU86: 1 | DV86: 1 | DW86: 1 | DX86: 1 | DY86: 1 | DZ86: 1 | EA86: 1 | EB86: 1 | EC86: 1 | ED86: 1 | EE86: 1 | EF86: 1 | EG86: 1 | EH86: 1 | EI86: 1 | EJ86: 1 | EK86: 1 | EL86: 1 | EM86: 1 | EN86: 1 | EO86: 1 | EP86: 1 | EQ86: 1 | ER86: 1 | ES86: 1 | ET86: 1 | EU86: 1 | EV86: 1 | EW86: 1 | EX86: 1 | EY86: 1 | EZ86: 1 | FA86: 1 | FB86: 1 | FC86: 1 | FD86: 1 | FE86: 1 | FF86: 1 | FG86: 1 | FH86: 1 | FI86: 1 | FJ86: 1 | FK86: 1 | FL86: 1 | FM86: 1 | FN86: 1 | FO86: 1 | FP86: 1 | FQ86: 1 | FR86: 1 | FS86: 1 | FT86: 1 | FU86: 1 | FV86: 1 | FW86: 1 | FX86: 1 | FY86: 1 | FZ86: 1 | GA86: 1 | GB86: 1 | GC86: 1 | GD86: 1 | GE86: 1 | GF86: 1 | GG86: 1 | GH86: 1 | GI86: 1 | GJ86: 1 | GK86: 1 | GL86: 1 | GM86: 1 | GN86: 1 | GO86: 1 | GP86: 1 | GQ86: 1 | GR86: 1 | GS86: 1 | GT86: 1 | GU86: 1 | GV86: 1 | GW86: 1 | GX86: 1 | GY86: 1 | GZ86: 1 | HA86: 1 | HB86: 1 | HC86: 1 | HD86: 1 | HE86: 1 | HF86: 1 | HG86: 1 | HH86: 1 | HI86: 1 | HJ86: 1 | HK86: 1 | HL86: 1 | HM86: 1 | HN86: 1 | HO86: 1 | HP86: 1 | HQ86: 1 | HR86: 1 | HS86: 1 | HT86: 1 | HU86: 1 | HV86: 228
A87: 2033 | B87: 1 | C87: 1 | D87: 1 | E87: 1 | F87: 1 | G87: 1 | H87: 1 | I87: 1 | J87: 1 | K87: 1 | L87: 1 | M87: 1 | N87: 1 | O87: 1 | P87: 1 | Q87: 1 | R87: 1 | S87: 1 | T87: 1 | U87: 1 | V87: 1 | W87: 1 | X87: 1 | Y87: 1 | Z87: 1 | AA87: 1 | AB87: 1 | AC87: 1 | AD87: 1 | AE87: 1 | AF87: 1 | AG87: 1 | AH87: 1 | AI87: 1 | AJ87: 1 | AK87: 1 | AL87: 1 | AM87: 1 | AN87: 1 | AO87: 1 | AP87: 1 | AQ87: 1 | AR87: 1 | AS87: 1 | AT87: 1 | AU87: 1 | AV87: 1 | AW87: 1 | AX87: 1 | AY87: 1 | AZ87: 1 | BA87: 1 | BB87: 1 | BC87: 1 | BD87: 1 | BE87: 1 | BF87: 1 | BG87: 1 | BH87: 1 | BI87: 1 | BJ87: 1 | BK87: 1 | BL87: 1 | BM87: 1 | BN87: 1 | BO87: 1 | BP87: 1 | BQ87: 1 | BR87: 1 | BS87: 1 | BT87: 1 | BU87: 1 | BV87: 1 | BW87: 1 | BX87: 1 | BY87: 1 | BZ87: 1 | CA87: 1 | CB87: 1 | CC87: 1 | CD87: 1 | CE87: 1 | CF87: 1 | CG87: 1 | CH87: 1 | CI87: 1 | CJ87: 1 | CK87: 1 | CL87: 1 | CM87: 1 | CN87: 1 | CO87: 1 | CP87: 1 | CQ87: 1 | CR87: 1 | CS87: 1 | CT87: 1 | CU87: 1 | CV87: 1 | CW87: 1 | CX87: 1 | CY87: 1 | CZ87: 1 | DA87: 1 | DB87: 1 | DC87: 1 | DD87: 1 | DE87: 1 | DF87: 1 | DG87: 1 | DH87: 1 | DI87: 1 | DJ87: 1 | DK87: 1 | DL87: 1 | DM87: 1 | DN87: 1 | DO87: 1 | DP87: 1 | DQ87: 1 | DR87: 1 | DS87: 1 | DT87: 1 | DU87: 1 | DV87: 1 | DW87: 1 | DX87: 1 | DY87: 1 | DZ87: 1 | EA87: 1 | EB87: 1 | EC87: 1 | ED87: 1 | EE87: 1 | EF87: 1 | EG87: 1 | EH87: 1 | EI87: 1 | EJ87: 1 | EK87: 1 | EL87: 1 | EM87: 1 | EN87: 1 | EO87: 1 | EP87: 1 | EQ87: 1 | ER87: 1 | ES87: 1 | ET87: 1 | EU87: 1 | EV87: 1 | EW87: 1 | EX87: 1 | EY87: 1 | EZ87: 1 | FA87: 1 | FB87: 1 | FC87: 1 | FD87: 1 | FE87: 1 | FF87: 1 | FG87: 1 | FH87: 1 | FI87: 1 | FJ87: 1 | FK87: 1 | FL87: 1 | FM87: 1 | FN87: 1 | FO87: 1 | FP87: 1 | FQ87: 1 | FR87: 1 | FS87: 1 | FT87: 1 | FU87: 1 | FV87: 1 | FW87: 1 | FX87: 1 | FY87: 1 | FZ87: 1 | GA87: 1 | GB87: 1 | GC87: 1 | GD87: 1 | GE87: 1 | GF87: 1 | GG87: 1 | GH87: 1 | GI87: 1 | GJ87: 1 | GK87: 1 | GL87: 1 | GM87: 1 | GN87: 1 | GO87: 1 | GP87: 1 | GQ87: 1 | GR87: 1 | GS87: 1 | GT87: 1 | GU87: 1 | GV87: 1 | GW87: 1 | GX87: 1 | GY87: 1 | GZ87: 1 | HA87: 1 | HB87: 1 | HC87: 1 | HD87: 1 | HE87: 1 | HF87: 1 | HG87: 1 | HH87: 1 | HI87: 1 | HJ87: 1 | HK87: 1 | HL87: 1 | HM87: 1 | HN87: 1 | HO87: 1 | HP87: 1 | HQ87: 1 | HR87: 1 | HS87: 1 | HT87: 1 | HU87: 1 | HV87: 228
A88: 2034 | B88: 1 | C88: 1 | D88: 1 | E88: 1 | F88: 1 | G88: 1 | H88: 1 | I88: 1 | J88: 1 | K88: 1 | L88: 1 | M88: 1 | N88: 1 | O88: 1 | P88: 1 | Q88: 1 | R88: 1 | S88: 1 | T88: 1 | U88: 1 | V88: 1 | W88: 1 | X88: 1 | Y88: 1 | Z88: 1 | AA88: 1 | AB88: 1 | AC88: 1 | AD88: 1 | AE88: 1 | AF88: 1 | AG88: 1 | AH88: 1 | AI88: 1 | AJ88: 1 | AK88: 1 | AL88: 1 | AM88: 1 | AN88: 1 | AO88: 1 | AP88: 1 | AQ88: 1 | AR88: 1 | AS88: 1 | AT88: 1 | AU88: 1 | AV88: 1 | AW88: 1 | AX88: 1 | AY88: 1 | AZ88: 1 | BA88: 1 | BB88: 1 | BC88: 1 | BD88: 1 | BE88: 1 | BF88: 1 | BG88: 1 | BH88: 1 | BI88: 1 | BJ88: 1 | BK88: 1 | BL88: 1 | BM88: 1 | BN88: 1 | BO88: 1 | BP88: 1 | BQ88: 1 | BR88: 1 | BS88: 1 | BT88: 1 | BU88: 1 | BV88: 1 | BW88: 1 | BX88: 1 | BY88: 1 | BZ88: 1 | CA88: 1 | CB88: 1 | CC88: 1 | CD88: 1 | CE88: 1 | CF88: 1 | CG88: 1 | CH88: 1 | CI88: 1 | CJ88: 1 | CK88: 1 | CL88: 1 | CM88: 1 | CN88: 1 | CO88: 1 | CP88: 1 | CQ88: 1 | CR88: 1 | CS88: 1 | CT88: 1 | CU88: 1 | CV88: 1 | CW88: 1 | CX88: 1 | CY88: 1 | CZ88: 1 | DA88: 1 | DB88: 1 | DC88: 1 | DD88: 1 | DE88: 1 | DF88: 1 | DG88: 1 | DH88: 1 | DI88: 1 | DJ88: 1 | DK88: 1 | DL88: 1 | DM88: 1 | DN88: 1 | DO88: 1 | DP88: 1 | DQ88: 1 | DR88: 1 | DS88: 1 | DT88: 1 | DU88: 1 | DV88: 1 | DW88: 1 | DX88: 1 | DY88: 1 | DZ88: 1 | EA88: 1 | EB88: 1 | EC88: 1 | ED88: 1 | EE88: 1 | EF88: 1 | EG88: 1 | EH88: 1 | EI88: 1 | EJ88: 1 | EK88: 1 | EL88: 1 | EM88: 1 | EN88: 1 | EO88: 1 | EP88: 1 | EQ88: 1 | ER88: 1 | ES88: 1 | ET88: 1 | EU88: 1 | EV88: 1 | EW88: 1 | EX88: 1 | EY88: 1 | EZ88: 1 | FA88: 1 | FB88: 1 | FC88: 1 | FD88: 1 | FE88: 1 | FF88: 1 | FG88: 1 | FH88: 1 | FI88: 1 | FJ88: 1 | FK88: 1 | FL88: 1 | FM88: 1 | FN88: 1 | FO88: 1 | FP88: 1 | FQ88: 1 | FR88: 1 | FS88: 1 | FT88: 1 | FU88: 1 | FV88: 1 | FW88: 1 | FX88: 1 | FY88: 1 | FZ88: 1 | GA88: 1 | GB88: 1 | GC88: 1 | GD88: 1 | GE88: 1 | GF88: 1 | GG88: 1 | GH88: 1 | GI88: 1 | GJ88: 1 | GK88: 1 | GL88: 1 | GM88: 1 | GN88: 1 | GO88: 1 | GP88: 1 | GQ88: 1 | GR88: 1 | GS88: 1 | GT88: 1 | GU88: 1 | GV88: 1 | GW88: 1 | GX88: 1 | GY88: 1 | GZ88: 1 | HA88: 1 | HB88: 1 | HC88: 1 | HD88: 1 | HE88: 1 | HF88: 1 | HG88: 1 | HH88: 1 | HI88: 1 | HJ88: 1 | HK88: 1 | HL88: 1 | HM88: 1 | HN88: 1 | HO88: 1 | HP88: 1 | HQ88: 1 | HR88: 1 | HS88: 1 | HT88: 1 | HU88: 1 | HV88: 228
A89: 2035 | B89: 1 | C89: 1 | D89: 1 | E89: 1 | F89: 1 | G89: 1 | H89: 1 | I89: 1 | J89: 1 | K89: 1 | L89: 1 | M89: 1 | N89: 1 | O89: 1 | P89: 1 | Q89: 1 | R89: 1 | S89: 1 | T89: 1 | U89: 1 | V89: 1 | W89: 1 | X89: 1 | Y89: 1 | Z89: 1 | AA89: 1 | AB89: 1 | AC89: 1 | AD89: 1 | AE89: 1 | AF89: 1 | AG89: 1 | AH89: 1 | AI89: 1 | AJ89: 1 | AK89: 1 | AL89: 1 | AM89: 1 | AN89: 1 | AO89: 1 | AP89: 1 | AQ89: 1 | AR89: 1 | AS89: 1 | AT89: 1 | AU89: 1 | AV89: 1 | AW89: 1 | AX89: 1 | AY89: 1 | AZ89: 1 | BA89: 1 | BB89: 1 | BC89: 1 | BD89: 1 | BE89: 1 | BF89: 1 | BG89: 1 | BH89: 1 | BI89: 1 | BJ89: 1 | BK89: 1 | BL89: 1 | BM89: 1 | BN89: 1 | BO89: 1 | BP89: 1 | BQ89: 1 | BR89: 1 | BS89: 1 | BT89: 1 | BU89: 1 | BV89: 1 | BW89: 1 | BX89: 1 | BY89: 1 | BZ89: 1 | CA89: 1 | CB89: 1 | CC89: 1 | CD89: 1 | CE89: 1 | CF89: 1 | CG89: 1 | CH89: 1 | CI89: 1 | CJ89: 1 | CK89: 1 | CL89: 1 | CM89: 1 | CN89: 1 | CO89: 1 | CP89: 1 | CQ89: 1 | CR89: 1 | CS89: 1 | CT89: 1 | CU89: 1 | CV89: 1 | CW89: 1 | CX89: 1 | CY89: 1 | CZ89: 1 | DA89: 1 | DB89: 1 | DC89: 1 | DD89: 1 | DE89: 1 | DF89: 1 | DG89: 1 | DH89: 1 | DI89: 1 | DJ89: 1 | DK89: 1 | DL89: 1 | DM89: 1 | DN89: 1 | DO89: 1 | DP89: 1 | DQ89: 1 | DR89: 1 | DS89: 1 | DT89: 1 | DU89: 1 | DV89: 1 | DW89: 1 | DX89: 1 | DY89: 1 | DZ89: 1 | EA89: 1 | EB89: 1 | EC89: 1 | ED89: 1 | EE89: 1 | EF89: 1 | EG89: 1 | EH89: 1 | EI89: 1 | EJ89: 1 | EK89: 1 | EL89: 1 | EM89: 1 | EN89: 1 | EO89: 1 | EP89: 1 | EQ89: 1 | ER89: 1 | ES89: 1 | ET89: 1 | EU89: 1 | EV89: 1 | EW89: 1 | EX89: 1 | EY89: 1 | EZ89: 1 | FA89: 1 | FB89: 1 | FC89: 1 | FD89: 1 | FE89: 1 | FF89: 1 | FG89: 1 | FH89: 1 | FI89: 1 | FJ89: 1 | FK89: 1 | FL89: 1 | FM89: 1 | FN89: 1 | FO89: 1 | FP89: 1 | FQ89: 1 | FR89: 1 | FS89: 1 | FT89: 1 | FU89: 1 | FV89: 1 | FW89: 1 | FX89: 1 | FY89: 1 | FZ89: 1 | GA89: 1 | GB89: 1 | GC89: 1 | GD89: 1 | GE89: 1 | GF89: 1 | GG89: 1 | GH89: 1 | GI89: 1 | GJ89: 1 | GK89: 1 | GL89: 1 | GM89: 1 | GN89: 1 | GO89: 1 | GP89: 1 | GQ89: 1 | GR89: 1 | GS89: 1 | GT89: 1 | GU89: 1 | GV89: 1 | GW89: 1 | GX89: 1 | GY89: 1 | GZ89: 1 | HA89: 1 | HB89: 1 | HC89: 1 | HD89: 1 | HE89: 1 | HF89: 1 | HG89: 1 | HH89: 1 | HI89: 1 | HJ89: 1 | HK89: 1 | HL89: 1 | HM89: 1 | HN89: 1 | HO89: 1 | HP89: 1 | HQ89: 1 | HR89: 1 | HS89: 1 | HT89: 1 | HU89: 1 | HV89: 228
A90: 2036 | B90: 1 | C90: 1 | D90: 1 | E90: 1 | F90: 1 | G90: 1 | H90: 1 | I90: 1 | J90: 1 | K90: 1 | L90: 1 | M90: 1 | N90: 1 | O90: 1 | P90: 1 | Q90: 1 | R90: 1 | S90: 1 | T90: 1 | U90: 1 | V90: 1 | W90: 1 | X90: 1 | Y90: 1 | Z90: 1 | AA90: 1 | AB90: 1 | AC90: 1 | AD90: 1 | AE90: 1 | AF90: 1 | AG90: 1 | AH90: 1 | AI90: 1 | AJ90: 1 | AK90: 1 | AL90: 1 | AM90: 1 | AN90: 1 | AO90: 1 | AP90: 1 | AQ90: 1 | AR90: 1 | AS90: 1 | AT90: 1 | AU90: 1 | AV90: 1 | AW90: 1 | AX90: 1 | AY90: 1 | AZ90: 1 | BA90: 1 | BB90: 1 | BC90: 1 | BD90: 1 | BE90: 1 | BF90: 1 | BG90: 1 | BH90: 1 | BI90: 1 | BJ90: 1 | BK90: 1 | BL90: 1 | BM90: 1 | BN90: 1 | BO90: 1 | BP90: 1 | BQ90: 1 | BR90: 1 | BS90: 1 | BT90: 1 | BU90: 1 | BV90: 1 | BW90: 1 | BX90: 1 | BY90: 1 | BZ90: 1 | CA90: 1 | CB90: 1 | CC90: 1 | CD90: 1 | CE90: 1 | CF90: 1 | CG90: 1 | CH90: 1 | CI90: 1 | CJ90: 1 | CK90: 1 | CL90: 1 | CM90: 1 | CN90: 1 | CO90: 1 | CP90: 1 | CQ90: 1 | CR90: 1 | CS90: 1 | CT90: 1 | CU90: 1 | CV90: 1 | CW90: 1 | CX90: 1 | CY90: 1 | CZ90: 1 | DA90: 1 | DB90: 1 | DC90: 1 | DD90: 1 | DE90: 1 | DF90: 1 | DG90: 1 | DH90: 1 | DI90: 1 | DJ90: 1 | DK90: 1 | DL90: 1 | DM90: 1 | DN90: 1 | DO90: 1 | DP90: 1 | DQ90: 1 | DR90: 1 | DS90: 1 | DT90: 1 | DU90: 1 | DV90: 1 | DW90: 1 | DX90: 1 | DY90: 1 | DZ90: 1 | EA90: 1 | EB90: 1 | EC90: 1 | ED90: 1 | EE90: 1 | EF90: 1 | EG90: 1 | EH90: 1 | EI90: 1 | EJ90: 1 | EK90: 1 | EL90: 1 | EM90: 1 | EN90: 1 | EO90: 1 | EP90: 1 | EQ90: 1 | ER90: 1 | ES90: 1 | ET90: 1 | EU90: 1 | EV90: 1 | EW90: 1 | EX90: 1 | EY90: 1 | EZ90: 1 | FA90: 1 | FB90: 1 | FC90: 1 | FD90: 1 | FE90: 1 | FF90: 1 | FG90: 1 | FH90: 1 | FI90: 1 | FJ90: 1 | FK90: 1 | FL90: 1 | FM90: 1 | FN90: 1 | FO90: 1 | FP90: 1 | FQ90: 1 | FR90: 1 | FS90: 1 | FT90: 1 | FU90: 1 | FV90: 1 | FW90: 1 | FX90: 1 | FY90: 1 | FZ90: 1 | GA90: 1 | GB90: 1 | GC90: 1 | GD90: 1 | GE90: 1 | GF90: 1 | GG90: 1 | GH90: 1 | GI90: 1 | GJ90: 1 | GK90: 1 | GL90: 1 | GM90: 1 | GN90: 1 | GO90: 1 | GP90: 1 | GQ90: 1 | GR90: 1 | GS90: 1 | GT90: 1 | GU90: 1 | GV90: 1 | GW90: 1 | GX90: 1 | GY90: 1 | GZ90: 1 | HA90: 1 | HB90: 1 | HC90: 1 | HD90: 1 | HE90: 1 | HF90: 1 | HG90: 1 | HH90: 1 | HI90: 1 | HJ90: 1 | HK90: 1 | HL90: 1 | HM90: 1 | HN90: 1 | HO90: 1 | HP90: 1 | HQ90: 1 | HR90: 1 | HS90: 1 | HT90: 1 | HU90: 1 | HV90: 228
A91: 2037 | B91: 1 | C91: 1 | D91: 1 | E91: 1 | F91: 1 | G91: 1 | H91: 1 | I91: 1 | J91: 1 | K91: 1 | L91: 1 | M91: 1 | N91: 1 | O91: 1 | P91: 1 | Q91: 1 | R91: 1 | S91: 1 | T91: 1 | U91: 1 | V91: 1 | W91: 1 | X91: 1 | Y91: 1 | Z91: 1 | AA91: 1 | AB91: 1 | AC91: 1 | AD91: 1 | AE91: 1 | AF91: 1 | AG91: 1 | AH91: 1 | AI91: 1 | AJ91: 1 | AK91: 1 | AL91: 1 | AM91: 1 | AN91: 1 | AO91: 1 | AP91: 1 | AQ91: 1 | AR91: 1 | AS91: 1 | AT91: 1 | AU91: 1 | AV91: 1 | AW91: 1 | AX91: 1 | AY91: 1 | AZ91: 1 | BA91: 1 | BB91: 1 | BC91: 1 | BD91: 1 | BE91: 1 | BF91: 1 | BG91: 1 | BH91: 1 | BI91: 1 | BJ91: 1 | BK91: 1 | BL91: 1 | BM91: 1 | BN91: 1 | BO91: 1 | BP91: 1 | BQ91: 1 | BR91: 1 | BS91: 1 | BT91: 1 | BU91: 1 | BV91: 1 | BW91: 1 | BX91: 1 | BY91: 1 | BZ91: 1 | CA91: 1 | CB91: 1 | CC91: 1 | CD91: 1 | CE91: 1 | CF91: 1 | CG91: 1 | CH91: 1 | CI91: 1 | CJ91: 1 | CK91: 1 | CL91: 1 | CM91: 1 | CN91: 1 | CO91: 1 | CP91: 1 | CQ91: 1 | CR91: 1 | CS91: 1 | CT91: 1 | CU91: 1 | CV91: 1 | CW91: 1 | CX91: 1 | CY91: 1 | CZ91: 1 | DA91: 1 | DB91: 1 | DC91: 1 | DD91: 1 | DE91: 1 | DF91: 1 | DG91: 1 | DH91: 1 | DI91: 1 | DJ91: 1 | DK91: 1 | DL91: 1 | DM91: 1 | DN91: 1 | DO91: 1 | DP91: 1 | DQ91: 1 | DR91: 1 | DS91: 1 | DT91: 1 | DU91: 1 | DV91: 1 | DW91: 1 | DX91: 1 | DY91: 1 | DZ91: 1 | EA91: 1 | EB91: 1 | EC91: 1 | ED91: 1 | EE91: 1 | EF91: 1 | EG91: 1 | EH91: 1 | EI91: 1 | EJ91: 1 | EK91: 1 | EL91: 1 | EM91: 1 | EN91: 1 | EO91: 1 | EP91: 1 | EQ91: 1 | ER91: 1 | ES91: 1 | ET91: 1 | EU91: 1 | EV91: 1 | EW91: 1 | EX91: 1 | EY91: 1 | EZ91: 1 | FA91: 1 | FB91: 1 | FC91: 1 | FD91: 1 | FE91: 1 | FF91: 1 | FG91: 1 | FH91: 1 | FI91: 1 | FJ91: 1 | FK91: 1 | FL91: 1 | FM91: 1 | FN91: 1 | FO91: 1 | FP91: 1 | FQ91: 1 | FR91: 1 | FS91: 1 | FT91: 1 | FU91: 1 | FV91: 1 | FW91: 1 | FX91: 1 | FY91: 1 | FZ91: 1 | GA91: 1 | GB91: 1 | GC91: 1 | GD91: 1 | GE91: 1 | GF91: 1 | GG91: 1 | GH91: 1 | GI91: 1 | GJ91: 1 | GK91: 1 | GL91: 1 | GM91: 1 | GN91: 1 | GO91: 1 | GP91: 1 | GQ91: 1 | GR91: 1 | GS91: 1 | GT91: 1 | GU91: 1 | GV91: 1 | GW91: 1 | GX91: 1 | GY91: 1 | GZ91: 1 | HA91: 1 | HB91: 1 | HC91: 1 | HD91: 1 | HE91: 1 | HF91: 1 | HG91: 1 | HH91: 1 | HI91: 1 | HJ91: 1 | HK91: 1 | HL91: 1 | HM91: 1 | HN91: 1 | HO91: 1 | HP91: 1 | HQ91: 1 | HR91: 1 | HS91: 1 | HT91: 1 | HU91: 1 | HV91: 228
A92: 2038 | B92: 1 | C92: 1 | D92: 1 | E92: 1 | F92: 1 | G92: 1 | H92: 1 | I92: 1 | J92: 1 | K92: 1 | L92: 1 | M92: 1 | N92: 1 | O92: 1 | P92: 1 | Q92: 1 | R92: 1 | S92: 1 | T92: 1 | U92: 1 | V92: 1 | W92: 1 | X92: 1 | Y92: 1 | Z92: 1 | AA92: 1 | AB92: 1 | AC92: 1 | AD92: 1 | AE92: 1 | AF92: 1 | AG92: 1 | AH92: 1 | AI92: 1 | AJ92: 1 | AK92: 1 | AL92: 1 | AM92: 1 | AN92: 1 | AO92: 1 | AP92: 1 | AQ92: 1 | AR92: 1 | AS92: 1 | AT92: 1 | AU92: 1 | AV92: 1 | AW92: 1 | AX92: 1 | AY92: 1 | AZ92: 1 | BA92: 1 | BB92: 1 | BC92: 1 | BD92: 1 | BE92: 1 | BF92: 1 | BG92: 1 | BH92: 1 | BI92: 1 | BJ92: 1 | BK92: 1 | BL92: 1 | BM92: 1 | BN92: 1 | BO92: 1 | BP92: 1 | BQ92: 1 | BR92: 1 | BS92: 1 | BT92: 1 | BU92: 1 | BV92: 1 | BW92: 1 | BX92: 1 | BY92: 1 | BZ92: 1 | CA92: 1 | CB92: 1 | CC92: 1 | CD92: 1 | CE92: 1 | CF92: 1 | CG92: 1 | CH92: 1 | CI92: 1 | CJ92: 1 | CK92: 1 | CL92: 1 | CM92: 1 | CN92: 1 | CO92: 1 | CP92: 1 | CQ92: 1 | CR92: 1 | CS92: 1 | CT92: 1 | CU92: 1 | CV92: 1 | CW92: 1 | CX92: 1 | CY92: 1 | CZ92: 1 | DA92: 1 | DB92: 1 | DC92: 1 | DD92: 1 | DE92: 1 | DF92: 1 | DG92: 1 | DH92: 1 | DI92: 1 | DJ92: 1 | DK92: 1 | DL92: 1 | DM92: 1 | DN92: 1 | DO92: 1 | DP92: 1 | DQ92: 1 | DR92: 1 | DS92: 1 | DT92: 1 | DU92: 1 | DV92: 1 | DW92: 1 | DX92: 1 | DY92: 1 | DZ92: 1 | EA92: 1 | EB92: 1 | EC92: 1 | ED92: 1 | EE92: 1 | EF92: 1 | EG92: 1 | EH92: 1 | EI92: 1 | EJ92: 1 | EK92: 1 | EL92: 1 | EM92: 1 | EN92: 1 | EO92: 1 | EP92: 1 | EQ92: 1 | ER92: 1 | ES92: 1 | ET92: 1 | EU92: 1 | EV92: 1 | EW92: 1 | EX92: 1 | EY92: 1 | EZ92: 1 | FA92: 1 | FB92: 1 | FC92: 1 | FD92: 1 | FE92: 1 | FF92: 1 | FG92: 1 | FH92: 1 | FI92: 1 | FJ92: 1 | FK92: 1 | FL92: 1 | FM92: 1 | FN92: 1 | FO92: 1 | FP92: 1 | FQ92: 1 | FR92: 1 | FS92: 1 | FT92: 1 | FU92: 1 | FV92: 1 | FW92: 1 | FX92: 1 | FY92: 1 | FZ92: 1 | GA92: 1 | GB92: 1 | GC92: 1 | GD92: 1 | GE92: 1 | GF92: 1 | GG92: 1 | GH92: 1 | GI92: 1 | GJ92: 1 | GK92: 1 | GL92: 1 | GM92: 1 | GN92: 1 | GO92: 1 | GP92: 1 | GQ92: 1 | GR92: 1 | GS92: 1 | GT92: 1 | GU92: 1 | GV92: 1 | GW92: 1 | GX92: 1 | GY92: 1 | GZ92: 1 | HA92: 1 | HB92: 1 | HC92: 1 | HD92: 1 | HE92: 1 | HF92: 1 | HG92: 1 | HH92: 1 | HI92: 1 | HJ92: 1 | HK92: 1 | HL92: 1 | HM92: 1 | HN92: 1 | HO92: 1 | HP92: 1 | HQ92: 1 | HR92: 1 | HS92: 1 | HT92: 1 | HU92: 1 | HV92: 228
A93: 2039 | B93: 1 | C93: 1 | D93: 1 | E93: 1 | F93: 1 | G93: 1 | H93: 1 | I93: 1 | J93: 1 | K93: 1 | L93: 1 | M93: 1 | N93: 1 | O93: 1 | P93: 1 | Q93: 1 | R93: 1 | S93: 1 | T93: 1 | U93: 1 | V93: 1 | W93: 1 | X93: 1 | Y93: 1 | Z93: 1 | AA93: 1 | AB93: 1 | AC93: 1 | AD93: 1 | AE93: 1 | AF93: 1 | AG93: 1 | AH93: 1 | AI93: 1 | AJ93: 1 | AK93: 1 | AL93: 1 | AM93: 1 | AN93: 1 | AO93: 1 | AP93: 1 | AQ93: 1 | AR93: 1 | AS93: 1 | AT93: 1 | AU93: 1 | AV93: 1 | AW93: 1 | AX93: 1 | AY93: 1 | AZ93: 1 | BA93: 1 | BB93: 1 | BC93: 1 | BD93: 1 | BE93: 1 | BF93: 1 | BG93: 1 | BH93: 1 | BI93: 1 | BJ93: 1 | BK93: 1 | BL93: 1 | BM93: 1 | BN93: 1 | BO93: 1 | BP93: 1 | BQ93: 1 | BR93: 1 | BS93: 1 | BT93: 1 | BU93: 1 | BV93: 1 | BW93: 1 | BX93: 1 | BY93: 1 | BZ93: 1 | CA93: 1 | CB93: 1 | CC93: 1 | CD93: 1 | CE93: 1 | CF93: 1 | CG93: 1 | CH93: 1 | CI93: 1 | CJ93: 1 | CK93: 1 | CL93: 1 | CM93: 1 | CN93: 1 | CO93: 1 | CP93: 1 | CQ93: 1 | CR93: 1 | CS93: 1 | CT93: 1 | CU93: 1 | CV93: 1 | CW93: 1 | CX93: 1 | CY93: 1 | CZ93: 1 | DA93: 1 | DB93: 1 | DC93: 1 | DD93: 1 | DE93: 1 | DF93: 1 | DG93: 1 | DH93: 1 | DI93: 1 | DJ93: 1 | DK93: 1 | DL93: 1 | DM93: 1 | DN93: 1 | DO93: 1 | DP93: 1 | DQ93: 1 | DR93: 1 | DS93: 1 | DT93: 1 | DU93: 1 | DV93: 1 | DW93: 1 | DX93: 1 | DY93: 1 | DZ93: 1 | EA93: 1 | EB93: 1 | EC93: 1 | ED93: 1 | EE93: 1 | EF93: 1 | EG93: 1 | EH93: 1 | EI93: 1 | EJ93: 1 | EK93: 1 | EL93: 1 | EM93: 1 | EN93: 1 | EO93: 1 | EP93: 1 | EQ93: 1 | ER93: 1 | ES93: 1 | ET93: 1 | EU93: 1 | EV93: 1 | EW93: 1 | EX93: 1 | EY93: 1 | EZ93: 1 | FA93: 1 | FB93: 1 | FC93: 1 | FD93: 1 | FE93: 1 | FF93: 1 | FG93: 1 | FH93: 1 | FI93: 1 | FJ93: 1 | FK93: 1 | FL93: 1 | FM93: 1 | FN93: 1 | FO93: 1 | FP93: 1 | FQ93: 1 | FR93: 1 | FS93: 1 | FT93: 1 | FU93: 1 | FV93: 1 | FW93: 1 | FX93: 1 | FY93: 1 | FZ93: 1 | GA93: 1 | GB93: 1 | GC93: 1 | GD93: 1 | GE93: 1 | GF93: 1 | GG93: 1 | GH93: 1 | GI93: 1 | GJ93: 1 | GK93: 1 | GL93: 1 | GM93: 1 | GN93: 1 | GO93: 1 | GP93: 1 | GQ93: 1 | GR93: 1 | GS93: 1 | GT93: 1 | GU93: 1 | GV93: 1 | GW93: 1 | GX93: 1 | GY93: 1 | GZ93: 1 | HA93: 1 | HB93: 1 | HC93: 1 | HD93: 1 | HE93: 1 | HF93: 1 | HG93: 1 | HH93: 1 | HI93: 1 | HJ93: 1 | HK93: 1 | HL93: 1 | HM93: 1 | HN93: 1 | HO93: 1 | HP93: 1 | HQ93: 1 | HR93: 1 | HS93: 1 | HT93: 1 | HU93: 1 | HV93: 228
A94: 2040 | B94: 1 | C94: 1 | D94: 1 | E94: 1 | F94: 1 | G94: 1 | H94: 1 | I94: 1 | J94: 1 | K94: 1 | L94: 1 | M94: 1 | N94: 1 | O94: 1 | P94: 1 | Q94: 1 | R94: 1 | S94: 1 | T94: 1 | U94: 1 | V94: 1 | W94: 1 | X94: 1 | Y94: 1 | Z94: 1 | AA94: 1 | AB94: 1 | AC94: 1 | AD94: 1 | AE94: 1 | AF94: 1 | AG94: 1 | AH94: 1 | AI94: 1 | AJ94: 1 | AK94: 1 | AL94: 1 | AM94: 1 | AN94: 1 | AO94: 1 | AP94: 1 | AQ94: 1 | AR94: 1 | AS94: 1 | AT94: 1 | AU94: 1 | AV94: 1 | AW94: 1 | AX94: 1 | AY94: 1 | AZ94: 1 | BA94: 1 | BB94: 1 | BC94: 1 | BD94: 1 | BE94: 1 | BF94: 1 | BG94: 1 | BH94: 1 | BI94: 1 | BJ94: 1 | BK94: 1 | BL94: 1 | BM94: 1 | BN94: 1 | BO94: 1 | BP94: 1 | BQ94: 1 | BR94: 1 | BS94: 1 | BT94: 1 | BU94: 1 | BV94: 1 | BW94: 1 | BX94: 1 | BY94: 1 | BZ94: 1 | CA94: 1 | CB94: 1 | CC94: 1 | CD94: 1 | CE94: 1 | CF94: 1 | CG94: 1 | CH94: 1 | CI94: 1 | CJ94: 1 | CK94: 1 | CL94: 1 | CM94: 1 | CN94: 1 | CO94: 1 | CP94: 1 | CQ94: 1 | CR94: 1 | CS94: 1 | CT94: 1 | CU94: 1 | CV94: 1 | CW94: 1 | CX94: 1 | CY94: 1 | CZ94: 1 | DA94: 1 | DB94: 1 | DC94: 1 | DD94: 1 | DE94: 1 | DF94: 1 | DG94: 1 | DH94: 1 | DI94: 1 | DJ94: 1 | DK94: 1 | DL94: 1 | DM94: 1 | DN94: 1 | DO94: 1 | DP94: 1 | DQ94: 1 | DR94: 1 | DS94: 1 | DT94: 1 | DU94: 1 | DV94: 1 | DW94: 1 | DX94: 1 | DY94: 1 | DZ94: 1 | EA94: 1 | EB94: 1 | EC94: 1 | ED94: 1 | EE94: 1 | EF94: 1 | EG94: 1 | EH94: 1 | EI94: 1 | EJ94: 1 | EK94: 1 | EL94: 1 | EM94: 1 | EN94: 1 | EO94: 1 | EP94: 1 | EQ94: 1 | ER94: 1 | ES94: 1 | ET94: 1 | EU94: 1 | EV94: 1 | EW94: 1 | EX94: 1 | EY94: 1 | EZ94: 1 | FA94: 1 | FB94: 1 | FC94: 1 | FD94: 1 | FE94: 1 | FF94: 1 | FG94: 1 | FH94: 1 | FI94: 1 | FJ94: 1 | FK94: 1 | FL94: 1 | FM94: 1 | FN94: 1 | FO94: 1 | FP94: 1 | FQ94: 1 | FR94: 1 | FS94: 1 | FT94: 1 | FU94: 1 | FV94: 1 | FW94: 1 | FX94: 1 | FY94: 1 | FZ94: 1 | GA94: 1 | GB94: 1 | GC94: 1 | GD94: 1 | GE94: 1 | GF94: 1 | GG94: 1 | GH94: 1 | GI94: 1 | GJ94: 1 | GK94: 1 | GL94: 1 | GM94: 1 | GN94: 1 | GO94: 1 | GP94: 1 | GQ94: 1 | GR94: 1 | GS94: 1 | GT94: 1 | GU94: 1 | GV94: 1 | GW94: 1 | GX94: 1 | GY94: 1 | GZ94: 1 | HA94: 1 | HB94: 1 | HC94: 1 | HD94: 1 | HE94: 1 | HF94: 1 | HG94: 1 | HH94: 1 | HI94: 1 | HJ94: 1 | HK94: 1 | HL94: 1 | HM94: 1 | HN94: 1 | HO94: 1 | HP94: 1 | HQ94: 1 | HR94: 1 | HS94: 1 | HT94: 1 | HU94: 1 | HV94: 228
A95: 2041 | B95: 1 | C95: 1 | D95: 1 | E95: 1 | F95: 1 | G95: 1 | H95: 1 | I95: 1 | J95: 1 | K95: 1 | L95: 1 | M95: 1 | N95: 1 | O95: 1 | P95: 1 | Q95: 1 | R95: 1 | S95: 1 | T95: 1 | U95: 1 | V95: 1 | W95: 1 | X95: 1 | Y95: 1 | Z95: 1 | AA95: 1 | AB95: 1 | AC95: 1 | AD95: 1 | AE95: 1 | AF95: 1 | AG95: 1 | AH95: 1 | AI95: 1 | AJ95: 1 | AK95: 1 | AL95: 1 | AM95: 1 | AN95: 1 | AO95: 1 | AP95: 1 | AQ95: 1 | AR95: 1 | AS95: 1 | AT95: 1 | AU95: 1 | AV95: 1 | AW95: 1 | AX95: 1 | AY95: 1 | AZ95: 1 | BA95: 1 | BB95: 1 | BC95: 1 | BD95: 1 | BE95: 1 | BF95: 1 | BG95: 1 | BH95: 1 | BI95: 1 | BJ95: 1 | BK95: 1 | BL95: 1 | BM95: 1 | BN95: 1 | BO95: 1 | BP95: 1 | BQ95: 1 | BR95: 1 | BS95: 1 | BT95: 1 | BU95: 1 | BV95: 1 | BW95: 1 | BX95: 1 | BY95: 1 | BZ95: 1 | CA95: 1 | CB95: 1 | CC95: 1 | CD95: 1 | CE95: 1 | CF95: 1 | CG95: 1 | CH95: 1 | CI95: 1 | CJ95: 1 | CK95: 1 | CL95: 1 | CM95: 1 | CN95: 1 | CO95: 1 | CP95: 1 | CQ95: 1 | CR95: 1 | CS95: 1 | CT95: 1 | CU95: 1 | CV95: 1 | CW95: 1 | CX95: 1 | CY95: 1 | CZ95: 1 | DA95: 1 | DB95: 1 | DC95: 1 | DD95: 1 | DE95: 1 | DF95: 1 | DG95: 1 | DH95: 1 | DI95: 1 | DJ95: 1 | DK95: 1 | DL95: 1 | DM95: 1 | DN95: 1 | DO95: 1 | DP95: 1 | DQ95: 1 | DR95: 1 | DS95: 1 | DT95: 1 | DU95: 1 | DV95: 1 | DW95: 1 | DX95: 1 | DY95: 1 | DZ95: 1 | EA95: 1 | EB95: 1 | EC95: 1 | ED95: 1 | EE95: 1 | EF95: 1 | EG95: 1 | EH95: 1 | EI95: 1 | EJ95: 1 | EK95: 1 | EL95: 1 | EM95: 1 | EN95: 1 | EO95: 1 | EP95: 1 | EQ95: 1 | ER95: 1 | ES95: 1 | ET95: 1 | EU95: 1 | EV95: 1 | EW95: 1 | EX95: 1 | EY95: 1 | EZ95: 1 | FA95: 1 | FB95: 1 | FC95: 1 | FD95: 1 | FE95: 1 | FF95: 1 | FG95: 1 | FH95: 1 | FI95: 1 | FJ95: 1 | FK95: 1 | FL95: 1 | FM95: 1 | FN95: 1 | FO95: 1 | FP95: 1 | FQ95: 1 | FR95: 1 | FS95: 1 | FT95: 1 | FU95: 1 | FV95: 1 | FW95: 1 | FX95: 1 | FY95: 1 | FZ95: 1 | GA95: 1 | GB95: 1 | GC95: 1 | GD95: 1 | GE95: 1 | GF95: 1 | GG95: 1 | GH95: 1 | GI95: 1 | GJ95: 1 | GK95: 1 | GL95: 1 | GM95: 1 | GN95: 1 | GO95: 1 | GP95: 1 | GQ95: 1 | GR95: 1 | GS95: 1 | GT95: 1 | GU95: 1 | GV95: 1 | GW95: 1 | GX95: 1 | GY95: 1 | GZ95: 1 | HA95: 1 | HB95: 1 | HC95: 1 | HD95: 1 | HE95: 1 | HF95: 1 | HG95: 1 | HH95: 1 | HI95: 1 | HJ95: 1 | HK95: 1 | HL95: 1 | HM95: 1 | HN95: 1 | HO95: 1 | HP95: 1 | HQ95: 1 | HR95: 1 | HS95: 1 | HT95: 1 | HU95: 1 | HV95: 228
A96: 2042 | B96: 1 | C96: 1 | D96: 1 | E96: 1 | F96: 1 | G96: 1 | H96: 1 | I96: 1 | J96: 1 | K96: 1 | L96: 1 | M96: 1 | N96: 1 | O96: 1 | P96: 1 | Q96: 1 | R96: 1 | S96: 1 | T96: 1 | U96: 1 | V96: 1 | W96: 1 | X96: 1 | Y96: 1 | Z96: 1 | AA96: 1 | AB96: 1 | AC96: 1 | AD96: 1 | AE96: 1 | AF96: 1 | AG96: 1 | AH96: 1 | AI96: 1 | AJ96: 1 | AK96: 1 | AL96: 1 | AM96: 1 | AN96: 1 | AO96: 1 | AP96: 1 | AQ96: 1 | AR96: 1 | AS96: 1 | AT96: 1 | AU96: 1 | AV96: 1 | AW96: 1 | AX96: 1 | AY96: 1 | AZ96: 1 | BA96: 1 | BB96: 1 | BC96: 1 | BD96: 1 | BE96: 1 | BF96: 1 | BG96: 1 | BH96: 1 | BI96: 1 | BJ96: 1 | BK96: 1 | BL96: 1 | BM96: 1 | BN96: 1 | BO96: 1 | BP96: 1 | BQ96: 1 | BR96: 1 | BS96: 1 | BT96: 1 | BU96: 1 | BV96: 1 | BW96: 1 | BX96: 1 | BY96: 1 | BZ96: 1 | CA96: 1 | CB96: 1 | CC96: 1 | CD96: 1 | CE96: 1 | CF96: 1 | CG96: 1 | CH96: 1 | CI96: 1 | CJ96: 1 | CK96: 1 | CL96: 1 | CM96: 1 | CN96: 1 | CO96: 1 | CP96: 1 | CQ96: 1 | CR96: 1 | CS96: 1 | CT96: 1 | CU96: 1 | CV96: 1 | CW96: 1 | CX96: 1 | CY96: 1 | CZ96: 1 | DA96: 1 | DB96: 1 | DC96: 1 | DD96: 1 | DE96: 1 | DF96: 1 | DG96: 1 | DH96: 1 | DI96: 1 | DJ96: 1 | DK96: 1 | DL96: 1 | DM96: 1 | DN96: 1 | DO96: 1 | DP96: 1 | DQ96: 1 | DR96: 1 | DS96: 1 | DT96: 1 | DU96: 1 | DV96: 1 | DW96: 1 | DX96: 1 | DY96: 1 | DZ96: 1 | EA96: 1 | EB96: 1 | EC96: 1 | ED96: 1 | EE96: 1 | EF96: 1 | EG96: 1 | EH96: 1 | EI96: 1 | EJ96: 1 | EK96: 1 | EL96: 1 | EM96: 1 | EN96: 1 | EO96: 1 | EP96: 1 | EQ96: 1 | ER96: 1 | ES96: 1 | ET96: 1 | EU96: 1 | EV96: 1 | EW96: 1 | EX96: 1 | EY96: 1 | EZ96: 1 | FA96: 1 | FB96: 1 | FC96: 1 | FD96: 1 | FE96: 1 | FF96: 1 | FG96: 1 | FH96: 1 | FI96: 1 | FJ96: 1 | FK96: 1 | FL96: 1 | FM96: 1 | FN96: 1 | FO96: 1 | FP96: 1 | FQ96: 1 | FR96: 1 | FS96: 1 | FT96: 1 | FU96: 1 | FV96: 1 | FW96: 1 | FX96: 1 | FY96: 1 | FZ96: 1 | GA96: 1 | GB96: 1 | GC96: 1 | GD96: 1 | GE96: 1 | GF96: 1 | GG96: 1 | GH96: 1 | GI96: 1 | GJ96: 1 | GK96: 1 | GL96: 1 | GM96: 1 | GN96: 1 | GO96: 1 | GP96: 1 | GQ96: 1 | GR96: 1 | GS96: 1 | GT96: 1 | GU96: 1 | GV96: 1 | GW96: 1 | GX96: 1 | GY96: 1 | GZ96: 1 | HA96: 1 | HB96: 1 | HC96: 1 | HD96: 1 | HE96: 1 | HF96: 1 | HG96: 1 | HH96: 1 | HI96: 1 | HJ96: 1 | HK96: 1 | HL96: 1 | HM96: 1 | HN96: 1 | HO96: 1 | HP96: 1 | HQ96: 1 | HR96: 1 | HS96: 1 | HT96: 1 | HU96: 1 | HV96: 228
A97: 2043 | B97: 1 | C97: 1 | D97: 1 | E97: 1 | F97: 1 | G97: 1 | H97: 1 | I97: 1 | J97: 1 | K97: 1 | L97: 1 | M97: 1 | N97: 1 | O97: 1 | P97: 1 | Q97: 1 | R97: 1 | S97: 1 | T97: 1 | U97: 1 | V97: 1 | W97: 1 | X97: 1 | Y97: 1 | Z97: 1 | AA97: 1 | AB97: 1 | AC97: 1 | AD97: 1 | AE97: 1 | AF97: 1 | AG97: 1 | AH97: 1 | AI97: 1 | AJ97: 1 | AK97: 1 | AL97: 1 | AM97: 1 | AN97: 1 | AO97: 1 | AP97: 1 | AQ97: 1 | AR97: 1 | AS97: 1 | AT97: 1 | AU97: 1 | AV97: 1 | AW97: 1 | AX97: 1 | AY97: 1 | AZ97: 1 | BA97: 1 | BB97: 1 | BC97: 1 | BD97: 1 | BE97: 1 | BF97: 1 | BG97: 1 | BH97: 1 | BI97: 1 | BJ97: 1 | BK97: 1 | BL97: 1 | BM97: 1 | BN97: 1 | BO97: 1 | BP97: 1 | BQ97: 1 | BR97: 1 | BS97: 1 | BT97: 1 | BU97: 1 | BV97: 1 | BW97: 1 | BX97: 1 | BY97: 1 | BZ97: 1 | CA97: 1 | CB97: 1 | CC97: 1 | CD97: 1 | CE97: 1 | CF97: 1 | CG97: 1 | CH97: 1 | CI97: 1 | CJ97: 1 | CK97: 1 | CL97: 1 | CM97: 1 | CN97: 1 | CO97: 1 | CP97: 1 | CQ97: 1 | CR97: 1 | CS97: 1 | CT97: 1 | CU97: 1 | CV97: 1 | CW97: 1 | CX97: 1 | CY97: 1 | CZ97: 1 | DA97: 1 | DB97: 1 | DC97: 1 | DD97: 1 | DE97: 1 | DF97: 1 | DG97: 1 | DH97: 1 | DI97: 1 | DJ97: 1 | DK97: 1 | DL97: 1 | DM97: 1 | DN97: 1 | DO97: 1 | DP97: 1 | DQ97: 1 | DR97: 1 | DS97: 1 | DT97: 1 | DU97: 1 | DV97: 1 | DW97: 1 | DX97: 1 | DY97: 1 | DZ97: 1 | EA97: 1 | EB97: 1 | EC97: 1 | ED97: 1 | EE97: 1 | EF97: 1 | EG97: 1 | EH97: 1 | EI97: 1 | EJ97: 1 | EK97: 1 | EL97: 1 | EM97: 1 | EN97: 1 | EO97: 1 | EP97: 1 | EQ97: 1 | ER97: 1 | ES97: 1 | ET97: 1 | EU97: 1 | EV97: 1 | EW97: 1 | EX97: 1 | EY97: 1 | EZ97: 1 | FA97: 1 | FB97: 1 | FC97: 1 | FD97: 1 | FE97: 1 | FF97: 1 | FG97: 1 | FH97: 1 | FI97: 1 | FJ97: 1 | FK97: 1 | FL97: 1 | FM97: 1 | FN97: 1 | FO97: 1 | FP97: 1 | FQ97: 1 | FR97: 1 | FS97: 1 | FT97: 1 | FU97: 1 | FV97: 1 | FW97: 1 | FX97: 1 | FY97: 1 | FZ97: 1 | GA97: 1 | GB97: 1 | GC97: 1 | GD97: 1 | GE97: 1 | GF97: 1 | GG97: 1 | GH97: 1 | GI97: 1 | GJ97: 1 | GK97: 1 | GL97: 1 | GM97: 1 | GN97: 1 | GO97: 1 | GP97: 1 | GQ97: 1 | GR97: 1 | GS97: 1 | GT97: 1 | GU97: 1 | GV97: 1 | GW97: 1 | GX97: 1 | GY97: 1 | GZ97: 1 | HA97: 1 | HB97: 1 | HC97: 1 | HD97: 1 | HE97: 1 | HF97: 1 | HG97: 1 | HH97: 1 | HI97: 1 | HJ97: 1 | HK97: 1 | HL97: 1 | HM97: 1 | HN97: 1 | HO97: 1 | HP97: 1 | HQ97: 1 | HR97: 1 | HS97: 1 | HT97: 1 | HU97: 1 | HV97: 228
A98: 2044 | B98: 1 | C98: 1 | D98: 1 | E98: 1 | F98: 1 | G98: 1 | H98: 1 | I98: 1 | J98: 1 | K98: 1 | L98: 1 | M98: 1 | N98: 1 | O98: 1 | P98: 1 | Q98: 1 | R98: 1 | S98: 1 | T98: 1 | U98: 1 | V98: 1 | W98: 1 | X98: 1 | Y98: 1 | Z98: 1 | AA98: 1 | AB98: 1 | AC98: 1 | AD98: 1 | AE98: 1 | AF98: 1 | AG98: 1 | AH98: 1 | AI98: 1 | AJ98: 1 | AK98: 1 | AL98: 1 | AM98: 1 | AN98: 1 | AO98: 1 | AP98: 1 | AQ98: 1 | AR98: 1 | AS98: 1 | AT98: 1 | AU98: 1 | AV98: 1 | AW98: 1 | AX98: 1 | AY98: 1 | AZ98: 1 | BA98: 1 | BB98: 1 | BC98: 1 | BD98: 1 | BE98: 1 | BF98: 1 | BG98: 1 | BH98: 1 | BI98: 1 | BJ98: 1 | BK98: 1 | BL98: 1 | BM98: 1 | BN98: 1 | BO98: 1 | BP98: 1 | BQ98: 1 | BR98: 1 | BS98: 1 | BT98: 1 | BU98: 1 | BV98: 1 | BW98: 1 | BX98: 1 | BY98: 1 | BZ98: 1 | CA98: 1 | CB98: 1 | CC98: 1 | CD98: 1 | CE98: 1 | CF98: 1 | CG98: 1 | CH98: 1 | CI98: 1 | CJ98: 1 | CK98: 1 | CL98: 1 | CM98: 1 | CN98: 1 | CO98: 1 | CP98: 1 | CQ98: 1 | CR98: 1 | CS98: 1 | CT98: 1 | CU98: 1 | CV98: 1 | CW98: 1 | CX98: 1 | CY98: 1 | CZ98: 1 | DA98: 1 | DB98: 1 | DC98: 1 | DD98: 1 | DE98: 1 | DF98: 1 | DG98: 1 | DH98: 1 | DI98: 1 | DJ98: 1 | DK98: 1 | DL98: 1 | DM98: 1 | DN98: 1 | DO98: 1 | DP98: 1 | DQ98: 1 | DR98: 1 | DS98: 1 | DT98: 1 | DU98: 1 | DV98: 1 | DW98: 1 | DX98: 1 | DY98: 1 | DZ98: 1 | EA98: 1 | EB98: 1 | EC98: 1 | ED98: 1 | EE98: 1 | EF98: 1 | EG98: 1 | EH98: 1 | EI98: 1 | EJ98: 1 | EK98: 1 | EL98: 1 | EM98: 1 | EN98: 1 | EO98: 1 | EP98: 1 | EQ98: 1 | ER98: 1 | ES98: 1 | ET98: 1 | EU98: 1 | EV98: 1 | EW98: 1 | EX98: 1 | EY98: 1 | EZ98: 1 | FA98: 1 | FB98: 1 | FC98: 1 | FD98: 1 | FE98: 1 | FF98: 1 | FG98: 1 | FH98: 1 | FI98: 1 | FJ98: 1 | FK98: 1 | FL98: 1 | FM98: 1 | FN98: 1 | FO98: 1 | FP98: 1 | FQ98: 1 | FR98: 1 | FS98: 1 | FT98: 1 | FU98: 1 | FV98: 1 | FW98: 1 | FX98: 1 | FY98: 1 | FZ98: 1 | GA98: 1 | GB98: 1 | GC98: 1 | GD98: 1 | GE98: 1 | GF98: 1 | GG98: 1 | GH98: 1 | GI98: 1 | GJ98: 1 | GK98: 1 | GL98: 1 | GM98: 1 | GN98: 1 | GO98: 1 | GP98: 1 | GQ98: 1 | GR98: 1 | GS98: 1 | GT98: 1 | GU98: 1 | GV98: 1 | GW98: 1 | GX98: 1 | GY98: 1 | GZ98: 1 | HA98: 1 | HB98: 1 | HC98: 1 | HD98: 1 | HE98: 1 | HF98: 1 | HG98: 1 | HH98: 1 | HI98: 1 | HJ98: 1 | HK98: 1 | HL98: 1 | HM98: 1 | HN98: 1 | HO98: 1 | HP98: 1 | HQ98: 1 | HR98: 1 | HS98: 1 | HT98: 1 | HU98: 1 | HV98: 228
A99: 2045 | B99: 1 | C99: 1 | D99: 1 | E99: 1 | F99: 1 | G99: 1 | H99: 1 | I99: 1 | J99: 1 | K99: 1 | L99: 1 | M99: 1 | N99: 1 | O99: 1 | P99: 1 | Q99: 1 | R99: 1 | S99: 1 | T99: 1 | U99: 1 | V99: 1 | W99: 1 | X99: 1 | Y99: 1 | Z99: 1 | AA99: 1 | AB99: 1 | AC99: 1 | AD99: 1 | AE99: 1 | AF99: 1 | AG99: 1 | AH99: 1 | AI99: 1 | AJ99: 1 | AK99: 1 | AL99: 1 | AM99: 1 | AN99: 1 | AO99: 1 | AP99: 1 | AQ99: 1 | AR99: 1 | AS99: 1 | AT99: 1 | AU99: 1 | AV99: 1 | AW99: 1 | AX99: 1 | AY99: 1 | AZ99: 1 | BA99: 1 | BB99: 1 | BC99: 1 | BD99: 1 | BE99: 1 | BF99: 1 | BG99: 1 | BH99: 1 | BI99: 1 | BJ99: 1 | BK99: 1 | BL99: 1 | BM99: 1 | BN99: 1 | BO99: 1 | BP99: 1 | BQ99: 1 | BR99: 1 | BS99: 1 | BT99: 1 | BU99: 1 | BV99: 1 | BW99: 1 | BX99: 1 | BY99: 1 | BZ99: 1 | CA99: 1 | CB99: 1 | CC99: 1 | CD99: 1 | CE99: 1 | CF99: 1 | CG99: 1 | CH99: 1 | CI99: 1 | CJ99: 1 | CK99: 1 | CL99: 1 | CM99: 1 | CN99: 1 | CO99: 1 | CP99: 1 | CQ99: 1 | CR99: 1 | CS99: 1 | CT99: 1 | CU99: 1 | CV99: 1 | CW99: 1 | CX99: 1 | CY99: 1 | CZ99: 1 | DA99: 1 | DB99: 1 | DC99: 1 | DD99: 1 | DE99: 1 | DF99: 1 | DG99: 1 | DH99: 1 | DI99: 1 | DJ99: 1 | DK99: 1 | DL99: 1 | DM99: 1 | DN99: 1 | DO99: 1 | DP99: 1 | DQ99: 1 | DR99: 1 | DS99: 1 | DT99: 1 | DU99: 1 | DV99: 1 | DW99: 1 | DX99: 1 | DY99: 1 | DZ99: 1 | EA99: 1 | EB99: 1 | EC99: 1 | ED99: 1 | EE99: 1 | EF99: 1 | EG99: 1 | EH99: 1 | EI99: 1 | EJ99: 1 | EK99: 1 | EL99: 1 | EM99: 1 | EN99: 1 | EO99: 1 | EP99: 1 | EQ99: 1 | ER99: 1 | ES99: 1 | ET99: 1 | EU99: 1 | EV99: 1 | EW99: 1 | EX99: 1 | EY99: 1 | EZ99: 1 | FA99: 1 | FB99: 1 | FC99: 1 | FD99: 1 | FE99: 1 | FF99: 1 | FG99: 1 | FH99: 1 | FI99: 1 | FJ99: 1 | FK99: 1 | FL99: 1 | FM99: 1 | FN99: 1 | FO99: 1 | FP99: 1 | FQ99: 1 | FR99: 1 | FS99: 1 | FT99: 1 | FU99: 1 | FV99: 1 | FW99: 1 | FX99: 1 | FY99: 1 | FZ99: 1 | GA99: 1 | GB99: 1 | GC99: 1 | GD99: 1 | GE99: 1 | GF99: 1 | GG99: 1 | GH99: 1 | GI99: 1 | GJ99: 1 | GK99: 1 | GL99: 1 | GM99: 1 | GN99: 1 | GO99: 1 | GP99: 1 | GQ99: 1 | GR99: 1 | GS99: 1 | GT99: 1 | GU99: 1 | GV99: 1 | GW99: 1 | GX99: 1 | GY99: 1 | GZ99: 1 | HA99: 1 | HB99: 1 | HC99: 1 | HD99: 1 | HE99: 1 | HF99: 1 | HG99: 1 | HH99: 1 | HI99: 1 | HJ99: 1 | HK99: 1 | HL99: 1 | HM99: 1 | HN99: 1 | HO99: 1 | HP99: 1 | HQ99: 1 | HR99: 1 | HS99: 1 | HT99: 1 | HU99: 1 | HV99: 228
A100: 2046 | B100: 1 | C100: 1 | D100: 1 | E100: 1 | F100: 1 | G100: 1 | H100: 1 | I100: 1 | J100: 1 | K100: 1 | L100: 1 | M100: 1 | N100: 1 | O100: 1 | P100: 1 | Q100: 1 | R100: 1 | S100: 1 | T100: 1 | U100: 1 | V100: 1 | W100: 1 | X100: 1 | Y100: 1 | Z100: 1 | AA100: 1 | AB100: 1 | AC100: 1 | AD100: 1 | AE100: 1 | AF100: 1 | AG100: 1 | AH100: 1 | AI100: 1 | AJ100: 1 | AK100: 1 | AL100: 1 | AM100: 1 | AN100: 1 | AO100: 1 | AP100: 1 | AQ100: 1 | AR100: 1 | AS100: 1 | AT100: 1 | AU100: 1 | AV100: 1 | AW100: 1 | AX100: 1 | AY100: 1 | AZ100: 1 | BA100: 1 | BB100: 1 | BC100: 1 | BD100: 1 | BE100: 1 | BF100: 1 | BG100: 1 | BH100: 1 | BI100: 1 | BJ100: 1 | BK100: 1 | BL100: 1 | BM100: 1 | BN100: 1 | BO100: 1 | BP100: 1 | BQ100: 1 | BR100: 1 | BS100: 1 | BT100: 1 | BU100: 1 | BV100: 1 | BW100: 1 | BX100: 1 | BY100: 1 | BZ100: 1 | CA100: 1 | CB100: 1 | CC100: 1 | CD100: 1 | CE100: 1 | CF100: 1 | CG100: 1 | CH100: 1 | CI100: 1 | CJ100: 1 | CK100: 1 | CL100: 1 | CM100: 1 | CN100: 1 | CO100: 1 | CP100: 1 | CQ100: 1 | CR100: 1 | CS100: 1 | CT100: 1 | CU100: 1 | CV100: 1 | CW100: 1 | CX100: 1 | CY100: 1 | CZ100: 1 | DA100: 1 | DB100: 1 | DC100: 1 | DD100: 1 | DE100: 1 | DF100: 1 | DG100: 1 | DH100: 1 | DI100: 1 | DJ100: 1 | DK100: 1 | DL100: 1 | DM100: 1 | DN100: 1 | DO100: 1 | DP100: 1 | DQ100: 1 | DR100: 1 | DS100: 1 | DT100: 1 | DU100: 1 | DV100: 1 | DW100: 1 | DX100: 1 | DY100: 1 | DZ100: 1 | EA100: 1 | EB100: 1 | EC100: 1 | ED100: 1 | EE100: 1 | EF100: 1 | EG100: 1 | EH100: 1 | EI100: 1 | EJ100: 1 | EK100: 1 | EL100: 1 | EM100: 1 | EN100: 1 | EO100: 1 | EP100: 1 | EQ100: 1 | ER100: 1 | ES100: 1 | ET100: 1 | EU100: 1 | EV100: 1 | EW100: 1 | EX100: 1 | EY100: 1 | EZ100: 1 | FA100: 1 | FB100: 1 | FC100: 1 | FD100: 1 | FE100: 1 | FF100: 1 | FG100: 1 | FH100: 1 | FI100: 1 | FJ100: 1 | FK100: 1 | FL100: 1 | FM100: 1 | FN100: 1 | FO100: 1 | FP100: 1 | FQ100: 1 | FR100: 1 | FS100: 1 | FT100: 1 | FU100: 1 | FV100: 1 | FW100: 1 | FX100: 1 | FY100: 1 | FZ100: 1 | GA100: 1 | GB100: 1 | GC100: 1 | GD100: 1 | GE100: 1 | GF100: 1 | GG100: 1 | GH100: 1 | GI100: 1 | GJ100: 1 | GK100: 1 | GL100: 1 | GM100: 1 | GN100: 1 | GO100: 1 | GP100: 1 | GQ100: 1 | GR100: 1 | GS100: 1 | GT100: 1 | GU100: 1 | GV100: 1 | GW100: 1 | GX100: 1 | GY100: 1 | GZ100: 1 | HA100: 1 | HB100: 1 | HC100: 1 | HD100: 1 | HE100: 1 | HF100: 1 | HG100: 1 | HH100: 1 | HI100: 1 | HJ100: 1 | HK100: 1 | HL100: 1 | HM100: 1 | HN100: 1 | HO100: 1 | HP100: 1 | HQ100: 1 | HR100: 1 | HS100: 1 | HT100: 1 | HU100: 1 | HV100: 228
A101: 2047 | B101: 1 | C101: 1 | D101: 1 | E101: 1 | F101: 1 | G101: 1 | H101: 1 | I101: 1 | J101: 1 | K101: 1 | L101: 1 | M101: 1 | N101: 1 | O101: 1 | P101: 1 | Q101: 1 | R101: 1 | S101: 1 | T101: 1 | U101: 1 | V101: 1 | W101: 1 | X101: 1 | Y101: 1 | Z101: 1 | AA101: 1 | AB101: 1 | AC101: 1 | AD101: 1 | AE101: 1 | AF101: 1 | AG101: 1 | AH101: 1 | AI101: 1 | AJ101: 1 | AK101: 1 | AL101: 1 | AM101: 1 | AN101: 1 | AO101: 1 | AP101: 1 | AQ101: 1 | AR101: 1 | AS101: 1 | AT101: 1 | AU101: 1 | AV101: 1 | AW101: 1 | AX101: 1 | AY101: 1 | AZ101: 1 | BA101: 1 | BB101: 1 | BC101: 1 | BD101: 1 | BE101: 1 | BF101: 1 | BG101: 1 | BH101: 1 | BI101: 1 | BJ101: 1 | BK101: 1 | BL101: 1 | BM101: 1 | BN101: 1 | BO101: 1 | BP101: 1 | BQ101: 1 | BR101: 1 | BS101: 1 | BT101: 1 | BU101: 1 | BV101: 1 | BW101: 1 | BX101: 1 | BY101: 1 | BZ101: 1 | CA101: 1 | CB101: 1 | CC101: 1 | CD101: 1 | CE101: 1 | CF101: 1 | CG101: 1 | CH101: 1 | CI101: 1 | CJ101: 1 | CK101: 1 | CL101: 1 | CM101: 1 | CN101: 1 | CO101: 1 | CP101: 1 | CQ101: 1 | CR101: 1 | CS101: 1 | CT101: 1 | CU101: 1 | CV101: 1 | CW101: 1 | CX101: 1 | CY101: 1 | CZ101: 1 | DA101: 1 | DB101: 1 | DC101: 1 | DD101: 1 | DE101: 1 | DF101: 1 | DG101: 1 | DH101: 1 | DI101: 1 | DJ101: 1 | DK101: 1 | DL101: 1 | DM101: 1 | DN101: 1 | DO101: 1 | DP101: 1 | DQ101: 1 | DR101: 1 | DS101: 1 | DT101: 1 | DU101: 1 | DV101: 1 | DW101: 1 | DX101: 1 | DY101: 1 | DZ101: 1 | EA101: 1 | EB101: 1 | EC101: 1 | ED101: 1 | EE101: 1 | EF101: 1 | EG101: 1 | EH101: 1 | EI101: 1 | EJ101: 1 | EK101: 1 | EL101: 1 | EM101: 1 | EN101: 1 | EO101: 1 | EP101: 1 | EQ101: 1 | ER101: 1 | ES101: 1 | ET101: 1 | EU101: 1 | EV101: 1 | EW101: 1 | EX101: 1 | EY101: 1 | EZ101: 1 | FA101: 1 | FB101: 1 | FC101: 1 | FD101: 1 | FE101: 1 | FF101: 1 | FG101: 1 | FH101: 1 | FI101: 1 | FJ101: 1 | FK101: 1 | FL101: 1 | FM101: 1 | FN101: 1 | FO101: 1 | FP101: 1 | FQ101: 1 | FR101: 1 | FS101: 1 | FT101: 1 | FU101: 1 | FV101: 1 | FW101: 1 | FX101: 1 | FY101: 1 | FZ101: 1 | GA101: 1 | GB101: 1 | GC101: 1 | GD101: 1 | GE101: 1 | GF101: 1 | GG101: 1 | GH101: 1 | GI101: 1 | GJ101: 1 | GK101: 1 | GL101: 1 | GM101: 1 | GN101: 1 | GO101: 1 | GP101: 1 | GQ101: 1 | GR101: 1 | GS101: 1 | GT101: 1 | GU101: 1 | GV101: 1 | GW101: 1 | GX101: 1 | GY101: 1 | GZ101: 1 | HA101: 1 | HB101: 1 | HC101: 1 | HD101: 1 | HE101: 1 | HF101: 1 | HG101: 1 | HH101: 1 | HI101: 1 | HJ101: 1 | HK101: 1 | HL101: 1 | HM101: 1 | HN101: 1 | HO101: 1 | HP101: 1 | HQ101: 1 | HR101: 1 | HS101: 1 | HT101: 1 | HU101: 1 | HV101: 228
A102: 2048 | B102: 1 | C102: 1 | D102: 1 | E102: 1 | F102: 1 | G102: 1 | H102: 1 | I102: 1 | J102: 1 | K102: 1 | L102: 1 | M102: 1 | N102: 1 | O102: 1 | P102: 1 | Q102: 1 | R102: 1 | S102: 1 | T102: 1 | U102: 1 | V102: 1 | W102: 1 | X102: 1 | Y102: 1 | Z102: 1 | AA102: 1 | AB102: 1 | AC102: 1 | AD102: 1 | AE102: 1 | AF102: 1 | AG102: 1 | AH102: 1 | AI102: 1 | AJ102: 1 | AK102: 1 | AL102: 1 | AM102: 1 | AN102: 1 | AO102: 1 | AP102: 1 | AQ102: 1 | AR102: 1 | AS102: 1 | AT102: 1 | AU102: 1 | AV102: 1 | AW102: 1 | AX102: 1 | AY102: 1 | AZ102: 1 | BA102: 1 | BB102: 1 | BC102: 1 | BD102: 1 | BE102: 1 | BF102: 1 | BG102: 1 | BH102: 1 | BI102: 1 | BJ102: 1 | BK102: 1 | BL102: 1 | BM102: 1 | BN102: 1 | BO102: 1 | BP102: 1 | BQ102: 1 | BR102: 1 | BS102: 1 | BT102: 1 | BU102: 1 | BV102: 1 | BW102: 1 | BX102: 1 | BY102: 1 | BZ102: 1 | CA102: 1 | CB102: 1 | CC102: 1 | CD102: 1 | CE102: 1 | CF102: 1 | CG102: 1 | CH102: 1 | CI102: 1 | CJ102: 1 | CK102: 1 | CL102: 1 | CM102: 1 | CN102: 1 | CO102: 1 | CP102: 1 | CQ102: 1 | CR102: 1 | CS102: 1 | CT102: 1 | CU102: 1 | CV102: 1 | CW102: 1 | CX102: 1 | CY102: 1 | CZ102: 1 | DA102: 1 | DB102: 1 | DC102: 1 | DD102: 1 | DE102: 1 | DF102: 1 | DG102: 1 | DH102: 1 | DI102: 1 | DJ102: 1 | DK102: 1 | DL102: 1 | DM102: 1 | DN102: 1 | DO102: 1 | DP102: 1 | DQ102: 1 | DR102: 1 | DS102: 1 | DT102: 1 | DU102: 1 | DV102: 1 | DW102: 1 | DX102: 1 | DY102: 1 | DZ102: 1 | EA102: 1 | EB102: 1 | EC102: 1 | ED102: 1 | EE102: 1 | EF102: 1 | EG102: 1 | EH102: 1 | EI102: 1 | EJ102: 1 | EK102: 1 | EL102: 1 | EM102: 1 | EN102: 1 | EO102: 1 | EP102: 1 | EQ102: 1 | ER102: 1 | ES102: 1 | ET102: 1 | EU102: 1 | EV102: 1 | EW102: 1 | EX102: 1 | EY102: 1 | EZ102: 1 | FA102: 1 | FB102: 1 | FC102: 1 | FD102: 1 | FE102: 1 | FF102: 1 | FG102: 1 | FH102: 1 | FI102: 1 | FJ102: 1 | FK102: 1 | FL102: 1 | FM102: 1 | FN102: 1 | FO102: 1 | FP102: 1 | FQ102: 1 | FR102: 1 | FS102: 1 | FT102: 1 | FU102: 1 | FV102: 1 | FW102: 1 | FX102: 1 | FY102: 1 | FZ102: 1 | GA102: 1 | GB102: 1 | GC102: 1 | GD102: 1 | GE102: 1 | GF102: 1 | GG102: 1 | GH102: 1 | GI102: 1 | GJ102: 1 | GK102: 1 | GL102: 1 | GM102: 1 | GN102: 1 | GO102: 1 | GP102: 1 | GQ102: 1 | GR102: 1 | GS102: 1 | GT102: 1 | GU102: 1 | GV102: 1 | GW102: 1 | GX102: 1 | GY102: 1 | GZ102: 1 | HA102: 1 | HB102: 1 | HC102: 1 | HD102: 1 | HE102: 1 | HF102: 1 | HG102: 1 | HH102: 1 | HI102: 1 | HJ102: 1 | HK102: 1 | HL102: 1 | HM102: 1 | HN102: 1 | HO102: 1 | HP102: 1 | HQ102: 1 | HR102: 1 | HS102: 1 | HT102: 1 | HU102: 1 | HV102: 228
A103: 2049 | B103: 1 | C103: 1 | D103: 1 | E103: 1 | F103: 1 | G103: 1 | H103: 1 | I103: 1 | J103: 1 | K103: 1 | L103: 1 | M103: 1 | N103: 1 | O103: 1 | P103: 1 | Q103: 1 | R103: 1 | S103: 1 | T103: 1 | U103: 1 | V103: 1 | W103: 1 | X103: 1 | Y103: 1 | Z103: 1 | AA103: 1 | AB103: 1 | AC103: 1 | AD103: 1 | AE103: 1 | AF103: 1 | AG103: 1 | AH103: 1 | AI103: 1 | AJ103: 1 | AK103: 1 | AL103: 1 | AM103: 1 | AN103: 1 | AO103: 1 | AP103: 1 | AQ103: 1 | AR103: 1 | AS103: 1 | AT103: 1 | AU103: 1 | AV103: 1 | AW103: 1 | AX103: 1 | AY103: 1 | AZ103: 1 | BA103: 1 | BB103: 1 | BC103: 1 | BD103: 1 | BE103: 1 | BF103: 1 | BG103: 1 | BH103: 1 | BI103: 1 | BJ103: 1 | BK103: 1 | BL103: 1 | BM103: 1 | BN103: 1 | BO103: 1 | BP103: 1 | BQ103: 1 | BR103: 1 | BS103: 1 | BT103: 1 | BU103: 1 | BV103: 1 | BW103: 1 | BX103: 1 | BY103: 1 | BZ103: 1 | CA103: 1 | CB103: 1 | CC103: 1 | CD103: 1 | CE103: 1 | CF103: 1 | CG103: 1 | CH103: 1 | CI103: 1 | CJ103: 1 | CK103: 1 | CL103: 1 | CM103: 1 | CN103: 1 | CO103: 1 | CP103: 1 | CQ103: 1 | CR103: 1 | CS103: 1 | CT103: 1 | CU103: 1 | CV103: 1 | CW103: 1 | CX103: 1 | CY103: 1 | CZ103: 1 | DA103: 1 | DB103: 1 | DC103: 1 | DD103: 1 | DE103: 1 | DF103: 1 | DG103: 1 | DH103: 1 | DI103: 1 | DJ103: 1 | DK103: 1 | DL103: 1 | DM103: 1 | DN103: 1 | DO103: 1 | DP103: 1 | DQ103: 1 | DR103: 1 | DS103: 1 | DT103: 1 | DU103: 1 | DV103: 1 | DW103: 1 | DX103: 1 | DY103: 1 | DZ103: 1 | EA103: 1 | EB103: 1 | EC103: 1 | ED103: 1 | EE103: 1 | EF103: 1 | EG103: 1 | EH103: 1 | EI103: 1 | EJ103: 1 | EK103: 1 | EL103: 1 | EM103: 1 | EN103: 1 | EO103: 1 | EP103: 1 | EQ103: 1 | ER103: 1 | ES103: 1 | ET103: 1 | EU103: 1 | EV103: 1 | EW103: 1 | EX103: 1 | EY103: 1 | EZ103: 1 | FA103: 1 | FB103: 1 | FC103: 1 | FD103: 1 | FE103: 1 | FF103: 1 | FG103: 1 | FH103: 1 | FI103: 1 | FJ103: 1 | FK103: 1 | FL103: 1 | FM103: 1 | FN103: 1 | FO103: 1 | FP103: 1 | FQ103: 1 | FR103: 1 | FS103: 1 | FT103: 1 | FU103: 1 | FV103: 1 | FW103: 1 | FX103: 1 | FY103: 1 | FZ103: 1 | GA103: 1 | GB103: 1 | GC103: 1 | GD103: 1 | GE103: 1 | GF103: 1 | GG103: 1 | GH103: 1 | GI103: 1 | GJ103: 1 | GK103: 1 | GL103: 1 | GM103: 1 | GN103: 1 | GO103: 1 | GP103: 1 | GQ103: 1 | GR103: 1 | GS103: 1 | GT103: 1 | GU103: 1 | GV103: 1 | GW103: 1 | GX103: 1 | GY103: 1 | GZ103: 1 | HA103: 1 | HB103: 1 | HC103: 1 | HD103: 1 | HE103: 1 | HF103: 1 | HG103: 1 | HH103: 1 | HI103: 1 | HJ103: 1 | HK103: 1 | HL103: 1 | HM103: 1 | HN103: 1 | HO103: 1 | HP103: 1 | HQ103: 1 | HR103: 1 | HS103: 1 | HT103: 1 | HU103: 1 | HV103: 228
A104: 2050 | B104: 1 | C104: 1 | D104: 1 | E104: 1 | F104: 1 | G104: 1 | H104: 1 | I104: 1 | J104: 1 | K104: 1 | L104: 1 | M104: 1 | N104: 1 | O104: 1 | P104: 1 | Q104: 1 | R104: 1 | S104: 1 | T104: 1 | U104: 1 | V104: 1 | W104: 1 | X104: 1 | Y104: 1 | Z104: 1 | AA104: 1 | AB104: 1 | AC104: 1 | AD104: 1 | AE104: 1 | AF104: 1 | AG104: 1 | AH104: 1 | AI104: 1 | AJ104: 1 | AK104: 1 | AL104: 1 | AM104: 1 | AN104: 1 | AO104: 1 | AP104: 1 | AQ104: 1 | AR104: 1 | AS104: 1 | AT104: 1 | AU104: 1 | AV104: 1 | AW104: 1 | AX104: 1 | AY104: 1 | AZ104: 1 | BA104: 1 | BB104: 1 | BC104: 1 | BD104: 1 | BE104: 1 | BF104: 1 | BG104: 1 | BH104: 1 | BI104: 1 | BJ104: 1 | BK104: 1 | BL104: 1 | BM104: 1 | BN104: 1 | BO104: 1 | BP104: 1 | BQ104: 1 | BR104: 1 | BS104: 1 | BT104: 1 | BU104: 1 | BV104: 1 | BW104: 1 | BX104: 1 | BY104: 1 | BZ104: 1 | CA104: 1 | CB104: 1 | CC104: 1 | CD104: 1 | CE104: 1 | CF104: 1 | CG104: 1 | CH104: 1 | CI104: 1 | CJ104: 1 | CK104: 1 | CL104: 1 | CM104: 1 | CN104: 1 | CO104: 1 | CP104: 1 | CQ104: 1 | CR104: 1 | CS104: 1 | CT104: 1 | CU104: 1 | CV104: 1 | CW104: 1 | CX104: 1 | CY104: 1 | CZ104: 1 | DA104: 1 | DB104: 1 | DC104: 1 | DD104: 1 | DE104: 1 | DF104: 1 | DG104: 1 | DH104: 1 | DI104: 1 | DJ104: 1 | DK104: 1 | DL104: 1 | DM104: 1 | DN104: 1 | DO104: 1 | DP104: 1 | DQ104: 1 | DR104: 1 | DS104: 1 | DT104: 1 | DU104: 1 | DV104: 1 | DW104: 1 | DX104: 1 | DY104: 1 | DZ104: 1 | EA104: 1 | EB104: 1 | EC104: 1 | ED104: 1 | EE104: 1 | EF104: 1 | EG104: 1 | EH104: 1 | EI104: 1 | EJ104: 1 | EK104: 1 | EL104: 1 | EM104: 1 | EN104: 1 | EO104: 1 | EP104: 1 | EQ104: 1 | ER104: 1 | ES104: 1 | ET104: 1 | EU104: 1 | EV104: 1 | EW104: 1 | EX104: 1 | EY104: 1 | EZ104: 1 | FA104: 1 | FB104: 1 | FC104: 1 | FD104: 1 | FE104: 1 | FF104: 1 | FG104: 1 | FH104: 1 | FI104: 1 | FJ104: 1 | FK104: 1 | FL104: 1 | FM104: 1 | FN104: 1 | FO104: 1 | FP104: 1 | FQ104: 1 | FR104: 1 | FS104: 1 | FT104: 1 | FU104: 1 | FV104: 1 | FW104: 1 | FX104: 1 | FY104: 1 | FZ104: 1 | GA104: 1 | GB104: 1 | GC104: 1 | GD104: 1 | GE104: 1 | GF104: 1 | GG104: 1 | GH104: 1 | GI104: 1 | GJ104: 1 | GK104: 1 | GL104: 1 | GM104: 1 | GN104: 1 | GO104: 1 | GP104: 1 | GQ104: 1 | GR104: 1 | GS104: 1 | GT104: 1 | GU104: 1 | GV104: 1 | GW104: 1 | GX104: 1 | GY104: 1 | GZ104: 1 | HA104: 1 | HB104: 1 | HC104: 1 | HD104: 1 | HE104: 1 | HF104: 1 | HG104: 1 | HH104: 1 | HI104: 1 | HJ104: 1 | HK104: 1 | HL104: 1 | HM104: 1 | HN104: 1 | HO104: 1 | HP104: 1 | HQ104: 1 | HR104: 1 | HS104: 1 | HT104: 1 | HU104: 1 | HV104: 228 | HW104: This is the total number of countries.
A105: Grand Total | B105: 70 | C105: 60 | D105: 65 | E105: 72 | F105: 64 | G105: 62 | H105: 62 | I105: 62 | J105: 61 | K105: 81 | L105: 51 | M105: 71 | N105: 65 | O105: 60 | P105: 67 | Q105: 70 | R105: 71 | S105: 70 | T105: 60 | U105: 60 | V105: 71 | W105: 70 | X105: 71 | Y105: 60 | Z105: 59 | AA105: 78 | AB105: 72 | AC105: 62 | AD105: 75 | AE105: 81 | AF105: 101 | AG105: 58 | AH105: 70 | AI105: 72 | AJ105: 60 | AK105: 89 | AL105: 87 | AM105: 70 | AN105: 77 | AO105: 77 | AP105: 61 | AQ105: 69 | AR105: 62 | AS105: 75 | AT105: 71 | AU105: 78 | AV105: 51 | AW105: 67 | AX105: 76 | AY105: 69 | AZ105: 71 | BA105: 60 | BB105: 69 | BC105: 60 | BD105: 101 | BE105: 70 | BF105: 71 | BG105: 61 | BH105: 55 | BI105: 55 | BJ105: 68 | BK105: 62 | BL105: 71 | BM105: 59 | BN105: 71 | BO105: 60 | BP105: 60 | BQ105: 65 | BR105: 57 | BS105: 57 | BT105: 68 | BU105: 61 | BV105: 68 | BW105: 82 | BX105: 62 | BY105: 81 | BZ105: 69 | CA105: 70 | CB105: 60 | CC105: 61 | CD105: 60 | CE105: 51 | CF105: 60 | CG105: 70 | CH105: 96 | CI105: 71 | CJ105: 54 | CK105: 80 | CL105: 60 | CM105: 77 | CN105: 60 | CO105: 61 | CP105: 57 | CQ105: 71 | CR105: 60 | CS105: 60 | CT105: 65 | CU105: 68 | CV105: 60 | CW105: 76 | CX105: 64 | CY105: 61 | CZ105: 60 | DA105: 69 | DB105: 72 | DC105: 72 | DD105: 62 | DE105: 58 | DF105: 66 | DG105: 61 | DH105: 66 | DI105: 70 | DJ105: 62 | DK105: 56 | DL105: 81 | DM105: 62 | DN105: 62 | DO105: 77 | DP105: 60 | DQ105: 60 | DR105: 75 | DS105: 60 | DT105: 78 | DU105: 76 | DV105: 60 | DW105: 62 | DX105: 62 | DY105: 60 | DZ105: 74 | EA105: 59 | EB105: 57 | EC105: 74 | ED105: 61 | EE105: 69 | EF105: 68 | EG105: 74 | EH105: 55 | EI105: 58 | EJ105: 66 | EK105: 71 | EL105: 71 | EM105: 71 | EN105: 68 | EO105: 74 | EP105: 52 | EQ105: 98 | ER105: 56 | ES105: 59 | ET105: 60 | EU105: 80 | EV105: 59 | EW105: 71 | EX105: 80 | EY105: 65 | EZ105: 43 | FA105: 79 | FB105: 70 | FC105: 70 | FD105: 62 | FE105: 71 | FF105: 60 | FG105: 71 | FH105: 61 | FI105: 72 | FJ105: 65 | FK105: 70 | FL105: 63 | FM105: 69 | FN105: 59 | FO105: 71 | FP105: 41 | FQ105: 62 | FR105: 73 | FS105: 59 | FT105: 69 | FU105: 71 | FV105: 74 | FW105: 66 | FX105: 75 | FY105: 64 | FZ105: 60 | GA105: 77 | GB105: 56 | GC105: 61 | GD105: 76 | GE105: 60 | GF105: 71 | GG105: 43 | GH105: 60 | GI105: 70 | GJ105: 61 | GK105: 69 | GL105: 71 | GM105: 61 | GN105: 62 | GO105: 61 | GP105: 65 | GQ105: 70 | GR105: 70 | GS105: 67 | GT105: 61 | GU105: 71 | GV105: 72 | GW105: 61 | GX105: 62 | GY105: 73 | GZ105: 59 | HA105: 82 | HB105: 60 | HC105: 62 | HD105: 71 | HE105: 75 | HF105: 67 | HG105: 62 | HH105: 60 | HI105: 61 | HJ105: 60 | HK105: 62 | HL105: 51 | HM105: 71 | HN105: 54 | HO105: 55 | HP105: 81 | HQ105: 70 | HR105: 75 | HS105: 57 | HT105: 71 | HU105: 69 | HV105: 15165
B106: This bottom row reports the number of years of available data for each country
B107: The data are from a Pivot Table I made from the IDBext194.txt file, which had all of the countries and all of the years for the single age cohorts.
B108: The txt file can be downloaded from the IDB web site as part of a zip file with all of the data.
B109: With the IDBext194.txt data in Excel, I deleted all of the age data, then sorted by year.
B110: There 2 observations for every year because of M and F birhts so delete one from each year, then make the Pivot Table and copy and paste values.
B111: Data downloaded Nov 2012; release notes said data had been updated Jun 2012.
B112: No change July 2016

Sheet Temp (hidden)
B1: SEX | C1: POP | D1: YR | E1: AGE | F1: FIPS] | J1: This sheet has data brought into col A from the Get IDB Data button in the PopPyr sheet; code manipulates col A to produce Age, M, F in cols G, H, I below for PopPyr sheet
B2: 1 | C2: 184549 | D2: 2018 | E2: 0 | F2: PL] | G2: 0 | H2: -184549 | I2: 174344
B3: 2 | C3: 174344 | D3: 2018 | E3: 0 | F3: PL] | G3: 1 | H3: -188082 | I3: 177691
B4: 1 | C4: 188082 | D4: 2018 | E4: 1 | F4: PL] | G4: 2 | H4: -191295 | I4: 180735
B5: 2 | C5: 177691 | D5: 2018 | E5: 1 | F5: PL] | G5: 3 | H5: -194103 | I5: 183400
B6: 1 | C6: 191295 | D6: 2018 | E6: 2 | F6: PL] | G6: 4 | H6: -196425 | I6: 185602
B7: 2 | C7: 180735 | D7: 2018 | E7: 2 | F7: PL] | G7: 5 | H7: -197973 | I7: 187069
B8: 1 | C8: 194103 | D8: 2018 | E8: 3 | F8: PL] | G8: 6 | H8: -198826 | I8: 187807
B9: 2 | C9: 183400 | D9: 2018 | E9: 3 | F9: PL] | G9: 7 | H9: -206245 | I9: 193130
B10: 1 | C10: 196425 | D10: 2018 | E10: 4 | F10: PL] | G10: 8 | H10: -213206 | I10: 199807
B11: 2 | C11: 185602 | D11: 2018 | E11: 4 | F11: PL] | G11: 9 | H11: -211916 | I11: 200749
B12: 1 | C12: 197973 | D12: 2018 | E12: 5 | F12: PL] | G12: 10 | H12: -203685 | I12: 193339
B13: 2 | C13: 187069 | D13: 2018 | E13: 5 | F13: PL] | G13: 11 | H13: -190772 | I13: 181045
B14: 1 | C14: 198826 | D14: 2018 | E14: 6 | F14: PL] | G14: 12 | H14: -184797 | I14: 175200
B15: 2 | C15: 187807 | D15: 2018 | E15: 6 | F15: PL] | G15: 13 | H15: -182726 | I15: 173044
B16: 1 | C16: 206245 | D16: 2018 | E16: 7 | F16: PL] | G16: 14 | H16: -179477 | I16: 169672
B17: 2 | C17: 193130 | D17: 2018 | E17: 7 | F17: PL] | G17: 15 | H17: -178943 | I17: 168907
B18: 1 | C18: 213206 | D18: 2018 | E18: 8 | F18: PL] | G18: 16 | H18: -183318 | I18: 172868
B19: 2 | C19: 199807 | D19: 2018 | E19: 8 | F19: PL] | G19: 17 | H19: -189424 | I19: 178534
B20: 1 | C20: 211916 | D20: 2018 | E20: 9 | F20: PL] | G20: 18 | H20: -192716 | I20: 181541
B21: 2 | C21: 200749 | D21: 2018 | E21: 9 | F21: PL] | G21: 19 | H21: -196662 | I21: 185352
B22: 1 | C22: 203685 | D22: 2018 | E22: 10 | F22: PL] | G22: 20 | H22: -203737 | I22: 192497
B23: 2 | C23: 193339 | D23: 2018 | E23: 10 | F23: PL] | G23: 21 | H23: -211278 | I23: 199853
B24: 1 | C24: 190772 | D24: 2018 | E24: 11 | F24: PL] | G24: 22 | H24: -215495 | I24: 204289
B25: 2 | C25: 181045 | D25: 2018 | E25: 11 | F25: PL] | G25: 23 | H25: -227164 | I25: 217109
B26: 1 | C26: 184797 | D26: 2018 | E26: 12 | F26: PL] | G26: 24 | H26: -241306 | I26: 231059
B27: 2 | C27: 175200 | D27: 2018 | E27: 12 | F27: PL] | G27: 25 | H27: -249171 | I27: 238306
B28: 1 | C28: 182726 | D28: 2018 | E28: 13 | F28: PL] | G28: 26 | H28: -262132 | I28: 250521
B29: 2 | C29: 173044 | D29: 2018 | E29: 13 | F29: PL] | G29: 27 | H29: -269511 | I29: 257236
B30: 1 | C30: 179477 | D30: 2018 | E30: 14 | F30: PL] | G30: 28 | H30: -272944 | I30: 260159
B31: 2 | C31: 169672 | D31: 2018 | E31: 14 | F31: PL] | G31: 29 | H31: -270410 | I31: 260386
B32: 1 | C32: 178943 | D32: 2018 | E32: 15 | F32: PL] | G32: 30 | H32: -272418 | I32: 264063
B33: 2 | C33: 168907 | D33: 2018 | E33: 15 | F33: PL] | G33: 31 | H33: -296446 | I33: 286533
B34: 1 | C34: 183318 | D34: 2018 | E34: 16 | F34: PL] | G34: 32 | H34: -315808 | I34: 306482
B35: 2 | C35: 172868 | D35: 2018 | E35: 16 | F35: PL] | G35: 33 | H35: -331563 | I35: 321733
B36: 1 | C36: 189424 | D36: 2018 | E36: 17 | F36: PL] | G36: 34 | H36: -341000 | I36: 331004
B37: 2 | C37: 178534 | D37: 2018 | E37: 17 | F37: PL] | G37: 35 | H37: -341277 | I37: 332186
B38: 1 | C38: 192716 | D38: 2018 | E38: 18 | F38: PL] | G38: 36 | H38: -329850 | I38: 320697
B39: 2 | C39: 181541 | D39: 2018 | E39: 18 | F39: PL] | G39: 37 | H39: -322957 | I39: 315585
B40: 1 | C40: 196662 | D40: 2018 | E40: 19 | F40: PL] | G40: 38 | H40: -324594 | I40: 317247
B41: 2 | C41: 185352 | D41: 2018 | E41: 19 | F41: PL] | G41: 39 | H41: -319247 | I41: 311409
B42: 1 | C42: 203737 | D42: 2018 | E42: 20 | F42: PL] | G42: 40 | H42: -312499 | I42: 305379
B43: 2 | C43: 192497 | D43: 2018 | E43: 20 | F43: PL] | G43: 41 | H43: -310264 | I43: 303288
B44: 1 | C44: 211278 | D44: 2018 | E44: 21 | F44: PL] | G44: 42 | H44: -307107 | I44: 301831
B45: 2 | C45: 199853 | D45: 2018 | E45: 21 | F45: PL] | G45: 43 | H45: -295984 | I45: 290802
B46: 1 | C46: 215495 | D46: 2018 | E46: 22 | F46: PL] | G46: 44 | H46: -286258 | I46: 281486
B47: 2 | C47: 204289 | D47: 2018 | E47: 22 | F47: PL] | G47: 45 | H47: -278127 | I47: 274231
B48: 1 | C48: 227164 | D48: 2018 | E48: 23 | F48: PL] | G48: 46 | H48: -265747 | I48: 261940
B49: 2 | C49: 217109 | D49: 2018 | E49: 23 | F49: PL] | G49: 47 | H49: -252518 | I49: 250119
B50: 1 | C50: 241306 | D50: 2018 | E50: 24 | F50: PL] | G50: 48 | H50: -240208 | I50: 237210
B51: 2 | C51: 231059 | D51: 2018 | E51: 24 | F51: PL] | G51: 49 | H51: -230689 | I51: 227246
B52: 1 | C52: 249171 | D52: 2018 | E52: 25 | F52: PL] | G52: 50 | H52: -226877 | I52: 225267
B53: 2 | C53: 238306 | D53: 2018 | E53: 25 | F53: PL] | G53: 51 | H53: -222840 | I53: 224301
B54: 1 | C54: 262132 | D54: 2018 | E54: 26 | F54: PL] | G54: 52 | H54: -223538 | I54: 228437
B55: 2 | C55: 250521 | D55: 2018 | E55: 26 | F55: PL] | G55: 53 | H55: -227433 | I55: 234411
B56: 1 | C56: 269511 | D56: 2018 | E56: 27 | F56: PL] | G56: 54 | H56: -231628 | I56: 240629
B57: 2 | C57: 257236 | D57: 2018 | E57: 27 | F57: PL] | G57: 55 | H57: -233259 | I57: 245084
B58: 1 | C58: 272944 | D58: 2018 | E58: 28 | F58: PL] | G58: 56 | H58: -235994 | I58: 249625
B59: 2 | C59: 260159 | D59: 2018 | E59: 28 | F59: PL] | G59: 57 | H59: -244920 | I59: 262683
B60: 1 | C60: 270410 | D60: 2018 | E60: 29 | F60: PL] | G60: 58 | H60: -256394 | I60: 278993
B61: 2 | C61: 260386 | D61: 2018 | E61: 29 | F61: PL] | G61: 59 | H61: -265168 | I61: 291533
B62: 1 | C62: 272418 | D62: 2018 | E62: 30 | F62: PL] | G62: 60 | H62: -271451 | I62: 301520
B63: 2 | C63: 264063 | D63: 2018 | E63: 30 | F63: PL] | G63: 61 | H63: -268060 | I63: 302243
B64: 1 | C64: 296446 | D64: 2018 | E64: 31 | F64: PL] | G64: 62 | H64: -263007 | I64: 301376
B65: 2 | C65: 286533 | D65: 2018 | E65: 31 | F65: PL] | G65: 63 | H65: -255516 | I65: 296873
B66: 1 | C66: 315808 | D66: 2018 | E66: 32 | F66: PL] | G66: 64 | H66: -244797 | I66: 289614
B67: 2 | C67: 306482 | D67: 2018 | E67: 32 | F67: PL] | G67: 65 | H67: -237895 | I67: 285747
B68: 1 | C68: 331563 | D68: 2018 | E68: 33 | F68: PL] | G68: 66 | H68: -226804 | I68: 278681
B69: 2 | C69: 321733 | D69: 2018 | E69: 33 | F69: PL] | G69: 67 | H69: -215977 | I69: 269567
B70: 1 | C70: 341000 | D70: 2018 | E70: 34 | F70: PL] | G70: 68 | H70: -202403 | I70: 256244
B71: 2 | C71: 331004 | D71: 2018 | E71: 34 | F71: PL] | G71: 69 | H71: -187088 | I71: 243014
B72: 1 | C72: 341277 | D72: 2018 | E72: 35 | F72: PL] | G72: 70 | H72: -174217 | I72: 230550
B73: 2 | C73: 332186 | D73: 2018 | E73: 35 | F73: PL] | G73: 71 | H73: -154341 | I73: 209998
B74: 1 | C74: 329850 | D74: 2018 | E74: 36 | F74: PL] | G74: 72 | H74: -124594 | I74: 175444
B75: 2 | C75: 320697 | D75: 2018 | E75: 36 | F75: PL] | G75: 73 | H75: -98259 | I75: 143116
B76: 1 | C76: 322957 | D76: 2018 | E76: 37 | F76: PL] | G76: 74 | H76: -90007 | I76: 135656
B77: 2 | C77: 315585 | D77: 2018 | E77: 37 | F77: PL] | G77: 75 | H77: -84960 | I77: 130716
B78: 1 | C78: 324594 | D78: 2018 | E78: 38 | F78: PL] | G78: 76 | H78: -81542 | I78: 130271
B79: 2 | C79: 317247 | D79: 2018 | E79: 38 | F79: PL] | G79: 77 | H79: -81707 | I79: 134225
B80: 1 | C80: 319247 | D80: 2018 | E80: 39 | F80: PL] | G80: 78 | H80: -79688 | I80: 136790
B81: 2 | C81: 311409 | D81: 2018 | E81: 39 | F81: PL] | G81: 79 | H81: -74611 | I81: 133233
B82: 1 | C82: 312499 | D82: 2018 | E82: 40 | F82: PL] | G82: 80 | H82: -68866 | I82: 127335
B83: 2 | C83: 305379 | D83: 2018 | E83: 40 | F83: PL] | G83: 81 | H83: -64393 | I83: 122985
B84: 1 | C84: 310264 | D84: 2018 | E84: 41 | F84: PL] | G84: 82 | H84: -59613 | I84: 117950
B85: 2 | C85: 303288 | D85: 2018 | E85: 41 | F85: PL] | G85: 83 | H85: -53088 | I85: 107736
B86: 1 | C86: 307107 | D86: 2018 | E86: 42 | F86: PL] | G86: 84 | H86: -46584 | I86: 97624
B87: 2 | C87: 301831 | D87: 2018 | E87: 42 | F87: PL] | G87: 85 | H87: -42655 | I87: 91037
B88: 1 | C88: 295984 | D88: 2018 | E88: 43 | F88: PL] | G88: 86 | H88: -38860 | I88: 84386
B89: 2 | C89: 290802 | D89: 2018 | E89: 43 | F89: PL] | G89: 87 | H89: -34594 | I89: 75880
B90: 1 | C90: 286258 | D90: 2018 | E90: 44 | F90: PL] | G90: 88 | H90: -30123 | I90: 67377
B91: 2 | C91: 281486 | D91: 2018 | E91: 44 | F91: PL] | G91: 89 | H91: -24955 | I91: 55969
B92: 1 | C92: 278127 | D92: 2018 | E92: 45 | F92: PL] | G92: 90 | H92: -20360 | I92: 47034
B93: 2 | C93: 274231 | D93: 2018 | E93: 45 | F93: PL] | G93: 91 | H93: -15685 | I93: 37847
B94: 1 | C94: 265747 | D94: 2018 | E94: 46 | F94: PL] | G94: 92 | H94: -12664 | I94: 32366
B95: 2 | C95: 261940 | D95: 2018 | E95: 46 | F95: PL] | G95: 93 | H95: -10541 | I95: 26184
B96: 1 | C96: 252518 | D96: 2018 | E96: 47 | F96: PL] | G96: 94 | H96: -7730 | I96: 19491
B97: 2 | C97: 250119 | D97: 2018 | E97: 47 | F97: PL] | G97: 95 | H97: -5992 | I97: 14813
B98: 1 | C98: 240208 | D98: 2018 | E98: 48 | F98: PL] | G98: 96 | H98: -4252 | I98: 10338
B99: 2 | C99: 237210 | D99: 2018 | E99: 48 | F99: PL] | G99: 97 | H99: -3048 | I99: 7132
B100: 1 | C100: 230689 | D100: 2018 | E100: 49 | F100: PL] | G100: 98 | H100: -2016 | I100: 4764
B101: 2 | C101: 227246 | D101: 2018 | E101: 49 | F101: PL] | G101: 99 | H101: -1204 | I101: 2875
B102: 1 | C102: 226877 | D102: 2018 | E102: 50 | F102: PL] | G102: 100 | H102: -2048 | I102: 4906
B103: 2 | C103: 225267 | D103: 2018 | E103: 50 | F103: PL] | G103: 0 | H103: -180853 | I103: 170852
B104: 1 | C104: 222840 | D104: 2018 | E104: 51 | F104: PL] | G104: 1 | H104: -184647 | I104: 174444
B105: 2 | C105: 224301 | D105: 2018 | E105: 51 | F105: PL] | G105: 2 | H105: -188208 | I105: 177821
B106: 1 | C106: 223538 | D106: 2018 | E106: 52 | F106: PL] | G106: 3 | H106: -191433 | I106: 180874
B107: 2 | C107: 228437 | D107: 2018 | E107: 52 | F107: PL] | G107: 4 | H107: -194246 | I107: 183544
B108: 1 | C108: 227433 | D108: 2018 | E108: 53 | F108: PL] | G108: 5 | H108: -196433 | I108: 185615
B109: 2 | C109: 234411 | D109: 2018 | E109: 53 | F109: PL] | G109: 6 | H109: -197836 | I109: 186940
B110: 1 | C110: 231628 | D110: 2018 | E110: 54 | F110: PL] | G110: 7 | H110: -198691 | I110: 187680
B111: 2 | C111: 240629 | D111: 2018 | E111: 54 | F111: PL] | G111: 8 | H111: -206111 | I111: 193003
B112: 1 | C112: 233259 | D112: 2018 | E112: 55 | F112: PL] | G112: 9 | H112: -213070 | I112: 199678
B113: 2 | C113: 245084 | D113: 2018 | E113: 55 | F113: PL] | G113: 10 | H113: -211784 | I113: 200627
B114: 1 | C114: 235994 | D114: 2018 | E114: 56 | F114: PL] | G114: 11 | H114: -203559 | I114: 193225
B115: 2 | C115: 249625 | D115: 2018 | E115: 56 | F115: PL] | G115: 12 | H115: -190648 | I115: 180931
B116: 1 | C116: 244920 | D116: 2018 | E116: 57 | F116: PL] | G116: 13 | H116: -184669 | I116: 175084
B117: 2 | C117: 262683 | D117: 2018 | E117: 57 | F117: PL] | G117: 14 | H117: -182590 | I117: 172925
B118: 1 | C118: 256394 | D118: 2018 | E118: 58 | F118: PL] | G118: 15 | H118: -179306 | I118: 169553
B119: 2 | C119: 278993 | D119: 2018 | E119: 58 | F119: PL] | G119: 16 | H119: -178730 | I119: 168790
B120: 1 | C120: 265168 | D120: 2018 | E120: 59 | F120: PL] | G120: 17 | H120: -183080 | I120: 172748
B121: 2 | C121: 291533 | D121: 2018 | E121: 59 | F121: PL] | G121: 18 | H121: -189155 | I121: 178410
B122: 1 | C122: 271451 | D122: 2018 | E122: 60 | F122: PL] | G122: 19 | H122: -192416 | I122: 181416
B123: 2 | C123: 301520 | D123: 2018 | E123: 60 | F123: PL] | G123: 20 | H123: -196362 | I123: 185208
B124: 1 | C124: 268060 | D124: 2018 | E124: 61 | F124: PL] | G124: 21 | H124: -203441 | I124: 192337
B125: 2 | C125: 302243 | D125: 2018 | E125: 61 | F125: PL] | G125: 22 | H125: -210968 | I125: 199691
B126: 1 | C126: 263007 | D126: 2018 | E126: 62 | F126: PL] | G126: 23 | H126: -215178 | I126: 204126
B127: 2 | C127: 301376 | D127: 2018 | E127: 62 | F127: PL] | G127: 24 | H127: -226835 | I127: 216943
B128: 1 | C128: 255516 | D128: 2018 | E128: 63 | F128: PL] | G128: 25 | H128: -240966 | I128: 230818
B129: 2 | C129: 296873 | D129: 2018 | E129: 63 | F129: PL] | G129: 26 | H129: -248828 | I129: 237988
B130: 1 | C130: 244797 | D130: 2018 | E130: 64 | F130: PL] | G130: 27 | H130: -261778 | I130: 250197
B131: 2 | C131: 289614 | D131: 2018 | E131: 64 | F131: PL] | G131: 28 | H131: -269148 | I131: 256907
B132: 1 | C132: 237895 | D132: 2018 | E132: 65 | F132: PL] | G132: 29 | H132: -272568 | I132: 259823
B133: 2 | C133: 285747 | D133: 2018 | E133: 65 | F133: PL] | G133: 30 | H133: -269995 | I133: 260011
B134: 1 | C134: 226804 | D134: 2018 | E134: 66 | F134: PL] | G134: 31 | H134: -271954 | I134: 263649
B135: 2 | C135: 278681 | D135: 2018 | E135: 66 | F135: PL] | G135: 32 | H135: -295934 | I135: 286105
B136: 1 | C136: 215977 | D136: 2018 | E136: 67 | F136: PL] | G136: 33 | H136: -315244 | I136: 306038
B137: 2 | C137: 269567 | D137: 2018 | E137: 67 | F137: PL] | G137: 34 | H137: -330943 | I137: 321272
B138: 1 | C138: 202403 | D138: 2018 | E138: 68 | F138: PL] | G138: 35 | H138: -340332 | I138: 330562
B139: 2 | C139: 256244 | D139: 2018 | E139: 68 | F139: PL] | G139: 36 | H139: -340565 | I139: 331764
B140: 1 | C140: 187088 | D140: 2018 | E140: 69 | F140: PL] | G140: 37 | H140: -329108 | I140: 320260
B141: 2 | C141: 243014 | D141: 2018 | E141: 69 | F141: PL] | G141: 38 | H141: -322170 | I141: 315130
B142: 1 | C142: 174217 | D142: 2018 | E142: 70 | F142: PL] | G142: 39 | H142: -323738 | I142: 316767
B143: 2 | C143: 230550 | D143: 2018 | E143: 70 | F143: PL] | G143: 40 | H143: -318350 | I143: 310939
B144: 1 | C144: 154341 | D144: 2018 | E144: 71 | F144: PL] | G144: 41 | H144: -311556 | I144: 304916
B145: 2 | C145: 209998 | D145: 2018 | E145: 71 | F145: PL] | G145: 42 | H145: -309236 | I145: 302787
